Workbook

Sheet 1. General
A1: ^FIT
A2: 60 | C2: B4B BioHeat Profitability Assessment Tool - Comparison of the economic efficiency (pre-feasibility level) of mid-scale, solid biomass and fossil fuel fired (district & in-house) heat-only plants (0.1 to 20 MW nominal plant heat load)
A3: 55 | D3: Heat Cost Calculator
C4: Willkommen! | H4: =HYPERLINK("#'Manual for Translation'!$j$"&ROW('Manual for Translation'!J22)) -> #'Manual for Translation'!$j$22
A5: 400 | D5: Der Zweck dieses Excel-Tool ist es, den Benutzer bei der Durchführung einer wirtschaftlichen Machbarkeitsanalyse für Biomasseheizungen zu unterstützen und mit dem Verfahren einer diskontierten Cash-flow Analyse (dt. abgezinster Zahlungsstrom) einen Vergleich mit einem qualitativ äquivalenten mit fossilen Brennstoffen betriebenen Heizsystem, zu ermöglichen. Anwendungsgegenstand dieses Excel-Werkzeugs sind Biomasseheizwerke mit und ohne Fernwärmenetze, in einem Leistungsbereich von 0,1 bis 20 MW. Das Excel-Tool besteht aus 6 Dateneingabe- Blättern und 1 Datenausgabeblatt (Ergebnisse). Um die Berechnung zu starten, sind die Excel-Tabellen von links nach rechts in der angegebenen Reihenfolge. Eingabetabellen sind als Listen strukturiert, jeder Parameter hat eine Zeile. In der linken Spalte (neben dem Eingabeparameternamen) finden Sie einen Link zu der entsprechenden manuellen Eingabe. In der Spalte "" Eingangswert "" (dunkelblau hinterlegt), sind die entsprechenden Werte für Ihr Projekt einzugeben. Um Ihnen einen Anhaltspunkt für plausible Parameterwerte zu geben, finden Sie werden Sie Referenzwerte oder typische Wertebereiche in der Spalte "" Sollwert "". Diese Werte basieren auf einer nationalen Umfrage im Jahr 2015, die von den Partnern des Projektes Bioenergy4Business durchgeführt wurden. Bei alle kostenbeeinflussten Referenzwerte wird die Inflationsrate berücksichtigt. Die Kostensteigerung wird automatisch berechnet, basierend auf dem Jahr, das Sie als Startjahr für Ihr Projekt gewählt haben (siehe unten). In einigen Fällen werden Sie auch Referenzwerte bezüglich der Leitung sowie technischer Parameter usw. finden. Beachten Sie bitte, dass Referenzwerte lediglich als grobe Richtwerte für die von Ihnen einzugebenden Daten dienen. Die realen Werte Ihres spezifischen Projektes können aufgrund örtlicher Gegebenheiten von diesen Referenzwerten abweichen. Wir empfehlen das Tool insbesondere zum Vergleich von Anboten für Ihre Projektalternativen zu benutzen. Durch Variation von Eingabeparametern können Sie erkennen, welche Parameter entscheidend für die Wirtschaftlichkeit Ihrer Projektalternativen sind. Somit können Sie sehr einfach wertvolle Risikoabschätzungen durchführen. Bitte beachten Sie, dass dieses Tool und die damit verbundene nationale Umfrage zu Referenzparameterwerte mit größter Sorgfalt und nach bestem Wissen erstellt wurden. Der Einfachheit halber beruhen die Berechnungen auf Annahmen, die zu (leichten) Ergebnisabweichungen führen können. Darüber hinaus sind die Ergebnisse dieses Werkzeugs stark abhängig von den Benutzereingaben, wie z. B. den Annahmen zum Wärmebedarf wie auch den Parametern zur Anlagengröße. Bitte beachten Sie, dass eine eingehende Wärmebedarf-Analyse für die Dimensionierung der Anlagenteile zu optimalen Kosten ausschlaggebend ist und einen starken Einfluss auf die Durchführbarkeit der Biomasse Wärmeprojekte hat. | H5: =HYPERLINK("#'Manual for Translation'!$j$"&ROW('Manual for Translation'!J23)) -> #'Manual for Translation'!$j$23
H6: =HYPERLINK("#'Manual for Translation'!$j$"&ROW('Manual for Translation'!J24)) -> #'Manual for Translation'!$j$24
D7: Nutzung der Datensheets - Farblegende | H7: =HYPERLINK("#'Manual for Translation'!$j$"&ROW('Manual for Translation'!J25)) -> #'Manual for Translation'!$j$25
C8: Help | D8: Parameter | E8: Eingabewert | F8: Referenzwert | H8: =HYPERLINK("#'Manual for Translation'!$j$"&ROW('Manual for Translation'!J26)) -> #'Manual for Translation'!$j$26
D9: Hellblaue Zellen --> Eingabefelder für Zwischenrechnungen | E9: 10 | H9: =HYPERLINK("#'Manual for Translation'!$j$"&ROW('Manual for Translation'!J27)) -> #'Manual for Translation'!$j$27
D10: Dunkelblaue Zellen --> Eingabefelder, die kalkulationswirksam sind | E10: 40 | F10: 42 | H10: =HYPERLINK("#'Manual for Translation'!$j$"&ROW('Manual for Translation'!J28)) -> #'Manual for Translation'!$j$28
D11: Blass hellblaue Zellen --> Eingabefelder mit Drop-Down Menü | H11: =HYPERLINK("#'Manual for Translation'!$j$"&ROW('Manual for Translation'!J29)) -> #'Manual for Translation'!$j$29
D12: Weiße Zellen --> Informatives Zwischenergebnis | E12: Zwischenergebnis | H12: =HYPERLINK("#'Manual for Translation'!$j$"&ROW('Manual for Translation'!J30)) -> #'Manual for Translation'!$j$30
H13: =HYPERLINK("#'Manual for Translation'!$j$"&ROW('Manual for Translation'!J31)) -> #'Manual for Translation'!$j$31
C14: =HYPERLINK("#"&'Manual for Translation'!E32,'Manual for Translation'!F32) -> 1010 | D14: ALLGEMEINE PROJEKTINFORMATIONEN | H14: =HYPERLINK("#'Manual for Translation'!$j$"&ROW('Manual for Translation'!J32)) -> #'Manual for Translation'!$j$32
D15: Parameter | E15: Eingabewert | F15: Referenzwert | H15: =HYPERLINK("#'Manual for Translation'!$j$"&ROW('Manual for Translation'!J33)) -> #'Manual for Translation'!$j$33
C16: =HYPERLINK("#"&'Manual for Translation'!E34,'Manual for Translation'!F34) -> 1012 | D16: Sprachauswahl für das Tool | E16: Deutsch | H16: =HYPERLINK("#'Manual for Translation'!$j$"&ROW('Manual for Translation'!J34)) -> #'Manual for Translation'!$j$34
A17: 30.6 | C17: =HYPERLINK("#"&'Manual for Translation'!E35,'Manual for Translation'!F35) -> 1013 | D17: Land, in dem das Projekt realisiert wird (und für das länderspezifische Referenzwerte geladen werden) | E17: AT | H17: =HYPERLINK("#'Manual for Translation'!$j$"&ROW('Manual for Translation'!J35)) -> #'Manual for Translation'!$j$35
C18: =HYPERLINK("#"&'Manual for Translation'!E36,'Manual for Translation'!F36) -> 1014 | D18: Nationale Währung | E18: =General_Data!C15 -> EUR | H18: =HYPERLINK("#'Manual for Translation'!$j$"&ROW('Manual for Translation'!J36)) -> #'Manual for Translation'!$j$36
A19: ^HID | C19: =HYPERLINK("#"&'Manual for Translation'!E37,'Manual for Translation'!F37) -> 1015 | E19: 1 | F19: =General_Data!D15 -> 1 | H19: =HYPERLINK("#'Manual for Translation'!$j$"&ROW('Manual for Translation'!J37)) -> #'Manual for Translation'!$j$37
C20: =HYPERLINK("#"&'Manual for Translation'!E38,'Manual for Translation'!F38) -> 1016 | D20: Projektstart (Jahr), 1 Jahr vor der Inbetriebnahme | E20: 2017 | H20: =HYPERLINK("#'Manual for Translation'!$j$"&ROW('Manual for Translation'!J38)) -> #'Manual for Translation'!$j$38
C21: =HYPERLINK("#"&'Manual for Translation'!E39,'Manual for Translation'!F39) -> 1017 | D21: Inbetriebnahmejahr | E21: =Year_0+1 -> 2018 | H21: =HYPERLINK("#'Manual for Translation'!$j$"&ROW('Manual for Translation'!J39)) -> #'Manual for Translation'!$j$39
A22: 30.6 | C22: =HYPERLINK("#"&'Manual for Translation'!E40,'Manual for Translation'!F40) -> 1018 | D22: Biomasse Brennstoff | E22: Holzpellets | F22: Bitte ggf. an die gewählte Sprache anpassen!! | H22: =HYPERLINK("#'Manual for Translation'!$j$"&ROW('Manual for Translation'!J40)) -> #'Manual for Translation'!$j$40
A23: 30.6 | C23: =HYPERLINK("#"&'Manual for Translation'!E41,'Manual for Translation'!F41) -> 1019 | D23: Fossiler Brennstoff (für Ausfallsreserve/Spitzenlast) im Biomasseheizwerk | E23: - | F23: =F22 -> Bitte ggf. an die gewählte Sprache anpassen!! | H23: =HYPERLINK("#'Manual for Translation'!$j$"&ROW('Manual for Translation'!J41)) -> #'Manual for Translation'!$j$41
A24: 30.6 | C24: =HYPERLINK("#"&'Manual for Translation'!E42,'Manual for Translation'!F42) -> 1020 | D24: Fossiles Referenzsystem: Brennstoff | E24: Heizöl | F24: =F22 -> Bitte ggf. an die gewählte Sprache anpassen!! | H24: =HYPERLINK("#'Manual for Translation'!$j$"&ROW('Manual for Translation'!J42)) -> #'Manual for Translation'!$j$42
A28: 55
A30: 175 | D30: Bevor Sie das Tool verwenden bitten wir Sie in Excel Makros zu erlauben: Bitte klicken Sie auf Datei > Optionen > Vertrauensstellungscenter > Einstellungen für das Vertrauensstellungscenter und anschließend auf Einstellungen für Makros. Aktivieren Sie bitte Makros akzeptieren. Bitte machen Sie diese Einstellung nach der Benutzung des Tools rückgängig um Ihren Computer vor Angriffen durch potenziell bösartige Codes zu schützen. Aktivieren Sie bitte auch das Excel Add-in "Solver": Bitte klicken Sie dazu auf Datei > Optionen > Add-Ins, und klicken Sie auf OK. Aktivieren Sie im Feld Verfügbare Add-Ins das Kontrollkästchen Solver, und klicken Sie dann auf OK. Falls Solver im Feld "Verfügbare Add-Ins" nicht angezeigt wird, klicken Sie auf Durchsuchen und navigieren Sie zum Ordner, der Solver.xlam beinhaltet. Klick Sie dann bitte auf OK. Sollten Sie während Ihrer Kalkulationen die Sprache ändern, achten Sie bitte darauf, dass Sie auch bei den Drop-down Menüs die Auswahlfelder in dieser Sprache reaktivieren. Andernfalls können Berechnungsfehler auftreten, die in Form von "#NV" angezeigt werden können.
A31: 45 | D31: Haftungsausschluss
A32: 45 | D32: Dieses Tool ersetzt keine standortspezifische, professionelle Anlagenplanung und keine Ausschreibung zur Einholung von Preisangeboten von Herstellerfirmen. Daher kann auf Basis der Nutzung dieses Tools keine Investitionsentscheidung getroffen werden.
A33: 6
A34: 75 | D34: Das Projekt wird im Rahmen des Horizon 2020 EU-Programms für Forschung und Innovation unter der Vertragsnummer 646495 gefördert. Jede Kommunikationsaktivität im Zuge des Projekts gibt ausschließlich die Meinung der AutorInnen wieder. Die Europäische Union und ihre Exekutivagentur für Wettbewerbsfähigkeit und Innovation (INEA) übernehmen keine Verantwortung für jeglichen Gebrauch der darin enthaltenen Informationen.
A35: 6
A36: 70 | D36: Die Bioenergy4Business Projektpartner (siehe nachfolgende Liste) haben alle in diesem Tool vorhandenen Angaben sorgfältig ermittelt. Es kann jedoch keine Gewähr für Richtigkeit, Vollständigkeit und Aktualität der Angaben übernommen werden. Im übrigen ist die Haftung für jegliche Schäden, insbesondere für direkte oder indirekte sowie materielle oder immaterielle, die durch die Nutzung oder Nichtnutzung der dargebotenen Information verursacht werden, ausgeschlossen. Die Autoren und ausführenden Institutionen haften weder für direkte noch indirekte Schäden durch die Nutzung des Tools oder Nutzung der damit erstellten Ergebnisse.
A37: 6
A38: 30.6 | D38: Die Österreichische Energieagentur ist verantwortlich für die Konzeption, Programmierung, das Layout und die hinterlegten Methodiken und Funktionalitäten, als auch für den englischsprachigen Text im Excel Tool. Die Funktionalität wird für übliche Hard-und Software Bedingungen getestet. Die Nutzbarkeit kann nicht für alle Betreibssysteme, alle PC-Konfigurationen und individuelle IT Infrastrukturen garantiert werden.
A39: 6
A40: 65 | D40: Die alleinige Verantwortung für die Qualität und Stichhaltigkeit der länderspezifischen Referenzwerte, als auch der Übersetzung des Textes von Englisch in die jeweilige Landessprache, obliegt dem für das jeweilige Land zuständigen Projektpartner. Die nachfolgende Liste zeigt die Projektpartner der Länder, für die in diesem Tool Referenzwerte angegeben werden.
A41: 6
D42: Participant organisation name | E42: Country
A43: 6
D44: AEA – Austrian Energy Agency | E44: AT
A45: 3
D46: KAPE – CRES – Centre for Renewable Energy Sources and Saving | E46: EL
A47: 3
D48: DBFZ – Deutsches Biomasseforschungszentrum gemeinnützige GmbH | E48: DE
A49: 3
D50: KAPE – The Polish National Energy Conservation Agency | E50: PL
A51: 3
D52: ARBIO – Romanian Association of Biomass and Biogas | E52: RO
A53: 3
D54: SIEA – Slovak Innovation and Energy Agency | E54: SK
A55: 3
D56: BGBIOM – National Biomass Association | E56: BG
A57: 3
D58: SECB – Scientific Engineering Centre “Biomass” Ltd | E58: UA
A59: 3
D60: EIHP – Energy Institute Hrvoje Požar | E60: HR
A61: 3
D62: RVO – Rijksdienst voor Ondernemend Nederland, Ministry of Economic Affairs | E62: NL
A63: 3
D64: MOTIVA – Motiva Oy | E64: FI
A65: 3
D66: DTI – Danish Technological Institute | E66: DK
A68: ^END

Sheet General_Data (hidden)
B1: Country Drop Down | C1: National Currency Name | D1: Exchange Rate
B2: RO | C2: RON | D2: 1
B3: AT | C3: EUR | D3: 1
B4: BG | C4: BGN | D4: 1
B5: GR | C5: EUR | D5: 1 | F5: Exchangerage not used anymore, as the survey uses directly the national currency. The xrt variable must be set to 1 for all countries!
B6: DE | C6: EUR | D6: =SURVEY!K7 -> 1
B7: HR | C7: HRK | D7: 1
B8: PL | C8: PLN | D8: 1
B9: NL | C9: EUR | D9: 1
B10: SK | C10: EUR | D10: 1
B11: UA | C11: UAH | D11: 1
B12: DK | C12: EUR | D12: 1
B13: FI | C13: EUR | D13: =SURVEY!R7 -> 1
A15: Auswahl: | B15: ='1. General'!E17 -> AT | C15: =INDEX(C2:$C$13,MATCH(B15,$B$2:$B$13,0)) -> EUR | D15: =INDEX($D2:D$13,MATCH(B15,$B$2:$B$13,0)) -> 1
B17: Language Drop Down
B18: English
B19: Deutsch
B20: Bulgarski
B21: Hrvatska
B22: Ellines
B23: Romana
B24: Slovensky
B25: Ukrayinskyy
B26: Polski
B27: Suomi
A28: Auswahl: | B28: ='1. General'!E16 -> Deutsch
B30: BM Fuel Type Drop-down
B31: Selected Language:
B32: =Language -> Deutsch | C32: Specific Volume (m³/MWh) | F32: ='Manual for Translation'!J6 -> English | G32: ='Manual for Translation'!L6 -> Deutsch | H32: ='Manual for Translation'!N6 -> Bulgarski | I32: ='Manual for Translation'!P6 -> Hrvatska | J32: ='Manual for Translation'!R6 -> Ellines | K32: ='Manual for Translation'!T6 -> Polski | L32: ='Manual for Translation'!V6 -> Romana | M32: ='Manual for Translation'!X6 -> Slovensky | N32: ='Manual for Translation'!Z6 -> Ukrayinskyy | O32: ='Manual for Translation'!AB6 -> Suomi
B33: =INDEX(F33:O33,MATCH(B$32,F$32:O$32,0)) -> Holzhackgut | C33: =1/0.626 -> 1.597444089 | F33: ='Manual for Translation'!J7 -> Wood Chips | G33: ='Manual for Translation'!L7 -> Holzhackgut | H33: ='Manual for Translation'!N7 -> трески | I33: ='Manual for Translation'!P7 -> Drvna sječka | J33: ='Manual for Translation'!R7 -> Θρυμματισμένο ξύλο | K33: ='Manual for Translation'!T7 -> Zrębki drzewne | L33: ='Manual for Translation'!V7 -> Așchii din lemn | M33: ='Manual for Translation'!X7 -> Drevné štiepky | N33: ='Manual for Translation'!Z7 -> Деревна тріска | O33: ='Manual for Translation'!AB7 -> Hake
B34: =INDEX(F34:O34,MATCH(B$32,F$32:O$32,0)) -> Holzpellets | C34: 0.32 | F34: ='Manual for Translation'!J8 -> Wood-Pellets | G34: ='Manual for Translation'!L8 -> Holzpellets | H34: ='Manual for Translation'!N8 -> Дървесни пелети | I34: ='Manual for Translation'!P8 -> Drvni peleti | J34: ='Manual for Translation'!R8 -> Πέλλετς ξύλου | K34: ='Manual for Translation'!T8 -> Pelety drzewne | L34: ='Manual for Translation'!V8 -> Peleți din lemn | M34: ='Manual for Translation'!X8 -> Drevné pelety | N34: ='Manual for Translation'!Z8 -> Деревні гранули (пелети) | O34: ='Manual for Translation'!AB8 -> Pelletti
B35: =INDEX(F35:O35,MATCH(B$32,F$32:O$32,0)) -> Stroh | C35: 1.9 | F35: ='Manual for Translation'!J9 -> Straw | G35: ='Manual for Translation'!L9 -> Stroh | H35: ='Manual for Translation'!N9 -> слама | I35: ='Manual for Translation'!P9 -> Slama | J35: ='Manual for Translation'!R9 -> Άχυρο | K35: ='Manual for Translation'!T9 -> Słoma | L35: ='Manual for Translation'!V9 -> Paie | M35: ='Manual for Translation'!X9 -> Slama | N35: ='Manual for Translation'!Z9 -> Солома | O35: ='Manual for Translation'!AB9 -> Olki
B36: =INDEX(F36:O36,MATCH(B$32,F$32:O$32,0)) -> Sonstige | F36: ='Manual for Translation'!J10 -> Other | G36: ='Manual for Translation'!L10 -> Sonstige | H36: ='Manual for Translation'!N10 -> други | I36: ='Manual for Translation'!P10 -> Ostalo | J36: ='Manual for Translation'!R10 -> Άλλο | K36: ='Manual for Translation'!T10 -> Inne | L36: ='Manual for Translation'!V10 -> Altele | M36: ='Manual for Translation'!X10 -> Iné | N36: ='Manual for Translation'!Z10 -> Інше | O36: ='Manual for Translation'!AB10 -> Muu
A38: Auswahl | B38: ='1. General'!E22 -> Holzpellets | C38: =INDEX(C$33:$C36,MATCH(B38,$B$33:$B$36,0)) -> 0.32
A39: Fueltype_BM | B39: =INDEX(F$33:$F36,MATCH(B38,$B$33:$B$36,0)) -> Wood-Pellets
B42: Fossil Fuel Type Drop-down
B43: Selected Language:
B44: =Language -> Deutsch | D44: t CO2e/MWh | F44: ='Manual for Translation'!J6 -> English | G44: ='Manual for Translation'!L6 -> Deutsch | H44: ='Manual for Translation'!N6 -> Bulgarski | I44: ='Manual for Translation'!P6 -> Hrvatska | J44: ='Manual for Translation'!R6 -> Ellines | K44: ='Manual for Translation'!T6 -> Polski | L44: ='Manual for Translation'!V6 -> Romana | M44: ='Manual for Translation'!X6 -> Slovensky | N44: ='Manual for Translation'!Z6 -> Ukrayinskyy | O44: ='Manual for Translation'!AB6 -> Suomi
B45: =INDEX(F45:O45,MATCH(B$44,F$44:O$44,0)) -> - | F45: - | G45: - | H45: - | I45: - | J45: - | K45: - | L45: - | M45: - | N45: - | O45: -
B46: =INDEX(F46:O46,MATCH(B$44,F$44:O$44,0)) -> Erdgas | D46: =Receipts_Data!L9*3.6 -> 237 | F46: ='Manual for Translation'!J11 -> Natural Gas | G46: ='Manual for Translation'!L11 -> Erdgas | H46: ='Manual for Translation'!N11 -> природен газ | I46: ='Manual for Translation'!P11 -> Prirodni plin | J46: ='Manual for Translation'!R11 -> Φυσικό αέριο | K46: ='Manual for Translation'!T11 -> Gaz ziemny | L46: ='Manual for Translation'!V11 -> Gaz natural | M46: ='Manual for Translation'!X11 -> Zemný plyn | N46: ='Manual for Translation'!Z11 -> Природний газ | O46: ='Manual for Translation'!AB11 -> Maakaasu
B47: =INDEX(F47:O47,MATCH(B$44,F$44:O$44,0)) -> Heizöl | D47: =Receipts_Data!L7*3.6 -> 305 | F47: ='Manual for Translation'!J12 -> Fuel Oil | G47: ='Manual for Translation'!L12 -> Heizöl | H47: ='Manual for Translation'!N12 -> мазут | I47: ='Manual for Translation'!P12 -> Lož ulje | J47: ='Manual for Translation'!R12 -> Πετρέλαιο | K47: ='Manual for Translation'!T12 -> Olej opałowy | L47: ='Manual for Translation'!V12 -> Combustibil fosil | M47: ='Manual for Translation'!X12 -> Vykurovací olej | N47: ='Manual for Translation'!Z12 -> Рідке паливо | O47: ='Manual for Translation'!AB12 -> Polttoöljy | P47: LHV=10MWh/m³=0,1m³/MWh
A49: Auswahl | B49: ='1. General'!E23 -> - | D49: =INDEX($D45:D$47,MATCH(B50,$F$45:$F$47,0)) -> 0
A50: Fueltype_fossil | B50: =INDEX(F$45:$F47,MATCH(B49,$B$45:$B$47,0)) -> -
B55: Reference Fuel Type Drop-down
B56: Selected Language:
B57: =Language -> Deutsch | C57: Specific Volume (m³/MWh) | D57: t CO2e/MWh | F57: ='Manual for Translation'!J6 -> English | G57: ='Manual for Translation'!L6 -> Deutsch | H57: ='Manual for Translation'!N6 -> Bulgarski | I57: ='Manual for Translation'!P6 -> Hrvatska | J57: ='Manual for Translation'!R6 -> Ellines | K57: ='Manual for Translation'!T6 -> Polski | L57: ='Manual for Translation'!V6 -> Romana | M57: ='Manual for Translation'!X6 -> Slovensky | N57: ='Manual for Translation'!Z6 -> Ukrayinskyy | O57: ='Manual for Translation'!AB6 -> Suomi
B58: =INDEX(F58:O58,MATCH(B$57,F$57:O$57,0)) -> - | F58: - | G58: - | H58: - | I58: - | J58: - | K58: - | L58: - | M58: - | N58: - | O58: -
B59: =INDEX(F59:O59,MATCH(B$57,F$57:O$57,0)) -> Erdgas | D59: =D46 -> 237 | F59: ='Manual for Translation'!J11 -> Natural Gas | G59: ='Manual for Translation'!L11 -> Erdgas | H59: ='Manual for Translation'!N11 -> природен газ | I59: ='Manual for Translation'!P11 -> Prirodni plin | J59: ='Manual for Translation'!R11 -> Φυσικό αέριο | K59: ='Manual for Translation'!T11 -> Gaz ziemny | L59: ='Manual for Translation'!V11 -> Gaz natural | M59: ='Manual for Translation'!X11 -> Zemný plyn | N59: ='Manual for Translation'!Z11 -> Природний газ | O59: ='Manual for Translation'!AB11 -> Maakaasu
B60: Heizöl | C60: 0.1 | D60: =D47 -> 305 | F60: ='Manual for Translation'!J12 -> Fuel Oil | G60: ='Manual for Translation'!L12 -> Heizöl | H60: ='Manual for Translation'!N12 -> мазут | I60: ='Manual for Translation'!P12 -> Lož ulje | J60: ='Manual for Translation'!R12 -> Πετρέλαιο | K60: ='Manual for Translation'!T12 -> Olej opałowy | L60: ='Manual for Translation'!V12 -> Combustibil fosil | M60: ='Manual for Translation'!X12 -> Vykurovací olej | N60: ='Manual for Translation'!Z12 -> Рідке паливо | O60: ='Manual for Translation'!AB12 -> Polttoöljy
B61: =INDEX(F61:O61,MATCH(B$57,F$57:O$57,0)) -> Kohle | C61: 0.1481 | D61: =Receipts_Data!L5*3.6 -> 393 | F61: ='Manual for Translation'!J13 -> Coal | G61: ='Manual for Translation'!L13 -> Kohle | H61: ='Manual for Translation'!N13 -> въглища | I61: ='Manual for Translation'!P13 -> Ugljen | J61: ='Manual for Translation'!R13 -> Άνθρακας | K61: ='Manual for Translation'!T13 -> Węgiel kamienny | L61: ='Manual for Translation'!V13 -> Cărbune | M61: ='Manual for Translation'!X13 -> Uhlie | N61: ='Manual for Translation'!Z13 -> Вугілля | O61: ='Manual for Translation'!AB13 -> Polttoöljy
A63: Auswahl | B63: ='1. General'!E24 -> Heizöl | C63: =INDEX(C$58:$C61,MATCH(B64,$F$58:$F$61,0)) -> 0.1 | D63: =INDEX($D$58:D61,MATCH(B64,$F$58:$F$61,0)) -> 305
A64: ref_fueltype | B64: =INDEX(F$58:$F61,MATCH(B63,$B$58:$B$61,0)) -> Fuel Oil
A72: Example-Dropdown
B73: Option A
B74: Option B
B75: Option C

Sheet 2. Technical
A1: ^FIT
A2: 40 | C2: B4B BioHeat Profitability Assessment Tool - Comparison of the economic efficiency (pre-feasibility level) of mid-scale, solid biomass and fossil fuel fired (district & in-house) heat-only plants
A3: 55
C4: =HYPERLINK("#"&'Manual for Translation'!E43,'Manual for Translation'!F43) -> 2000 | D4: TECHNISCHE DATEN | L4: =HYPERLINK("#'Manual for Translation'!$j$"&ROW('Manual for Translation'!J43)) -> #'Manual for Translation'!$j$43
L5: =HYPERLINK("#'Manual for Translation'!$j$"&ROW('Manual for Translation'!J44)) -> #'Manual for Translation'!$j$44
A6: 100 | D6: Dieses Blatt enthält Informationen über den technischen Auslegungsparameter des Biomasse-Wärme Projektes. Die bereitgestellten technischen Parameter und Referenzwerte unterstützen den Anwender (a) bei der Dimensionierung der Kesselleistung, (b) der Schätzung des Umsatzes und der Betriebskosten und stellen die entsprechenden Referenzwerten und (c) der Abschätzung der Referenzinvestition (basierend auf Grundparametern wie Kesselleistungen und der für das jeweilige Land ermittelter Kostenkurven. | L6: =HYPERLINK("#'Manual for Translation'!$j$"&ROW('Manual for Translation'!J45)) -> #'Manual for Translation'!$j$45
L7: =HYPERLINK("#'Manual for Translation'!$j$"&ROW('Manual for Translation'!J46)) -> #'Manual for Translation'!$j$46
A8: ^HID | L8: =HYPERLINK("#'Manual for Translation'!$j$"&ROW('Manual for Translation'!J47)) -> #'Manual for Translation'!$j$47
A9: ^HID | L9: =HYPERLINK("#'Manual for Translation'!$j$"&ROW('Manual for Translation'!J48)) -> #'Manual for Translation'!$j$48
A10: ^HID | L10: =HYPERLINK("#'Manual for Translation'!$j$"&ROW('Manual for Translation'!J49)) -> #'Manual for Translation'!$j$49
A11: ^HID | L11: =HYPERLINK("#'Manual for Translation'!$j$"&ROW('Manual for Translation'!J50)) -> #'Manual for Translation'!$j$50
A12: ^HID | L12: =HYPERLINK("#'Manual for Translation'!$j$"&ROW('Manual for Translation'!J51)) -> #'Manual for Translation'!$j$51
A13: ^HID | L13: =HYPERLINK("#'Manual for Translation'!$j$"&ROW('Manual for Translation'!J52)) -> #'Manual for Translation'!$j$52
A14: 40 | D14: Bitte berücksichtigen Sie die Hinweise zur Dimensionierung von Biomasse-Anlagen im "Manual". | L14: =HYPERLINK("#'Manual for Translation'!$j$"&ROW('Manual for Translation'!J53)) -> #'Manual for Translation'!$j$53
L15: =HYPERLINK("#'Manual for Translation'!$j$"&ROW('Manual for Translation'!J54)) -> #'Manual for Translation'!$j$54
D16: Biomasseheizanlage | L16: =HYPERLINK("#'Manual for Translation'!$j$"&ROW('Manual for Translation'!J55)) -> #'Manual for Translation'!$j$55 | S16: An example of a sorted annual load curve of a biomass district heating scheme in Austria.
A17: ^HID | L17: =HYPERLINK("#'Manual for Translation'!$j$"&ROW('Manual for Translation'!J56)) -> #'Manual for Translation'!$j$56
A18: 34 | C18: Help | D18: Parameter | E18: Einheit | F18: Eingabewert | G18: Referenzwert | H18: Selected Value | L18: =HYPERLINK("#'Manual for Translation'!$j$"&ROW('Manual for Translation'!J57)) -> #'Manual for Translation'!$j$57
C19: =HYPERLINK("#"&'Manual for Translation'!E58,'Manual for Translation'!F58) -> 2015 | D19: Jährlicher Wärmebedarf | L19: =HYPERLINK("#'Manual for Translation'!$j$"&ROW('Manual for Translation'!J58)) -> #'Manual for Translation'!$j$58
C20: =HYPERLINK("#"&'Manual for Translation'!E59,'Manual for Translation'!F59) -> 2016 | D20: Fernwärmeprojekte: jährlich verkaufte Wärme ǁ Eigenversorgungsprojekte: jährlich produzierte Wärme ab Kessel (bitte tragen Sie nur heizgradtagbereinigte Werte ein) | E20: MWh/a | L20: =HYPERLINK("#'Manual for Translation'!$j$"&ROW('Manual for Translation'!J59)) -> #'Manual for Translation'!$j$59
C21: =HYPERLINK("#"&'Manual for Translation'!E60,'Manual for Translation'!F60) -> 2017 | D21: Gesamte Anschlussleistung der Verbraucher | E21: MW | L21: =HYPERLINK("#'Manual for Translation'!$j$"&ROW('Manual for Translation'!J60)) -> #'Manual for Translation'!$j$60
C22: =HYPERLINK("#"&'Manual for Translation'!E61,'Manual for Translation'!F61) -> 2018 | D22: Anzahl der Fernwärmekunden | E22: # | L22: =HYPERLINK("#'Manual for Translation'!$j$"&ROW('Manual for Translation'!J61)) -> #'Manual for Translation'!$j$61
C23: =HYPERLINK("#"&'Manual for Translation'!E62,'Manual for Translation'!F62) -> 2019 | D23: Gleichzeitigkeitsfaktor der Biomasseheizanlage | E23: % | G23: =0.449677646267461+0.551234688/(1+($F$22/53.84382392)^1.762743268) -> 1.000912334 | L23: =HYPERLINK("#'Manual for Translation'!$j$"&ROW('Manual for Translation'!J62)) -> #'Manual for Translation'!$j$62
L24: =HYPERLINK("#'Manual for Translation'!$j$"&ROW('Manual for Translation'!J63)) -> #'Manual for Translation'!$j$63
C25: =HYPERLINK("#"&'Manual for Translation'!E64,'Manual for Translation'!F64) -> 2021 | D25: Ausbauplan Wärmenetz | L25: =HYPERLINK("#'Manual for Translation'!$j$"&ROW('Manual for Translation'!J64)) -> #'Manual for Translation'!$j$64
C26: =HYPERLINK("#"&'Manual for Translation'!E65,'Manual for Translation'!F65) -> 2022 | D26: Trassenlänge inkl. Hausanschlüsse (bei 100% Netzausbau) | E26: m | L26: =HYPERLINK("#'Manual for Translation'!$j$"&ROW('Manual for Translation'!J65)) -> #'Manual for Translation'!$j$65
C27: =HYPERLINK("#"&'Manual for Translation'!E66,'Manual for Translation'!F66) -> 2023 | D27: Netzausbaugrad Jahr 1 (Inbetriebnahme) | E27: % | G27: =" = "&Grid_frac_Y1*grid_length&" m" -> = 0 m | H27: =IF(F27="",1,F27) -> 1 | L27: =HYPERLINK("#'Manual for Translation'!$j$"&ROW('Manual for Translation'!J66)) -> #'Manual for Translation'!$j$66
C28: =HYPERLINK("#"&'Manual for Translation'!E67,'Manual for Translation'!F67) -> 2024 | D28: Netzausbaugrad Jahr 2 | E28: % | G28: =" = "&Grid_frac_Y2*grid_length&" m" -> = 0 m | H28: =IF(F28="",1,F28) -> 1 | L28: =HYPERLINK("#'Manual for Translation'!$j$"&ROW('Manual for Translation'!J67)) -> #'Manual for Translation'!$j$67
C29: =HYPERLINK("#"&'Manual for Translation'!E68,'Manual for Translation'!F68) -> 2025 | D29: Netzausbaugrad Jahr 3 | E29: % | G29: =" = "&Grid_frac_Y3*grid_length&" m" -> = 0 m | H29: =IF(F29="",1,F29) -> 1 | L29: =HYPERLINK("#'Manual for Translation'!$j$"&ROW('Manual for Translation'!J68)) -> #'Manual for Translation'!$j$68
D30: Netzausbaugrad nach Jahr 3: 100% | L30: =HYPERLINK("#'Manual for Translation'!$j$"&ROW('Manual for Translation'!J69)) -> #'Manual for Translation'!$j$69
L31: =HYPERLINK("#'Manual for Translation'!$j$"&ROW('Manual for Translation'!J70)) -> #'Manual for Translation'!$j$70
C32: =HYPERLINK("#"&'Manual for Translation'!E71,'Manual for Translation'!F71) -> 2028 | D32: Wärmeverluste im Wärmenetz | L32: =HYPERLINK("#'Manual for Translation'!$j$"&ROW('Manual for Translation'!J71)) -> #'Manual for Translation'!$j$71
A33: 30.6 | C33: =HYPERLINK("#"&'Manual for Translation'!E72,'Manual for Translation'!F72) -> 2029 | D33: Altes (vorhandenes), neues oder kein Wärmenetz | F33: Kein Wärmenetz | G33: ='1. General'!F22 -> Bitte ggf. an die gewählte Sprache anpassen!! | L33: =HYPERLINK("#'Manual for Translation'!$j$"&ROW('Manual for Translation'!J72)) -> #'Manual for Translation'!$j$72
C34: =HYPERLINK("#"&'Manual for Translation'!E73,'Manual for Translation'!F73) -> 2030 | D34: Struktur der angeschlossenen Wärmekunden (Kategorie A, B oder C - siehe Manual) | F34: B | L34: =HYPERLINK("#'Manual for Translation'!$j$"&ROW('Manual for Translation'!J73)) -> #'Manual for Translation'!$j$73
C35: =HYPERLINK("#"&'Manual for Translation'!E74,'Manual for Translation'!F74) -> 2031 | D35: Wärmeverluste im Wärmenetz | E35: % | G35: =IF(Technical_Data!C104=0,"N/A",Technical_Data!C104) -> N/A | H35: =IF(F35="",G35,F35) -> N/A | L35: =HYPERLINK("#'Manual for Translation'!$j$"&ROW('Manual for Translation'!J74)) -> #'Manual for Translation'!$j$74
L36: =HYPERLINK("#'Manual for Translation'!$j$"&ROW('Manual for Translation'!J75)) -> #'Manual for Translation'!$j$75
C37: =HYPERLINK("#"&'Manual for Translation'!E76,'Manual for Translation'!F76) -> 2033 | D37: Biomasseheizanlage | L37: =HYPERLINK("#'Manual for Translation'!$j$"&ROW('Manual for Translation'!J76)) -> #'Manual for Translation'!$j$76
C38: =HYPERLINK("#"&'Manual for Translation'!E77,'Manual for Translation'!F77) -> 2034 | D38: Operative Nennleistung des Heizwerkes (max. Spitzenlast, die abgedeckt werden muss) | E38: MW | F38: ='2. Technical'!$F$21/(1-grid_losses)*tech_simultaneity -> 0 | L38: =HYPERLINK("#'Manual for Translation'!$j$"&ROW('Manual for Translation'!J77)) -> #'Manual for Translation'!$j$77
L39: =HYPERLINK("#'Manual for Translation'!$j$"&ROW('Manual for Translation'!J78)) -> #'Manual for Translation'!$j$78
C40: =HYPERLINK("#"&'Manual for Translation'!E79,'Manual for Translation'!F79) -> 2036 | D40: Biomasse Kessel | L40: =HYPERLINK("#'Manual for Translation'!$j$"&ROW('Manual for Translation'!J79)) -> #'Manual for Translation'!$j$79
C41: =HYPERLINK("#"&'Manual for Translation'!E80,'Manual for Translation'!F80) -> 2037 | D41: 1. Nennheizleistung Biomassekessel | E41: MW | G41: =IF(P_plant_max<0.7,0.7*P_plant_max,0.7*P_plant_max*2/3) -> 0 | L41: =HYPERLINK("#'Manual for Translation'!$j$"&ROW('Manual for Translation'!J80)) -> #'Manual for Translation'!$j$80
C42: =HYPERLINK("#"&'Manual for Translation'!E81,'Manual for Translation'!F81) -> 2038 | D42: 2. Nennleistung Biomasse-Kessel Nennleistung (falls zutreffend) | E42: MW | G42: =IF(P_plant_max<0.7,0,0.6*P_plant_max*1/3) -> 0 | L42: =HYPERLINK("#'Manual for Translation'!$j$"&ROW('Manual for Translation'!J81)) -> #'Manual for Translation'!$j$81
C43: =HYPERLINK("#"&'Manual for Translation'!E82,'Manual for Translation'!F82) -> 2039 | D43: 3. Nennleistung Biomasse-Kessel Nennleistung (falls zutreffend) | E43: MW | G43: 0 | L43: =HYPERLINK("#'Manual for Translation'!$j$"&ROW('Manual for Translation'!J82)) -> #'Manual for Translation'!$j$82
C44: =HYPERLINK("#"&'Manual for Translation'!E83,'Manual for Translation'!F83) -> 2040 | D44: Gesamtnennleistung Biomasse-Kessel | E44: MW | F44: =SUM(F41:F43) -> 0 | G44: =P_plant_max*0.7 -> 0 | L44: =HYPERLINK("#'Manual for Translation'!$j$"&ROW('Manual for Translation'!J83)) -> #'Manual for Translation'!$j$83
C45: =HYPERLINK("#"&'Manual for Translation'!E84,'Manual for Translation'!F84) -> 2041 | D45: Energetischer Jahresnutzungsgrad Biomasse-Kessel | E45: % | G45: =IF(Technical_Data!C44=0,"N/A",Technical_Data!C44) -> 0.84 | H45: =IF('2. Technical'!$F$45="",G45,'2. Technical'!$F$45) -> 0.84 | L45: =HYPERLINK("#'Manual for Translation'!$j$"&ROW('Manual for Translation'!J84)) -> #'Manual for Translation'!$j$84
L46: =HYPERLINK("#'Manual for Translation'!$j$"&ROW('Manual for Translation'!J85)) -> #'Manual for Translation'!$j$85
A47: 30.6 | C47: =HYPERLINK("#"&'Manual for Translation'!E86,'Manual for Translation'!F86) -> 2043 | D47: Fossil befeuerter Reserve- / Spitzenlastkessel | F47: ohne fossil betriebenen Heizkessel | G47: =G33 -> Bitte ggf. an die gewählte Sprache anpassen!! | L47: =HYPERLINK("#'Manual for Translation'!$j$"&ROW('Manual for Translation'!J86)) -> #'Manual for Translation'!$j$86
A48: 30.6 | C48: =HYPERLINK("#"&'Manual for Translation'!E87,'Manual for Translation'!F87) -> 2044 | D48: Fossil befeuerter Reserve- / Spitzenlastkessel, Nennkapazität (falls anwendbar) | E48: MW | G48: =Technical_Data!C33 -> 0 | L48: =HYPERLINK("#'Manual for Translation'!$j$"&ROW('Manual for Translation'!J87)) -> #'Manual for Translation'!$j$87
A49: 30.6 | C49: =HYPERLINK("#"&'Manual for Translation'!E88,'Manual for Translation'!F88) -> 2045 | D49: Eingegebene Kesselnennleistung des Gesamtsystems (muss >= Zellwert 2034 sein) | E49: MW | F49: =P_BM+P_fossil -> 0 | G49: =ROUND(P_plant_max,2)&" MW needed!" -> 0 MW needed! | L49: =HYPERLINK("#'Manual for Translation'!$j$"&ROW('Manual for Translation'!J88)) -> #'Manual for Translation'!$j$88
A50: 30.6 | C50: =HYPERLINK("#"&'Manual for Translation'!E89,'Manual for Translation'!F89) -> 2046 | D50: Alter (existierender) oder neuer fossil betriebener Kessel (falls anwendbar) | F50: Alt | G50: =G47 -> Bitte ggf. an die gewählte Sprache anpassen!! | L50: =HYPERLINK("#'Manual for Translation'!$j$"&ROW('Manual for Translation'!J89)) -> #'Manual for Translation'!$j$89
C51: =HYPERLINK("#"&'Manual for Translation'!E90,'Manual for Translation'!F90) -> 2047 | D51: Energetischer Jahresnutzungsgrad fossil betriebener Kessel (falls anwendbar) | E51: % | G51: =IF(Technical_Data!C45=0,"N/A",Technical_Data!C45) ->  | H51: =IF('2. Technical'!$F$51="",G51,'2. Technical'!$F$51) ->  | L51: =HYPERLINK("#'Manual for Translation'!$j$"&ROW('Manual for Translation'!J90)) -> #'Manual for Translation'!$j$90
C52: =HYPERLINK("#"&'Manual for Translation'!E91,'Manual for Translation'!F91) -> 2048 | D52: Anteil der Wärmeproduktion basierend auf fossilen Brennstoffen | E52: % | G52: < 10 % | L52: =HYPERLINK("#'Manual for Translation'!$j$"&ROW('Manual for Translation'!J91)) -> #'Manual for Translation'!$j$91
C53: ='Manual for Translation'!F92 -> 2049 | D53: Anteil der Wärmeproduktion basierend auf Biomasse | E53: % | F53: =1-Q_frac_fossil -> 1 | L53: =HYPERLINK("#'Manual for Translation'!$j$"&ROW('Manual for Translation'!J92)) -> #'Manual for Translation'!$j$92
F54: =Investmentcost_Data!F7 -> OK | L54: =HYPERLINK("#'Manual for Translation'!$j$"&ROW('Manual for Translation'!J93)) -> #'Manual for Translation'!$j$93
L55: =HYPERLINK("#'Manual for Translation'!$j$"&ROW('Manual for Translation'!J94)) -> #'Manual for Translation'!$j$94
C56: =HYPERLINK("#"&'Manual for Translation'!E95,'Manual for Translation'!F95) -> 2052 | D56: Brennstofflager | L56: =HYPERLINK("#'Manual for Translation'!$j$"&ROW('Manual for Translation'!J95)) -> #'Manual for Translation'!$j$95
C57: =HYPERLINK("#"&'Manual for Translation'!E96,'Manual for Translation'!F96) -> 2053 | D57: Nutzungskapazität des Brennstofflagers (äquivalent der Anzahl von x Tagen in Volllastbetrieb á 16 h/d) | E57: d | G57: =IF(Fueltype_BM="Straw",8,IF(Fueltype_BM="Corn Cobs",8,10)) -> 10 | H57: =IF(F57="",G57,F57) -> 10 | L57: =HYPERLINK("#'Manual for Translation'!$j$"&ROW('Manual for Translation'!J96)) -> #'Manual for Translation'!$j$96
C58: =HYPERLINK("#"&'Manual for Translation'!E97,'Manual for Translation'!F97) -> 2054 | D58: Größe des Brennstofflagers (inkl. nicht nutzbares Volumen) | E58: m³ | F58: =(BM_storage_time*16*P_BM/SE_boiler_BM)*General_Data!C38*1.3 ->  | J58: =1760*1.5/0.75 -> 3520 | L58: =HYPERLINK("#'Manual for Translation'!$j$"&ROW('Manual for Translation'!J97)) -> #'Manual for Translation'!$j$97
C59: =HYPERLINK("#"&'Manual for Translation'!E98,'Manual for Translation'!F98) -> 2055 | D59: Nutzvolumen Brennstofflager als Anteil am jährlichen Brennstoffbedarf | E59: - | F59: =(BM_storage_size/1.3)/(Q_fuel_BM*General_Data!$C$38) -> 
L60: =HYPERLINK("#'Manual for Translation'!$j$"&ROW('Manual for Translation'!J99)) -> #'Manual for Translation'!$j$99
C61: =HYPERLINK("#"&'Manual for Translation'!E100,'Manual for Translation'!F100) -> 2057 | D61: Stromverbrauch | L61: =HYPERLINK("#'Manual for Translation'!$j$"&ROW('Manual for Translation'!J100)) -> #'Manual for Translation'!$j$100
C62: =HYPERLINK("#"&'Manual for Translation'!E101,'Manual for Translation'!F101) -> 2058 | D62: Spezifischer Stromverbrauch des Wärmenetzes | E62: kWhel/MWhth_gen | G62: =IF(Technical_Data!C63=0,"N/A",Technical_Data!C63) -> 6 | H62: =IF(F62="",G62,F62) -> 6 | L62: =HYPERLINK("#'Manual for Translation'!$j$"&ROW('Manual for Translation'!J101)) -> #'Manual for Translation'!$j$101
C63: =HYPERLINK("#"&'Manual for Translation'!E102,'Manual for Translation'!F102) -> 2059 | D63: Spezifischer Stromverbrauch des/der Biomassekessel(s) | E63: kWhel/MWhth_gen | G63: =IF(Technical_Data!C58=0,"N/A",Technical_Data!C58) -> 11 | H63: =IF(F63="",G63,F63) -> 11 | L63: =HYPERLINK("#'Manual for Translation'!$j$"&ROW('Manual for Translation'!J102)) -> #'Manual for Translation'!$j$102
C64: =HYPERLINK("#"&'Manual for Translation'!E103,'Manual for Translation'!F103) -> 2060 | D64: Spezifischer Stromverbrauch des fossil betriebenen Kessels | E64: kWhel/MWhth_gen | G64: =IF(Technical_Data!C59=0,"N/A",Technical_Data!C59) ->  | H64: =IF(F64="",G64,F64) ->  | L64: =HYPERLINK("#'Manual for Translation'!$j$"&ROW('Manual for Translation'!J103)) -> #'Manual for Translation'!$j$103
L65: =HYPERLINK("#'Manual for Translation'!$j$"&ROW('Manual for Translation'!J104)) -> #'Manual for Translation'!$j$104
L66: =HYPERLINK("#'Manual for Translation'!$j$"&ROW('Manual for Translation'!J105)) -> #'Manual for Translation'!$j$105
L67: =HYPERLINK("#'Manual for Translation'!$j$"&ROW('Manual for Translation'!J106)) -> #'Manual for Translation'!$j$106
C68: =HYPERLINK("#"&'Manual for Translation'!E107,'Manual for Translation'!F107) -> 2064 | D68: Berechnete Energiefluss Parameter | L68: =HYPERLINK("#'Manual for Translation'!$j$"&ROW('Manual for Translation'!J107)) -> #'Manual for Translation'!$j$107
C69: =HYPERLINK("#"&'Manual for Translation'!E108,'Manual for Translation'!F108) -> 2065 | D69: Thermische Energie geliefert / verkauft an den Endverbraucher | E69: MWhsold/a | F69: =Q_sold -> 0 | L69: =HYPERLINK("#'Manual for Translation'!$j$"&ROW('Manual for Translation'!J108)) -> #'Manual for Translation'!$j$108
C70: =HYPERLINK("#"&'Manual for Translation'!E109,'Manual for Translation'!F109) -> 2066 | D70: Gesamte von der Anlage erzeugte (ins Netz eingespeiste) Wärmemenge | E70: MWhgenerated/a | F70: =Q_sold/(1-grid_losses) -> 0 | L70: =HYPERLINK("#'Manual for Translation'!$j$"&ROW('Manual for Translation'!J109)) -> #'Manual for Translation'!$j$109
C71: =HYPERLINK("#"&'Manual for Translation'!E110,'Manual for Translation'!F110) -> 2067 | D71: Brennstoffbedarf Biomasse (Heizwert) | E71: MWhfuel, BM/a | F71: =(Q_generated*Q_frac_BM)/SE_boiler_BM ->  | L71: =HYPERLINK("#'Manual for Translation'!$j$"&ROW('Manual for Translation'!J110)) -> #'Manual for Translation'!$j$110
C72: =HYPERLINK("#"&'Manual for Translation'!E111,'Manual for Translation'!F111) -> 2068 | D72: Brennstoffbedarf fossile Brennstoffe (Heizwert) | E72: MWhfuel, fossil/a | F72: =IF('1. General'!E23=General_Data!B45,0,(Q_generated*Q_frac_fossil)/SE_boiler_fossil) -> 0 | L72: =HYPERLINK("#'Manual for Translation'!$j$"&ROW('Manual for Translation'!J111)) -> #'Manual for Translation'!$j$111
C73: =HYPERLINK("#"&'Manual for Translation'!E112,'Manual for Translation'!F112) -> 2069 | D73: Gesamter Brennstoffbedarf (Heizwert) | E73: MWhfuel/a | F73: =Q_fuel_BM+Q_fuel_fossil ->  | L73: =HYPERLINK("#'Manual for Translation'!$j$"&ROW('Manual for Translation'!J112)) -> #'Manual for Translation'!$j$112
C74: =HYPERLINK("#"&'Manual for Translation'!E113,'Manual for Translation'!F113) -> 2070 | D74: Strom: | L74: =HYPERLINK("#'Manual for Translation'!$j$"&ROW('Manual for Translation'!J113)) -> #'Manual for Translation'!$j$113
C75: =HYPERLINK("#"&'Manual for Translation'!E114,'Manual for Translation'!F114) -> 2071 | D75: Jährlicher Stromverbrauch des Wärmenetzes (100 % Wärmeabgabe) | E75: MWhel/a | F75: =Q_generated*F62/1000 -> 0 | L75: =HYPERLINK("#'Manual for Translation'!$j$"&ROW('Manual for Translation'!J114)) -> #'Manual for Translation'!$j$114
C76: =HYPERLINK("#"&'Manual for Translation'!E115,'Manual for Translation'!F115) -> 2072 | D76: Jährlicher Stromverbrauch Biomassekessel | E76: MWhel/a | F76: =Q_generated*Q_frac_BM*Spec_Elec_BM/1000 -> 0 | L76: =HYPERLINK("#'Manual for Translation'!$j$"&ROW('Manual for Translation'!J115)) -> #'Manual for Translation'!$j$115
C77: =HYPERLINK("#"&'Manual for Translation'!E116,'Manual for Translation'!F116) -> 2073 | D77: Jährlicher Stromverbrauch fossil betriebener Kessel | E77: MWhel/a | F77: =Q_generated*Q_frac_fossil*Spec_elec_fossil/1000 -> 0 | L77: =HYPERLINK("#'Manual for Translation'!$j$"&ROW('Manual for Translation'!J116)) -> #'Manual for Translation'!$j$116
C78: ='Manual for Translation'!F117 -> 2074 | D78: Jährlicher Stromverbrauch der Anlage (100 % Wärmeabgabe) | E78: MWhel/a | F78: =SUM(F75:F77) -> 0 | L78: =HYPERLINK("#'Manual for Translation'!$j$"&ROW('Manual for Translation'!J117)) -> #'Manual for Translation'!$j$117
L79: =HYPERLINK("#'Manual for Translation'!$j$"&ROW('Manual for Translation'!J118)) -> #'Manual for Translation'!$j$118
C80: =HYPERLINK("#"&'Manual for Translation'!E119,'Manual for Translation'!F119) -> 2076 | D80: Leistungskenndaten der Biomasseheizanlage | G80: Benchmark-Werte für österreichische Bedingungen | L80: =HYPERLINK("#'Manual for Translation'!$j$"&ROW('Manual for Translation'!J119)) -> #'Manual for Translation'!$j$119
C81: =HYPERLINK("#"&'Manual for Translation'!E120,'Manual for Translation'!F120) -> 2077 | D81: Wärmebelegung | E81: kWh/(m*a) | F81: =Q_sold/grid_length*1000 ->  | G81: min. 900 better > 1200 | L81: =HYPERLINK("#'Manual for Translation'!$j$"&ROW('Manual for Translation'!J120)) -> #'Manual for Translation'!$j$120
C82: =HYPERLINK("#"&'Manual for Translation'!E121,'Manual for Translation'!F121) -> 2078 | D82: Spezifische Anschlussleistung | E82: kW/m | F82: =F21*1000/grid_length ->  | L82: =HYPERLINK("#'Manual for Translation'!$j$"&ROW('Manual for Translation'!J121)) -> #'Manual for Translation'!$j$121
A83: 30.6 | C83: =HYPERLINK("#"&'Manual for Translation'!E122,'Manual for Translation'!F122) -> 2079 | D83: Durchschnittliche jährliche Volllastbetriebsstunden der installierten Biomassekessel | E83: h/a | F83: =Q_generated*Q_frac_BM/P_BM ->  | L83: =HYPERLINK("#'Manual for Translation'!$j$"&ROW('Manual for Translation'!J122)) -> #'Manual for Translation'!$j$122
C84: =HYPERLINK("#"&'Manual for Translation'!E123,'Manual for Translation'!F123) -> 2080 | D84: Durchschnittliche jährliche Volllastbetriebsstunden der angeschlossenen Verbraucher | E84: h/a | F84: =Q_sold/F21 ->  | L84: =HYPERLINK("#'Manual for Translation'!$j$"&ROW('Manual for Translation'!J123)) -> #'Manual for Translation'!$j$123
C85: =HYPERLINK("#"&'Manual for Translation'!E124,'Manual for Translation'!F124) -> 2081 | D85: Energetischer Jahresnutzungsgrad der Biomasse-Kessel | E85: % | F85: =SE_boiler_BM -> 0 | L85: =HYPERLINK("#'Manual for Translation'!$j$"&ROW('Manual for Translation'!J124)) -> #'Manual for Translation'!$j$124
C86: =HYPERLINK("#"&'Manual for Translation'!E125,'Manual for Translation'!F125) -> 2082 | D86: Energetischer Jahresnutzungsgrad des Wärmenetzes | E86: % | F86: =Q_sold/Q_generated ->  | G86: >80% | L86: =HYPERLINK("#'Manual for Translation'!$j$"&ROW('Manual for Translation'!J125)) -> #'Manual for Translation'!$j$125
C87: =HYPERLINK("#"&'Manual for Translation'!E126,'Manual for Translation'!F126) -> 2083 | D87: Energetischer Jahresnutzungsgrad der Heizanlage | E87: % | F87: =Q_sold/Q_fuel ->  | G87: > 70% | L87: =HYPERLINK("#'Manual for Translation'!$j$"&ROW('Manual for Translation'!J126)) -> #'Manual for Translation'!$j$126
L88: =HYPERLINK("#'Manual for Translation'!$j$"&ROW('Manual for Translation'!J127)) -> #'Manual for Translation'!$j$127
L89: =HYPERLINK("#'Manual for Translation'!$j$"&ROW('Manual for Translation'!J128)) -> #'Manual for Translation'!$j$128
L90: =HYPERLINK("#'Manual for Translation'!$j$"&ROW('Manual for Translation'!J129)) -> #'Manual for Translation'!$j$129
C91: =HYPERLINK("#"&'Manual for Translation'!E130,'Manual for Translation'!F130) -> 2087 | D91: Mit fossilem Brennstoff befeuertes Referenzsystem | L91: =HYPERLINK("#'Manual for Translation'!$j$"&ROW('Manual for Translation'!J130)) -> #'Manual for Translation'!$j$130
A92: 34 | C92: Help | D92: Parameter | E92: Einheit | F92: Eingabewert | G92: Referenzwert | L92: =HYPERLINK("#'Manual for Translation'!$j$"&ROW('Manual for Translation'!J131)) -> #'Manual for Translation'!$j$131
A93: 40 | C93: =HYPERLINK("#"&'Manual for Translation'!E132,'Manual for Translation'!F132) -> 2089 | D93: Für den Vergleich mit dem Biomasse-Heizsystem werden in diesem Abschnitt die Kennwerte eines alternativ einsetzbaren Heizungssystems, das mit fossilen Brennstoffen betriebenen wird, ermittelt (basierend auf den Angaben zu den technischen Parametern, s.o.) | L93: =HYPERLINK("#'Manual for Translation'!$j$"&ROW('Manual for Translation'!J132)) -> #'Manual for Translation'!$j$132
C94: =HYPERLINK("#"&'Manual for Translation'!E133,'Manual for Translation'!F133) -> 2090 | D94: Thermische Nennleistung fossil befeuerter Kessel 1 | E94: MW | G94: =IF(P_plant_max<=0.5,P_plant_max,P_plant_max*0.75) -> 0 | H94: =IF(F94="",G94,F94) -> 0 | L94: =HYPERLINK("#'Manual for Translation'!$j$"&ROW('Manual for Translation'!J133)) -> #'Manual for Translation'!$j$133
C95: =HYPERLINK("#"&'Manual for Translation'!E134,'Manual for Translation'!F134) -> 2091 | D95: Thermische Nennleistung fossil befeuerter Kessel 2 | E95: MW | G95: =IF(P_plant_max<=0.5,,P_plant_max*0.75) -> 0 | L95: =HYPERLINK("#'Manual for Translation'!$j$"&ROW('Manual for Translation'!J134)) -> #'Manual for Translation'!$j$134
C96: =HYPERLINK("#"&'Manual for Translation'!E135,'Manual for Translation'!F135) -> 2092 | D96: Thermische Nennleistung fossil befeuerter Kessel 3 | E96: MW | L96: =HYPERLINK("#'Manual for Translation'!$j$"&ROW('Manual for Translation'!J135)) -> #'Manual for Translation'!$j$135
C97: =HYPERLINK("#"&'Manual for Translation'!E136,'Manual for Translation'!F136) -> 2093 | D97: Gesamte installierte thermische Nennleistung fossiler Kessel | E97: MW | F97: =SUM(F94:F96) -> 0 | G97: =Q_sold/ref_P_boiler ->  | L97: =HYPERLINK("#'Manual for Translation'!$j$"&ROW('Manual for Translation'!J136)) -> #'Manual for Translation'!$j$136
C98: =HYPERLINK("#"&'Manual for Translation'!E137,'Manual for Translation'!F137) -> 2094 | D98: Spezifischer Stromverbrauch der fossil befeuerten Kessel | E98: kWhel/MWhth | G98: =IF(Technical_Data!C60=0,"N/A",Technical_Data!C60) -> 4 | H98: =IF(F98="",G98,F98) -> 4 | L98: =HYPERLINK("#'Manual for Translation'!$j$"&ROW('Manual for Translation'!J137)) -> #'Manual for Translation'!$j$137
A99: ^HID | C99: =HYPERLINK("#"&'Manual for Translation'!E138,'Manual for Translation'!F138) -> 2095 | L99: =HYPERLINK("#'Manual for Translation'!$j$"&ROW('Manual for Translation'!J138)) -> #'Manual for Translation'!$j$138
C100: =HYPERLINK("#"&'Manual for Translation'!E139,'Manual for Translation'!F139) -> 2096 | D100: Durchschnittlicher energetischer Jahresnutzungsgrad der fossilen Kessel | E100: % | G100: =IF(Technical_Data!C22=0,"N/A",Technical_Data!C22) -> 0.85 | H100: =IF(F100="",G100,F100) -> 0.85 | L100: =HYPERLINK("#'Manual for Translation'!$j$"&ROW('Manual for Translation'!J139)) -> #'Manual for Translation'!$j$139
C101: =HYPERLINK("#"&'Manual for Translation'!E140,'Manual for Translation'!F140) -> 2097 | D101: Brennstoffbedarf gesamt (Heizwert) | E101: MWhfuel/a | F101: =Q_generated/ref_SE_boiler ->  | L101: =HYPERLINK("#'Manual for Translation'!$j$"&ROW('Manual for Translation'!J140)) -> #'Manual for Translation'!$j$140
L102: =HYPERLINK("#'Manual for Translation'!$j$"&ROW('Manual for Translation'!J141)) -> #'Manual for Translation'!$j$141
A103: 55 | L103: =HYPERLINK("#'Manual for Translation'!$j$"&ROW('Manual for Translation'!J142)) -> #'Manual for Translation'!$j$142
A104: ^END | L104: =HYPERLINK("#'Manual for Translation'!$j$"&ROW('Manual for Translation'!J143)) -> #'Manual for Translation'!$j$143
L105: =HYPERLINK("#'Manual for Translation'!$j$"&ROW('Manual for Translation'!J144)) -> #'Manual for Translation'!$j$144
L106: =HYPERLINK("#'Manual for Translation'!$j$"&ROW('Manual for Translation'!J145)) -> #'Manual for Translation'!$j$145
L107: =HYPERLINK("#'Manual for Translation'!$j$"&ROW('Manual for Translation'!J146)) -> #'Manual for Translation'!$j$146
L108: =HYPERLINK("#'Manual for Translation'!$j$"&ROW('Manual for Translation'!J147)) -> #'Manual for Translation'!$j$147
L109: =HYPERLINK("#'Manual for Translation'!$j$"&ROW('Manual for Translation'!J148)) -> #'Manual for Translation'!$j$148
L110: =HYPERLINK("#'Manual for Translation'!$j$"&ROW('Manual for Translation'!J149)) -> #'Manual for Translation'!$j$149
L111: =HYPERLINK("#'Manual for Translation'!$j$"&ROW('Manual for Translation'!J150)) -> #'Manual for Translation'!$j$150
L112: =HYPERLINK("#'Manual for Translation'!$j$"&ROW('Manual for Translation'!J151)) -> #'Manual for Translation'!$j$151
L113: =HYPERLINK("#'Manual for Translation'!$j$"&ROW('Manual for Translation'!J152)) -> #'Manual for Translation'!$j$152
L114: =HYPERLINK("#'Manual for Translation'!$j$"&ROW('Manual for Translation'!J153)) -> #'Manual for Translation'!$j$153

Sheet Technical_Data (hidden)
B2: Seasonal Efficiency
A3: from survey: | B3: =SURVEY!B189 -> Existing boilers (AVERAGE DOMESTIC boilers) | C3: Seasonal Efficiency (-)
B4: =SURVEY!B190 -> Fuel Oil | C4: =SURVEY!E190 -> 0.79
B5: =SURVEY!B191 -> Natural Gas | C5: =SURVEY!E191 -> 0.8
B6: =SURVEY!B192 -> Coal | C6: =SURVEY!E192 -> 0
A8: fueltype_fossil | B8: =Fueltype_fossil -> - | C8: =INDEX($C$4:$C$6,MATCH(B8,$B$4:$B$6,0)) -> 
A9: ref_fueltype | B9: =ref_fueltype -> Fuel Oil | C9: =INDEX($C$13:$C$18,MATCH(B9,$B$13:$B$18,0)) -> 0.85
B11: Seasonal Efficiency
A12: from survey: | B12: =SURVEY!B193 -> New boilers (AVERAGE DOMESTIC boilers)
B13: =SURVEY!B194 -> Wood Chips | C13: =SURVEY!E194 -> 0.83
B14: =SURVEY!B195 -> Wood-Pellets | C14: =SURVEY!E195 -> 0.84
B15: =SURVEY!B196 -> Straw | C15: =SURVEY!E196 -> 0
B16: =SURVEY!B197 -> Fuel Oil | C16: =SURVEY!E197 -> 0.85
B17: =SURVEY!B198 -> Natural Gas | C17: =SURVEY!E198 -> 0.86
B18: =SURVEY!B199 -> Coal | C18: =SURVEY!E199 -> 0
A20: fueltype_BM | B20: =Fueltype_BM -> Wood-Pellets | C20: =INDEX($C$13:$C$18,MATCH(B20,$B$13:$B$18,0)) -> 0.84
A21: fueltype_fossil | B21: =Fueltype_fossil -> - | C21: =INDEX($C$13:$C$18,MATCH(B21,$B$13:$B$18,0)) -> 
A22: ref_fueltype | B22: =ref_fueltype -> Fuel Oil | C22: =INDEX($C$13:$C$18,MATCH(B22,$B$13:$B$18,0)) -> 0.85
B25: Peak/Backup System Setup Drop-Down | F25: English | G25: Deutsch | H25: Bulgarski | I25: Hrvatska | J25: Ellines | K25: Romana | L25: Slovensky | M25: Ukrayinskyy | N25: Polski | O25: Suomi
B26: =INDEX(F26:O26,MATCH(Language,$F$25:$O$25,0)) -> ohne fossil betriebenen Heizkessel | F26: No fossil Boiler | G26: ohne fossil betriebenen Heizkessel | H26: котел не на изкопаеми горива | I26: Bez kotla na fosilno gorivo | J26: Λέβητας μη ορυκτών καυσίμων | K26: Fără boiler pentru combustibil fosil | L26: Nefosílny kotol | M26: Без котла на викопному паливі | N26: Kocioł na paliwa nie kopalne | O26: ='Manual for Translation'!AB14 -> Ei fossilinen kattila
B27: =INDEX(F27:O27,MATCH(Language,$F$25:$O$25,0)) -> fossil betriebener Stand-by Heizkessel | F27: Fossil fuelled stand-by boiler | G27: fossil betriebener Stand-by Heizkessel | H27: Резервен котел на изкопаемо гориво | I27: Stand-by kotao na fosilna goriva | J27: Εφεδρικός λέβητας ορυκτού καυσίμου | K27: Boiler de rezervă pe combustibil fosil | L27: Pohotovostný kotol na fosílne palivo | M27: Резервний котел на викопному паливі | N27: Kocioł zapasowy | O27: ='Manual for Translation'!AB15 -> Varavoima kattila, fossiilinen polttoaine
B28: =INDEX(F28:O28,MATCH(Language,$F$25:$O$25,0)) -> fossil betriebener Spitzenlastheizkessel | F28: Fossil fuelled peak load boiler | G28: fossil betriebener Spitzenlastheizkessel | H28: Котел за върхово натоварване на изкопаемо гориво | I28: Kotao na fosilna goriva s vršnim opterećenjem | J28: Λέβητας φορτίου αιχμής ορυκτού καυσίμου | K28: Boiler pe combustibil fosil pentru vârful de consum | L28: Špičkový kotol na fosílne palivo | M28: Піковий котел на викопному паливі | N28: Kocioł szczytowego | O28: ='Manual for Translation'!AB16 -> Huippukuorma kattila, fossiilinen polttoaine
A30: Selection | B30: ='2. Technical'!F47 -> ohne fossil betriebenen Heizkessel
A31: Selection_en | B31: =INDEX(F26:F28,MATCH($B$30,$B$26:$B$28,0)) -> No fossil Boiler
C32: reference value
B33: Fossil fuel Stand-by/Peak Load boiler, nominal capacity (if applicable) | C33: =IF(Technical_Data!B31=Technical_Data!F28,MIN(P_plant_max*0.3,P_plant_max-P_BM),IF(Technical_Data!B31=Technical_Data!F27,IF(P_BM2=0,P_plant_max,MAX(P_BM2,P_BM1)),0)) -> 0
B34: stand-by (=Back-up boiler): muss 100% von P_plant_max abdecken.
B35: peak-load: P_BM+P_fossil >= P_plant_max & P_fossil >= Der größte BM kessel
B37: Existing/New Boiler Drop-Down | F37: English | G37: Deutsch | H37: Bulgarski | I37: Hrvatska | J37: Ellines | K37: Romana | L37: Slovensky | M37: Ukrayinskyy | N37: Polski | O37: Suomi
B38: =INDEX(F38:O38,MATCH(Language,$F$37:$O$37,0)) -> Neu | F38: New | G38: Neu | H38: нов | I38: Novo | J38: Νέο | K38: Nou | L38: Nový | M38: Новий | N38: Nowy | O38: ='Manual for Translation'!AB17 -> Uusi
B39: =INDEX(F39:O39,MATCH(Language,$F$37:$O$37,0)) -> Alt | F39: Old | G39: Alt | H39: стар | I39: Staro | J39: Παλιό | K39: Vechi | L39: Starý | M39: Існуючий | N39: Stary | O39: ='Manual for Translation'!AB18 -> Vanha
A41: Selection | B41: ='2. Technical'!F50 -> Alt
A42: Selection_en | B42: =INDEX(F38:F39,MATCH($B$41,$B$38:$B$39,0)) -> Old
A44: Default values: | B44: SE_boiler_BM | C44: =C20 -> 0.84
A45: SE Boiler | B45: SE_boiler_fossil | C45: =IF(B42="Old",C8,C21) -> 
A49: from survey | B49: Specific Electricity Consumption (kWhel/MWhth)
B50: =SURVEY!B139 -> Electricity demand of boiler, fuel feeding, ventilation etc. depending on the fuel type:
B51: =SURVEY!B140 -> Wood Chips | C51: =SURVEY!E140 -> 11
B52: =SURVEY!B141 -> Straw | C52: =SURVEY!E141 -> 0
B53: =SURVEY!B142 -> Wood-Pellets | C53: =SURVEY!E142 -> 11
B54: =SURVEY!B143 -> Fuel Oil | C54: =SURVEY!E143 -> 4
B55: =SURVEY!B144 -> Natural Gas | C55: =SURVEY!E144 -> 4
B56: =SURVEY!B145 -> Coal | C56: =SURVEY!E145 -> 0
A58: Spec_Elec_BM default | B58: =Fueltype_BM -> Wood-Pellets | C58: =INDEX($C$51:$C$56,MATCH(B58,$B$51:$B$56,0)) -> 11
A59: Spec_Elec_fossil default | B59: =Fueltype_fossil -> - | C59: =INDEX($C$51:$C$56,MATCH(B59,$B$51:$B$56,0)) -> 
A60: ref_Spec_Elec | B60: =ref_fueltype -> Fuel Oil | C60: =INDEX($C$51:$C$56,MATCH(B60,$B$51:$B$56,0)) -> 4
B62: =SURVEY!B146 -> Electricity demand of grid pump
B63: =SURVEY!B147 -> 0 | C63: =SURVEY!E146 -> 6 | D63: kwhel/mwhtherm
B66: Existing/New/no grid Drop-Down | F66: English | G66: Deutsch | H66: Bulgarski | I66: Hrvatska | J66: Ellines | K66: Romana | L66: Slovensky | M66: Ukrayinskyy | N66: Polski | O66: Suomi | P66: zu programmieren:
B67: =INDEX(F67:O67,MATCH(Language,$F$25:$O$25,0)) -> Neues Wärmenetz | F67: New Heating Grid | G67: Neues Wärmenetz | H67: нова отоплителна мрежа | I67: Nova toplinska mreža | J67: Νέο Δίκτυο Θερμότητας | K67: Rețea de încălzire nouă | L67: Nové rozvody tepla | M67: Нова теплова мережа | N67: Nowy system grzewczy | O67: ='Manual for Translation'!AB19 -> Uusi lämpöverkko | P67: alles sichtbar
B68: =INDEX(F68:O68,MATCH(Language,$F$25:$O$25,0)) -> Altes Wärmenetz | F68: Old Heating Grid | G68: Altes Wärmenetz | H68: стара отоплителна мрежа | I68: Stara toplinska mreža | J68: Παλιό Δίκτυο Θερμότητας | K68: Rețea de încălzire veche | L68: Staré rozvody tepla | M68: Існуюча теплова мережа | N68: Stary system grzewczy | O68: ='Manual for Translation'!AB20 -> Vanha lämpöverkko | P68: alles unsichtbar, au0er netzverluste
B69: =INDEX(F69:O69,MATCH(Language,$F$25:$O$25,0)) -> Kein Wärmenetz | F69: No Heating Grid | G69: Kein Wärmenetz | H69: без отоплителна мрежа | I69: Bez toplinske mreže | J69: Χωρίς Δίκτυο Θερμότητας | K69: Fără rețea de încălzire | L69: Bez rozvodov tepla | M69: Без теплової мережі | N69: Brak systemu grzewczego | O69: ='Manual for Translation'!AB21 -> Ei lämpöverkkoa | P69: alles unsichtbar
A71: Selection | B71: ='2. Technical'!F33 -> Kein Wärmenetz
A72: Selection_en | B72: =INDEX(F67:F69,MATCH($B$71,$B$67:$B$69,0)) -> No Heating Grid
A77: from Survey: | B77: =SURVEY!B204 -> New grids
B79: =SURVEY!B205 -> Grid losses - Grid with mainly small and medium size heat customers | C79: =SURVEY!E205/100 -> 0.21 | D79: A
B80: =SURVEY!B206 -> Grid losses - Grid with mixed structure | C80: =SURVEY!E206/100 -> 0.18 | D80: B
B81: =SURVEY!B207 -> Grid losses - Grid with mainly medium and large customers | C81: =SURVEY!E207/100 -> 0.15 | D81: C
C84: =IF($B$101="A",C79,IF($B$101="B",C80,IF($B$101="C",C81,))) -> 0.18
A86: from Survey: | B86: =SURVEY!B200 -> Existing grids
B88: =SURVEY!B201 -> Grid losses - Grid with mainly small and medium size heat customers | C88: =SURVEY!E201/100 -> 0.252 | D88: A
B89: =SURVEY!B202 -> Grid losses - Grid with mixed structure | C89: =SURVEY!E202/100 -> 0.216 | D89: B
B90: =SURVEY!B203 -> Grid losses - Grid with mainly medium and large customers | C90: =SURVEY!E203/100 -> 0.18 | D90: C
C93: =IF($B$101="A",C88,IF($B$101="B",C89,IF($B$101="C",C90,))) -> 0.216
B96: Existing/New grid Drop-Down
B97: A | C97: small medium
B98: B | C98: mixed
B99: C | C99: mainly medium-large
A101: Selection | B101: ='2. Technical'!F34 -> B
A104: Default value | B104: SE_grid Default | C104: =IF(B72=F67,C84,IF(B72=F68,C93,0)) -> 0
B108: BERECHNUNG
B109: ref_elec_boiler | C109: =ref_spec_elec*Q_generated/1000 -> 0 | E109: =ref_Elec_boiler+Elec_grid -> 0 | F109: =E109*pr_elec -> 0

Sheet 3. Investment
A1: ^FIT
A2: 40 | C2: B4B BioHeat Profitability Assessment Tool - Comparison of the economic efficiency (pre-feasibility level) of mid-scale, solid biomass and fossil fuel fired (district & in-house) heat-only plants
A3: 55
C4: =HYPERLINK("#"&'Manual for Translation'!E154,'Manual for Translation'!F154) -> 3000 | D4: INVESTITIONSKOSTEN (exkl. USt.) | J4: =HYPERLINK("#'Manual for Translation'!$j$"&ROW('Manual for Translation'!J154)) -> #'Manual for Translation'!$j$154
J5: =HYPERLINK("#'Manual for Translation'!$j$"&ROW('Manual for Translation'!J155)) -> #'Manual for Translation'!$j$155
A6: 240 | D6: Dieses Blatt fasst die relevanten Investitionen auf Basis der vom Anwender eingebenden Werte zur Cashflow Berechnung zusammen. Falls ein Abschnitt nicht für Ihr spezifisches Projekt relevant ist (z.B. keine Investitionen für die Backup-Kessel erforderlich, da eine bestehender Kessel für diesen Zweck verwendet wird) geben Sie bitte eine "0" ein oder lassen das Feld leer. Die in diesem Abschnitt berücksichtigten Reinvestitionen von Anlagenkomponenten, können nur innerhalb der angenommenen Lebensdauer von 25 Jahren berücksichtigt werden. Potenzielle Erlöse aus dem Verkauf von Anlagenkomponenten am Ende der berechneten Lebensdauer sind in diesem Berechnungstool nicht berücksichtigt. Der Referenzwert bietet dem Benutzer Orientierung für plausible Investition und bezieht sich auf die Benutzereingaben (z.B. der Biomassekesselleistung, Netzlänge, etc.) sowie auf nationaler Ebene ermittelten Durchschnittswerten (z.B. für Hackschnitzelheizung Kosten pro kW Leistung, Netzkosten pro m, etc.). Bitte beachten Sie, dass die ermittelten Durchschnittswerte deutlich von den tatsächlichen Kosten abweichen können, da der Referenzwert nur eine fundierte Einschätzung der Investition darstellt. Auch die tatsächlichen Investitionen sind stark abhängig von vielen weiteren projektspezifischen Faktoren, die nicht in diesem vereinfachten Werkzeug berücksichtigt werden können. Konsultieren Sie daher Experten/Ingenieure um die spezifischen endgültigen Investition basierend auf konkreten Angeboten zu erhalten. | J6: =HYPERLINK("#'Manual for Translation'!$j$"&ROW('Manual for Translation'!J156)) -> #'Manual for Translation'!$j$156
J7: =HYPERLINK("#'Manual for Translation'!$j$"&ROW('Manual for Translation'!J157)) -> #'Manual for Translation'!$j$157
D8: Biomasseheizanlage | J8: =HYPERLINK("#'Manual for Translation'!$j$"&ROW('Manual for Translation'!J158)) -> #'Manual for Translation'!$j$158
C9: Help | D9: Parameter | E9: Einheit | F9: Eingabewert | G9: Referenzwert | J9: =HYPERLINK("#'Manual for Translation'!$j$"&ROW('Manual for Translation'!J159)) -> #'Manual for Translation'!$j$159
J10: =HYPERLINK("#'Manual for Translation'!$j$"&ROW('Manual for Translation'!J160)) -> #'Manual for Translation'!$j$160
A11: 30.6 | C11: =HYPERLINK("#"&'Manual for Translation'!E161,'Manual for Translation'!F161) -> 3007 | D11: Preisanpassungsrate zur Erhöhung der Referenzwerte für Investition für alle Anlagenkomponenten (Preisbasis: 2015) | J11: =HYPERLINK("#'Manual for Translation'!$j$"&ROW('Manual for Translation'!J161)) -> #'Manual for Translation'!$j$161
J12: =HYPERLINK("#'Manual for Translation'!$j$"&ROW('Manual for Translation'!J162)) -> #'Manual for Translation'!$j$162
C13: =HYPERLINK("#"&'Manual for Translation'!E163,'Manual for Translation'!F163) -> 3009 | D13: Kosten des Wärmenetzes (bei einem Ausbaugrad von 100 %) | J13: =HYPERLINK("#'Manual for Translation'!$j$"&ROW('Manual for Translation'!J163)) -> #'Manual for Translation'!$j$163
C14: =HYPERLINK("#"&'Manual for Translation'!E164,'Manual for Translation'!F164) -> 3010 | D14: Konzeption des Wärmenetzes | J14: =HYPERLINK("#'Manual for Translation'!$j$"&ROW('Manual for Translation'!J164)) -> #'Manual for Translation'!$j$164
C15: =HYPERLINK("#"&'Manual for Translation'!E165,'Manual for Translation'!F165) -> 3011 | D15: Trassenlänge inkl. Hausanschlüsse (bei 100% Netzausbau) | E15: m | F15: =grid_length -> 0 | J15: =HYPERLINK("#'Manual for Translation'!$j$"&ROW('Manual for Translation'!J165)) -> #'Manual for Translation'!$j$165
C16: =HYPERLINK("#"&'Manual for Translation'!E166,'Manual for Translation'!F166) -> 3012 | D16: % versiegelte Oberfläche | E16: % | J16: =HYPERLINK("#'Manual for Translation'!$j$"&ROW('Manual for Translation'!J166)) -> #'Manual for Translation'!$j$166
C17: =HYPERLINK("#"&'Manual for Translation'!E167,'Manual for Translation'!F167) -> 3013 | D17: % Grünland | E17: % | F17: =1-F16 -> 1 | J17: =HYPERLINK("#'Manual for Translation'!$j$"&ROW('Manual for Translation'!J167)) -> #'Manual for Translation'!$j$167
C18: =HYPERLINK("#"&'Manual for Translation'!E168,'Manual for Translation'!F168) -> 3014 | D18: % DN20 oder 25 | E18: % | J18: =HYPERLINK("#'Manual for Translation'!$j$"&ROW('Manual for Translation'!J168)) -> #'Manual for Translation'!$j$168
C19: =HYPERLINK("#"&'Manual for Translation'!E169,'Manual for Translation'!F169) -> 3015 | D19: % DN 50 | E19: % | J19: =HYPERLINK("#'Manual for Translation'!$j$"&ROW('Manual for Translation'!J169)) -> #'Manual for Translation'!$j$169
C20: =HYPERLINK("#"&'Manual for Translation'!E170,'Manual for Translation'!F170) -> 3016 | D20: % DN 100 | E20: % | J20: =HYPERLINK("#'Manual for Translation'!$j$"&ROW('Manual for Translation'!J170)) -> #'Manual for Translation'!$j$170
C21: =HYPERLINK("#"&'Manual for Translation'!E171,'Manual for Translation'!F171) -> 3017 | D21: % DN 200 | E21: % | F21: =1-SUM(F18:F20) -> 1 | J21: =HYPERLINK("#'Manual for Translation'!$j$"&ROW('Manual for Translation'!J171)) -> #'Manual for Translation'!$j$171
C22: =HYPERLINK("#"&'Manual for Translation'!E172,'Manual for Translation'!F172) -> 3018 | D22: Rohrleitung und Erdarbeiten | E22: =CUR -> EUR | G22: =IF(Investmentcost_Data!D23*xrt=0,"N/A",Investmentcost_Data!D23*xrt) -> N/A | J22: =HYPERLINK("#'Manual for Translation'!$j$"&ROW('Manual for Translation'!J172)) -> #'Manual for Translation'!$j$172
C23: =HYPERLINK("#"&'Manual for Translation'!E173,'Manual for Translation'!F173) -> 3019 | D23: Wärmeübergabestationen (WÜG) | J23: =HYPERLINK("#'Manual for Translation'!$j$"&ROW('Manual for Translation'!J173)) -> #'Manual for Translation'!$j$173
C24: =HYPERLINK("#"&'Manual for Translation'!E174,'Manual for Translation'!F174) -> 3020 | D24: WÜG - Durchschnittliche Investition pro MWh/a verkauft (Abh. von Anlagengröße) | E24: =CUR&"/MWh" -> EUR/MWh | G24: =IF(Investmentcost_Data!G32=0,"N/A",Investmentcost_Data!G32) -> N/A | J24: =HYPERLINK("#'Manual for Translation'!$j$"&ROW('Manual for Translation'!J174)) -> #'Manual for Translation'!$j$174
A25: ^HID | C25: =HYPERLINK("#"&'Manual for Translation'!E175,'Manual for Translation'!F175) -> 3021 | J25: =HYPERLINK("#'Manual for Translation'!$j$"&ROW('Manual for Translation'!J175)) -> #'Manual for Translation'!$j$175
A26: ^HID | C26: =HYPERLINK("#"&'Manual for Translation'!E176,'Manual for Translation'!F176) -> 3022 | J26: =HYPERLINK("#'Manual for Translation'!$j$"&ROW('Manual for Translation'!J176)) -> #'Manual for Translation'!$j$176
A27: ^HID | C27: =HYPERLINK("#"&'Manual for Translation'!E177,'Manual for Translation'!F177) -> 3023 | J27: =HYPERLINK("#'Manual for Translation'!$j$"&ROW('Manual for Translation'!J177)) -> #'Manual for Translation'!$j$177
A28: ^HID | C28: =HYPERLINK("#"&'Manual for Translation'!E178,'Manual for Translation'!F178) -> 3024 | J28: =HYPERLINK("#'Manual for Translation'!$j$"&ROW('Manual for Translation'!J178)) -> #'Manual for Translation'!$j$178
C29: =HYPERLINK("#"&'Manual for Translation'!E179,'Manual for Translation'!F179) -> 3025 | D29: Wärmeübergabestation Investment | E29: =CUR -> EUR | G29: =F24*Q_sold -> 0 | J29: =HYPERLINK("#'Manual for Translation'!$j$"&ROW('Manual for Translation'!J179)) -> #'Manual for Translation'!$j$179
C30: =HYPERLINK("#"&'Manual for Translation'!E180,'Manual for Translation'!F180) -> 3026 | D30: Gesamtinvestition Wärmenetz | E30: =CUR -> EUR | F30: =F22+F29 -> 0 | J30: =HYPERLINK("#'Manual for Translation'!$j$"&ROW('Manual for Translation'!J180)) -> #'Manual for Translation'!$j$180
C31: =HYPERLINK("#"&'Manual for Translation'!E181,'Manual for Translation'!F181) -> 3027 | J31: =HYPERLINK("#'Manual for Translation'!$j$"&ROW('Manual for Translation'!J181)) -> #'Manual for Translation'!$j$181
A32: 30.6 | C32: =HYPERLINK("#"&'Manual for Translation'!E182,'Manual for Translation'!F182) -> 3028 | D32: Kesselinvestitionen, inkl. Feuerung, Brennstoffbeschickung, Mess- und Regelungstechnik sowie Rauchgasreinigung (falls erforderlich). | J32: =HYPERLINK("#'Manual for Translation'!$j$"&ROW('Manual for Translation'!J182)) -> #'Manual for Translation'!$j$182
C33: =HYPERLINK("#"&'Manual for Translation'!E183,'Manual for Translation'!F183) -> 3029 | D33: Biomassekessel 1 | E33: =CUR -> EUR | G33: =IF(Investmentcost_Data!C176=0,"N/A",Investmentcost_Data!C176) -> N/A | J33: =HYPERLINK("#'Manual for Translation'!$j$"&ROW('Manual for Translation'!J183)) -> #'Manual for Translation'!$j$183
C34: =HYPERLINK("#"&'Manual for Translation'!E184,'Manual for Translation'!F184) -> 3030 | D34: Biomassekessel 2 | E34: =CUR -> EUR | G34: =IF(Investmentcost_Data!D176*xrt=0,"N/A",Investmentcost_Data!D176*xrt) -> N/A | J34: =HYPERLINK("#'Manual for Translation'!$j$"&ROW('Manual for Translation'!J184)) -> #'Manual for Translation'!$j$184
C35: =HYPERLINK("#"&'Manual for Translation'!E185,'Manual for Translation'!F185) -> 3031 | D35: Biomassekessel 3 | E35: =CUR -> EUR | G35: =IF(Investmentcost_Data!E176*xrt=0,"N/A",Investmentcost_Data!D176*xrt) -> N/A | J35: =HYPERLINK("#'Manual for Translation'!$j$"&ROW('Manual for Translation'!J185)) -> #'Manual for Translation'!$j$185
C36: =HYPERLINK("#"&'Manual for Translation'!E186,'Manual for Translation'!F186) -> 3032 | D36: Fossil befeuerte Ausfallreserve- / Spitzenlastkessel | E36: =CUR -> EUR | G36: =IF(Investmentcost_Data!F176*xrt=0,"N/A",Investmentcost_Data!F176*xrt) -> N/A | J36: =HYPERLINK("#'Manual for Translation'!$j$"&ROW('Manual for Translation'!J186)) -> #'Manual for Translation'!$j$186
C37: =HYPERLINK("#"&'Manual for Translation'!E187,'Manual for Translation'!F187) -> 3033 | D37: Gesamte Kesselinvestition des Biomasseheizwerkes | E37: =CUR -> EUR | F37: =SUM(F33:F36) -> 0 | J37: =HYPERLINK("#'Manual for Translation'!$j$"&ROW('Manual for Translation'!J187)) -> #'Manual for Translation'!$j$187
J38: =HYPERLINK("#'Manual for Translation'!$j$"&ROW('Manual for Translation'!J188)) -> #'Manual for Translation'!$j$188
C39: =HYPERLINK("#"&'Manual for Translation'!E189,'Manual for Translation'!F189) -> 3035 | D39: Bau- und Erschließungskosten (unter Annahme frei stehender, neu gebauter Gebäude) | J39: =HYPERLINK("#'Manual for Translation'!$j$"&ROW('Manual for Translation'!J189)) -> #'Manual for Translation'!$j$189
C40: =HYPERLINK("#"&'Manual for Translation'!E190,'Manual for Translation'!F190) -> 3036 | D40: Heizhaus (inkl. Erschließungskosten u. Außenanlage) | E40: =CUR -> EUR | G40: =IF(Investmentcost_Data!D203*xrt=0,"N/A",Investmentcost_Data!D203*xrt) -> 4050 | J40: =HYPERLINK("#'Manual for Translation'!$j$"&ROW('Manual for Translation'!J190)) -> #'Manual for Translation'!$j$190
C41: =HYPERLINK("#"&'Manual for Translation'!E191,'Manual for Translation'!F191) -> 3037 | D41: Kessel bezogene elektrische, hydraulische und Stahlbau-Installationen | E41: EUR | G41: =IF(Investmentcost_Data!D193*xrt=0,"N/A",Investmentcost_Data!D193*xrt) -> N/A | J41: =HYPERLINK("#'Manual for Translation'!$j$"&ROW('Manual for Translation'!J191)) -> #'Manual for Translation'!$j$191
C42: =HYPERLINK("#"&'Manual for Translation'!E192,'Manual for Translation'!F192) -> 3038 | D42: Lagergebäude (inkl. Erschließungskosten u. Außenanlage) | E42: EUR | G42: =IF(Investmentcost_Data!E206*xrt=0,"N/A",Investmentcost_Data!E206*xrt) ->  | J42: =HYPERLINK("#'Manual for Translation'!$j$"&ROW('Manual for Translation'!J192)) -> #'Manual for Translation'!$j$192
C43: =HYPERLINK("#"&'Manual for Translation'!E193,'Manual for Translation'!F193) -> 3039 | D43: Summe der Baukosten | E43: EUR | F43: =SUM(F40:F42) -> 0 | J43: =HYPERLINK("#'Manual for Translation'!$j$"&ROW('Manual for Translation'!J193)) -> #'Manual for Translation'!$j$193
J44: =HYPERLINK("#'Manual for Translation'!$j$"&ROW('Manual for Translation'!J194)) -> #'Manual for Translation'!$j$194
C45: =HYPERLINK("#"&'Manual for Translation'!E195,'Manual for Translation'!F195) -> 3041 | D45: Sonstige Erstinvestionen | J45: =HYPERLINK("#'Manual for Translation'!$j$"&ROW('Manual for Translation'!J195)) -> #'Manual for Translation'!$j$195
C46: =HYPERLINK("#"&'Manual for Translation'!E196,'Manual for Translation'!F196) -> 3042 | D46: Sonstige Investitionen | E46: EUR | J46: =HYPERLINK("#'Manual for Translation'!$j$"&ROW('Manual for Translation'!J196)) -> #'Manual for Translation'!$j$196
J47: =HYPERLINK("#'Manual for Translation'!$j$"&ROW('Manual for Translation'!J197)) -> #'Manual for Translation'!$j$197
C48: =HYPERLINK("#"&'Manual for Translation'!E198,'Manual for Translation'!F198) -> 3044 | D48: Zwischensumme: Physisches Investment | E48: =CUR -> EUR | F48: =ic_boiler+ic_building+ic_grid+ic_other -> 0 | J48: =HYPERLINK("#'Manual for Translation'!$j$"&ROW('Manual for Translation'!J198)) -> #'Manual for Translation'!$j$198
C49: =HYPERLINK("#"&'Manual for Translation'!E199,'Manual for Translation'!F199) -> 3045 | J49: =HYPERLINK("#'Manual for Translation'!$j$"&ROW('Manual for Translation'!J199)) -> #'Manual for Translation'!$j$199
C50: =HYPERLINK("#"&'Manual for Translation'!E200,'Manual for Translation'!F200) -> 3046 | D50: Planungs- und Genehmigungkosten | J50: =HYPERLINK("#'Manual for Translation'!$j$"&ROW('Manual for Translation'!J200)) -> #'Manual for Translation'!$j$200
C51: =HYPERLINK("#"&'Manual for Translation'!E201,'Manual for Translation'!F201) -> 3047 | D51: Planungs- und Genehmigungskosten (Anteil an den physischen Investition) | E51: % | G51: =IF(F51<>0,F51,SURVEY!E132) -> 0.1 | J51: =HYPERLINK("#'Manual for Translation'!$j$"&ROW('Manual for Translation'!J201)) -> #'Manual for Translation'!$j$201
C52: =HYPERLINK("#"&'Manual for Translation'!E202,'Manual for Translation'!F202) -> 3048 | D52: Planungs- und Genehmigungskosten (absolute Zahlen) | E52: =CUR -> EUR | F52: =ic_physical*F51 -> 0 | J52: =HYPERLINK("#'Manual for Translation'!$j$"&ROW('Manual for Translation'!J202)) -> #'Manual for Translation'!$j$202
J53: =HYPERLINK("#'Manual for Translation'!$j$"&ROW('Manual for Translation'!J203)) -> #'Manual for Translation'!$j$203
J54: =HYPERLINK("#'Manual for Translation'!$j$"&ROW('Manual for Translation'!J204)) -> #'Manual for Translation'!$j$204
C55: =HYPERLINK("#"&'Manual for Translation'!E205,'Manual for Translation'!F205) -> 3051 | D55: Reinvestitionen und weitere zukünftige Investitionen | J55: =HYPERLINK("#'Manual for Translation'!$j$"&ROW('Manual for Translation'!J205)) -> #'Manual for Translation'!$j$205
A56: ^HID | C56: =HYPERLINK("#"&'Manual for Translation'!E206,'Manual for Translation'!F206) -> 3052 | D56: 2017 | F56: 0 | G56: ='Re-Invesment_BM'!J26 -> 0 | J56: =HYPERLINK("#'Manual for Translation'!$j$"&ROW('Manual for Translation'!J206)) -> #'Manual for Translation'!$j$206
D57: 2018 | E57: =CUR -> EUR | F57: 0 | G57: ='Re-Invesment_BM'!K26 -> 0 | J57: =HYPERLINK("#'Manual for Translation'!$j$"&ROW('Manual for Translation'!J207)) -> #'Manual for Translation'!$j$207
D58: 2019 | E58: EUR | F58: 0 | G58: ='Re-Invesment_BM'!L26 -> 0 | J58: =HYPERLINK("#'Manual for Translation'!$j$"&ROW('Manual for Translation'!J208)) -> #'Manual for Translation'!$j$208
D59: 2020 | E59: EUR | F59: 0 | G59: ='Re-Invesment_BM'!M26 -> 0 | J59: =HYPERLINK("#'Manual for Translation'!$j$"&ROW('Manual for Translation'!J209)) -> #'Manual for Translation'!$j$209
D60: 2021 | E60: EUR | G60: ='Re-Invesment_BM'!N26 -> 0 | J60: =HYPERLINK("#'Manual for Translation'!$j$"&ROW('Manual for Translation'!J210)) -> #'Manual for Translation'!$j$210
D61: 2022 | E61: EUR | G61: ='Re-Invesment_BM'!O26 -> 0 | J61: =HYPERLINK("#'Manual for Translation'!$j$"&ROW('Manual for Translation'!J211)) -> #'Manual for Translation'!$j$211
D62: 2023 | E62: EUR | G62: ='Re-Invesment_BM'!P26 -> 0 | J62: =HYPERLINK("#'Manual for Translation'!$j$"&ROW('Manual for Translation'!J212)) -> #'Manual for Translation'!$j$212
D63: 2024 | E63: EUR | G63: ='Re-Invesment_BM'!Q26 -> 0 | J63: =HYPERLINK("#'Manual for Translation'!$j$"&ROW('Manual for Translation'!J213)) -> #'Manual for Translation'!$j$213
D64: 2025 | E64: EUR | G64: ='Re-Invesment_BM'!R26 -> 0 | J64: =HYPERLINK("#'Manual for Translation'!$j$"&ROW('Manual for Translation'!J214)) -> #'Manual for Translation'!$j$214
D65: 2026 | E65: EUR | G65: ='Re-Invesment_BM'!S26 -> 0 | J65: =HYPERLINK("#'Manual for Translation'!$j$"&ROW('Manual for Translation'!J215)) -> #'Manual for Translation'!$j$215
D66: 2027 | E66: EUR | G66: ='Re-Invesment_BM'!T26 -> 0 | J66: =HYPERLINK("#'Manual for Translation'!$j$"&ROW('Manual for Translation'!J216)) -> #'Manual for Translation'!$j$216
D67: 2028 | E67: EUR | G67: ='Re-Invesment_BM'!U26 -> 0 | J67: =HYPERLINK("#'Manual for Translation'!$j$"&ROW('Manual for Translation'!J217)) -> #'Manual for Translation'!$j$217
D68: 2029 | E68: EUR | G68: ='Re-Invesment_BM'!V26 -> 0 | J68: =HYPERLINK("#'Manual for Translation'!$j$"&ROW('Manual for Translation'!J218)) -> #'Manual for Translation'!$j$218
D69: 2030 | E69: EUR | G69: ='Re-Invesment_BM'!W26 -> 0 | J69: =HYPERLINK("#'Manual for Translation'!$j$"&ROW('Manual for Translation'!J219)) -> #'Manual for Translation'!$j$219
D70: 2031 | E70: EUR | G70: ='Re-Invesment_BM'!X26 -> 0 | J70: =HYPERLINK("#'Manual for Translation'!$j$"&ROW('Manual for Translation'!J220)) -> #'Manual for Translation'!$j$220
D71: 2032 | E71: EUR | G71: ='Re-Invesment_BM'!Y26 -> 0 | J71: =HYPERLINK("#'Manual for Translation'!$j$"&ROW('Manual for Translation'!J221)) -> #'Manual for Translation'!$j$221
D72: 2033 | E72: EUR | G72: ='Re-Invesment_BM'!Z26 -> 0 | J72: =HYPERLINK("#'Manual for Translation'!$j$"&ROW('Manual for Translation'!J222)) -> #'Manual for Translation'!$j$222
D73: 2034 | E73: EUR | G73: ='Re-Invesment_BM'!AA26 -> 0 | J73: =HYPERLINK("#'Manual for Translation'!$j$"&ROW('Manual for Translation'!J223)) -> #'Manual for Translation'!$j$223
D74: 2035 | E74: EUR | G74: ='Re-Invesment_BM'!AB26 -> 0 | J74: =HYPERLINK("#'Manual for Translation'!$j$"&ROW('Manual for Translation'!J224)) -> #'Manual for Translation'!$j$224
D75: 2036 | E75: EUR | G75: ='Re-Invesment_BM'!AC26 -> 0 | J75: =HYPERLINK("#'Manual for Translation'!$j$"&ROW('Manual for Translation'!J225)) -> #'Manual for Translation'!$j$225
D76: 2037 | E76: EUR | G76: ='Re-Invesment_BM'!AD26 -> 0 | J76: =HYPERLINK("#'Manual for Translation'!$j$"&ROW('Manual for Translation'!J226)) -> #'Manual for Translation'!$j$226
D77: 2038 | E77: EUR | G77: ='Re-Invesment_BM'!AE26 -> 0 | J77: =HYPERLINK("#'Manual for Translation'!$j$"&ROW('Manual for Translation'!J227)) -> #'Manual for Translation'!$j$227
D78: 2039 | E78: EUR | G78: ='Re-Invesment_BM'!AF26 -> 0 | J78: =HYPERLINK("#'Manual for Translation'!$j$"&ROW('Manual for Translation'!J228)) -> #'Manual for Translation'!$j$228
D79: 2040 | E79: EUR | G79: ='Re-Invesment_BM'!AG26 -> 0 | J79: =HYPERLINK("#'Manual for Translation'!$j$"&ROW('Manual for Translation'!J229)) -> #'Manual for Translation'!$j$229
D80: 2041 | E80: EUR | G80: ='Re-Invesment_BM'!AH26 -> 0 | J80: =HYPERLINK("#'Manual for Translation'!$j$"&ROW('Manual for Translation'!J230)) -> #'Manual for Translation'!$j$230
D81: 2042 | E81: EUR | G81: ='Re-Invesment_BM'!AI26 -> 0 | J81: =HYPERLINK("#'Manual for Translation'!$j$"&ROW('Manual for Translation'!J231)) -> #'Manual for Translation'!$j$231
J82: =HYPERLINK("#'Manual for Translation'!$j$"&ROW('Manual for Translation'!J232)) -> #'Manual for Translation'!$j$232
C83: =HYPERLINK("#"&'Manual for Translation'!E233,'Manual for Translation'!F233) -> 3079 | D83: Zusammenfassung der Investitionen in Abhängigkeit vom Zahlungszeitpunkt (nominale Zahlenwerte) | J83: =HYPERLINK("#'Manual for Translation'!$j$"&ROW('Manual for Translation'!J233)) -> #'Manual for Translation'!$j$233
C84: =HYPERLINK("#"&'Manual for Translation'!E234,'Manual for Translation'!F234) -> 3080 | D84: Gesamtinvestitionen (Jahr 0-3) | E84: =CUR -> EUR | F84: =ic_planning+ic_grid+ic_building+ic_other+ic_boiler -> 0 | J84: =HYPERLINK("#'Manual for Translation'!$j$"&ROW('Manual for Translation'!J234)) -> #'Manual for Translation'!$j$234
C85: =HYPERLINK("#"&'Manual for Translation'!E235,'Manual for Translation'!F235) -> 3081 | D85: Gesamtinvestition im Jahr 0 | E85: EUR | F85: =ic_planning+ic_building+ic_other+ic_boiler+ic_grid*Grid_frac_Y1 -> 0 | J85: =HYPERLINK("#'Manual for Translation'!$j$"&ROW('Manual for Translation'!J235)) -> #'Manual for Translation'!$j$235
C86: =HYPERLINK("#"&'Manual for Translation'!E236,'Manual for Translation'!F236) -> 3082 | D86: Gesamtinvestition im Jahr 1 | E86: EUR | F86: =ic_grid*(Grid_frac_Y2-Grid_frac_Y1) -> 0 | J86: =HYPERLINK("#'Manual for Translation'!$j$"&ROW('Manual for Translation'!J236)) -> #'Manual for Translation'!$j$236
C87: =HYPERLINK("#"&'Manual for Translation'!E237,'Manual for Translation'!F237) -> 3083 | D87: Gesamtinvestition im Jahr 2 | E87: EUR | F87: =ic_grid*(Grid_frac_Y3-Grid_frac_Y2) -> 0 | J87: =HYPERLINK("#'Manual for Translation'!$j$"&ROW('Manual for Translation'!J237)) -> #'Manual for Translation'!$j$237
C88: =HYPERLINK("#"&'Manual for Translation'!E238,'Manual for Translation'!F238) -> 3084 | D88: Gesamtinvestition im Jahr 3 | E88: EUR | F88: =ic_grid*(1-Grid_frac_Y3) -> 0 | J88: =HYPERLINK("#'Manual for Translation'!$j$"&ROW('Manual for Translation'!J238)) -> #'Manual for Translation'!$j$238
C89: =HYPERLINK("#"&'Manual for Translation'!E239,'Manual for Translation'!F239) -> 3085 | D89: Gesamtinvestition in den Jahren 3-25 (inkl. Reinvestitionen nach VDI Richtlinie 2067) | E89: EUR | F89: =SUM(F56:F81) -> 0 | J89: =HYPERLINK("#'Manual for Translation'!$j$"&ROW('Manual for Translation'!J239)) -> #'Manual for Translation'!$j$239
J90: =HYPERLINK("#'Manual for Translation'!$j$"&ROW('Manual for Translation'!J240)) -> #'Manual for Translation'!$j$240
C91: =HYPERLINK("#"&'Manual for Translation'!E241,'Manual for Translation'!F241) -> 3087 | D91: Zusammenfassung der Erstinvestitionen nach Kategorie (ohne Reinvestitionen) | J91: =HYPERLINK("#'Manual for Translation'!$j$"&ROW('Manual for Translation'!J241)) -> #'Manual for Translation'!$j$241
C92: =HYPERLINK("#"&'Manual for Translation'!E242,'Manual for Translation'!F242) -> 3088 | D92: Kosten des Wärmenetzes (bei einem Ausbaugrad von 100 %) | E92: =CUR -> EUR | F92: =ic_grid -> 0 | J92: =HYPERLINK("#'Manual for Translation'!$j$"&ROW('Manual for Translation'!J242)) -> #'Manual for Translation'!$j$242
C93: =HYPERLINK("#"&'Manual for Translation'!E243,'Manual for Translation'!F243) -> 3089 | D93: Kesselinvestitionen, inkl. Feuerung, Brennstoffbeschickung, Mess- und Regelungstechnik sowie Rauchgasreinigung (falls erforderlich). | E93: EUR | F93: =ic_boiler -> 0 | J93: =HYPERLINK("#'Manual for Translation'!$j$"&ROW('Manual for Translation'!J243)) -> #'Manual for Translation'!$j$243
C94: =HYPERLINK("#"&'Manual for Translation'!E244,'Manual for Translation'!F244) -> 3090 | D94: Investition Heizhaus, Lager und kesselbezogene elektrische, hydraulische und Stahlbau-Installationen | E94: EUR | F94: =ic_building -> 0 | J94: =HYPERLINK("#'Manual for Translation'!$j$"&ROW('Manual for Translation'!J244)) -> #'Manual for Translation'!$j$244
C95: =HYPERLINK("#"&'Manual for Translation'!E245,'Manual for Translation'!F245) -> 3091 | D95: Sonstige Erstinvestionen | E95: EUR | F95: =ic_other -> 0 | J95: =HYPERLINK("#'Manual for Translation'!$j$"&ROW('Manual for Translation'!J245)) -> #'Manual for Translation'!$j$245
C96: =HYPERLINK("#"&'Manual for Translation'!E246,'Manual for Translation'!F246) -> 3092 | D96: Planungs- und Genehmigungkosten | E96: EUR | F96: =ic_planning -> 0 | J96: =HYPERLINK("#'Manual for Translation'!$j$"&ROW('Manual for Translation'!J246)) -> #'Manual for Translation'!$j$246
C97: =HYPERLINK("#"&'Manual for Translation'!E247,'Manual for Translation'!F247) -> 3093 | D97: Gesamtinvestitionen (Jahr 0-3) | E97: EUR | F97: =SUM(F92:F96) -> 0
A98: ^HID | C98: =HYPERLINK("#"&'Manual for Translation'!E248,'Manual for Translation'!F248) -> 3094 | J98: =HYPERLINK("#'Manual for Translation'!$j$"&ROW('Manual for Translation'!J248)) -> #'Manual for Translation'!$j$248
J99: =HYPERLINK("#'Manual for Translation'!$j$"&ROW('Manual for Translation'!J249)) -> #'Manual for Translation'!$j$249
J100: =HYPERLINK("#'Manual for Translation'!$j$"&ROW('Manual for Translation'!J250)) -> #'Manual for Translation'!$j$250
C101: =HYPERLINK("#"&'Manual for Translation'!E251,'Manual for Translation'!F251) -> 3097 | D101: Mit fossilem Brennstoff befeuertes Referenzsystem | J101: =HYPERLINK("#'Manual for Translation'!$j$"&ROW('Manual for Translation'!J251)) -> #'Manual for Translation'!$j$251
C102: =HYPERLINK("#"&'Manual for Translation'!E252,'Manual for Translation'!F252) -> 3098 | D102: Parameter | E102: Einheit | F102: Eingabewert | G102: Referenzwert | J102: =HYPERLINK("#'Manual for Translation'!$j$"&ROW('Manual for Translation'!J252)) -> #'Manual for Translation'!$j$252
J103: =HYPERLINK("#'Manual for Translation'!$j$"&ROW('Manual for Translation'!J253)) -> #'Manual for Translation'!$j$253
C104: =HYPERLINK("#"&'Manual for Translation'!E254,'Manual for Translation'!F254) -> 3100 | D104: Kosten des Wärmenetzes (bei einem Ausbaugrad von 100 %) | E104: =CUR -> EUR | F104: =F166 -> 0 | J104: =HYPERLINK("#'Manual for Translation'!$j$"&ROW('Manual for Translation'!J254)) -> #'Manual for Translation'!$j$254
J105: =HYPERLINK("#'Manual for Translation'!$j$"&ROW('Manual for Translation'!J255)) -> #'Manual for Translation'!$j$255
C106: =HYPERLINK("#"&'Manual for Translation'!E256,'Manual for Translation'!F256) -> 3102 | D106: Investition Kessel | J106: =HYPERLINK("#'Manual for Translation'!$j$"&ROW('Manual for Translation'!J256)) -> #'Manual for Translation'!$j$256
C107: =HYPERLINK("#"&'Manual for Translation'!E257,'Manual for Translation'!F257) -> 3103 | D107: Ausgewählte Brennstoffart: | F107: =General_Data!B63 -> Heizöl
C108: =HYPERLINK("#"&'Manual for Translation'!E258,'Manual for Translation'!F258) -> 3104 | D108: Fossil befeuerter Kessel 1 | E108: =CUR -> EUR | G108: =IF(Investmentcost_Data!G176*xrt=0,"N/A",Investmentcost_Data!G176*xrt) -> N/A | J108: =HYPERLINK("#'Manual for Translation'!$j$"&ROW('Manual for Translation'!J258)) -> #'Manual for Translation'!$j$258
C109: =HYPERLINK("#"&'Manual for Translation'!E259,'Manual for Translation'!F259) -> 3105 | D109: Fossil befeuerter Kessel 2 | E109: =CUR -> EUR | G109: =IF(Investmentcost_Data!H176*xrt=0,"N/A",Investmentcost_Data!H176*xrt) -> N/A | J109: =HYPERLINK("#'Manual for Translation'!$j$"&ROW('Manual for Translation'!J259)) -> #'Manual for Translation'!$j$259
C110: =HYPERLINK("#"&'Manual for Translation'!E260,'Manual for Translation'!F260) -> 3106 | D110: Fossil befeuerter Kessel 3 | E110: =CUR -> EUR | G110: =IF(Investmentcost_Data!I176*xrt=0,"N/A",Investmentcost_Data!I176*xrt) -> N/A | J110: =HYPERLINK("#'Manual for Translation'!$j$"&ROW('Manual for Translation'!J260)) -> #'Manual for Translation'!$j$260
C111: =HYPERLINK("#"&'Manual for Translation'!E261,'Manual for Translation'!F261) -> 3107 | D111: Gesamte Kesselinvestition des fossil befeuerten Referenzheizwerkes | F111: =SUM(F108:F110) -> 0 | J111: =HYPERLINK("#'Manual for Translation'!$j$"&ROW('Manual for Translation'!J261)) -> #'Manual for Translation'!$j$261
J112: =HYPERLINK("#'Manual for Translation'!$j$"&ROW('Manual for Translation'!J262)) -> #'Manual for Translation'!$j$262
C113: =HYPERLINK("#"&'Manual for Translation'!E263,'Manual for Translation'!F263) -> 3109 | D113: Investition Heizhaus, Lager und kesselbezogene ergänzende Installationen | J113: =HYPERLINK("#'Manual for Translation'!$j$"&ROW('Manual for Translation'!J263)) -> #'Manual for Translation'!$j$263
C114: =HYPERLINK("#"&'Manual for Translation'!E264,'Manual for Translation'!F264) -> 3110 | D114: Heizhaus (inkl. Erschließungskosten u. Außenanlage) | E114: =CUR -> EUR | G114: =IF(G40="N/A","N/A",IF('1. General'!E24 =General_Data!B61, G40,G40/3)) -> 1350 | J114: =HYPERLINK("#'Manual for Translation'!$j$"&ROW('Manual for Translation'!J264)) -> #'Manual for Translation'!$j$264
C115: =HYPERLINK("#"&'Manual for Translation'!E265,'Manual for Translation'!F265) -> 3111 | D115: Kessel bezogene elektrische, hydraulische und Stahlbau-Installationen | E115: =CUR -> EUR | G115: =IF(G41="N/A","N/A",G41*0.85) -> N/A | J115: =HYPERLINK("#'Manual for Translation'!$j$"&ROW('Manual for Translation'!J265)) -> #'Manual for Translation'!$j$265
C116: =HYPERLINK("#"&'Manual for Translation'!E266,'Manual for Translation'!F266) -> 3112 | D116: Kapazität des Heizöltanks (äquivalent der Anzahl von x Tagen in Volllastbetrieb) | E116: d | G116: =IF('1. General'!E24 =General_Data!B60,10,"N/A") -> 10 | J116: =HYPERLINK("#'Manual for Translation'!$j$"&ROW('Manual for Translation'!J266)) -> #'Manual for Translation'!$j$266
C117: =HYPERLINK("#"&'Manual for Translation'!E267,'Manual for Translation'!F267) -> 3113 | D117: Kapazität des Heizöltanks (falls erforderlich) | E117: l | F117: =Investmentcost_Data!C115 ->  | J117: =HYPERLINK("#'Manual for Translation'!$j$"&ROW('Manual for Translation'!J267)) -> #'Manual for Translation'!$j$267
C118: =HYPERLINK("#"&'Manual for Translation'!E268,'Manual for Translation'!F268) -> 3114 | D118: Investition für Heizöltank | E118: =CUR -> EUR | G118: =Investmentcost_Data!J115 ->  | J118: =HYPERLINK("#'Manual for Translation'!$j$"&ROW('Manual for Translation'!J268)) -> #'Manual for Translation'!$j$268
C119: =HYPERLINK("#"&'Manual for Translation'!E269,'Manual for Translation'!F269) -> 3115 | D119: Investition Gasnetzanschluss, in % der Investition der Gaskessel | E119: % | G119: =IF('1. General'!E24 =General_Data!B59,15%,"N/A") -> N/A | J119: =HYPERLINK("#'Manual for Translation'!$j$"&ROW('Manual for Translation'!J269)) -> #'Manual for Translation'!$j$269
C120: =HYPERLINK("#"&'Manual for Translation'!E270,'Manual for Translation'!F270) -> 3116 | D120: Investition Gasnetzanschluss | F120: =ref_ic_boiler*F119 -> 0 | J120: =HYPERLINK("#'Manual for Translation'!$j$"&ROW('Manual for Translation'!J270)) -> #'Manual for Translation'!$j$270
C121: =HYPERLINK("#"&'Manual for Translation'!E271,'Manual for Translation'!F271) -> 3117 | D121: Investition Kohlelagerstätte | E121: =CUR -> EUR | G121: =IF(OR('1. General'!E24 =General_Data!B59,'1. General'!E24 =General_Data!B60),"N/A",) -> N/A | J121: =HYPERLINK("#'Manual for Translation'!$j$"&ROW('Manual for Translation'!J271)) -> #'Manual for Translation'!$j$271
J122: =HYPERLINK("#'Manual for Translation'!$j$"&ROW('Manual for Translation'!J272)) -> #'Manual for Translation'!$j$272
C123: =HYPERLINK("#"&'Manual for Translation'!E273,'Manual for Translation'!F273) -> 3119 | D123: Sonstige Erstinvestionen | E123: =CUR -> EUR | J123: =HYPERLINK("#'Manual for Translation'!$j$"&ROW('Manual for Translation'!J273)) -> #'Manual for Translation'!$j$273
J124: =HYPERLINK("#'Manual for Translation'!$j$"&ROW('Manual for Translation'!J274)) -> #'Manual for Translation'!$j$274
C125: =HYPERLINK("#"&'Manual for Translation'!E275,'Manual for Translation'!F275) -> 3121 | D125: Planungs- und Genehmigungkosten | J125: =HYPERLINK("#'Manual for Translation'!$j$"&ROW('Manual for Translation'!J275)) -> #'Manual for Translation'!$j$275
C126: =HYPERLINK("#"&'Manual for Translation'!E276,'Manual for Translation'!F276) -> 3122 | D126: Planungs- und Genehmigungskosten (Anteil an den physischen Investition) | E126: % | G126: =IF(F51<>0,F51,SURVEY!E132) -> 0.1 | J126: =HYPERLINK("#'Manual for Translation'!$j$"&ROW('Manual for Translation'!J276)) -> #'Manual for Translation'!$j$276
C127: =HYPERLINK("#"&'Manual for Translation'!E277,'Manual for Translation'!F277) -> 3123 | D127: Planungs- und Genehmigungskosten (absolute Zahlen) | E127: =CUR -> EUR | F127: =F170*F126 -> 0 | J127: =HYPERLINK("#'Manual for Translation'!$j$"&ROW('Manual for Translation'!J277)) -> #'Manual for Translation'!$j$277
J128: =HYPERLINK("#'Manual for Translation'!$j$"&ROW('Manual for Translation'!J278)) -> #'Manual for Translation'!$j$278
C129: =HYPERLINK("#"&'Manual for Translation'!E279,'Manual for Translation'!F279) -> 3125 | D129: Reinvestitionen und weitere zukünftige Investitionen | J129: =HYPERLINK("#'Manual for Translation'!$j$"&ROW('Manual for Translation'!J279)) -> #'Manual for Translation'!$j$279
A130: ^HID | C130: =HYPERLINK("#"&'Manual for Translation'!E280,'Manual for Translation'!F280) -> 3126 | D130: 2017 | E130: =CUR -> EUR | F130: 0 | G130: ='Re-Invesment_Ref'!J26 -> 0 | J130: =HYPERLINK("#'Manual for Translation'!$j$"&ROW('Manual for Translation'!J280)) -> #'Manual for Translation'!$j$280
D131: 2018 | E131: EUR | F131: 0 | G131: ='Re-Invesment_Ref'!K26 -> 0 | J131: =HYPERLINK("#'Manual for Translation'!$j$"&ROW('Manual for Translation'!J281)) -> #'Manual for Translation'!$j$281
D132: 2019 | E132: EUR | F132: 0 | G132: ='Re-Invesment_Ref'!L26 -> 0 | J132: =HYPERLINK("#'Manual for Translation'!$j$"&ROW('Manual for Translation'!J282)) -> #'Manual for Translation'!$j$282
D133: 2020 | E133: EUR | F133: 0 | G133: ='Re-Invesment_Ref'!M26 -> 0 | J133: =HYPERLINK("#'Manual for Translation'!$j$"&ROW('Manual for Translation'!J283)) -> #'Manual for Translation'!$j$283
D134: 2021 | E134: EUR | G134: ='Re-Invesment_Ref'!N26 -> 0 | J134: =HYPERLINK("#'Manual for Translation'!$j$"&ROW('Manual for Translation'!J284)) -> #'Manual for Translation'!$j$284
D135: 2022 | E135: EUR | G135: ='Re-Invesment_Ref'!O26 -> 0 | J135: =HYPERLINK("#'Manual for Translation'!$j$"&ROW('Manual for Translation'!J285)) -> #'Manual for Translation'!$j$285
D136: 2023 | E136: EUR | G136: ='Re-Invesment_Ref'!P26 -> 0 | J136: =HYPERLINK("#'Manual for Translation'!$j$"&ROW('Manual for Translation'!J286)) -> #'Manual for Translation'!$j$286
D137: 2024 | E137: EUR | G137: ='Re-Invesment_Ref'!Q26 -> 0 | J137: =HYPERLINK("#'Manual for Translation'!$j$"&ROW('Manual for Translation'!J287)) -> #'Manual for Translation'!$j$287
D138: 2025 | E138: EUR | G138: ='Re-Invesment_Ref'!R26 -> 0 | J138: =HYPERLINK("#'Manual for Translation'!$j$"&ROW('Manual for Translation'!J288)) -> #'Manual for Translation'!$j$288
D139: 2026 | E139: EUR | G139: ='Re-Invesment_Ref'!S26 -> 0 | J139: =HYPERLINK("#'Manual for Translation'!$j$"&ROW('Manual for Translation'!J289)) -> #'Manual for Translation'!$j$289
D140: 2027 | E140: EUR | G140: ='Re-Invesment_Ref'!T26 -> 0 | J140: =HYPERLINK("#'Manual for Translation'!$j$"&ROW('Manual for Translation'!J290)) -> #'Manual for Translation'!$j$290
D141: 2028 | E141: EUR | G141: ='Re-Invesment_Ref'!U26 -> 0 | J141: =HYPERLINK("#'Manual for Translation'!$j$"&ROW('Manual for Translation'!J291)) -> #'Manual for Translation'!$j$291
D142: 2029 | E142: EUR | G142: ='Re-Invesment_Ref'!V26 -> 0 | J142: =HYPERLINK("#'Manual for Translation'!$j$"&ROW('Manual for Translation'!J292)) -> #'Manual for Translation'!$j$292
D143: 2030 | E143: EUR | G143: ='Re-Invesment_Ref'!W26 -> 0 | J143: =HYPERLINK("#'Manual for Translation'!$j$"&ROW('Manual for Translation'!J293)) -> #'Manual for Translation'!$j$293
D144: 2031 | E144: EUR | G144: ='Re-Invesment_Ref'!X26 -> 0 | J144: =HYPERLINK("#'Manual for Translation'!$j$"&ROW('Manual for Translation'!J294)) -> #'Manual for Translation'!$j$294
D145: 2032 | E145: EUR | G145: ='Re-Invesment_Ref'!Y26 -> 0 | J145: =HYPERLINK("#'Manual for Translation'!$j$"&ROW('Manual for Translation'!J295)) -> #'Manual for Translation'!$j$295
D146: 2033 | E146: EUR | G146: ='Re-Invesment_Ref'!Z26 -> 0 | J146: =HYPERLINK("#'Manual for Translation'!$j$"&ROW('Manual for Translation'!J296)) -> #'Manual for Translation'!$j$296
D147: 2034 | E147: EUR | G147: ='Re-Invesment_Ref'!AA26 -> 0 | J147: =HYPERLINK("#'Manual for Translation'!$j$"&ROW('Manual for Translation'!J297)) -> #'Manual for Translation'!$j$297
D148: 2035 | E148: EUR | G148: ='Re-Invesment_Ref'!AB26 -> 0 | J148: =HYPERLINK("#'Manual for Translation'!$j$"&ROW('Manual for Translation'!J298)) -> #'Manual for Translation'!$j$298
D149: 2036 | E149: EUR | G149: ='Re-Invesment_Ref'!AC26 -> 0 | J149: =HYPERLINK("#'Manual for Translation'!$j$"&ROW('Manual for Translation'!J299)) -> #'Manual for Translation'!$j$299
D150: 2037 | E150: EUR | G150: ='Re-Invesment_Ref'!AD26 -> 0 | J150: =HYPERLINK("#'Manual for Translation'!$j$"&ROW('Manual for Translation'!J300)) -> #'Manual for Translation'!$j$300
D151: 2038 | E151: EUR | G151: ='Re-Invesment_Ref'!AE26 -> 0 | J151: =HYPERLINK("#'Manual for Translation'!$j$"&ROW('Manual for Translation'!J301)) -> #'Manual for Translation'!$j$301
D152: 2039 | E152: EUR | G152: ='Re-Invesment_Ref'!AF26 -> 0 | J152: =HYPERLINK("#'Manual for Translation'!$j$"&ROW('Manual for Translation'!J302)) -> #'Manual for Translation'!$j$302
D153: 2040 | E153: EUR | G153: ='Re-Invesment_Ref'!AG26 -> 0 | J153: =HYPERLINK("#'Manual for Translation'!$j$"&ROW('Manual for Translation'!J303)) -> #'Manual for Translation'!$j$303
D154: 2041 | E154: EUR | G154: ='Re-Invesment_Ref'!AH26 -> 0 | J154: =HYPERLINK("#'Manual for Translation'!$j$"&ROW('Manual for Translation'!J304)) -> #'Manual for Translation'!$j$304
D155: 2042 | E155: EUR | G155: ='Re-Invesment_Ref'!AI26 -> 0 | J155: =HYPERLINK("#'Manual for Translation'!$j$"&ROW('Manual for Translation'!J305)) -> #'Manual for Translation'!$j$305
J156: =HYPERLINK("#'Manual for Translation'!$j$"&ROW('Manual for Translation'!J306)) -> #'Manual for Translation'!$j$306
C157: =HYPERLINK("#"&'Manual for Translation'!E307,'Manual for Translation'!F307) -> 3153 | D157: Zusammenfassung der Investitionen in Abhängigkeit vom Zahlungszeitpunkt (nominale Zahlenwerte) | J157: =HYPERLINK("#'Manual for Translation'!$j$"&ROW('Manual for Translation'!J307)) -> #'Manual for Translation'!$j$307
C158: =HYPERLINK("#"&'Manual for Translation'!E308,'Manual for Translation'!F308) -> 3154 | D158: Gesamtinvestitionen (Jahr 0-3) | E158: =CUR -> EUR | F158: =ic_grid+ref_ic_boiler+F114+F115+F118+F120+F121+ref_ic_other+ref_ic_planning -> 0 | J158: =HYPERLINK("#'Manual for Translation'!$j$"&ROW('Manual for Translation'!J308)) -> #'Manual for Translation'!$j$308
C159: =HYPERLINK("#"&'Manual for Translation'!E309,'Manual for Translation'!F309) -> 3155 | D159: Gesamtinvestition im Jahr 0 | E159: EUR | F159: =ref_ic_boiler+F114+F115+F118+F120+F121+ref_ic_other+ref_ic_planning+(ic_grid*Grid_frac_Y1) -> 0 | J159: =HYPERLINK("#'Manual for Translation'!$j$"&ROW('Manual for Translation'!J309)) -> #'Manual for Translation'!$j$309
C160: =HYPERLINK("#"&'Manual for Translation'!E310,'Manual for Translation'!F310) -> 3156 | D160: Gesamtinvestition im Jahr 1 | E160: EUR | F160: =ic_grid*(Grid_frac_Y2-Grid_frac_Y1) -> 0 | J160: =HYPERLINK("#'Manual for Translation'!$j$"&ROW('Manual for Translation'!J310)) -> #'Manual for Translation'!$j$310
C161: =HYPERLINK("#"&'Manual for Translation'!E311,'Manual for Translation'!F311) -> 3157 | D161: Gesamtinvestition im Jahr 2 | E161: EUR | F161: =ic_grid*(Grid_frac_Y3-Grid_frac_Y2) -> 0 | J161: =HYPERLINK("#'Manual for Translation'!$j$"&ROW('Manual for Translation'!J311)) -> #'Manual for Translation'!$j$311
C162: =HYPERLINK("#"&'Manual for Translation'!E312,'Manual for Translation'!F312) -> 3158 | D162: Gesamtinvestition im Jahr 3 | E162: EUR | F162: =ic_grid*(1-Grid_frac_Y3) -> 0 | J162: =HYPERLINK("#'Manual for Translation'!$j$"&ROW('Manual for Translation'!J312)) -> #'Manual for Translation'!$j$312
C163: =HYPERLINK("#"&'Manual for Translation'!E313,'Manual for Translation'!F313) -> 3159 | D163: Gesamtinvestition in den Jahren 3-25 (inkl. Reinvestitionen nach VDI Richtlinie 2067) | E163: EUR | F163: =SUM(F134:F155) -> 0 | J163: =HYPERLINK("#'Manual for Translation'!$j$"&ROW('Manual for Translation'!J313)) -> #'Manual for Translation'!$j$313
J164: =HYPERLINK("#'Manual for Translation'!$j$"&ROW('Manual for Translation'!J314)) -> #'Manual for Translation'!$j$314
C165: =HYPERLINK("#"&'Manual for Translation'!E315,'Manual for Translation'!F315) -> 3161 | D165: Zusammenfassung der Erstinvestitionen nach Kategorie (ohne Reinvestitionen) | J165: =HYPERLINK("#'Manual for Translation'!$j$"&ROW('Manual for Translation'!J315)) -> #'Manual for Translation'!$j$315
C166: =HYPERLINK("#"&'Manual for Translation'!E316,'Manual for Translation'!F316) -> 3162 | D166: Kosten des Wärmenetzes (bei einem Ausbaugrad von 100 %) | E166: =CUR -> EUR | F166: =ic_grid -> 0 | J166: =HYPERLINK("#'Manual for Translation'!$j$"&ROW('Manual for Translation'!J316)) -> #'Manual for Translation'!$j$316
C167: =HYPERLINK("#"&'Manual for Translation'!E317,'Manual for Translation'!F317) -> 3163 | D167: Kesselinvestitionen, inkl. Feuerung, Brennstoffbeschickung, Mess- und Regelungstechnik sowie Rauchgasreinigung (falls erforderlich). | E167: EUR | F167: =ref_ic_boiler -> 0 | J167: =HYPERLINK("#'Manual for Translation'!$j$"&ROW('Manual for Translation'!J317)) -> #'Manual for Translation'!$j$317
C168: =HYPERLINK("#"&'Manual for Translation'!E318,'Manual for Translation'!F318) -> 3164 | D168: Investition Heizhaus, Lager und kesselbezogene elektrische, hydraulische und Stahlbau-Installationen | E168: EUR | F168: =F114+F115+F118+F120+F121 -> 0 | J168: =HYPERLINK("#'Manual for Translation'!$j$"&ROW('Manual for Translation'!J318)) -> #'Manual for Translation'!$j$318
C169: =HYPERLINK("#"&'Manual for Translation'!E319,'Manual for Translation'!F319) -> 3165 | D169: Sonstige Erstinvestionen | E169: EUR | F169: =ref_ic_other -> 0 | J169: =HYPERLINK("#'Manual for Translation'!$j$"&ROW('Manual for Translation'!J319)) -> #'Manual for Translation'!$j$319
A170: ^HID | C170: =HYPERLINK("#"&'Manual for Translation'!E320,'Manual for Translation'!F320) -> 3166 | D170: Physische Investitionen | E170: EUR | F170: =SUM(F166:F169) -> 0 | J170: =HYPERLINK("#'Manual for Translation'!$j$"&ROW('Manual for Translation'!J320)) -> #'Manual for Translation'!$j$320
C171: =HYPERLINK("#"&'Manual for Translation'!E321,'Manual for Translation'!F321) -> 3167 | D171: Planungs- und Genehmigungkosten | E171: EUR | F171: =ref_ic_planning -> 0 | J171: =HYPERLINK("#'Manual for Translation'!$j$"&ROW('Manual for Translation'!J321)) -> #'Manual for Translation'!$j$321
C172: =HYPERLINK("#"&'Manual for Translation'!E322,'Manual for Translation'!F322) -> 3168 | D172: Gesamtinvestitionen (Jahr 0-3) | E172: =CUR -> EUR | F172: =F170+F171 -> 0 | J172: =HYPERLINK("#'Manual for Translation'!$j$"&ROW('Manual for Translation'!J322)) -> #'Manual for Translation'!$j$322
A174: 55
A175: ^END

Sheet Re-Invesment_BM (hidden)
A1: Nutzungsdauer und Instandhaltung nach VDI 2067
I2: Reinvestitionen
B3: Nutzungsdauer | C3: Instandhaltung | D3: Nutzungsdauer | E3: Investitions-kosten | F3: Gewichtete Instandhaltungskosten | J3: Jahr
B4: laut VDI | C4: laut VDI | D4: AFA | J4: =Year_0 -> 2017 | K4: =J4+1 -> 2018 | L4: =K4+1 -> 2019 | M4: 2020 | N4: 2021 | O4: 2022 | P4: 2023 | Q4: 2024 | R4: 2025 | S4: 2026 | T4: 2027 | U4: 2028 | V4: 2029 | W4: 2030 | X4: 2031 | Y4: 2032 | Z4: 2033 | AA4: 2034 | AB4: 2035 | AC4: 2036 | AD4: 2037 | AE4: 2038 | AF4: 2039 | AG4: 2040 | AH4: 2041 | AI4: 2042 | AJ4: 2043 | AK4: 2044 | AL4: 2045 | AM4: 2046 | AN4: 2047 | AO4: 2048 | AP4: 2049 | AQ4: 2050 | AR4: 2051 | AS4: 2052 | AT4: 2053 | AU4: 2054 | AV4: 2055 | AW4: 2056 | AX4: 2057 | AY4: 2058 | AZ4: 2059 | BA4: 2060 | BB4: 2061 | BC4: 2062 | BD4: 2063 | BE4: 2064 | BF4: 2065 | BG4: 2066 | BH4: 2067
B5: [Jahre] | C5: [%] | D5: [Jahre] | E5: EUR | J5: 0 | K5: =J5+1 -> 1 | L5: 2 | M5: 3 | N5: 4 | O5: 5 | P5: 6 | Q5: 7 | R5: 8 | S5: 9 | T5: 10 | U5: 11 | V5: 12 | W5: 13 | X5: 14 | Y5: 15 | Z5: 16 | AA5: 17 | AB5: 18 | AC5: 19 | AD5: 20 | AE5: 21 | AF5: 22 | AG5: 23 | AH5: 24 | AI5: 25 | AJ5: 26 | AK5: 27 | AL5: 28 | AM5: 29 | AN5: 30 | AO5: 31 | AP5: 32 | AQ5: 33 | AR5: 34 | AS5: 35 | AT5: 36 | AU5: 37 | AV5: 38 | AW5: 39 | AX5: 40 | AY5: 41 | AZ5: 42 | BA5: 43 | BB5: 44 | BC5: 45 | BD5: 46 | BE5: 47 | BF5: 48 | BG5: 49 | BH5: 50
A6: Heizhaus | B6: 50 | C6: 0.01 | D6: 33.33 | E6: ='3. Investment'!F40 -> 0 | F6: =C6*E6 -> 0 | J6: =IF(AND(J$5>$B6,INT(I$5/$B6)=(I$5/$B6)),$E$6,0) -> 0 | K6: =IF(AND(K$5>$B6,INT(J$5/$B6)=(J$5/$B6)),$E6,0) -> 0 | L6: 0 | M6: 0 | N6: 0 | O6: 0 | P6: 0 | Q6: 0 | R6: 0 | S6: 0 | T6: 0 | U6: 0 | V6: 0 | W6: 0 | X6: 0 | Y6: 0 | Z6: 0 | AA6: =IF(AND(AA$5>$B6,INT(Z$5/$B6)=(Z$5/$B6)),$E6,0) -> 0 | AB6: 0 | AC6: 0 | AD6: 0 | AE6: 0 | AF6: 0 | AG6: 0 | AH6: 0 | AI6: 0 | AJ6: 0 | AK6: 0 | AL6: 0 | AM6: 0 | AN6: 0 | AO6: 0 | AP6: 0 | AQ6: 0 | AR6: 0 | AS6: 0 | AT6: 0 | AU6: 0 | AV6: 0 | AW6: 0 | AX6: 0 | AY6: 0 | AZ6: 0 | BA6: 0 | BB6: 0 | BC6: 0 | BD6: 0 | BE6: 0 | BF6: 0 | BG6: 0 | BH6: 0
A7: Lager | B7: 50 | C7: =C6 -> 0.01 | D7: 33.33 | E7: ='3. Investment'!F42 -> 0 | F7: =C7*E7 -> 0 | J7: =IF(AND(J$5>$B7,INT(I$5/$B7)=(I$5/$B7)),$E$7,0) -> 0 | K7: 0 | L7: 0 | M7: 0 | N7: 0 | O7: 0 | P7: 0 | Q7: 0 | R7: 0 | S7: 0 | T7: 0 | U7: 0 | V7: 0 | W7: 0 | X7: 0 | Y7: 0 | Z7: 0 | AA7: 0 | AB7: 0 | AC7: 0 | AD7: 0 | AE7: 0 | AF7: 0 | AG7: 0 | AH7: 0 | AI7: 0 | AJ7: 0 | AK7: 0 | AL7: 0 | AM7: 0 | AN7: 0 | AO7: 0 | AP7: 0 | AQ7: 0 | AR7: 0 | AS7: 0 | AT7: 0 | AU7: 0 | AV7: 0 | AW7: 0 | AX7: 0 | AY7: 0 | AZ7: 0 | BA7: 0 | BB7: 0 | BC7: 0 | BD7: 0 | BE7: 0 | BF7: 0 | BG7: 0 | BH7: 0
A8: Außenanlage | B8: =B7 -> 50 | C8: =C7 -> 0.01 | D8: 33.33 | F8: =C8*E8 -> 0 | J8: =IF(AND(J$5>$B8,INT(I$5/$B8)=(I$5/$B8)),$E$8,0) -> 0 | K8: =IF(AND(K$5>$B8,INT(J$5/$B8)=(J$5/$B8)),$E8,0) -> 0 | L8: =IF(AND(L$5>$B8,INT(K$5/$B8)=(K$5/$B8)),$E8,0) -> 0 | M8: 0 | N8: 0 | O8: 0 | P8: 0 | Q8: 0 | R8: 0 | S8: 0 | T8: 0 | U8: 0 | V8: 0 | W8: 0 | X8: 0 | Y8: 0 | Z8: 0 | AA8: 0 | AB8: 0 | AC8: 0 | AD8: 0 | AE8: 0 | AF8: 0 | AG8: 0 | AH8: 0 | AI8: 0 | AJ8: 0 | AK8: 0 | AL8: 0 | AM8: 0 | AN8: 0 | AO8: 0 | AP8: 0 | AQ8: 0 | AR8: 0 | AS8: 0 | AT8: 0 | AU8: 0 | AV8: 0 | AW8: 0 | AX8: 0 | AY8: 0 | AZ8: 0 | BA8: 0 | BB8: 0 | BC8: 0 | BD8: 0 | BE8: 0 | BF8: 0 | BG8: 0 | BH8: 0
A9: Aufschließungskosten | B9: =B8 -> 50 | C9: =C8 -> 0.01 | D9: 33.33 | F9: 0 | J9: =IF(AND(J$5>$B9,INT(I$5/$B9)=(I$5/$B9)),D9,0) -> 0 | K9: 0 | L9: =IF(AND(L$5>$B9,INT(K$5/$B9)=(K$5/$B9)),$E9,0) -> 0 | M9: 0 | N9: 0 | O9: 0 | P9: 0 | Q9: 0 | R9: 0 | S9: 0 | T9: 0 | U9: 0 | V9: 0 | W9: 0 | X9: 0 | Y9: 0 | Z9: 0 | AA9: 0 | AB9: 0 | AC9: 0 | AD9: 0 | AE9: 0 | AF9: 0 | AG9: 0 | AH9: 0 | AI9: 0 | AJ9: 0 | AK9: 0 | AL9: 0 | AM9: 0 | AN9: 0 | AO9: 0 | AP9: 0 | AQ9: 0 | AR9: 0 | AS9: 0 | AT9: 0 | AU9: 0 | AV9: 0 | AW9: 0 | AX9: 0 | AY9: 0 | AZ9: 0 | BA9: 0 | BB9: 0 | BC9: 0 | BD9: 0 | BE9: 0 | BF9: 0 | BG9: 0 | BH9: 0
A10: Rohrleitungen | B10: 45 | C10: 0.01 | D10: 33.33 | E10: ='3. Investment'!F22 -> 0 | F10: 0 | J10: =IF(AND(J$5>$B10,INT(I$5/$B10)=(I$5/$B10)),D10,0) -> 0 | K10: 0 | L10: 0 | M10: 0 | N10: 0 | O10: 0 | P10: 0 | Q10: 0 | R10: 0 | S10: 0 | T10: 0 | U10: 0 | V10: 0 | W10: 0 | X10: 0 | Y10: 0 | Z10: 0 | AA10: 0 | AB10: 0 | AC10: 0 | AD10: 0 | AE10: 0 | AF10: 0 | AG10: 0 | AH10: 0 | AI10: 0 | AJ10: 0 | AK10: 0 | AL10: 0 | AM10: 0 | AN10: 0 | AO10: 0 | AP10: 0 | AQ10: 0 | AR10: 0 | AS10: 0 | AT10: 0 | AU10: 0 | AV10: 0 | AW10: 0 | AX10: 0 | AY10: 0 | AZ10: 0 | BA10: 0 | BB10: 0 | BC10: 0 | BD10: 0 | BE10: 0 | BF10: 0 | BG10: 0 | BH10: 0
A11: Grabungsarbeiten | B11: =B10 -> 45 | C11: =C10 -> 0.01 | D11: 33.33 | F11: 0 | J11: =IF(AND(J$5>$B11,INT(I$5/$B11)=(I$5/$B11)),D11,0) -> 0 | K11: 0 | L11: 0 | M11: 0 | N11: 0 | O11: 0 | P11: 0 | Q11: 0 | R11: 0 | S11: 0 | T11: 0 | U11: 0 | V11: 0 | W11: 0 | X11: 0 | Y11: 0 | Z11: 0 | AA11: 0 | AB11: 0 | AC11: 0 | AD11: 0 | AE11: 0 | AF11: 0 | AG11: 0 | AH11: 0 | AI11: 0 | AJ11: 0 | AK11: 0 | AL11: 0 | AM11: 0 | AN11: 0 | AO11: 0 | AP11: 0 | AQ11: 0 | AR11: 0 | AS11: 0 | AT11: 0 | AU11: 0 | AV11: 0 | AW11: 0 | AX11: 0 | AY11: 0 | AZ11: 0 | BA11: 0 | BB11: 0 | BC11: 0 | BD11: 0 | BE11: 0 | BF11: 0 | BG11: 0 | BH11: 0
A12: Wärmeübergabestationen | B12: 30 | C12: 0.02 | D12: 20 | E12: ='3. Investment'!F29 -> 0 | F12: 0 | J12: =IF(AND(J$5>$B12,INT(I$5/$B12)=(I$5/$B12)),D12,0) -> 0 | K12: 0 | L12: 0 | M12: 0 | N12: 0 | O12: 0 | P12: 0 | Q12: 0 | R12: 0 | S12: 0 | T12: 0 | U12: 0 | V12: 0 | W12: 0 | X12: 0 | Y12: 0 | Z12: 0 | AA12: 0 | AB12: 0 | AC12: 0 | AD12: 0 | AE12: 0 | AF12: 0 | AG12: 0 | AH12: 0 | AI12: 0 | AJ12: 0 | AK12: 0 | AL12: 0 | AM12: 0 | AN12: 0 | AO12: 0 | AP12: 0 | AQ12: 0 | AR12: 0 | AS12: 0 | AT12: 0 | AU12: 0 | AV12: 0 | AW12: 0 | AX12: 0 | AY12: 0 | AZ12: 0 | BA12: 0 | BB12: 0 | BC12: 0 | BD12: 0 | BE12: 0 | BF12: 0 | BG12: 0 | BH12: 0
A13: Feuerung und Kessel | B13: 20 | C13: 0.03 | D13: 15 | E13: =SUM('3. Investment'!F33:F35) -> 0 | F13: =C13*E13 -> 0 | J13: =IF(AND(J$5>$B13,INT(I$5/$B13)=(I$5/$B13)),D13,0) -> 0 | K13: 0 | L13: 0 | M13: 0 | N13: 0 | O13: 0 | P13: 0 | Q13: 0 | R13: 0 | S13: 0 | T13: 0 | U13: 0 | V13: 0 | W13: 0 | X13: 0 | Y13: 0 | Z13: 0 | AA13: 0 | AB13: 0 | AC13: 0 | AD13: 0 | AE13: 0 | AF13: 0 | AG13: 0 | AH13: 0 | AI13: 0 | AJ13: 0 | AK13: =IF(AND(AK$5>$B13,INT(AJ$5/$B13)=(AJ$5/$B13)),$E13,0) -> 0 | AL13: 0 | AM13: 0 | AN13: 0 | AO13: 0 | AP13: 0 | AQ13: 0 | AR13: 0 | AS13: 0 | AT13: 0 | AU13: 0 | AV13: 0 | AW13: 0 | AX13: 0 | AY13: 0 | AZ13: 0 | BA13: 0 | BB13: 0 | BC13: 0 | BD13: 0 | BE13: 0 | BF13: 0 | BG13: 0 | BH13: 0
A14: Rauchgasreinigung | B14: 20 | C14: 0.02 | D14: 15 | F14: 0 | J14: =IF(AND(J$5>$B14,INT(I$5/$B14)=(I$5/$B14)),D14,0) -> 0 | K14: 0 | L14: 0 | M14: 0 | N14: 0 | O14: 0 | P14: 0 | Q14: 0 | R14: 0 | S14: 0 | T14: 0 | U14: 0 | V14: 0 | W14: 0 | X14: 0 | Y14: 0 | Z14: 0 | AA14: 0 | AB14: 0 | AC14: 0 | AD14: 0 | AE14: 0 | AF14: 0 | AG14: 0 | AH14: 0 | AI14: 0 | AJ14: 0 | AK14: 0 | AL14: 0 | AM14: 0 | AN14: 0 | AO14: 0 | AP14: 0 | AQ14: 0 | AR14: 0 | AS14: 0 | AT14: 0 | AU14: 0 | AV14: 0 | AW14: 0 | AX14: 0 | AY14: 0 | AZ14: 0 | BA14: 0 | BB14: 0 | BC14: 0 | BD14: 0 | BE14: 0 | BF14: 0 | BG14: 0 | BH14: 0
A15: Aschebehälter und -förderung | B15: 20 | C15: 0.03 | D15: 15 | F15: 0 | J15: 0 | K15: 0 | L15: 0 | M15: 0 | N15: 0 | O15: 0 | P15: 0 | Q15: 0 | R15: 0 | S15: 0 | T15: 0 | U15: 0 | V15: 0 | W15: 0 | X15: 0 | Y15: 0 | Z15: 0 | AA15: 0 | AB15: 0 | AC15: 0 | AD15: 0 | AE15: 0 | AF15: 0 | AG15: 0 | AH15: 0 | AI15: 0 | AJ15: 0 | AK15: 0 | AL15: 0 | AM15: 0 | AN15: 0 | AO15: 0 | AP15: 0 | AQ15: 0 | AR15: 0 | AS15: 0 | AT15: 0 | AU15: 0 | AV15: 0 | AW15: 0 | AX15: 0 | AY15: 0 | AZ15: 0 | BA15: 0 | BB15: 0 | BC15: 0 | BD15: 0 | BE15: 0 | BF15: 0 | BG15: 0 | BH15: 0
A16: Wärmerückgewinnung | B16: 20 | C16: 0.02 | D16: 15 | F16: 0 | J16: =IF(AND(J$5>$B16,INT(I$5/$B16)=(I$5/$B16)),D16,0) -> 0 | K16: 0 | L16: 0 | M16: 0 | N16: 0 | O16: 0 | P16: 0 | Q16: 0 | R16: 0 | S16: 0 | T16: 0 | U16: 0 | V16: 0 | W16: 0 | X16: 0 | Y16: 0 | Z16: 0 | AA16: 0 | AB16: 0 | AC16: 0 | AD16: 0 | AE16: 0 | AF16: 0 | AG16: 0 | AH16: 0 | AI16: 0 | AJ16: 0 | AK16: 0 | AL16: 0 | AM16: 0 | AN16: 0 | AO16: 0 | AP16: 0 | AQ16: 0 | AR16: 0 | AS16: 0 | AT16: 0 | AU16: 0 | AV16: 0 | AW16: 0 | AX16: 0 | AY16: 0 | AZ16: 0 | BA16: 0 | BB16: 0 | BC16: 0 | BD16: 0 | BE16: 0 | BF16: 0 | BG16: 0 | BH16: 0
A17: Brennstoffbeschickung | B17: 20 | C17: 0.03 | D17: 15 | F17: 0 | J17: 0 | K17: 0 | L17: 0 | M17: 0 | N17: 0 | O17: 0 | P17: 0 | Q17: 0 | R17: 0 | S17: 0 | T17: 0 | U17: 0 | V17: 0 | W17: 0 | X17: 0 | Y17: 0 | Z17: 0 | AA17: 0 | AB17: 0 | AC17: 0 | AD17: 0 | AE17: 0 | AF17: 0 | AG17: 0 | AH17: 0 | AI17: 0 | AJ17: 0 | AK17: 0 | AL17: 0 | AM17: 0 | AN17: 0 | AO17: 0 | AP17: 0 | AQ17: 0 | AR17: 0 | AS17: 0 | AT17: 0 | AU17: 0 | AV17: 0 | AW17: 0 | AX17: 0 | AY17: 0 | AZ17: 0 | BA17: 0 | BB17: 0 | BC17: 0 | BD17: 0 | BE17: 0 | BF17: 0 | BG17: 0 | BH17: 0
A18: Krananlage | B18: 20 | C18: 0.02 | D18: 15 | F18: 0 | J18: 0 | K18: 0 | L18: 0 | M18: 0 | N18: 0 | O18: 0 | P18: 0 | Q18: 0 | R18: 0 | S18: 0 | T18: 0 | U18: 0 | V18: 0 | W18: 0 | X18: 0 | Y18: 0 | Z18: 0 | AA18: 0 | AB18: 0 | AC18: 0 | AD18: 0 | AE18: 0 | AF18: 0 | AG18: 0 | AH18: 0 | AI18: 0 | AJ18: 0 | AK18: 0 | AL18: 0 | AM18: 0 | AN18: 0 | AO18: 0 | AP18: 0 | AQ18: 0 | AR18: 0 | AS18: 0 | AT18: 0 | AU18: =IF(AND(AU$5>$B18,INT(AT$5/$B18)=(AT$5/$B18)),$E18,0) -> 0 | AV18: 0 | AW18: 0 | AX18: 0 | AY18: 0 | AZ18: 0 | BA18: 0 | BB18: 0 | BC18: 0 | BD18: 0 | BE18: 0 | BF18: 0 | BG18: 0 | BH18: 0
A19: E-Installation | B19: 20 | C19: 0.02 | D19: 15 | E19: ='3. Investment'!F41 -> 0 | F19: 0 | J19: 0 | K19: 0 | L19: 0 | M19: 0 | N19: 0 | O19: 0 | P19: 0 | Q19: 0 | R19: 0 | S19: 0 | T19: 0 | U19: 0 | V19: 0 | W19: 0 | X19: 0 | Y19: 0 | Z19: 0 | AA19: 0 | AB19: 0 | AC19: 0 | AD19: 0 | AE19: 0 | AF19: 0 | AG19: 0 | AH19: 0 | AI19: 0 | AJ19: 0 | AK19: 0 | AL19: 0 | AM19: 0 | AN19: 0 | AO19: 0 | AP19: 0 | AQ19: 0 | AR19: 0 | AS19: 0 | AT19: 0 | AU19: 0 | AV19: 0 | AW19: 0 | AX19: 0 | AY19: 0 | AZ19: 0 | BA19: 0 | BB19: 0 | BC19: 0 | BD19: 0 | BE19: 0 | BF19: 0 | BG19: 0 | BH19: 0
A20: H-Installation | B20: 20 | C20: 0.02 | D20: 15 | F20: 0 | J20: 0 | K20: 0 | L20: 0 | M20: 0 | N20: 0 | O20: 0 | P20: 0 | Q20: 0 | R20: 0 | S20: 0 | T20: 0 | U20: 0 | V20: 0 | W20: 0 | X20: 0 | Y20: 0 | Z20: 0 | AA20: 0 | AB20: 0 | AC20: 0 | AD20: 0 | AE20: 0 | AF20: 0 | AG20: 0 | AH20: 0 | AI20: 0 | AJ20: 0 | AK20: 0 | AL20: 0 | AM20: 0 | AN20: 0 | AO20: 0 | AP20: 0 | AQ20: 0 | AR20: 0 | AS20: 0 | AT20: 0 | AU20: 0 | AV20: 0 | AW20: 0 | AX20: 0 | AY20: 0 | AZ20: 0 | BA20: 0 | BB20: 0 | BC20: 0 | BD20: 0 | BE20: 0 | BF20: 0 | BG20: 0 | BH20: 0
A21: Stahlbau | B21: 20 | C21: 0.01 | D21: 15 | F21: 0 | J21: 0 | K21: 0 | L21: 0 | M21: 0 | N21: 0 | O21: 0 | P21: 0 | Q21: 0 | R21: 0 | S21: 0 | T21: 0 | U21: 0 | V21: 0 | W21: 0 | X21: 0 | Y21: 0 | Z21: 0 | AA21: 0 | AB21: 0 | AC21: 0 | AD21: 0 | AE21: 0 | AF21: 0 | AG21: 0 | AH21: 0 | AI21: 0 | AJ21: 0 | AK21: 0 | AL21: 0 | AM21: 0 | AN21: 0 | AO21: 0 | AP21: 0 | AQ21: 0 | AR21: 0 | AS21: 0 | AT21: 0 | AU21: 0 | AV21: 0 | AW21: 0 | AX21: 0 | AY21: 0 | AZ21: 0 | BA21: 0 | BB21: 0 | BC21: 0 | BD21: 0 | BE21: 0 | BF21: 0 | BG21: 0 | BH21: 0
A22: Spitzenlastabdeckung | B22: 20 | C22: 0.01 | D22: 15 | E22: ='3. Investment'!F36 -> 0 | F22: 0 | J22: 0 | K22: 0 | L22: 0 | M22: 0 | N22: 0 | O22: 0 | P22: 0 | Q22: 0 | R22: 0 | S22: 0 | T22: 0 | U22: 0 | V22: 0 | W22: 0 | X22: 0 | Y22: 0 | Z22: 0 | AA22: 0 | AB22: 0 | AC22: 0 | AD22: 0 | AE22: 0 | AF22: 0 | AG22: 0 | AH22: 0 | AI22: 0 | AJ22: 0 | AK22: 0 | AL22: 0 | AM22: 0 | AN22: 0 | AO22: 0 | AP22: 0 | AQ22: 0 | AR22: 0 | AS22: 0 | AT22: 0 | AU22: 0 | AV22: 0 | AW22: 0 | AX22: 0 | AY22: 0 | AZ22: 0 | BA22: 0 | BB22: 0 | BC22: 0 | BD22: 0 | BE22: 0 | BF22: 0 | BG22: 0 | BH22: 0
A23: Fahrzeuge | B23: 15 | C23: 0.03 | D23: 5 | F23: 0 | J23: 0 | K23: 0 | L23: 0 | M23: 0 | N23: 0 | O23: 0 | P23: 0 | Q23: 0 | R23: 0 | S23: 0 | T23: 0 | U23: 0 | V23: 0 | W23: 0 | X23: 0 | Y23: 0 | Z23: 0 | AA23: 0 | AB23: 0 | AC23: 0 | AD23: 0 | AE23: 0 | AF23: 0 | AG23: 0 | AH23: 0 | AI23: 0 | AJ23: 0 | AK23: 0 | AL23: 0 | AM23: 0 | AN23: 0 | AO23: 0 | AP23: 0 | AQ23: 0 | AR23: 0 | AS23: 0 | AT23: 0 | AU23: 0 | AV23: 0 | AW23: 0 | AX23: 0 | AY23: 0 | AZ23: 0 | BA23: 0 | BB23: 0 | BC23: 0 | BD23: 0 | BE23: =IF(AND(BE$5>$B23,INT(BD$5/$B23)=(BD$5/$B23)),$E23,0) -> 0 | BF23: 0 | BG23: 0 | BH23: 0
A24: Planung | B24: 25 | D24: 15 | E24: =ic_planning -> 0 | F24: 0 | J24: 0 | K24: 0 | L24: 0 | M24: 0 | N24: 0 | O24: 0 | P24: 0 | Q24: 0 | R24: 0 | S24: 0 | T24: 0 | U24: 0 | V24: 0 | W24: 0 | X24: 0 | Y24: 0 | Z24: 0 | AA24: 0 | AB24: 0 | AC24: 0 | AD24: 0 | AE24: 0 | AF24: 0 | AG24: 0 | AH24: 0 | AI24: 0 | AJ24: 0 | AK24: 0 | AL24: 0 | AM24: 0 | AN24: 0 | AO24: 0 | AP24: 0 | AQ24: 0 | AR24: 0 | AS24: 0 | AT24: 0 | AU24: 0 | AV24: 0 | AW24: 0 | AX24: 0 | AY24: 0 | AZ24: 0 | BA24: 0 | BB24: 0 | BC24: 0 | BD24: 0 | BE24: 0 | BF24: 0 | BG24: 0 | BH24: 0
A25: Sonstiges | B25: 20 | E25: =ic_other -> 0 | F25: 0 | J25: 0 | K25: 0 | L25: 0 | M25: 0 | N25: 0 | O25: 0 | P25: 0 | Q25: 0 | R25: 0 | S25: 0 | T25: 0 | U25: 0 | V25: 0 | W25: 0 | X25: 0 | Y25: 0 | Z25: 0 | AA25: 0 | AB25: 0 | AC25: 0 | AD25: 0 | AE25: 0 | AF25: 0 | AG25: 0 | AH25: 0 | AI25: 0 | AJ25: 0 | AK25: 0 | AL25: 0 | AM25: 0 | AN25: 0 | AO25: 0 | AP25: 0 | AQ25: 0 | AR25: 0 | AS25: 0 | AT25: 0 | AU25: 0 | AV25: 0 | AW25: 0 | AX25: 0 | AY25: 0 | AZ25: 0 | BA25: 0 | BB25: 0 | BC25: 0 | BD25: 0 | BE25: 0 | BF25: 0 | BG25: 0 | BH25: 0
A26: Summe | E26: =SUM(E6:E25) -> 0 | F26: =SUM(F6:F25)/E26 ->  | I26: Gesamt | J26: =SUM(J6:J25) -> 0 | K26: =SUM(K6:K25) -> 0 | L26: 0 | M26: 0 | N26: 0 | O26: 0 | P26: 0 | Q26: 0 | R26: 0 | S26: 0 | T26: 0 | U26: 0 | V26: 0 | W26: 0 | X26: 0 | Y26: 0 | Z26: 0 | AA26: 0 | AB26: 0 | AC26: 0 | AD26: 0 | AE26: 0 | AF26: 0 | AG26: 0 | AH26: 0 | AI26: 0 | AJ26: 0 | AK26: 0 | AL26: 0 | AM26: 0 | AN26: 0 | AO26: 0 | AP26: 0 | AQ26: 0 | AR26: 0 | AS26: 0 | AT26: 0 | AU26: 0 | AV26: 0 | AW26: 0 | AX26: 0 | AY26: 0 | AZ26: 0 | BA26: 0 | BB26: 0 | BC26: 0 | BD26: 0 | BE26: 0 | BF26: 0 | BG26: 0 | BH26: 0
I31: Restwerte
J32: Jahr
J33: 2015 | K33: =J33+1 -> 2016 | L33: =K33+1 -> 2017 | M33: 2018 | N33: 2019 | O33: 2020 | P33: 2021 | Q33: 2022 | R33: 2023 | S33: 2024 | T33: 2025 | U33: 2026 | V33: 2027 | W33: 2028 | X33: 2029 | Y33: 2030 | Z33: 2031 | AA33: 2032 | AB33: 2033 | AC33: 2034 | AD33: 2035 | AE33: 2036 | AF33: 2037 | AG33: 2038 | AH33: 2039 | AI33: 2040 | AJ33: 2041 | AK33: 2042 | AL33: 2043 | AM33: 2044 | AN33: 2045 | AO33: 2046 | AP33: 2047 | AQ33: 2048 | AR33: 2049 | AS33: 2050 | AT33: 2051 | AU33: 2052 | AV33: 2053 | AW33: 2054 | AX33: 2055 | AY33: 2056 | AZ33: 2057 | BA33: 2058 | BB33: 2059 | BC33: 2060 | BD33: 2061 | BE33: 2062 | BF33: 2063 | BG33: 2064 | BH33: 2065
I34: Lebensjahr | J34: 0 | K34: =J34+1 -> 1 | L34: 2 | M34: 3 | N34: 4 | O34: 5 | P34: 6 | Q34: 7 | R34: 8 | S34: 9 | T34: 10 | U34: 11 | V34: 12 | W34: 13 | X34: 14 | Y34: 15 | Z34: 16 | AA34: 17 | AB34: 18 | AC34: 19 | AD34: 20 | AE34: 21 | AF34: 22 | AG34: 23 | AH34: 24 | AI34: 25 | AJ34: 26 | AK34: 27 | AL34: 28 | AM34: 29 | AN34: 30 | AO34: 31 | AP34: 32 | AQ34: 33 | AR34: 34 | AS34: 35 | AT34: 36 | AU34: 37 | AV34: 38 | AW34: 39 | AX34: 40 | AY34: 41 | AZ34: 42 | BA34: 43 | BB34: 44 | BC34: 45 | BD34: 46 | BE34: 47 | BF34: 48 | BG34: 49 | BH34: 50
J35: =E6 -> 0 | K35: =IF(K6=0,J35-($E6/$B6),K6) -> 0 | L35: =IF(L6=0,K35-($E6/$B6),L6) -> 0 | M35: 0 | N35: 0 | O35: 0 | P35: 0 | Q35: 0 | R35: 0 | S35: 0 | T35: 0 | U35: 0 | V35: 0 | W35: 0 | X35: 0 | Y35: 0 | Z35: 0 | AA35: 0 | AB35: 0 | AC35: 0 | AD35: 0 | AE35: 0 | AF35: 0 | AG35: 0 | AH35: 0 | AI35: 0 | AJ35: 0 | AK35: 0 | AL35: 0 | AM35: 0 | AN35: 0 | AO35: 0 | AP35: 0 | AQ35: 0 | AR35: 0 | AS35: 0 | AT35: 0 | AU35: 0 | AV35: 0 | AW35: 0 | AX35: 0 | AY35: 0 | AZ35: 0 | BA35: 0 | BB35: 0 | BC35: 0 | BD35: 0 | BE35: 0 | BF35: 0 | BG35: 0 | BH35: 0
J36: =E7 -> 0 | K36: =IF(K7=0,J36-($E7/$B7),K7) -> 0 | L36: =IF(L7=0,K36-($E7/$B7),L7) -> 0 | M36: 0 | N36: 0 | O36: 0 | P36: 0 | Q36: 0 | R36: 0 | S36: 0 | T36: 0 | U36: 0 | V36: 0 | W36: 0 | X36: 0 | Y36: 0 | Z36: 0 | AA36: 0 | AB36: 0 | AC36: 0 | AD36: 0 | AE36: 0 | AF36: 0 | AG36: 0 | AH36: 0 | AI36: 0 | AJ36: 0 | AK36: 0 | AL36: 0 | AM36: 0 | AN36: 0 | AO36: 0 | AP36: 0 | AQ36: 0 | AR36: 0 | AS36: 0 | AT36: 0 | AU36: 0 | AV36: 0 | AW36: 0 | AX36: 0 | AY36: 0 | AZ36: 0 | BA36: 0 | BB36: 0 | BC36: 0 | BD36: 0 | BE36: 0 | BF36: 0 | BG36: 0 | BH36: 0
J37: 0 | K37: 0 | L37: =IF(L8=0,K37-($E8/$B8),L8) -> 0 | M37: 0 | N37: 0 | O37: 0 | P37: 0 | Q37: 0 | R37: 0 | S37: 0 | T37: 0 | U37: 0 | V37: 0 | W37: 0 | X37: 0 | Y37: 0 | Z37: 0 | AA37: 0 | AB37: 0 | AC37: 0 | AD37: 0 | AE37: 0 | AF37: 0 | AG37: 0 | AH37: 0 | AI37: 0 | AJ37: 0 | AK37: 0 | AL37: 0 | AM37: 0 | AN37: 0 | AO37: 0 | AP37: 0 | AQ37: 0 | AR37: 0 | AS37: 0 | AT37: 0 | AU37: 0 | AV37: 0 | AW37: 0 | AX37: 0 | AY37: 0 | AZ37: 0 | BA37: 0 | BB37: 0 | BC37: 0 | BD37: 0 | BE37: 0 | BF37: 0 | BG37: 0 | BH37: 0
J38: 0 | K38: 0 | L38: =IF(L9=0,K38-($E9/$B9),L9) -> 0 | M38: 0 | N38: 0 | O38: 0 | P38: 0 | Q38: 0 | R38: 0 | S38: 0 | T38: 0 | U38: 0 | V38: 0 | W38: 0 | X38: 0 | Y38: 0 | Z38: 0 | AA38: 0 | AB38: 0 | AC38: 0 | AD38: 0 | AE38: 0 | AF38: 0 | AG38: 0 | AH38: 0 | AI38: 0 | AJ38: 0 | AK38: 0 | AL38: 0 | AM38: 0 | AN38: 0 | AO38: 0 | AP38: 0 | AQ38: 0 | AR38: 0 | AS38: 0 | AT38: 0 | AU38: 0 | AV38: 0 | AW38: 0 | AX38: 0 | AY38: 0 | AZ38: 0 | BA38: 0 | BB38: 0 | BC38: 0 | BD38: 0 | BE38: 0 | BF38: 0 | BG38: 0 | BH38: 0
J39: 0 | K39: 0 | L39: =IF(L10=0,K39-($E10/$B10),L10) -> 0 | M39: 0 | N39: 0 | O39: 0 | P39: 0 | Q39: 0 | R39: 0 | S39: 0 | T39: 0 | U39: 0 | V39: 0 | W39: 0 | X39: 0 | Y39: 0 | Z39: 0 | AA39: 0 | AB39: 0 | AC39: 0 | AD39: 0 | AE39: 0 | AF39: 0 | AG39: 0 | AH39: 0 | AI39: 0 | AJ39: 0 | AK39: 0 | AL39: 0 | AM39: 0 | AN39: 0 | AO39: 0 | AP39: 0 | AQ39: 0 | AR39: 0 | AS39: 0 | AT39: 0 | AU39: 0 | AV39: 0 | AW39: 0 | AX39: 0 | AY39: 0 | AZ39: 0 | BA39: 0 | BB39: 0 | BC39: 0 | BD39: 0 | BE39: 0 | BF39: 0 | BG39: 0 | BH39: 0
J40: 0 | K40: 0 | L40: =IF(L11=0,K40-($E11/$B11),L11) -> 0 | M40: 0 | N40: 0 | O40: 0 | P40: 0 | Q40: 0 | R40: 0 | S40: 0 | T40: 0 | U40: 0 | V40: 0 | W40: 0 | X40: 0 | Y40: 0 | Z40: 0 | AA40: 0 | AB40: 0 | AC40: 0 | AD40: 0 | AE40: 0 | AF40: 0 | AG40: 0 | AH40: 0 | AI40: 0 | AJ40: 0 | AK40: 0 | AL40: 0 | AM40: 0 | AN40: 0 | AO40: 0 | AP40: 0 | AQ40: 0 | AR40: 0 | AS40: 0 | AT40: 0 | AU40: 0 | AV40: 0 | AW40: 0 | AX40: 0 | AY40: 0 | AZ40: 0 | BA40: 0 | BB40: 0 | BC40: 0 | BD40: 0 | BE40: 0 | BF40: 0 | BG40: 0 | BH40: 0
J41: 0 | K41: 0 | L41: =IF(L12=0,K41-($E12/$B12),L12) -> 0 | M41: 0 | N41: 0 | O41: 0 | P41: 0 | Q41: 0 | R41: 0 | S41: 0 | T41: 0 | U41: 0 | V41: 0 | W41: 0 | X41: 0 | Y41: 0 | Z41: 0 | AA41: 0 | AB41: 0 | AC41: 0 | AD41: 0 | AE41: 0 | AF41: 0 | AG41: 0 | AH41: 0 | AI41: 0 | AJ41: 0 | AK41: 0 | AL41: 0 | AM41: 0 | AN41: 0 | AO41: 0 | AP41: 0 | AQ41: 0 | AR41: 0 | AS41: 0 | AT41: 0 | AU41: 0 | AV41: 0 | AW41: 0 | AX41: 0 | AY41: 0 | AZ41: 0 | BA41: 0 | BB41: 0 | BC41: 0 | BD41: 0 | BE41: 0 | BF41: 0 | BG41: 0 | BH41: 0
J42: 0 | K42: 0 | L42: =IF(L13=0,K42-($E13/$B13),L13) -> 0 | M42: 0 | N42: 0 | O42: 0 | P42: 0 | Q42: 0 | R42: 0 | S42: 0 | T42: 0 | U42: 0 | V42: 0 | W42: 0 | X42: 0 | Y42: 0 | Z42: 0 | AA42: 0 | AB42: 0 | AC42: 0 | AD42: 0 | AE42: 0 | AF42: 0 | AG42: 0 | AH42: 0 | AI42: 0 | AJ42: 0 | AK42: 0 | AL42: 0 | AM42: 0 | AN42: 0 | AO42: 0 | AP42: 0 | AQ42: 0 | AR42: 0 | AS42: 0 | AT42: 0 | AU42: 0 | AV42: 0 | AW42: 0 | AX42: 0 | AY42: 0 | AZ42: 0 | BA42: 0 | BB42: 0 | BC42: 0 | BD42: 0 | BE42: 0 | BF42: 0 | BG42: 0 | BH42: 0
J43: 0 | K43: 0 | L43: =IF(L14=0,K43-($E14/$B14),L14) -> 0 | M43: 0 | N43: 0 | O43: 0 | P43: 0 | Q43: 0 | R43: 0 | S43: 0 | T43: 0 | U43: 0 | V43: 0 | W43: 0 | X43: 0 | Y43: 0 | Z43: 0 | AA43: 0 | AB43: 0 | AC43: 0 | AD43: 0 | AE43: 0 | AF43: 0 | AG43: 0 | AH43: 0 | AI43: 0 | AJ43: 0 | AK43: 0 | AL43: 0 | AM43: 0 | AN43: 0 | AO43: 0 | AP43: 0 | AQ43: 0 | AR43: 0 | AS43: 0 | AT43: 0 | AU43: 0 | AV43: 0 | AW43: 0 | AX43: 0 | AY43: 0 | AZ43: 0 | BA43: 0 | BB43: 0 | BC43: 0 | BD43: 0 | BE43: 0 | BF43: 0 | BG43: 0 | BH43: 0
J44: 0 | K44: 0 | L44: =IF(L15=0,K44-($E15/$B15),L15) -> 0 | M44: 0 | N44: 0 | O44: 0 | P44: 0 | Q44: 0 | R44: 0 | S44: 0 | T44: 0 | U44: 0 | V44: 0 | W44: 0 | X44: 0 | Y44: 0 | Z44: 0 | AA44: 0 | AB44: 0 | AC44: 0 | AD44: 0 | AE44: 0 | AF44: 0 | AG44: 0 | AH44: 0 | AI44: 0 | AJ44: 0 | AK44: 0 | AL44: 0 | AM44: 0 | AN44: 0 | AO44: 0 | AP44: 0 | AQ44: 0 | AR44: 0 | AS44: 0 | AT44: 0 | AU44: 0 | AV44: 0 | AW44: 0 | AX44: 0 | AY44: 0 | AZ44: 0 | BA44: 0 | BB44: 0 | BC44: 0 | BD44: 0 | BE44: 0 | BF44: 0 | BG44: 0 | BH44: 0
J45: 0 | K45: 0 | L45: =IF(L16=0,K45-($E16/$B16),L16) -> 0 | M45: 0 | N45: 0 | O45: 0 | P45: 0 | Q45: 0 | R45: 0 | S45: 0 | T45: 0 | U45: 0 | V45: 0 | W45: 0 | X45: 0 | Y45: 0 | Z45: 0 | AA45: 0 | AB45: 0 | AC45: 0 | AD45: 0 | AE45: 0 | AF45: 0 | AG45: 0 | AH45: 0 | AI45: 0 | AJ45: 0 | AK45: 0 | AL45: 0 | AM45: 0 | AN45: 0 | AO45: 0 | AP45: 0 | AQ45: 0 | AR45: 0 | AS45: 0 | AT45: 0 | AU45: 0 | AV45: 0 | AW45: 0 | AX45: 0 | AY45: 0 | AZ45: 0 | BA45: 0 | BB45: 0 | BC45: 0 | BD45: 0 | BE45: 0 | BF45: 0 | BG45: 0 | BH45: 0
J46: 0 | K46: 0 | L46: =IF(L17=0,K46-($E17/$B17),L17) -> 0 | M46: 0 | N46: 0 | O46: 0 | P46: 0 | Q46: 0 | R46: 0 | S46: 0 | T46: 0 | U46: 0 | V46: 0 | W46: 0 | X46: 0 | Y46: 0 | Z46: 0 | AA46: 0 | AB46: 0 | AC46: 0 | AD46: 0 | AE46: 0 | AF46: 0 | AG46: 0 | AH46: 0 | AI46: 0 | AJ46: 0 | AK46: 0 | AL46: 0 | AM46: 0 | AN46: 0 | AO46: 0 | AP46: 0 | AQ46: 0 | AR46: 0 | AS46: 0 | AT46: 0 | AU46: 0 | AV46: 0 | AW46: 0 | AX46: 0 | AY46: 0 | AZ46: 0 | BA46: 0 | BB46: 0 | BC46: 0 | BD46: 0 | BE46: 0 | BF46: 0 | BG46: 0 | BH46: 0
J47: 0 | K47: 0 | L47: =IF(L18=0,K47-($E18/$B18),L18) -> 0 | M47: 0 | N47: 0 | O47: 0 | P47: 0 | Q47: 0 | R47: 0 | S47: 0 | T47: 0 | U47: 0 | V47: 0 | W47: 0 | X47: 0 | Y47: 0 | Z47: 0 | AA47: 0 | AB47: 0 | AC47: 0 | AD47: 0 | AE47: 0 | AF47: 0 | AG47: 0 | AH47: 0 | AI47: 0 | AJ47: 0 | AK47: 0 | AL47: 0 | AM47: 0 | AN47: 0 | AO47: 0 | AP47: 0 | AQ47: 0 | AR47: 0 | AS47: 0 | AT47: 0 | AU47: 0 | AV47: 0 | AW47: 0 | AX47: 0 | AY47: 0 | AZ47: 0 | BA47: 0 | BB47: 0 | BC47: 0 | BD47: 0 | BE47: 0 | BF47: 0 | BG47: 0 | BH47: 0
J48: 0 | K48: 0 | L48: =IF(L19=0,K48-($E19/$B19),L19) -> 0 | M48: 0 | N48: 0 | O48: 0 | P48: 0 | Q48: 0 | R48: 0 | S48: 0 | T48: 0 | U48: 0 | V48: 0 | W48: 0 | X48: 0 | Y48: 0 | Z48: 0 | AA48: 0 | AB48: 0 | AC48: 0 | AD48: 0 | AE48: 0 | AF48: 0 | AG48: 0 | AH48: 0 | AI48: 0 | AJ48: 0 | AK48: 0 | AL48: 0 | AM48: 0 | AN48: 0 | AO48: 0 | AP48: 0 | AQ48: 0 | AR48: 0 | AS48: 0 | AT48: 0 | AU48: 0 | AV48: 0 | AW48: 0 | AX48: 0 | AY48: 0 | AZ48: 0 | BA48: 0 | BB48: 0 | BC48: 0 | BD48: 0 | BE48: 0 | BF48: 0 | BG48: 0 | BH48: 0
J49: 0 | K49: 0 | L49: =IF(L20=0,K49-($E20/$B20),L20) -> 0 | M49: 0 | N49: 0 | O49: 0 | P49: 0 | Q49: 0 | R49: 0 | S49: 0 | T49: 0 | U49: 0 | V49: 0 | W49: 0 | X49: 0 | Y49: 0 | Z49: 0 | AA49: 0 | AB49: 0 | AC49: 0 | AD49: 0 | AE49: 0 | AF49: 0 | AG49: 0 | AH49: 0 | AI49: 0 | AJ49: 0 | AK49: 0 | AL49: 0 | AM49: 0 | AN49: 0 | AO49: 0 | AP49: 0 | AQ49: 0 | AR49: 0 | AS49: 0 | AT49: 0 | AU49: 0 | AV49: 0 | AW49: 0 | AX49: 0 | AY49: 0 | AZ49: 0 | BA49: 0 | BB49: 0 | BC49: 0 | BD49: 0 | BE49: 0 | BF49: 0 | BG49: 0 | BH49: 0
J50: 0 | K50: 0 | L50: =IF(L21=0,K50-($E21/$B21),L21) -> 0 | M50: 0 | N50: 0 | O50: 0 | P50: 0 | Q50: 0 | R50: 0 | S50: 0 | T50: 0 | U50: 0 | V50: 0 | W50: 0 | X50: 0 | Y50: 0 | Z50: 0 | AA50: 0 | AB50: 0 | AC50: 0 | AD50: 0 | AE50: 0 | AF50: 0 | AG50: 0 | AH50: 0 | AI50: 0 | AJ50: 0 | AK50: 0 | AL50: 0 | AM50: 0 | AN50: 0 | AO50: 0 | AP50: 0 | AQ50: 0 | AR50: 0 | AS50: 0 | AT50: 0 | AU50: 0 | AV50: 0 | AW50: 0 | AX50: 0 | AY50: 0 | AZ50: 0 | BA50: 0 | BB50: 0 | BC50: 0 | BD50: 0 | BE50: 0 | BF50: 0 | BG50: 0 | BH50: 0
J51: 0 | K51: 0 | L51: =IF(L22=0,K51-($E22/$B22),L22) -> 0 | M51: 0 | N51: 0 | O51: 0 | P51: 0 | Q51: 0 | R51: 0 | S51: 0 | T51: 0 | U51: 0 | V51: 0 | W51: 0 | X51: 0 | Y51: 0 | Z51: 0 | AA51: 0 | AB51: 0 | AC51: 0 | AD51: 0 | AE51: 0 | AF51: 0 | AG51: 0 | AH51: 0 | AI51: 0 | AJ51: 0 | AK51: 0 | AL51: 0 | AM51: 0 | AN51: 0 | AO51: 0 | AP51: 0 | AQ51: 0 | AR51: 0 | AS51: 0 | AT51: 0 | AU51: 0 | AV51: 0 | AW51: 0 | AX51: 0 | AY51: 0 | AZ51: 0 | BA51: 0 | BB51: 0 | BC51: 0 | BD51: 0 | BE51: 0 | BF51: 0 | BG51: 0 | BH51: 0
J52: 0 | K52: 0 | L52: =IF(L23=0,K52-($E23/$B23),L23) -> 0 | M52: 0 | N52: 0 | O52: 0 | P52: 0 | Q52: 0 | R52: 0 | S52: 0 | T52: 0 | U52: 0 | V52: 0 | W52: 0 | X52: 0 | Y52: 0 | Z52: 0 | AA52: 0 | AB52: 0 | AC52: 0 | AD52: 0 | AE52: 0 | AF52: 0 | AG52: 0 | AH52: 0 | AI52: 0 | AJ52: 0 | AK52: 0 | AL52: 0 | AM52: 0 | AN52: 0 | AO52: 0 | AP52: 0 | AQ52: 0 | AR52: 0 | AS52: 0 | AT52: 0 | AU52: 0 | AV52: 0 | AW52: 0 | AX52: 0 | AY52: 0 | AZ52: 0 | BA52: 0 | BB52: 0 | BC52: 0 | BD52: 0 | BE52: 0 | BF52: 0 | BG52: 0 | BH52: 0
J53: 0 | K53: 0 | L53: =IF(L24=0,K53-($E24/$B24),L24) -> 0 | M53: 0 | N53: 0 | O53: 0 | P53: 0 | Q53: 0 | R53: 0 | S53: 0 | T53: 0 | U53: 0 | V53: 0 | W53: 0 | X53: 0 | Y53: 0 | Z53: 0 | AA53: 0 | AB53: 0 | AC53: 0 | AD53: 0 | AE53: 0 | AF53: 0 | AG53: 0 | AH53: 0 | AI53: 0 | AJ53: 0 | AK53: 0 | AL53: 0 | AM53: 0 | AN53: 0 | AO53: 0 | AP53: 0 | AQ53: 0 | AR53: 0 | AS53: 0 | AT53: 0 | AU53: 0 | AV53: 0 | AW53: 0 | AX53: 0 | AY53: 0 | AZ53: 0 | BA53: 0 | BB53: 0 | BC53: 0 | BD53: 0 | BE53: 0 | BF53: 0 | BG53: 0 | BH53: 0
J54: 0 | K54: 0 | L54: =IF(L25=0,K54-($E25/$B25),L25) -> 0 | M54: 0 | N54: 0 | O54: 0 | P54: 0 | Q54: 0 | R54: 0 | S54: 0 | T54: 0 | U54: 0 | V54: 0 | W54: 0 | X54: 0 | Y54: 0 | Z54: 0 | AA54: 0 | AB54: 0 | AC54: 0 | AD54: 0 | AE54: 0 | AF54: 0 | AG54: 0 | AH54: 0 | AI54: 0 | AJ54: 0 | AK54: 0 | AL54: 0 | AM54: 0 | AN54: 0 | AO54: 0 | AP54: 0 | AQ54: 0 | AR54: 0 | AS54: 0 | AT54: 0 | AU54: 0 | AV54: 0 | AW54: 0 | AX54: 0 | AY54: 0 | AZ54: 0 | BA54: 0 | BB54: 0 | BC54: 0 | BD54: 0 | BE54: 0 | BF54: 0 | BG54: 0 | BH54: 0
I55: Summe | J55: =SUM(J35:J54) -> 0 | K55: =SUM(K35:K53) -> 0 | L55: =SUM(L35:L54) -> 0 | M55: =SUM(M35:M54) -> 0 | N55: 0 | O55: 0 | P55: 0 | Q55: 0 | R55: 0 | S55: 0 | T55: 0 | U55: 0 | V55: 0 | W55: 0 | X55: 0 | Y55: 0 | Z55: 0 | AA55: 0 | AB55: 0 | AC55: 0 | AD55: 0 | AE55: 0 | AF55: 0 | AG55: 0 | AH55: 0 | AI55: 0 | AJ55: 0 | AK55: 0 | AL55: 0 | AM55: 0 | AN55: 0 | AO55: 0 | AP55: 0 | AQ55: 0 | AR55: 0 | AS55: 0 | AT55: 0 | AU55: 0 | AV55: 0 | AW55: 0 | AX55: 0 | AY55: 0 | AZ55: 0 | BA55: 0 | BB55: 0 | BC55: 0 | BD55: 0 | BE55: 0 | BF55: 0 | BG55: 0 | BH55: 0

Sheet Re-Invesment_Ref (hidden)
A1: Nutzungsdauer und Instandhaltung nach VDI 2067
I2: Reinvestitionen
B3: Nutzungsdauer | C3: Instandhaltung | D3: Nutzungsdauer | E3: Investitions-kosten | F3: Gewichtete Instandhaltungskosten | J3: Jahr
B4: laut VDI | C4: laut VDI | D4: AFA | J4: =Year_0 -> 2017 | K4: =J4+1 -> 2018 | L4: =K4+1 -> 2019 | M4: 2020 | N4: 2021 | O4: 2022 | P4: 2023 | Q4: 2024 | R4: 2025 | S4: 2026 | T4: 2027 | U4: 2028 | V4: 2029 | W4: 2030 | X4: 2031 | Y4: 2032 | Z4: 2033 | AA4: 2034 | AB4: =AA4+1 -> 2035 | AC4: 2036 | AD4: 2037 | AE4: 2038 | AF4: 2039 | AG4: 2040 | AH4: 2041 | AI4: 2042 | AJ4: 2043 | AK4: 2044 | AL4: 2045 | AM4: 2046 | AN4: 2047 | AO4: 2048 | AP4: 2049 | AQ4: 2050 | AR4: =AQ4+1 -> 2051 | AS4: 2052 | AT4: 2053 | AU4: 2054 | AV4: 2055 | AW4: 2056 | AX4: 2057 | AY4: 2058 | AZ4: 2059 | BA4: 2060 | BB4: 2061 | BC4: 2062 | BD4: 2063 | BE4: 2064 | BF4: 2065 | BG4: 2066 | BH4: =BG4+1 -> 2067
B5: [Jahre] | C5: [%] | D5: [Jahre] | E5: EUR | J5: 0 | K5: =J5+1 -> 1 | L5: 2 | M5: 3 | N5: 4 | O5: 5 | P5: 6 | Q5: 7 | R5: 8 | S5: 9 | T5: 10 | U5: 11 | V5: 12 | W5: 13 | X5: 14 | Y5: 15 | Z5: 16 | AA5: 17 | AB5: 18 | AC5: 19 | AD5: 20 | AE5: 21 | AF5: 22 | AG5: 23 | AH5: 24 | AI5: 25 | AJ5: 26 | AK5: 27 | AL5: 28 | AM5: 29 | AN5: 30 | AO5: 31 | AP5: 32 | AQ5: 33 | AR5: 34 | AS5: 35 | AT5: 36 | AU5: 37 | AV5: 38 | AW5: 39 | AX5: 40 | AY5: 41 | AZ5: 42 | BA5: 43 | BB5: 44 | BC5: 45 | BD5: 46 | BE5: 47 | BF5: 48 | BG5: 49 | BH5: 50
A6: Heizhaus | B6: 50 | C6: 0.01 | D6: 33.33 | E6: ='3. Investment'!F114 -> 0 | F6: =C6*E6 -> 0 | J6: =IF(AND(J$5>$B6,INT(I$5/$B6)=(I$5/$B6)),$E$6,0) -> 0 | K6: =IF(AND(K$5>$B6,INT(J$5/$B6)=(J$5/$B6)),$E6,0) -> 0 | L6: 0 | M6: 0 | N6: 0 | O6: 0 | P6: 0 | Q6: 0 | R6: 0 | S6: 0 | T6: 0 | U6: 0 | V6: 0 | W6: 0 | X6: 0 | Y6: 0 | Z6: 0 | AA6: =IF(AND(AA$5>$B6,INT(Z$5/$B6)=(Z$5/$B6)),$E6,0) -> 0 | AB6: 0 | AC6: 0 | AD6: 0 | AE6: 0 | AF6: 0 | AG6: 0 | AH6: 0 | AI6: 0 | AJ6: 0 | AK6: 0 | AL6: 0 | AM6: 0 | AN6: 0 | AO6: 0 | AP6: 0 | AQ6: =IF(AND(AQ$5>$B6,INT(AP$5/$B6)=(AP$5/$B6)),$E6,0) -> 0 | AR6: 0 | AS6: 0 | AT6: 0 | AU6: 0 | AV6: 0 | AW6: 0 | AX6: 0 | AY6: 0 | AZ6: 0 | BA6: 0 | BB6: 0 | BC6: 0 | BD6: 0 | BE6: 0 | BF6: 0 | BG6: =IF(AND(BG$5>$B6,INT(BF$5/$B6)=(BF$5/$B6)),$E6,0) -> 0 | BH6: 0
A7: Lager | B7: 50 | C7: =C6 -> 0.01 | D7: 33.33 | E7: =IF(ref_fueltype="fuel oil",'3. Investment'!F118,0) -> 0 | F7: =C7*E7 -> 0 | J7: =IF(AND(J$5>$B7,INT(I$5/$B7)=(I$5/$B7)),$E$7,0) -> 0 | K7: 0 | L7: 0 | M7: 0 | N7: 0 | O7: 0 | P7: 0 | Q7: 0 | R7: 0 | S7: 0 | T7: 0 | U7: 0 | V7: 0 | W7: 0 | X7: 0 | Y7: 0 | Z7: 0 | AA7: 0 | AB7: 0 | AC7: 0 | AD7: 0 | AE7: 0 | AF7: 0 | AG7: 0 | AH7: 0 | AI7: 0 | AJ7: 0 | AK7: 0 | AL7: 0 | AM7: 0 | AN7: 0 | AO7: 0 | AP7: 0 | AQ7: 0 | AR7: 0 | AS7: 0 | AT7: 0 | AU7: 0 | AV7: 0 | AW7: 0 | AX7: 0 | AY7: 0 | AZ7: 0 | BA7: 0 | BB7: 0 | BC7: 0 | BD7: 0 | BE7: 0 | BF7: 0 | BG7: 0 | BH7: 0
A8: Außenanlage | B8: =B7 -> 50 | C8: =C7 -> 0.01 | D8: 33.33 | E8: ='3. Investment'!F121 -> 0 | F8: =C8*E8 -> 0 | J8: =IF(AND(J$5>$B8,INT(I$5/$B8)=(I$5/$B8)),$E$8,0) -> 0 | K8: =IF(AND(K$5>$B8,INT(J$5/$B8)=(J$5/$B8)),$E8,0) -> 0 | L8: 0 | M8: 0 | N8: 0 | O8: 0 | P8: 0 | Q8: 0 | R8: 0 | S8: 0 | T8: 0 | U8: 0 | V8: 0 | W8: 0 | X8: 0 | Y8: 0 | Z8: 0 | AA8: 0 | AB8: 0 | AC8: 0 | AD8: 0 | AE8: 0 | AF8: 0 | AG8: 0 | AH8: 0 | AI8: 0 | AJ8: 0 | AK8: 0 | AL8: 0 | AM8: 0 | AN8: 0 | AO8: 0 | AP8: 0 | AQ8: 0 | AR8: 0 | AS8: 0 | AT8: 0 | AU8: 0 | AV8: 0 | AW8: 0 | AX8: 0 | AY8: 0 | AZ8: 0 | BA8: 0 | BB8: 0 | BC8: 0 | BD8: 0 | BE8: 0 | BF8: 0 | BG8: 0 | BH8: 0
A9: Aufschließungskosten | B9: =B8 -> 50 | C9: =C8 -> 0.01 | D9: 33.33 | F9: =C9*E9 -> 0 | J9: =IF(AND(J$5>$B9,INT(I$5/$B9)=(I$5/$B9)),D9,0) -> 0 | K9: =IF(AND(K$5>$B9,INT(J$5/$B9)=(J$5/$B9)),$E9,0) -> 0 | L9: 0 | M9: 0 | N9: 0 | O9: 0 | P9: 0 | Q9: 0 | R9: 0 | S9: 0 | T9: 0 | U9: 0 | V9: 0 | W9: 0 | X9: 0 | Y9: 0 | Z9: 0 | AA9: 0 | AB9: 0 | AC9: 0 | AD9: 0 | AE9: 0 | AF9: 0 | AG9: 0 | AH9: 0 | AI9: 0 | AJ9: 0 | AK9: 0 | AL9: 0 | AM9: 0 | AN9: 0 | AO9: 0 | AP9: 0 | AQ9: 0 | AR9: 0 | AS9: 0 | AT9: 0 | AU9: 0 | AV9: 0 | AW9: 0 | AX9: 0 | AY9: 0 | AZ9: 0 | BA9: 0 | BB9: 0 | BC9: 0 | BD9: 0 | BE9: 0 | BF9: 0 | BG9: 0 | BH9: 0
A10: Rohrleitungen | B10: 45 | C10: 0.01 | D10: 33.33 | E10: ='3. Investment'!F22 -> 0 | F10: 0 | J10: =IF(AND(J$5>$B10,INT(I$5/$B10)=(I$5/$B10)),D10,0) -> 0 | K10: 0 | L10: 0 | M10: 0 | N10: 0 | O10: 0 | P10: 0 | Q10: 0 | R10: 0 | S10: 0 | T10: 0 | U10: 0 | V10: 0 | W10: 0 | X10: 0 | Y10: 0 | Z10: 0 | AA10: 0 | AB10: 0 | AC10: 0 | AD10: 0 | AE10: 0 | AF10: 0 | AG10: 0 | AH10: 0 | AI10: 0 | AJ10: 0 | AK10: 0 | AL10: 0 | AM10: 0 | AN10: 0 | AO10: 0 | AP10: 0 | AQ10: 0 | AR10: 0 | AS10: 0 | AT10: 0 | AU10: 0 | AV10: 0 | AW10: 0 | AX10: 0 | AY10: 0 | AZ10: 0 | BA10: 0 | BB10: 0 | BC10: 0 | BD10: 0 | BE10: 0 | BF10: 0 | BG10: 0 | BH10: 0
A11: Grabungsarbeiten | B11: =B10 -> 45 | C11: =C10 -> 0.01 | D11: 33.33 | F11: 0 | J11: =IF(AND(J$5>$B11,INT(I$5/$B11)=(I$5/$B11)),D11,0) -> 0 | K11: 0 | L11: 0 | M11: 0 | N11: 0 | O11: 0 | P11: 0 | Q11: 0 | R11: 0 | S11: 0 | T11: 0 | U11: 0 | V11: 0 | W11: 0 | X11: 0 | Y11: 0 | Z11: 0 | AA11: 0 | AB11: 0 | AC11: 0 | AD11: 0 | AE11: 0 | AF11: 0 | AG11: 0 | AH11: 0 | AI11: 0 | AJ11: 0 | AK11: 0 | AL11: 0 | AM11: 0 | AN11: 0 | AO11: 0 | AP11: 0 | AQ11: 0 | AR11: 0 | AS11: 0 | AT11: 0 | AU11: 0 | AV11: 0 | AW11: 0 | AX11: 0 | AY11: 0 | AZ11: 0 | BA11: 0 | BB11: 0 | BC11: 0 | BD11: 0 | BE11: 0 | BF11: 0 | BG11: 0 | BH11: 0
A12: Wärmeübergabestationen | B12: 30 | C12: 0.02 | D12: 20 | E12: ='3. Investment'!F29 -> 0 | F12: 0 | J12: =IF(AND(J$5>$B12,INT(I$5/$B12)=(I$5/$B12)),D12,0) -> 0 | K12: 0 | L12: 0 | M12: 0 | N12: 0 | O12: 0 | P12: 0 | Q12: 0 | R12: 0 | S12: 0 | T12: 0 | U12: 0 | V12: 0 | W12: 0 | X12: 0 | Y12: 0 | Z12: 0 | AA12: 0 | AB12: 0 | AC12: 0 | AD12: 0 | AE12: 0 | AF12: 0 | AG12: 0 | AH12: 0 | AI12: 0 | AJ12: 0 | AK12: 0 | AL12: 0 | AM12: 0 | AN12: 0 | AO12: 0 | AP12: 0 | AQ12: 0 | AR12: 0 | AS12: 0 | AT12: 0 | AU12: 0 | AV12: 0 | AW12: 0 | AX12: 0 | AY12: 0 | AZ12: 0 | BA12: 0 | BB12: 0 | BC12: 0 | BD12: 0 | BE12: 0 | BF12: 0 | BG12: 0 | BH12: 0
A13: Feuerung und Kessel | B13: 20 | C13: 0.03 | D13: 15 | E13: =SUM('3. Investment'!F108:F110) -> 0 | F13: =C13*E13 -> 0 | J13: =IF(AND(J$5>$B13,INT(I$5/$B13)=(I$5/$B13)),D13,0) -> 0 | K13: 0 | L13: 0 | M13: 0 | N13: 0 | O13: 0 | P13: 0 | Q13: 0 | R13: 0 | S13: 0 | T13: 0 | U13: 0 | V13: 0 | W13: 0 | X13: 0 | Y13: 0 | Z13: 0 | AA13: 0 | AB13: 0 | AC13: 0 | AD13: 0 | AE13: 0 | AF13: 0 | AG13: 0 | AH13: 0 | AI13: 0 | AJ13: 0 | AK13: 0 | AL13: 0 | AM13: 0 | AN13: 0 | AO13: 0 | AP13: 0 | AQ13: 0 | AR13: 0 | AS13: 0 | AT13: 0 | AU13: 0 | AV13: 0 | AW13: 0 | AX13: 0 | AY13: 0 | AZ13: 0 | BA13: 0 | BB13: 0 | BC13: 0 | BD13: 0 | BE13: 0 | BF13: 0 | BG13: 0 | BH13: 0
A14: Rauchgasreinigung | B14: 20 | C14: 0.02 | D14: 15 | F14: 0 | J14: =IF(AND(J$5>$B14,INT(I$5/$B14)=(I$5/$B14)),D14,0) -> 0 | K14: 0 | L14: 0 | M14: 0 | N14: 0 | O14: 0 | P14: 0 | Q14: 0 | R14: 0 | S14: 0 | T14: 0 | U14: 0 | V14: 0 | W14: 0 | X14: 0 | Y14: 0 | Z14: 0 | AA14: 0 | AB14: 0 | AC14: 0 | AD14: 0 | AE14: 0 | AF14: 0 | AG14: 0 | AH14: 0 | AI14: 0 | AJ14: 0 | AK14: 0 | AL14: 0 | AM14: 0 | AN14: 0 | AO14: 0 | AP14: 0 | AQ14: 0 | AR14: 0 | AS14: 0 | AT14: 0 | AU14: 0 | AV14: 0 | AW14: 0 | AX14: 0 | AY14: 0 | AZ14: 0 | BA14: 0 | BB14: 0 | BC14: 0 | BD14: 0 | BE14: 0 | BF14: 0 | BG14: 0 | BH14: 0
A15: Aschebehälter und -förderung | B15: 20 | C15: 0.03 | D15: 15 | F15: 0 | J15: 0 | K15: 0 | L15: 0 | M15: 0 | N15: 0 | O15: 0 | P15: 0 | Q15: 0 | R15: 0 | S15: 0 | T15: 0 | U15: 0 | V15: 0 | W15: 0 | X15: 0 | Y15: 0 | Z15: 0 | AA15: 0 | AB15: 0 | AC15: 0 | AD15: 0 | AE15: 0 | AF15: 0 | AG15: 0 | AH15: 0 | AI15: 0 | AJ15: 0 | AK15: 0 | AL15: 0 | AM15: 0 | AN15: 0 | AO15: 0 | AP15: 0 | AQ15: 0 | AR15: 0 | AS15: 0 | AT15: 0 | AU15: 0 | AV15: 0 | AW15: 0 | AX15: 0 | AY15: 0 | AZ15: 0 | BA15: 0 | BB15: 0 | BC15: 0 | BD15: 0 | BE15: 0 | BF15: 0 | BG15: 0 | BH15: 0
A16: Wärmerückgewinnung | B16: 20 | C16: 0.02 | D16: 15 | F16: =C16*E16 -> 0 | J16: =IF(AND(J$5>$B16,INT(I$5/$B16)=(I$5/$B16)),D16,0) -> 0 | K16: =IF(AND(K$5>$B16,INT(J$5/$B16)=(J$5/$B16)),$E16,0) -> 0 | L16: 0 | M16: 0 | N16: 0 | O16: 0 | P16: 0 | Q16: 0 | R16: 0 | S16: 0 | T16: 0 | U16: 0 | V16: 0 | W16: 0 | X16: 0 | Y16: 0 | Z16: 0 | AA16: 0 | AB16: 0 | AC16: 0 | AD16: 0 | AE16: 0 | AF16: 0 | AG16: 0 | AH16: 0 | AI16: 0 | AJ16: 0 | AK16: 0 | AL16: 0 | AM16: 0 | AN16: 0 | AO16: 0 | AP16: 0 | AQ16: 0 | AR16: 0 | AS16: 0 | AT16: 0 | AU16: 0 | AV16: 0 | AW16: 0 | AX16: 0 | AY16: 0 | AZ16: 0 | BA16: 0 | BB16: 0 | BC16: 0 | BD16: 0 | BE16: 0 | BF16: 0 | BG16: 0 | BH16: 0
A17: Brennstoffbeschickung | B17: 20 | C17: 0.03 | D17: 15 | F17: 0 | J17: 0 | K17: 0 | L17: 0 | M17: 0 | N17: 0 | O17: 0 | P17: 0 | Q17: 0 | R17: 0 | S17: 0 | T17: 0 | U17: 0 | V17: 0 | W17: 0 | X17: 0 | Y17: 0 | Z17: 0 | AA17: 0 | AB17: 0 | AC17: 0 | AD17: 0 | AE17: 0 | AF17: 0 | AG17: 0 | AH17: 0 | AI17: 0 | AJ17: 0 | AK17: 0 | AL17: 0 | AM17: 0 | AN17: 0 | AO17: 0 | AP17: 0 | AQ17: 0 | AR17: 0 | AS17: 0 | AT17: 0 | AU17: 0 | AV17: 0 | AW17: 0 | AX17: 0 | AY17: 0 | AZ17: 0 | BA17: 0 | BB17: 0 | BC17: 0 | BD17: 0 | BE17: 0 | BF17: 0 | BG17: 0 | BH17: 0
A18: Krananlage | B18: 20 | C18: 0.02 | D18: 15 | F18: 0 | J18: 0 | K18: 0 | L18: 0 | M18: 0 | N18: 0 | O18: 0 | P18: 0 | Q18: 0 | R18: 0 | S18: 0 | T18: 0 | U18: 0 | V18: 0 | W18: 0 | X18: 0 | Y18: 0 | Z18: 0 | AA18: 0 | AB18: 0 | AC18: 0 | AD18: 0 | AE18: 0 | AF18: 0 | AG18: 0 | AH18: 0 | AI18: 0 | AJ18: 0 | AK18: 0 | AL18: 0 | AM18: 0 | AN18: 0 | AO18: 0 | AP18: 0 | AQ18: 0 | AR18: 0 | AS18: 0 | AT18: 0 | AU18: 0 | AV18: 0 | AW18: 0 | AX18: 0 | AY18: 0 | AZ18: 0 | BA18: 0 | BB18: 0 | BC18: 0 | BD18: 0 | BE18: 0 | BF18: 0 | BG18: 0 | BH18: 0
A19: E-Installation | B19: 20 | C19: 0.02 | D19: 15 | E19: ='3. Investment'!F115 -> 0 | F19: 0 | J19: 0 | K19: 0 | L19: 0 | M19: 0 | N19: 0 | O19: 0 | P19: 0 | Q19: 0 | R19: 0 | S19: 0 | T19: 0 | U19: 0 | V19: 0 | W19: 0 | X19: 0 | Y19: 0 | Z19: 0 | AA19: 0 | AB19: 0 | AC19: 0 | AD19: 0 | AE19: 0 | AF19: 0 | AG19: 0 | AH19: 0 | AI19: 0 | AJ19: 0 | AK19: 0 | AL19: 0 | AM19: 0 | AN19: 0 | AO19: 0 | AP19: 0 | AQ19: 0 | AR19: 0 | AS19: 0 | AT19: 0 | AU19: 0 | AV19: 0 | AW19: 0 | AX19: 0 | AY19: 0 | AZ19: 0 | BA19: 0 | BB19: 0 | BC19: 0 | BD19: 0 | BE19: 0 | BF19: 0 | BG19: 0 | BH19: 0
A20: H-Installation | B20: 20 | C20: 0.02 | D20: 15 | F20: 0 | J20: 0 | K20: 0 | L20: 0 | M20: 0 | N20: 0 | O20: 0 | P20: 0 | Q20: 0 | R20: 0 | S20: 0 | T20: 0 | U20: 0 | V20: 0 | W20: 0 | X20: 0 | Y20: 0 | Z20: 0 | AA20: 0 | AB20: 0 | AC20: 0 | AD20: 0 | AE20: 0 | AF20: 0 | AG20: 0 | AH20: 0 | AI20: 0 | AJ20: 0 | AK20: 0 | AL20: 0 | AM20: 0 | AN20: 0 | AO20: 0 | AP20: 0 | AQ20: 0 | AR20: 0 | AS20: 0 | AT20: 0 | AU20: 0 | AV20: 0 | AW20: 0 | AX20: 0 | AY20: 0 | AZ20: 0 | BA20: 0 | BB20: 0 | BC20: 0 | BD20: 0 | BE20: 0 | BF20: 0 | BG20: 0 | BH20: 0
A21: Stahlbau | B21: 20 | C21: 0.01 | D21: 15 | F21: 0 | J21: 0 | K21: 0 | L21: 0 | M21: 0 | N21: 0 | O21: 0 | P21: 0 | Q21: 0 | R21: 0 | S21: 0 | T21: 0 | U21: 0 | V21: 0 | W21: 0 | X21: 0 | Y21: 0 | Z21: 0 | AA21: 0 | AB21: 0 | AC21: 0 | AD21: 0 | AE21: 0 | AF21: 0 | AG21: 0 | AH21: 0 | AI21: 0 | AJ21: 0 | AK21: 0 | AL21: 0 | AM21: 0 | AN21: 0 | AO21: 0 | AP21: =IF(AND(AP$5>$B21,INT(AO$5/$B21)=(AO$5/$B21)),$E21,0) -> 0 | AQ21: 0 | AR21: 0 | AS21: 0 | AT21: 0 | AU21: 0 | AV21: 0 | AW21: 0 | AX21: 0 | AY21: 0 | AZ21: 0 | BA21: 0 | BB21: 0 | BC21: 0 | BD21: 0 | BE21: 0 | BF21: 0 | BG21: 0 | BH21: 0
A22: Spitzenlastabdeckung | B22: 20 | C22: 0.01 | D22: 15 | F22: 0 | J22: 0 | K22: 0 | L22: 0 | M22: 0 | N22: 0 | O22: 0 | P22: 0 | Q22: 0 | R22: 0 | S22: 0 | T22: 0 | U22: 0 | V22: 0 | W22: 0 | X22: 0 | Y22: 0 | Z22: 0 | AA22: =IF(AND(AA$5>$B22,INT(Z$5/$B22)=(Z$5/$B22)),$E22,0) -> 0 | AB22: 0 | AC22: 0 | AD22: 0 | AE22: 0 | AF22: 0 | AG22: 0 | AH22: 0 | AI22: 0 | AJ22: 0 | AK22: 0 | AL22: 0 | AM22: 0 | AN22: 0 | AO22: 0 | AP22: 0 | AQ22: 0 | AR22: 0 | AS22: 0 | AT22: 0 | AU22: 0 | AV22: 0 | AW22: 0 | AX22: 0 | AY22: 0 | AZ22: 0 | BA22: 0 | BB22: 0 | BC22: 0 | BD22: 0 | BE22: 0 | BF22: =IF(AND(BF$5>$B22,INT(BE$5/$B22)=(BE$5/$B22)),$E22,0) -> 0 | BG22: 0 | BH22: 0
A23: Fahrzeuge | B23: 15 | C23: 0.03 | D23: 5 | F23: 0 | J23: 0 | K23: 0 | L23: 0 | M23: 0 | N23: 0 | O23: 0 | P23: 0 | Q23: 0 | R23: 0 | S23: 0 | T23: 0 | U23: 0 | V23: 0 | W23: 0 | X23: 0 | Y23: 0 | Z23: 0 | AA23: 0 | AB23: 0 | AC23: 0 | AD23: 0 | AE23: 0 | AF23: 0 | AG23: 0 | AH23: 0 | AI23: 0 | AJ23: 0 | AK23: 0 | AL23: 0 | AM23: 0 | AN23: 0 | AO23: 0 | AP23: 0 | AQ23: 0 | AR23: 0 | AS23: 0 | AT23: 0 | AU23: 0 | AV23: 0 | AW23: 0 | AX23: 0 | AY23: 0 | AZ23: 0 | BA23: 0 | BB23: 0 | BC23: 0 | BD23: 0 | BE23: 0 | BF23: 0 | BG23: 0 | BH23: 0
A24: Planung | B24: 25 | D24: 15 | E24: ='3. Investment'!F127 -> 0 | F24: 0 | J24: 0 | K24: 0 | L24: 0 | M24: 0 | N24: 0 | O24: 0 | P24: 0 | Q24: 0 | R24: 0 | S24: 0 | T24: 0 | U24: 0 | V24: 0 | W24: 0 | X24: 0 | Y24: 0 | Z24: =IF(AND(Z$5>$B24,INT(Y$5/$B24)=(Y$5/$B24)),$E24,0) -> 0 | AA24: 0 | AB24: 0 | AC24: 0 | AD24: 0 | AE24: 0 | AF24: 0 | AG24: 0 | AH24: 0 | AI24: 0 | AJ24: 0 | AK24: 0 | AL24: 0 | AM24: 0 | AN24: 0 | AO24: 0 | AP24: 0 | AQ24: 0 | AR24: 0 | AS24: 0 | AT24: 0 | AU24: 0 | AV24: 0 | AW24: 0 | AX24: 0 | AY24: 0 | AZ24: 0 | BA24: 0 | BB24: 0 | BC24: 0 | BD24: 0 | BE24: 0 | BF24: 0 | BG24: 0 | BH24: 0
A25: Sonstiges | B25: 20 | E25: ='3. Investment'!F123 -> 0 | F25: =C25*E25 -> 0 | J25: 0 | K25: =IF(AND(K$5>$B25,INT(J$5/$B25)=(J$5/$B25)),$E25,0) -> 0 | L25: 0 | M25: 0 | N25: 0 | O25: 0 | P25: 0 | Q25: 0 | R25: 0 | S25: 0 | T25: 0 | U25: 0 | V25: 0 | W25: 0 | X25: 0 | Y25: 0 | Z25: 0 | AA25: 0 | AB25: 0 | AC25: 0 | AD25: 0 | AE25: 0 | AF25: 0 | AG25: 0 | AH25: 0 | AI25: 0 | AJ25: 0 | AK25: 0 | AL25: 0 | AM25: 0 | AN25: 0 | AO25: 0 | AP25: 0 | AQ25: =IF(AND(AQ$5>$B25,INT(AP$5/$B25)=(AP$5/$B25)),$E25,0) -> 0 | AR25: 0 | AS25: 0 | AT25: 0 | AU25: 0 | AV25: 0 | AW25: 0 | AX25: 0 | AY25: 0 | AZ25: 0 | BA25: 0 | BB25: 0 | BC25: 0 | BD25: 0 | BE25: 0 | BF25: 0 | BG25: 0 | BH25: 0
A26: Summe | E26: =SUM(E6:E25) -> 0 | F26: =SUM(F6:F25)/E26 ->  | I26: Gesamt | J26: =SUM(J6:J25) -> 0 | K26: =SUM(K6:K25) -> 0 | L26: 0 | M26: 0 | N26: 0 | O26: 0 | P26: 0 | Q26: 0 | R26: 0 | S26: 0 | T26: 0 | U26: 0 | V26: 0 | W26: 0 | X26: 0 | Y26: 0 | Z26: 0 | AA26: 0 | AB26: 0 | AC26: 0 | AD26: 0 | AE26: 0 | AF26: 0 | AG26: 0 | AH26: 0 | AI26: 0 | AJ26: 0 | AK26: 0 | AL26: 0 | AM26: 0 | AN26: 0 | AO26: 0 | AP26: 0 | AQ26: 0 | AR26: 0 | AS26: 0 | AT26: 0 | AU26: 0 | AV26: 0 | AW26: 0 | AX26: 0 | AY26: 0 | AZ26: 0 | BA26: 0 | BB26: 0 | BC26: 0 | BD26: 0 | BE26: 0 | BF26: 0 | BG26: 0 | BH26: 0
I31: Restwerte
J32: Jahr
J33: 2015 | K33: =J33+1 -> 2016 | L33: =K33+1 -> 2017 | M33: 2018 | N33: 2019 | O33: 2020 | P33: 2021 | Q33: 2022 | R33: 2023 | S33: 2024 | T33: 2025 | U33: 2026 | V33: 2027 | W33: 2028 | X33: 2029 | Y33: 2030 | Z33: 2031 | AA33: 2032 | AB33: =AA33+1 -> 2033 | AC33: 2034 | AD33: 2035 | AE33: 2036 | AF33: 2037 | AG33: 2038 | AH33: 2039 | AI33: 2040 | AJ33: 2041 | AK33: 2042 | AL33: 2043 | AM33: 2044 | AN33: 2045 | AO33: 2046 | AP33: 2047 | AQ33: 2048 | AR33: =AQ33+1 -> 2049 | AS33: 2050 | AT33: 2051 | AU33: 2052 | AV33: 2053 | AW33: 2054 | AX33: 2055 | AY33: 2056 | AZ33: 2057 | BA33: 2058 | BB33: 2059 | BC33: 2060 | BD33: 2061 | BE33: 2062 | BF33: 2063 | BG33: 2064 | BH33: =BG33+1 -> 2065
I34: Lebensjahr | J34: 0 | K34: =J34+1 -> 1 | L34: 2 | M34: 3 | N34: 4 | O34: 5 | P34: 6 | Q34: 7 | R34: 8 | S34: 9 | T34: 10 | U34: 11 | V34: 12 | W34: 13 | X34: 14 | Y34: 15 | Z34: 16 | AA34: 17 | AB34: 18 | AC34: 19 | AD34: 20 | AE34: 21 | AF34: 22 | AG34: 23 | AH34: 24 | AI34: 25 | AJ34: 26 | AK34: 27 | AL34: 28 | AM34: 29 | AN34: 30 | AO34: 31 | AP34: 32 | AQ34: 33 | AR34: 34 | AS34: 35 | AT34: 36 | AU34: 37 | AV34: 38 | AW34: 39 | AX34: 40 | AY34: 41 | AZ34: 42 | BA34: 43 | BB34: 44 | BC34: 45 | BD34: 46 | BE34: 47 | BF34: 48 | BG34: 49 | BH34: 50
J35: =E6 -> 0 | K35: =IF(K6=0,J35-($E6/$B6),K6) -> 0 | L35: =IF(L6=0,K35-($E6/$B6),L6) -> 0 | M35: 0 | N35: 0 | O35: 0 | P35: 0 | Q35: 0 | R35: 0 | S35: 0 | T35: 0 | U35: 0 | V35: 0 | W35: 0 | X35: 0 | Y35: 0 | Z35: 0 | AA35: 0 | AB35: 0 | AC35: 0 | AD35: 0 | AE35: 0 | AF35: 0 | AG35: 0 | AH35: 0 | AI35: 0 | AJ35: 0 | AK35: 0 | AL35: 0 | AM35: 0 | AN35: 0 | AO35: 0 | AP35: 0 | AQ35: 0 | AR35: 0 | AS35: 0 | AT35: 0 | AU35: 0 | AV35: 0 | AW35: 0 | AX35: 0 | AY35: 0 | AZ35: 0 | BA35: 0 | BB35: 0 | BC35: 0 | BD35: 0 | BE35: 0 | BF35: 0 | BG35: 0 | BH35: 0
J36: =E7 -> 0 | K36: =IF(K7=0,J36-($E7/$B7),K7) -> 0 | L36: 0 | M36: 0 | N36: 0 | O36: 0 | P36: 0 | Q36: 0 | R36: 0 | S36: 0 | T36: 0 | U36: 0 | V36: 0 | W36: 0 | X36: 0 | Y36: 0 | Z36: 0 | AA36: 0 | AB36: 0 | AC36: 0 | AD36: 0 | AE36: 0 | AF36: 0 | AG36: 0 | AH36: 0 | AI36: 0 | AJ36: 0 | AK36: 0 | AL36: 0 | AM36: 0 | AN36: 0 | AO36: 0 | AP36: 0 | AQ36: 0 | AR36: 0 | AS36: 0 | AT36: 0 | AU36: 0 | AV36: 0 | AW36: 0 | AX36: 0 | AY36: 0 | AZ36: 0 | BA36: 0 | BB36: 0 | BC36: 0 | BD36: 0 | BE36: 0 | BF36: 0 | BG36: 0 | BH36: 0
J37: 0 | K37: 0 | L37: 0 | M37: 0 | N37: 0 | O37: 0 | P37: 0 | Q37: 0 | R37: 0 | S37: 0 | T37: 0 | U37: 0 | V37: 0 | W37: 0 | X37: 0 | Y37: 0 | Z37: 0 | AA37: 0 | AB37: 0 | AC37: 0 | AD37: 0 | AE37: 0 | AF37: 0 | AG37: 0 | AH37: 0 | AI37: 0 | AJ37: 0 | AK37: 0 | AL37: 0 | AM37: 0 | AN37: 0 | AO37: 0 | AP37: 0 | AQ37: 0 | AR37: 0 | AS37: 0 | AT37: 0 | AU37: 0 | AV37: 0 | AW37: 0 | AX37: 0 | AY37: 0 | AZ37: 0 | BA37: 0 | BB37: 0 | BC37: 0 | BD37: 0 | BE37: 0 | BF37: 0 | BG37: 0 | BH37: 0
J38: 0 | K38: 0 | L38: 0 | M38: 0 | N38: 0 | O38: 0 | P38: 0 | Q38: 0 | R38: 0 | S38: 0 | T38: 0 | U38: 0 | V38: 0 | W38: 0 | X38: 0 | Y38: 0 | Z38: 0 | AA38: 0 | AB38: 0 | AC38: 0 | AD38: 0 | AE38: 0 | AF38: 0 | AG38: 0 | AH38: 0 | AI38: 0 | AJ38: 0 | AK38: 0 | AL38: 0 | AM38: 0 | AN38: 0 | AO38: 0 | AP38: 0 | AQ38: 0 | AR38: 0 | AS38: 0 | AT38: 0 | AU38: 0 | AV38: 0 | AW38: 0 | AX38: 0 | AY38: 0 | AZ38: 0 | BA38: 0 | BB38: 0 | BC38: 0 | BD38: 0 | BE38: 0 | BF38: 0 | BG38: 0 | BH38: 0
J39: 0 | K39: 0 | L39: 0 | M39: 0 | N39: 0 | O39: 0 | P39: 0 | Q39: 0 | R39: 0 | S39: 0 | T39: 0 | U39: 0 | V39: 0 | W39: 0 | X39: 0 | Y39: 0 | Z39: 0 | AA39: 0 | AB39: 0 | AC39: 0 | AD39: 0 | AE39: 0 | AF39: 0 | AG39: 0 | AH39: 0 | AI39: 0 | AJ39: 0 | AK39: 0 | AL39: 0 | AM39: 0 | AN39: 0 | AO39: 0 | AP39: 0 | AQ39: 0 | AR39: 0 | AS39: 0 | AT39: 0 | AU39: 0 | AV39: 0 | AW39: 0 | AX39: 0 | AY39: 0 | AZ39: 0 | BA39: 0 | BB39: 0 | BC39: 0 | BD39: 0 | BE39: 0 | BF39: 0 | BG39: 0 | BH39: 0
J40: 0 | K40: 0 | L40: 0 | M40: 0 | N40: 0 | O40: 0 | P40: 0 | Q40: 0 | R40: 0 | S40: 0 | T40: 0 | U40: 0 | V40: =IF(V11=0,U40-($E11/$B11),V11) -> 0 | W40: 0 | X40: 0 | Y40: 0 | Z40: 0 | AA40: 0 | AB40: 0 | AC40: 0 | AD40: 0 | AE40: 0 | AF40: 0 | AG40: 0 | AH40: 0 | AI40: 0 | AJ40: 0 | AK40: 0 | AL40: 0 | AM40: 0 | AN40: 0 | AO40: 0 | AP40: 0 | AQ40: 0 | AR40: 0 | AS40: 0 | AT40: 0 | AU40: 0 | AV40: 0 | AW40: 0 | AX40: 0 | AY40: 0 | AZ40: 0 | BA40: 0 | BB40: 0 | BC40: 0 | BD40: 0 | BE40: 0 | BF40: 0 | BG40: 0 | BH40: 0
J41: 0 | K41: 0 | L41: 0 | M41: 0 | N41: 0 | O41: 0 | P41: 0 | Q41: 0 | R41: 0 | S41: 0 | T41: 0 | U41: 0 | V41: 0 | W41: 0 | X41: 0 | Y41: 0 | Z41: 0 | AA41: 0 | AB41: 0 | AC41: 0 | AD41: 0 | AE41: 0 | AF41: 0 | AG41: 0 | AH41: 0 | AI41: 0 | AJ41: 0 | AK41: 0 | AL41: 0 | AM41: 0 | AN41: 0 | AO41: 0 | AP41: 0 | AQ41: 0 | AR41: 0 | AS41: 0 | AT41: 0 | AU41: 0 | AV41: 0 | AW41: 0 | AX41: 0 | AY41: 0 | AZ41: 0 | BA41: 0 | BB41: 0 | BC41: 0 | BD41: 0 | BE41: 0 | BF41: 0 | BG41: 0 | BH41: 0
J42: 0 | K42: 0 | L42: 0 | M42: 0 | N42: 0 | O42: 0 | P42: 0 | Q42: 0 | R42: 0 | S42: 0 | T42: 0 | U42: 0 | V42: 0 | W42: 0 | X42: 0 | Y42: 0 | Z42: 0 | AA42: 0 | AB42: 0 | AC42: 0 | AD42: 0 | AE42: 0 | AF42: 0 | AG42: 0 | AH42: 0 | AI42: 0 | AJ42: 0 | AK42: 0 | AL42: 0 | AM42: 0 | AN42: 0 | AO42: 0 | AP42: 0 | AQ42: 0 | AR42: 0 | AS42: 0 | AT42: 0 | AU42: 0 | AV42: 0 | AW42: 0 | AX42: 0 | AY42: 0 | AZ42: 0 | BA42: 0 | BB42: 0 | BC42: 0 | BD42: 0 | BE42: 0 | BF42: 0 | BG42: 0 | BH42: 0
J43: 0 | K43: 0 | L43: 0 | M43: 0 | N43: 0 | O43: 0 | P43: 0 | Q43: 0 | R43: 0 | S43: 0 | T43: 0 | U43: 0 | V43: 0 | W43: 0 | X43: 0 | Y43: 0 | Z43: 0 | AA43: 0 | AB43: 0 | AC43: 0 | AD43: 0 | AE43: 0 | AF43: 0 | AG43: 0 | AH43: 0 | AI43: 0 | AJ43: 0 | AK43: 0 | AL43: 0 | AM43: 0 | AN43: 0 | AO43: 0 | AP43: 0 | AQ43: 0 | AR43: 0 | AS43: 0 | AT43: 0 | AU43: 0 | AV43: 0 | AW43: 0 | AX43: 0 | AY43: 0 | AZ43: 0 | BA43: 0 | BB43: 0 | BC43: 0 | BD43: 0 | BE43: 0 | BF43: 0 | BG43: 0 | BH43: 0
J44: 0 | K44: 0 | L44: 0 | M44: 0 | N44: 0 | O44: 0 | P44: 0 | Q44: 0 | R44: 0 | S44: 0 | T44: 0 | U44: 0 | V44: 0 | W44: 0 | X44: 0 | Y44: 0 | Z44: 0 | AA44: 0 | AB44: 0 | AC44: 0 | AD44: 0 | AE44: 0 | AF44: 0 | AG44: 0 | AH44: 0 | AI44: 0 | AJ44: 0 | AK44: 0 | AL44: 0 | AM44: 0 | AN44: 0 | AO44: 0 | AP44: 0 | AQ44: 0 | AR44: 0 | AS44: 0 | AT44: 0 | AU44: 0 | AV44: 0 | AW44: 0 | AX44: 0 | AY44: 0 | AZ44: 0 | BA44: 0 | BB44: 0 | BC44: 0 | BD44: 0 | BE44: 0 | BF44: 0 | BG44: 0 | BH44: 0
J45: =E16 -> 0 | K45: =IF(K16=0,J45-($E16/$B16),K16) -> 0 | L45: 0 | M45: 0 | N45: 0 | O45: 0 | P45: 0 | Q45: 0 | R45: 0 | S45: 0 | T45: 0 | U45: 0 | V45: 0 | W45: 0 | X45: 0 | Y45: 0 | Z45: 0 | AA45: 0 | AB45: 0 | AC45: 0 | AD45: 0 | AE45: 0 | AF45: 0 | AG45: 0 | AH45: 0 | AI45: 0 | AJ45: 0 | AK45: 0 | AL45: 0 | AM45: 0 | AN45: 0 | AO45: 0 | AP45: 0 | AQ45: 0 | AR45: 0 | AS45: 0 | AT45: 0 | AU45: 0 | AV45: 0 | AW45: 0 | AX45: 0 | AY45: 0 | AZ45: 0 | BA45: 0 | BB45: 0 | BC45: 0 | BD45: 0 | BE45: 0 | BF45: 0 | BG45: 0 | BH45: 0
J46: 0 | K46: 0 | L46: 0 | M46: 0 | N46: 0 | O46: 0 | P46: 0 | Q46: 0 | R46: 0 | S46: 0 | T46: 0 | U46: 0 | V46: 0 | W46: 0 | X46: 0 | Y46: 0 | Z46: 0 | AA46: 0 | AB46: 0 | AC46: 0 | AD46: 0 | AE46: 0 | AF46: 0 | AG46: 0 | AH46: 0 | AI46: 0 | AJ46: 0 | AK46: 0 | AL46: 0 | AM46: 0 | AN46: 0 | AO46: 0 | AP46: 0 | AQ46: 0 | AR46: 0 | AS46: 0 | AT46: 0 | AU46: 0 | AV46: 0 | AW46: 0 | AX46: 0 | AY46: 0 | AZ46: 0 | BA46: 0 | BB46: 0 | BC46: 0 | BD46: 0 | BE46: 0 | BF46: 0 | BG46: 0 | BH46: 0
J47: 0 | K47: 0 | L47: 0 | M47: 0 | N47: 0 | O47: 0 | P47: 0 | Q47: 0 | R47: 0 | S47: 0 | T47: 0 | U47: 0 | V47: 0 | W47: 0 | X47: 0 | Y47: 0 | Z47: 0 | AA47: 0 | AB47: 0 | AC47: 0 | AD47: 0 | AE47: 0 | AF47: 0 | AG47: 0 | AH47: 0 | AI47: 0 | AJ47: 0 | AK47: 0 | AL47: 0 | AM47: =IF(AM18=0,AL47-($E18/$B18),AM18) -> 0 | AN47: 0 | AO47: 0 | AP47: 0 | AQ47: 0 | AR47: 0 | AS47: 0 | AT47: 0 | AU47: 0 | AV47: 0 | AW47: 0 | AX47: 0 | AY47: 0 | AZ47: 0 | BA47: 0 | BB47: 0 | BC47: 0 | BD47: 0 | BE47: 0 | BF47: 0 | BG47: 0 | BH47: 0
J48: 0 | K48: 0 | L48: 0 | M48: 0 | N48: 0 | O48: 0 | P48: 0 | Q48: 0 | R48: 0 | S48: 0 | T48: 0 | U48: 0 | V48: 0 | W48: 0 | X48: 0 | Y48: 0 | Z48: 0 | AA48: =IF(AA19=0,Z48-($E19/$B19),AA19) -> 0 | AB48: 0 | AC48: 0 | AD48: 0 | AE48: 0 | AF48: 0 | AG48: 0 | AH48: 0 | AI48: 0 | AJ48: 0 | AK48: 0 | AL48: 0 | AM48: 0 | AN48: 0 | AO48: 0 | AP48: 0 | AQ48: 0 | AR48: 0 | AS48: 0 | AT48: 0 | AU48: 0 | AV48: 0 | AW48: 0 | AX48: 0 | AY48: 0 | AZ48: 0 | BA48: 0 | BB48: 0 | BC48: 0 | BD48: 0 | BE48: 0 | BF48: 0 | BG48: 0 | BH48: 0
J49: 0 | K49: 0 | L49: 0 | M49: 0 | N49: 0 | O49: 0 | P49: 0 | Q49: 0 | R49: 0 | S49: 0 | T49: 0 | U49: 0 | V49: 0 | W49: 0 | X49: 0 | Y49: 0 | Z49: 0 | AA49: 0 | AB49: 0 | AC49: 0 | AD49: 0 | AE49: 0 | AF49: 0 | AG49: 0 | AH49: 0 | AI49: 0 | AJ49: 0 | AK49: 0 | AL49: 0 | AM49: 0 | AN49: 0 | AO49: 0 | AP49: 0 | AQ49: 0 | AR49: 0 | AS49: 0 | AT49: 0 | AU49: 0 | AV49: 0 | AW49: 0 | AX49: 0 | AY49: 0 | AZ49: 0 | BA49: 0 | BB49: 0 | BC49: 0 | BD49: 0 | BE49: 0 | BF49: 0 | BG49: 0 | BH49: 0
J50: 0 | K50: 0 | L50: 0 | M50: 0 | N50: 0 | O50: 0 | P50: 0 | Q50: 0 | R50: 0 | S50: 0 | T50: 0 | U50: 0 | V50: 0 | W50: 0 | X50: 0 | Y50: 0 | Z50: 0 | AA50: 0 | AB50: 0 | AC50: 0 | AD50: 0 | AE50: 0 | AF50: 0 | AG50: 0 | AH50: 0 | AI50: 0 | AJ50: 0 | AK50: 0 | AL50: 0 | AM50: 0 | AN50: 0 | AO50: 0 | AP50: 0 | AQ50: 0 | AR50: 0 | AS50: 0 | AT50: 0 | AU50: 0 | AV50: 0 | AW50: 0 | AX50: 0 | AY50: 0 | AZ50: 0 | BA50: 0 | BB50: 0 | BC50: 0 | BD50: 0 | BE50: 0 | BF50: 0 | BG50: 0 | BH50: 0
J51: 0 | K51: 0 | L51: 0 | M51: 0 | N51: 0 | O51: 0 | P51: 0 | Q51: 0 | R51: 0 | S51: 0 | T51: 0 | U51: 0 | V51: 0 | W51: 0 | X51: 0 | Y51: 0 | Z51: 0 | AA51: 0 | AB51: 0 | AC51: 0 | AD51: 0 | AE51: 0 | AF51: 0 | AG51: 0 | AH51: 0 | AI51: 0 | AJ51: 0 | AK51: 0 | AL51: 0 | AM51: 0 | AN51: 0 | AO51: 0 | AP51: 0 | AQ51: 0 | AR51: 0 | AS51: 0 | AT51: 0 | AU51: 0 | AV51: 0 | AW51: 0 | AX51: 0 | AY51: 0 | AZ51: 0 | BA51: 0 | BB51: 0 | BC51: 0 | BD51: 0 | BE51: 0 | BF51: 0 | BG51: 0 | BH51: 0
J52: 0 | K52: =IF(K23=0,J52-($E23/$B23),K23) -> 0 | L52: 0 | M52: 0 | N52: 0 | O52: 0 | P52: 0 | Q52: 0 | R52: 0 | S52: 0 | T52: 0 | U52: 0 | V52: 0 | W52: 0 | X52: 0 | Y52: 0 | Z52: 0 | AA52: 0 | AB52: 0 | AC52: 0 | AD52: 0 | AE52: 0 | AF52: 0 | AG52: 0 | AH52: 0 | AI52: 0 | AJ52: 0 | AK52: 0 | AL52: 0 | AM52: 0 | AN52: 0 | AO52: 0 | AP52: 0 | AQ52: 0 | AR52: 0 | AS52: 0 | AT52: 0 | AU52: 0 | AV52: 0 | AW52: 0 | AX52: 0 | AY52: 0 | AZ52: 0 | BA52: 0 | BB52: 0 | BC52: 0 | BD52: 0 | BE52: 0 | BF52: 0 | BG52: 0 | BH52: 0
J53: 0 | K53: 0 | L53: 0 | M53: 0 | N53: 0 | O53: 0 | P53: 0 | Q53: 0 | R53: 0 | S53: 0 | T53: 0 | U53: 0 | V53: 0 | W53: 0 | X53: 0 | Y53: 0 | Z53: 0 | AA53: 0 | AB53: 0 | AC53: 0 | AD53: 0 | AE53: 0 | AF53: 0 | AG53: 0 | AH53: 0 | AI53: 0 | AJ53: 0 | AK53: 0 | AL53: 0 | AM53: 0 | AN53: 0 | AO53: 0 | AP53: 0 | AQ53: 0 | AR53: 0 | AS53: 0 | AT53: 0 | AU53: 0 | AV53: 0 | AW53: 0 | AX53: 0 | AY53: 0 | AZ53: 0 | BA53: 0 | BB53: 0 | BC53: 0 | BD53: 0 | BE53: 0 | BF53: 0 | BG53: 0 | BH53: 0
J54: =E25 -> 0 | K54: =IF(K25=0,J54-($E25/$B25),K25) -> 0 | L54: 0 | M54: 0 | N54: 0 | O54: 0 | P54: 0 | Q54: 0 | R54: 0 | S54: 0 | T54: 0 | U54: 0 | V54: 0 | W54: 0 | X54: 0 | Y54: 0 | Z54: 0 | AA54: 0 | AB54: 0 | AC54: 0 | AD54: 0 | AE54: 0 | AF54: 0 | AG54: 0 | AH54: 0 | AI54: 0 | AJ54: 0 | AK54: 0 | AL54: 0 | AM54: 0 | AN54: 0 | AO54: 0 | AP54: 0 | AQ54: =IF(AQ25=0,AP54-($E25/$B25),AQ25) -> 0 | AR54: 0 | AS54: 0 | AT54: 0 | AU54: 0 | AV54: 0 | AW54: 0 | AX54: 0 | AY54: 0 | AZ54: 0 | BA54: 0 | BB54: 0 | BC54: 0 | BD54: 0 | BE54: 0 | BF54: 0 | BG54: 0 | BH54: 0
I55: Summe | J55: =SUM(J35:J54) -> 0 | K55: =SUM(K35:K53) -> 0 | L55: =SUM(L35:L54) -> 0 | M55: =SUM(M35:M54) -> 0 | N55: 0 | O55: 0 | P55: 0 | Q55: 0 | R55: 0 | S55: 0 | T55: 0 | U55: 0 | V55: 0 | W55: 0 | X55: 0 | Y55: 0 | Z55: 0 | AA55: 0 | AB55: 0 | AC55: 0 | AD55: 0 | AE55: 0 | AF55: 0 | AG55: 0 | AH55: 0 | AI55: 0 | AJ55: 0 | AK55: 0 | AL55: 0 | AM55: 0 | AN55: 0 | AO55: 0 | AP55: 0 | AQ55: 0 | AR55: 0 | AS55: 0 | AT55: 0 | AU55: 0 | AV55: 0 | AW55: 0 | AX55: 0 | AY55: 0 | AZ55: 0 | BA55: 0 | BB55: 0 | BC55: 0 | BD55: 0 | BE55: 0 | BF55: 0 | BG55: 0 | BH55: 0

Sheet Investmentcost_Data (hidden)
B3: Grid:
A4: from tech-sheet | B4: Grid length (Planned final grid extension) | C4: m | D4: =grid_length -> 0
B5: ='3. Investment'!D16 -> % versiegelte Oberfläche | C5: ='3. Investment'!E16 -> % | D5: ='3. Investment'!F16 -> 0
B6: ='3. Investment'!D17 -> % Grünland | C6: ='3. Investment'!E17 -> % | D6: ='3. Investment'!F17 -> 1 | F6: Check if Sum makes up 100%! (link to tech-sheet!)
B7: ='3. Investment'!D18 -> % DN20 oder 25 | C7: ='3. Investment'!E18 -> % | D7: ='3. Investment'!F18 -> 0 | F7: =IF(OR(SUM(D5:D6)<>1,SUM(D7:D10)<>1),"Error! Sum is not 100%!","OK") -> OK
A8: ToDo-Implementieren | B8: ='3. Investment'!D19 -> % DN 50 | C8: ='3. Investment'!E19 -> % | D8: ='3. Investment'!F19 -> 0 | F8: error? (0=no/1=yes)
B9: ='3. Investment'!D20 -> % DN 100 | C9: ='3. Investment'!E20 -> % | D9: ='3. Investment'!F20 -> 0 | F9: =IF(OR(SUM(D5:D6)<>1,SUM(D7:D10)<>1),1,0) -> 0
B10: ='3. Investment'!D21 -> % DN 200 | C10: ='3. Investment'!E21 -> % | D10: ='3. Investment'!F21 -> 1
A12: Grid cost Pipe (from survey) | C12: EUR/m
B13: =SURVEY!B117 -> Trench, Sealed surface, very small (DN20 & DN25, roughly equal) | C13: =SURVEY!E117 -> 240 | D13: =$D$4*$D$5*D7*C13 -> 0
B14: =SURVEY!B118 -> Trench, Sealed surface, Small (DN50) | C14: =SURVEY!E118 -> 300 | D14: =$D$4*$D$5*D8*C14 -> 0
B15: =SURVEY!B119 -> Trench, Sealed surface, Medium (DN100) | C15: =SURVEY!E119 -> 400 | D15: =$D$4*$D$5*D9*C15 -> 0
B16: =SURVEY!B120 -> Trench, Sealed surface, Big (DN 200) | C16: =SURVEY!E120 -> 580 | D16: =$D$4*$D$5*D10*C16 -> 0
B17: =SURVEY!B121 -> Trench Open Land, very small (DN20 & DN25, roughly equal) | C17: =SURVEY!E121 -> 160 | D17: =$D$4*$D$6*D7*C17 -> 0
B18: =SURVEY!B122 -> Trench Open Land, Small (DN50) | C18: =SURVEY!E122 -> 220 | D18: =$D$4*$D$6*D8*C18 -> 0
B19: =SURVEY!B123 -> Trench Open Land, Medium (DN100) | C19: =SURVEY!E123 -> 280 | D19: =$D$4*$D$6*D9*C19 -> 0
B20: =SURVEY!B124 -> Trench Open Land, Big ( DN200) | C20: =SURVEY!E124 -> 460 | D20: =$D$4*$D$6*D10*C20 -> 0
B23: Default Cost - grid pipe and earthwork | D23: =IF(F9=0, SUM(D13:D20),"ERROR") -> 0
E25: ="P_Plant_max="&P_plant_max*1000&" kW" -> P_Plant_max=0 kW | G25: ="q_sold="&Q_sold&" MWh/a" -> q_sold= MWh/a
A26: ETS Cost (survey) | C26: Cost (EUR/q_sold) | D26: Category - P-low (kW) | E26: Category P-high(kW) | F26: Category | G26: Specific cost(EUR/MWh)
B28: =SURVEY!B126 -> Energy Transfer Station (ETS) Investment per sold Heat: P < 400 kW | C28: =SURVEY!E126 -> 70 | D28: 0 | E28: 400 | F28: =IF(AND(P_plant_max>D28/1000,P_plant_max<=E28/1000),1,0) -> 0 | G28: =C28*F28 -> 0
B29: =SURVEY!B127 -> Energy Transfer Station (ETS) Investment per sold Heat: 400kW < P <= 2000 kW | C29: =SURVEY!E127 -> 55 | D29: 400 | E29: 1000 | F29: =IF(AND(P_plant_max>D29/1000,P_plant_max<=E29/1000),1,0) -> 0 | G29: =C29*F29 -> 0
B30: =SURVEY!B128 -> Energy Transfer Station (ETS) Investment per sold Heat: 2000kW < P <= 4000 kW | C30: =SURVEY!E128 -> 35 | D30: 1000 | E30: 2000 | F30: =IF(AND(P_plant_max>D30/1000,P_plant_max<=E30/1000),1,0) -> 0 | G30: =C30*F30 -> 0
B31: =SURVEY!B129 -> Energy Transfer Station (ETS) Investment per sold Heat: 4000 kW < P | C31: =SURVEY!E129 -> 25 | D31: 2000 | E31: 20000 | F31: =IF(AND(P_plant_max>D31/1000,P_plant_max<=E31/1000),1,0) -> 0 | G31: =C31*F31 -> 0
B32: Default Cost - ETS Total | G32: =SUM(G28:G31) -> 0
A37: BM Boiler Cost | B37: =SURVEY!B10 -> Specific Cost: WOODCHIP boiler | C37: P (MW) | D37: Specific cost (EUR/MW) | E37: Class BM1 | F37: Class BM2 | G37: Class BM3 | H37: k | I37: d | J37: Value without Inflation Adaption
C38: 0 | D38: =D39+(D40-D39)*(C38-C39)/(C40-C39) -> 278692.9854 | E38: =IF(P_BM1<=$C39,1,0) -> 1 | F38: =IF(P_BM2<=$C39,1,0) -> 1 | G38: =IF(P_BM3<=$C39,1,0) -> 1 | H38: =(D39-D38)/(C39-C38) -> -16929.8541 | I38: =D38 -> 278692.9854
B39: =SURVEY!B11 -> Woodchip Boiler 100 kW | C39: 0.1 | D39: =SURVEY!E11 -> 277000 | E39: =IF(AND(P_BM1<=$C40,P_BM1>$C39),1,0) -> 0 | F39: =IF(AND(P_BM2<=$C40,P_BM2>$C39),1,0) -> 0 | G39: =IF(AND(P_BM3<=$C40,P_BM3>$C39),1,0) -> 0 | H39: =(D40-D39)/(C40-C39) -> -16929.8541 | I39: =D39 -> 277000 | J39: =SURVEY!F11 -> 277000
B40: =SURVEY!B12 -> Woodchip Boiler 250 kW | C40: 0.25 | D40: =SURVEY!E12 -> 274460.5219 | E40: 0 | F40: 0 | G40: 0 | H40: -16929.8541 | I40: 274460.5219 | J40: =SURVEY!F12 -> 274460.5219
B41: =SURVEY!B13 -> Woodchip Boiler 400 kW | C41: 0.4 | D41: =SURVEY!E13 -> 271921.0438 | E41: 0 | F41: 0 | G41: 0 | H41: -70505.65305 | I41: 271921.0438 | J41: =SURVEY!F13 -> 271921.0438
B42: =SURVEY!B14 -> Woodchip Boiler 700 kW | C42: 0.7 | D42: =SURVEY!E14 -> 250769.3479 | E42: 0 | F42: 0 | G42: 0 | H42: -82866.31951 | I42: 250769.3479 | J42: =SURVEY!F14 -> 250769.3479
B43: =SURVEY!B15 -> Woodchip Boiler 1 MW | C43: 1 | D43: =SURVEY!E15 -> 225909.452 | E43: 0 | F43: 0 | G43: 0 | H43: -13217.86866 | I43: 225909.452 | J43: =SURVEY!F15 -> 225909.452
B44: =SURVEY!B16 -> Woodchip Boiler 2.5 MW | C44: 2.5 | D44: =SURVEY!E16 -> 206082.649 | E44: 0 | F44: 0 | G44: 0 | H44: -13100.19789 | I44: 206082.649 | J44: =SURVEY!F16 -> 206082.649
B45: =SURVEY!B17 -> Woodchip Boiler 5 MW | C45: 5 | D45: =SURVEY!E17 -> 173332.1543 | E45: 0 | F45: 0 | G45: 0 | H45: -2901.978909 | I45: 173332.1543 | J45: =SURVEY!F17 -> 173332.1543
B46: =SURVEY!B18 -> Woodchip Boiler 10 MW | C46: 10 | D46: =SURVEY!E18 -> 158822.2598 | E46: 0 | F46: 0 | G46: 0 | H46: -1764.45195 | I46: 158822.2598 | J46: =SURVEY!F18 -> 158822.2598
B47: =SURVEY!B19 -> Woodchip Boiler 15 MW | C47: 15 | D47: =SURVEY!E19 -> 150000 | E47: 0 | F47: 0 | G47: 0 | H47: -1000 | I47: 150000 | J47: =SURVEY!F19 -> 150000
B48: =SURVEY!B20 -> Woodchip Boiler 20 MW | C48: 20 | D48: =SURVEY!E20 -> 145000 | E48: =IF(P_BM1>$C48,1,0) -> 0 | F48: =IF(P_BM2>$C48,1,0) -> 0 | G48: =IF(P_BM3>$C48,1,0) -> 0 | H48: =H47 -> -1000 | I48: 145000 | J48: =SURVEY!F20 -> 145000
B50: BM1 | C50: =P_BM1 -> 0 | D50: =H50*(C50-E50)+I50 -> 278692.9854 | E50: =SUMPRODUCT(E38:E48,C38:C48) -> 0 | H50: =SUMPRODUCT(H38:H48,E38:E48) -> -16929.8541 | I50: =SUMPRODUCT(I38:I48,E38:E48) -> 278692.9854
B51: BM2 | C51: =P_BM2 -> 0 | D51: =H51*(C51-F51)+I51 -> 278692.9854 | F51: =SUMPRODUCT(F38:F48,C38:C48) -> 0 | H51: =SUMPRODUCT(H38:H48,F38:F48) -> -16929.8541 | I51: =SUMPRODUCT(I38:I48,F38:F48) -> 278692.9854
B52: BM3 | C52: =P_BM3 -> 0 | D52: =H52*(C52-G52)+I52 -> 278692.9854 | G52: =SUMPRODUCT(G38:G48,C38:C48) -> 0 | H52: =SUMPRODUCT(H38:H48,G38:G48) -> -16929.8541 | I52: =SUMPRODUCT(I38:I48,G38:G48) -> 278692.9854
B54: =SURVEY!B22 -> Specific Cost: STRAW boiler | C54: P (MW) | D54: Specific cost (EUR/MW) | E54: Class BM1 | F54: Class BM2 | G54: Class BM3 | H54: k | I54: d
C55: 0 | D55: =D56+(D57-D56)*(C55-C56)/(C57-C56) -> 0 | E55: =IF(P_BM1<=$C56,1,0) -> 1 | F55: =IF(P_BM2<=$C56,1,0) -> 1 | G55: =IF(P_BM3<=$C56,1,0) -> 1 | H55: =(D56-D55)/(C56-C55) -> 0 | I55: =D55 -> 0
B56: =SURVEY!B23 -> Straw Boiler 100 kW | C56: 0.1 | D56: =SURVEY!E23 -> 0 | E56: =IF(AND(P_BM1<=$C57,P_BM1>$C56),1,0) -> 0 | F56: =IF(AND(P_BM2<=$C57,P_BM2>$C56),1,0) -> 0 | G56: =IF(AND(P_BM3<=$C57,P_BM3>$C56),1,0) -> 0 | H56: =(D57-D56)/(C57-C56) -> 0 | I56: =D56 -> 0 | J56: =SURVEY!F23 -> 0
B57: =SURVEY!B24 -> Straw Boiler 250 kW | C57: 0.25 | D57: =SURVEY!E24 -> 0 | E57: 0 | F57: 0 | G57: 0 | H57: 0 | I57: 0 | J57: =SURVEY!F24 -> 0
B58: =SURVEY!B25 -> Straw Boiler 400 kW | C58: 0.4 | D58: =SURVEY!E25 -> 0 | E58: 0 | F58: 0 | G58: 0 | H58: 0 | I58: 0 | J58: =SURVEY!F25 -> 0
B59: =SURVEY!B26 -> Straw Boiler 700 kW | C59: 0.7 | D59: =SURVEY!E26 -> 0 | E59: 0 | F59: 0 | G59: 0 | H59: 0 | I59: 0 | J59: =SURVEY!F26 -> 0
B60: =SURVEY!B27 -> Straw Boiler 1 MW | C60: 1 | D60: =SURVEY!E27 -> 0 | E60: 0 | F60: 0 | G60: 0 | H60: 0 | I60: 0 | J60: =SURVEY!F27 -> 0
B61: =SURVEY!B28 -> Straw Boiler 2.5 MW | C61: 2.5 | D61: =SURVEY!E28 -> 0 | E61: 0 | F61: 0 | G61: 0 | H61: 0 | I61: 0 | J61: =SURVEY!F28 -> 0
B62: =SURVEY!B29 -> Straw Boiler 5 MW | C62: 5 | D62: =SURVEY!E29 -> 0 | E62: 0 | F62: 0 | G62: 0 | H62: 0 | I62: 0 | J62: =SURVEY!F29 -> 0
B63: =SURVEY!B30 -> Straw Boiler 10 MW | C63: 10 | D63: =SURVEY!E30 -> 0 | E63: 0 | F63: 0 | G63: 0 | H63: 0 | I63: 0 | J63: =SURVEY!F30 -> 0
B64: =SURVEY!B31 -> Straw Boiler 15 MW | C64: 15 | D64: =SURVEY!E31 -> 0 | E64: 0 | F64: 0 | G64: 0 | H64: 0 | I64: 0 | J64: =SURVEY!F31 -> 0
B65: =SURVEY!B32 -> Straw Boiler 20 MW | C65: 20 | D65: =SURVEY!E32 -> 0 | E65: =IF(P_BM1>$C65,1,0) -> 0 | F65: =IF(P_BM2>$C65,1,0) -> 0 | G65: =IF(P_BM3>$C65,1,0) -> 0 | H65: =H64 -> 0 | I65: 0 | J65: =SURVEY!F32 -> 0
B67: BM1 | C67: =P_BM1 -> 0 | D67: =H67*(C67-E67)+I67 -> 0 | E67: =SUMPRODUCT(E55:E65,C55:C65) -> 0 | H67: =SUMPRODUCT(H55:H65,E55:E65) -> 0 | I67: =SUMPRODUCT(I55:I65,E55:E65) -> 0
B68: BM2 | C68: =P_BM2 -> 0 | D68: =H68*(C68-F68)+I68 -> 0 | F68: =SUMPRODUCT(F55:F65,C55:C65) -> 0 | H68: =SUMPRODUCT(H55:H65,F55:F65) -> 0 | I68: =SUMPRODUCT(I55:I65,F55:F65) -> 0
B69: BM3 | C69: =P_BM3 -> 0 | D69: =H69*(C69-G69)+I69 -> 0 | G69: =SUMPRODUCT(G55:G65,C55:C65) -> 0 | H69: =SUMPRODUCT(H55:H65,G55:G65) -> 0 | I69: =SUMPRODUCT(I55:I65,G55:G65) -> 0
B71: =SURVEY!B34 -> Specific Cost: PELLETS boiler | C71: P (MW) | D71: Specific cost (EUR/MW) | E71: Class BM1 | F71: Class BM2 | G71: Class BM3 | H71: k | I71: d
C72: 0 | D72: =D73+(D74-D73)*(C72-C73)/(C74-C73) -> 262657.9187 | E72: =IF(P_BM1<=$C73,1,0) -> 1 | F72: =IF(P_BM2<=$C73,1,0) -> 1 | G72: =IF(P_BM3<=$C73,1,0) -> 1 | H72: =(D73-D72)/(C73-C72) -> -224979.1867 | I72: =D72 -> 262657.9187
B73: =SURVEY!B35 -> Pellets Boiler 100 kW | C73: 0.1 | D73: =SURVEY!E35 -> 240160 | E73: =IF(AND(P_BM1<=$C74,P_BM1>$C73),1,0) -> 0 | F73: =IF(AND(P_BM2<=$C74,P_BM2>$C73),1,0) -> 0 | G73: =IF(AND(P_BM3<=$C74,P_BM3>$C73),1,0) -> 0 | H73: =(D74-D73)/(C74-C73) -> -224979.1867 | I73: 240160
B74: =SURVEY!B36 -> Pellets Boiler 250 kW | C74: 0.25 | D74: =SURVEY!E36 -> 206413.122 | E74: =IF(AND(P_BM1<=$C75,P_BM1>$C74),1,0) -> 0 | F74: =IF(AND(P_BM2<=$C75,P_BM2>$C74),1,0) -> 0 | G74: =IF(AND(P_BM3<=$C75,P_BM3>$C74),1,0) -> 0 | H74: =(D75-D74)/(C75-C74) -> 65851.20024 | I74: 206413.122
B75: =SURVEY!B37 -> Pellets Boiler 400 kW | C75: 0.4 | D75: =SURVEY!E37 -> 216290.802 | E75: =IF(AND(P_BM1<=$C76,P_BM1>$C75),1,0) -> 0 | F75: =IF(AND(P_BM2<=$C76,P_BM2>$C75),1,0) -> 0 | G75: =IF(AND(P_BM3<=$C76,P_BM3>$C75),1,0) -> 0 | H75: =(D76-D75)/(C76-C75) -> -42197.23152 | I75: 216290.802
B76: =SURVEY!B38 -> Pellets Boiler 700 kW | C76: 0.7 | D76: =SURVEY!E38 -> 203631.6326 | E76: =IF(AND(P_BM1<=$C77,P_BM1>$C76),1,0) -> 0 | F76: =IF(AND(P_BM2<=$C77,P_BM2>$C76),1,0) -> 0 | G76: =IF(AND(P_BM3<=$C77,P_BM3>$C76),1,0) -> 0 | H76: =(D77-D76)/(C77-C76) -> -46759.81921 | I76: 203631.6326
B77: =SURVEY!B39 -> Pellets Boiler 1 MW | C77: 1 | D77: =SURVEY!E39 -> 189603.6868 | E77: =IF(P_BM1>$C77,1,0) -> 0 | F77: =IF(P_BM2>$C77,1,0) -> 0 | G77: =IF(P_BM3>$C77,1,0) -> 0 | H77: =H76 -> -46759.81921 | I77: 189603.6868
B79: BM1 | C79: =P_BM1 -> 0 | D79: =H79*(C79-E79)+I79 -> 262657.9187 | E79: =SUMPRODUCT(E72:E75,C72:C75) -> 0 | H79: =SUMPRODUCT(H72:H77,E72:E77) -> -224979.1867 | I79: =SUMPRODUCT(I72:I77,E72:E77) -> 262657.9187
B80: BM2 | C80: =P_BM2 -> 0 | D80: =H80*(C80-F80)+I80 -> 262657.9187 | F80: =SUMPRODUCT(F72:F75,C72:C75) -> 0 | H80: =SUMPRODUCT(H72:H77,F72:F77) -> -224979.1867 | I80: =SUMPRODUCT(I72:I77,F72:F77) -> 262657.9187
B81: BM3 | C81: =P_BM3 -> 0 | D81: =H81*(C81-G81)+I81 -> 262657.9187 | G81: =SUMPRODUCT(G72:G75,C72:C75) -> 0 | H81: =SUMPRODUCT(H72:H77,G72:G77) -> -224979.1867 | I81: =SUMPRODUCT(I72:I77,G72:G77) -> 262657.9187
A83: Fossil Boiler Cost | B83: =SURVEY!B41 -> Specific Cost: FUEL OIL boiler | C83: P (MW) | D83: Specific cost (EUR/MW) | E83: Class peak/backup | F83: class Ref boiler1 | G83: class ref boiler 2 | H83: class ref boiler 3 | I83: k | J83: d
C84: 0 | D84: =D85+(D86-D85)*(C84-C85)/(C86-C85) -> 183633.3333 | E84: =IF(P_fossil<=$C85,1,0) -> 1 | F84: =IF(ref_P_boiler1<=$C85,1,0) -> 1 | G84: =IF(ref_P_boiler2<=$C85,1,0) -> 1 | H84: =IF(ref_P_boiler3<=$C85,1,0) -> 1 | I84: =(D85-D84)/(C85-C84) -> -373333.3333 | J84: =D84 -> 183633.3333
B85: =SURVEY!B42 -> Oil Boiler 100 kW | C85: 0.1 | D85: =SURVEY!E42 -> 146300 | E85: =IF(AND(P_fossil<=$C86,P_fossil>$C85),1,0) -> 0 | F85: =IF(AND(ref_P_boiler1<=$C86,ref_P_boiler1>$C85),1,0) -> 0 | G85: =IF(AND(ref_P_boiler2<=$C86,ref_P_boiler2>$C85),1,0) -> 0 | H85: =IF(AND(ref_P_boiler3<=$C86,ref_P_boiler3>$C85),1,0) -> 0 | I85: -373333.3333 | J85: 146300
B86: =SURVEY!B43 -> Oil Boiler 250 kW | C86: 0.25 | D86: =SURVEY!E43 -> 90300 | E86: 0 | F86: 0 | G86: 0 | H86: 0 | I86: -133333.3333 | J86: 90300
B87: =SURVEY!B44 -> Oil Boiler 400 kW | C87: 0.4 | D87: =SURVEY!E44 -> 70300 | E87: 0 | F87: 0 | G87: 0 | H87: 0 | I87: -57000 | J87: 70300
B88: =SURVEY!B45 -> Oil Boiler 700 kW | C88: 0.7 | D88: =SURVEY!E45 -> 53200 | E88: 0 | F88: 0 | G88: 0 | H88: 0 | I88: -28333.33333 | J88: 53200
B89: =SURVEY!B46 -> Oil Boiler 1 MW | C89: 1 | D89: =SURVEY!E46 -> 44700 | E89: 0 | F89: 0 | G89: 0 | H89: 0 | I89: -10800 | J89: 44700
B90: =SURVEY!B47 -> Oil Boiler 2.5 MW | C90: 2.5 | D90: =SURVEY!E47 -> 28500 | E90: 0 | F90: 0 | G90: 0 | H90: 0 | I90: -2640 | J90: 28500
B91: =SURVEY!B48 -> Oil Boiler 5 MW | C91: 5 | D91: =SURVEY!E48 -> 21900 | E91: 0 | F91: 0 | G91: 0 | H91: 0 | I91: -380 | J91: 21900
B92: =SURVEY!B49 -> Oil Boiler 10 MW | C92: 10 | D92: =SURVEY!E49 -> 20000 | E92: 0 | F92: 0 | G92: 0 | H92: 0 | I92: -400 | J92: 20000
B93: =SURVEY!B50 -> Oil Boiler 15 MW | C93: 15 | D93: =SURVEY!E50 -> 18000 | E93: 0 | F93: 0 | G93: 0 | H93: 0 | I93: -400 | J93: 18000
B94: =SURVEY!B51 -> Oil Boiler 20 MW | C94: 20 | D94: =SURVEY!E51 -> 16000 | E94: =IF(P_fossil>$C94,1,0) -> 0 | F94: =IF(ref_P_boiler1>$C94,1,0) -> 0 | G94: =IF(ref_P_boiler2>$C94,1,0) -> 0 | H94: =IF(ref_P_boiler3>$C94,1,0) -> 0 | I94: =I93 -> -400 | J94: 16000
B96: P_fossil | C96: =P_fossil -> 0 | D96: =I96*(C96-E96)+J96 -> 183633.3333 | E96: =SUMPRODUCT(E84:E94,C84:C94) -> 0 | I96: =SUMPRODUCT(I84:I94,E84:E94) -> -373333.3333 | J96: =SUMPRODUCT(J84:J94,E84:E94) -> 183633.3333
B97: ref_P_boiler 1 | C97: =ref_P_boiler1 -> 0 | D97: =I97*(C97-F97)+J97 -> 183633.3333 | F97: =SUMPRODUCT(F84:F94,C84:C94) -> 0 | I97: =SUMPRODUCT(I84:I94,F84:F94) -> -373333.3333 | J97: =SUMPRODUCT(J84:J94,F84:F94) -> 183633.3333
B98: ref_P_boiler 2 | C98: =ref_P_boiler2 -> 0 | D98: =I98*(C98-G98)+J98 -> 183633.3333 | G98: =SUMPRODUCT(G84:G94,C84:C94) -> 0 | I98: =SUMPRODUCT(I84:I94,G84:G94) -> -373333.3333 | J98: =SUMPRODUCT(J84:J94,G84:G94) -> 183633.3333
B99: ref_P_boiler 3 | C99: =ref_P_boiler3 -> 0 | D99: =I99*(C99-H99)+J99 -> 183633.3333 | H99: =SUMPRODUCT(H84:H94,C84:C94) -> 0 | I99: =SUMPRODUCT(I84:I94,H84:H94) -> -373333.3333 | J99: =SUMPRODUCT(J84:J94,H84:H94) -> 183633.3333
A101: Oil Tank | B101: =SURVEY!B53 -> Specific Cost: FUEL OIL TANK | C101: Volume (l) | D101: specific cost (CUR/l) | E101: Class peak/backup | F101: class Ref | H101: k | I101: d
A102: fixed storage time assumptions | C102: 0 | D102: =D103+(D104-D103)*(C102-C103)/(C104-C103) -> 2.54 | E102: =IF($C$114<=$C103,1,0) ->  | F102: =IF(C115<=$C103,1,0) ->  | H102: =(D103-D102)/(C103-C102) -> -0.00098 | I102: =D102 -> 2.54
A103: Peak/backup: Fix 3 tage | B103: =SURVEY!B54 -> Specific fuel tank cost, 500 l | C103: 500 | D103: =SURVEY!E54 -> 2.05 | E103: =IF(AND(C114<=$C104,C114>$C103),1,0) ->  | F103: =IF(AND(C115<=$C104,C115>$C103),1,0) ->  | H103: -0.00098 | I103: 2.05
A104: Ref-system: Variabel (link von sheet) | B104: =SURVEY!B55 -> Specific fuel tank cost, 1000 l | C104: 1000 | D104: =SURVEY!E55 -> 1.56 | E104: =IF(AND(C114<=$C105,C114>$C104),1,0) ->  | F104: =IF(AND(C115<=$C105,C115>$C104),1,0) ->  | H104: -0.0002666666667 | I104: 1.56
B105: =SURVEY!B56 -> Specific fuel tank cost, 2500 l | C105: 2500 | D105: =SURVEY!E56 -> 1.16 | E105: =IF(AND(C114<=$C106,C114>$C105),1,0) ->  | F105: =IF(AND(C115<=$C106,C115>$C105),1,0) ->  | H105: -8e-05 | I105: 1.16
B106: =SURVEY!B57 -> Specific fuel tank cost, 5000 l | C106: 5000 | D106: =SURVEY!E57 -> 0.96 | E106: =IF(AND(C114<=$C107,C114>$C106),1,0) ->  | F106: =IF(AND(C115<=$C107,C115>$C106),1,0) ->  | H106: -2.8e-05 | I106: 0.96
B107: =SURVEY!B58 -> Specific fuel tank cost, 10000 l | C107: 10000 | D107: =SURVEY!E58 -> 0.82 | E107: =IF(AND(C114<=$C108,C114>$C107),1,0) ->  | F107: =IF(AND(C115<=$C108,C115>$C107),1,0) ->  | H107: -1e-05 | I107: 0.82
B108: =SURVEY!B59 -> Specific fuel tank cost, 20000 l | C108: 20000 | D108: =SURVEY!E59 -> 0.72 | E108: =IF(AND(C114<=$C109,C114>$C108),1,0) ->  | F108: =IF(AND(C115<=$C109,C115>$C108),1,0) ->  | H108: -4e-06 | I108: 0.72
B109: =SURVEY!B60 -> Specific fuel tank cost, 40000 l | C109: 40000 | D109: =SURVEY!E60 -> 0.64 | E109: =IF(AND(C114<=$C110,C114>$C109),1,0) ->  | F109: =IF(AND(C115<=$C110,C115>$C109),1,0) ->  | H109: -1.75e-06 | I109: 0.64
B110: =SURVEY!B61 -> Specific fuel tank cost, 80000 l | C110: 80000 | D110: =SURVEY!E61 -> 0.57 | E110: =IF(AND(C114<=$C111,C114>$C110),1,0) ->  | F110: =IF(AND(C115<=$C111,C115>$C110),1,0) ->  | H110: -6.25e-07 | I110: 0.57
B111: =SURVEY!B62 -> Specific fuel tank cost, 16000 l | C111: 160000 | D111: =SURVEY!E62 -> 0.52 | E111: =IF(AND(C114<=$C112,C114>$C111),1,0) ->  | F111: =IF(AND(C115<=$C112,C115>$C111),1,0) ->  | H111: -3.125e-07 | I111: 0.52
B112: =SURVEY!B63 -> Specific fuel tank cost, 32000 l | C112: 320000 | D112: =SURVEY!E63 -> 0.47 | E112: =IF(C114>$C112,1,0) ->  | F112: =IF(C115>$C112,1,0) ->  | H112: =H111 -> -3.125e-07 | I112: 0.47
B113: Full load hours storage capacity | C113: neccesary volume (l) | J113: ABSOLUTE COST OILTANK (EUR) (wird boiler 1 zugerechnet)
A114: P_fossil | B114: =3*16 -> 48 | C114: =C96*B114*0.1*1000/SE_boiler_fossil ->  | D114: =H114*(C114-E114)+I114 ->  | E114: =SUMPRODUCT(E102:E112,C102:C112) ->  | H114: =SUMPRODUCT(H102:H112,E102:E112) ->  | I114: =SUMPRODUCT(I102:I112,E102:E112) ->  | J114: =D114*C114 -> 
A115: ref_P_boiler | B115: ='3. Investment'!F116*16 -> 0 | C115: =ref_P_boiler*B115*0.1*1000/ref_SE_boiler ->  | D115: =H115*(C115-F115)+I115 ->  | F115: =SUMPRODUCT(F102:F112,C102:C112) ->  | H115: =SUMPRODUCT(H102:H112,F102:F112) ->  | I115: =SUMPRODUCT(I102:I112,F102:F112) ->  | J115: =D115*C115 -> 
B119: =SURVEY!B65 -> Specific Cost: NATURAL GAS boiler | C119: P (MW) | D119: Specific cost (EUR/MW) | E119: Class peak/backup | F119: class Ref boiler1 | G119: class ref boiler 2 | H119: class ref boiler 3 | I119: k | J119: d
C120: 0 | D120: =D121+(D122-D121)*(C120-C121)/(C122-C121) -> 136800 | E120: =IF(P_fossil<=$C121,1,0) -> 1 | F120: =IF(ref_P_boiler1<=$C121,1,0) -> 1 | G120: =IF(ref_P_boiler2<=$C121,1,0) -> 1 | H120: =IF(ref_P_boiler3<=$C121,1,0) -> 1 | I120: =(D121-D120)/(C121-C120) -> -266000 | J120: =D120 -> 136800
B121: =SURVEY!B66 -> Gas Boiler 100 kW | C121: 0.1 | D121: =SURVEY!E66 -> 110200 | E121: =IF(AND(P_fossil<=$C122,P_fossil>$C121),1,0) -> 0 | F121: =IF(AND(ref_P_boiler1<=$C122,ref_P_boiler1>$C121),1,0) -> 0 | G121: =IF(AND(ref_P_boiler2<=$C122,ref_P_boiler2>$C121),1,0) -> 0 | H121: =IF(AND(ref_P_boiler3<=$C122,ref_P_boiler3>$C121),1,0) -> 0 | I121: -266000 | J121: 110200
B122: =SURVEY!B67 -> Gas Boiler 250 kW | C122: 0.25 | D122: =SURVEY!E67 -> 70300 | E122: 0 | F122: 0 | G122: 0 | H122: 0 | I122: -88666.66667 | J122: 70300
B123: =SURVEY!B68 -> Gas Boiler 400 kW | C123: 0.4 | D123: =SURVEY!E68 -> 57000 | E123: 0 | F123: 0 | G123: 0 | H123: 0 | I123: -44333.33333 | J123: 57000
B124: =SURVEY!B69 -> Gas Boiler 700 kW | C124: 0.7 | D124: =SURVEY!E69 -> 43700 | E124: 0 | F124: 0 | G124: 0 | H124: 0 | I124: -22000 | J124: 43700
B125: =SURVEY!B70 -> Gas Boiler 1 MW | C125: 1 | D125: =SURVEY!E70 -> 37100 | E125: 0 | F125: 0 | G125: 0 | H125: 0 | I125: -8866.666667 | J125: 37100
B126: =SURVEY!B71 -> Gas Boiler 2.5 MW | C126: 2.5 | D126: =SURVEY!E71 -> 23800 | E126: 0 | F126: 0 | G126: 0 | H126: 0 | I126: -2280 | J126: 23800
B127: =SURVEY!B72 -> Gas Boiler 5 MW | C127: 5 | D127: =SURVEY!E72 -> 18100 | E127: 0 | F127: 0 | G127: 0 | H127: 0 | I127: -420 | J127: 18100
B128: =SURVEY!B73 -> Gas Boiler 10 MW | C128: 10 | D128: =SURVEY!E73 -> 16000 | E128: 0 | F128: 0 | G128: 0 | H128: 0 | I128: -200 | J128: 16000
B129: =SURVEY!B74 -> Gas Boiler 15 MW | C129: 15 | D129: =SURVEY!E74 -> 15000 | E129: 0 | F129: 0 | G129: 0 | H129: 0 | I129: -400 | J129: 15000
B130: =SURVEY!B75 -> Gas Boiler 20 MW | C130: 20 | D130: =SURVEY!E75 -> 13000 | E130: =IF(P_fossil>$C130,1,0) -> 0 | F130: =IF(ref_P_boiler1>$C130,1,0) -> 0 | G130: =IF(ref_P_boiler2>$C130,1,0) -> 0 | H130: =IF(ref_P_boiler3>$C130,1,0) -> 0 | I130: =I129 -> -400 | J130: 13000
B132: =SURVEY!B77 -> NATURAL GAS grid connection cost | C132: % of investcost gas boiler
B134: P_fossil | C134: =P_fossil -> 0 | D134: =I134*(C134-E134)+J134 -> 136800 | E134: =SUMPRODUCT(E120:E130,C120:C130) -> 0 | I134: =SUMPRODUCT(I120:I130,E120:E130) -> -266000 | J134: =SUMPRODUCT(J120:J130,E120:E130) -> 136800
B135: ref_P_boiler 1 | C135: =ref_P_boiler1 -> 0 | D135: =I135*(C135-F135)+J135 -> 136800 | F135: =SUMPRODUCT(F$120:F$130,$C$120:$C$130) -> 0 | I135: =SUMPRODUCT(I120:I130,F120:F130) -> -266000 | J135: =SUMPRODUCT(J120:J130,F120:F130) -> 136800
B136: ref_P_boiler 2 | C136: =ref_P_boiler2 -> 0 | D136: =I136*(C136-G136)+J136 -> 136800 | G136: =SUMPRODUCT(G$120:G$130,$C$120:$C$130) -> 0 | I136: =SUMPRODUCT(I120:I130,G120:G130) -> -266000 | J136: =SUMPRODUCT(J120:J130,G120:G130) -> 136800
B137: ref_P_boiler 3 | C137: =ref_P_boiler3 -> 0 | D137: =I137*(C137-H137)+J137 -> 136800 | H137: =SUMPRODUCT(H$120:H$130,$C$120:$C$130) -> 0 | I137: =SUMPRODUCT(I120:I130,H120:H130) -> -266000 | J137: =SUMPRODUCT(J120:J130,F120:F130) -> 136800
B139: =SURVEY!B79 -> Specific Cost: COAL boiler | C139: P (MW) | D139: Specific cost (EUR/MW) | E139: Class peak/backup | F139: class Ref boiler1 | G139: class ref boiler 2 | H139: class ref boiler 3 | I139: k | J139: d
C140: 0 | D140: =D141+(D142-D141)*(C140-C141)/(C142-C141) -> 0 | E140: =IF(P_fossil<=$C141,1,0) -> 1 | F140: =IF(ref_P_boiler1<=$C141,1,0) -> 1 | G140: =IF(ref_P_boiler2<=$C141,1,0) -> 1 | H140: =IF(ref_P_boiler3<=$C141,1,0) -> 1 | I140: =(D141-D140)/(C141-C140) -> 0 | J140: =D140 -> 0
B141: =SURVEY!B80 -> Coal Boiler 100 kW | C141: 0.1 | D141: =SURVEY!E80 -> 0 | E141: =IF(AND(P_fossil<=$C142,P_fossil>$C141),1,0) -> 0 | F141: =IF(AND(ref_P_boiler1<=$C142,ref_P_boiler1>$C141),1,0) -> 0 | G141: =IF(AND(ref_P_boiler2<=$C142,ref_P_boiler2>$C141),1,0) -> 0 | H141: =IF(AND(ref_P_boiler3<=$C142,ref_P_boiler3>$C141),1,0) -> 0 | I141: 0 | J141: 0
B142: =SURVEY!B81 -> Coal Boiler 250 kW | C142: 0.25 | D142: =SURVEY!E81 -> 0 | E142: 0 | F142: 0 | G142: 0 | H142: 0 | I142: 0 | J142: 0
B143: =SURVEY!B82 -> Coal Boiler 400 kW | C143: 0.4 | D143: =SURVEY!E82 -> 0 | E143: 0 | F143: 0 | G143: 0 | H143: 0 | I143: 0 | J143: 0
B144: =SURVEY!B83 -> Coal Boiler 700 kW | C144: 0.7 | D144: =SURVEY!E83 -> 0 | E144: 0 | F144: 0 | G144: 0 | H144: 0 | I144: 0 | J144: 0
B145: =SURVEY!B84 -> Coal Boiler 1 MW | C145: 1 | D145: =SURVEY!E84 -> 0 | E145: 0 | F145: 0 | G145: 0 | H145: 0 | I145: 0 | J145: 0
B146: =SURVEY!B85 -> Coal Boiler 2.5 MW | C146: 2.5 | D146: =SURVEY!E85 -> 0 | E146: 0 | F146: 0 | G146: 0 | H146: 0 | I146: 0 | J146: 0
B147: =SURVEY!B86 -> Coal Boiler 5 MW | C147: 5 | D147: =SURVEY!E86 -> 0 | E147: 0 | F147: 0 | G147: 0 | H147: 0 | I147: 0 | J147: 0
B148: =SURVEY!B87 -> Coal Boiler 10 MW | C148: 10 | D148: =SURVEY!E87 -> 0 | E148: 0 | F148: 0 | G148: 0 | H148: 0 | I148: 0 | J148: 0
B149: =SURVEY!B88 -> Coal Boiler 15 MW | C149: 15 | D149: =SURVEY!E88 -> 0 | E149: 0 | F149: 0 | G149: 0 | H149: 0 | I149: 0 | J149: 0
B150: =SURVEY!B89 -> Coal Boiler 20 MW | C150: 20 | D150: =SURVEY!E89 -> 0 | E150: =IF(P_fossil>$C150,1,0) -> 0 | F150: =IF(ref_P_boiler1>$C150,1,0) -> 0 | G150: =IF(ref_P_boiler2>$C150,1,0) -> 0 | H150: =IF(ref_P_boiler3>$C150,1,0) -> 0 | I150: =I149 -> 0 | J150: 0
B152: P_fossil | C152: =P_fossil -> 0 | D152: =I152*(C152-E152)+J152 -> 0 | E152: =SUMPRODUCT(E140:E150,C140:C150) -> 0 | I152: =SUMPRODUCT(I140:I150,E140:E150) -> 0 | J152: =SUMPRODUCT(J140:J150,E140:E150) -> 0
B153: ref_P_boiler 1 | C153: =ref_P_boiler1 -> 0 | D153: =I153*(C153-F153)+J153 -> 0 | F153: =SUMPRODUCT(F$140:F$150,$C$140:$C$150) -> 0 | I153: =SUMPRODUCT(I$140:I$150,F$140:F$150) -> 0 | J153: =SUMPRODUCT(J$140:J$150,F$140:F$150) -> 0
B154: ref_P_boiler 2 | C154: =ref_P_boiler2 -> 0 | D154: =I154*(C154-G154)+J154 -> 0 | G154: =SUMPRODUCT(G$140:G$150,$C$140:$C$150) -> 0 | I154: =SUMPRODUCT(I$140:I$150,G$140:G$150) -> 0 | J154: =SUMPRODUCT(J$140:J$150,G$140:G$150) -> 0
B155: ref_P_boiler 3 | C155: =ref_P_boiler3 -> 0 | D155: =I155*(C155-H155)+J155 -> 0 | H155: =SUMPRODUCT(H$140:H$150,$C$140:$C$150) -> 0 | I155: =SUMPRODUCT(I$140:I$150,H$140:H$150) -> 0 | J155: =SUMPRODUCT(J$140:J$150,H$140:H$150) -> 0
A157: BOILERCOST -- Summary & links!° | B157: Fuel Type | C157: BM1 (EUR/MW) | D157: BM2 (EUR/MW) | E157: BM3 (EUR/MW) | F157: P_fossil (EUR/MW) | G157: ref_P_boiler1 (EUR/MW) | H157: ref_P_boiler2 (EUR/MW) | I157: ref_P_boiler3 (EUR/MW)
B158: =General_Data!F33 -> Wood Chips | C158: =D50 -> 278692.9854 | D158: =D51 -> 278692.9854 | E158: =D52 -> 278692.9854
B159: =General_Data!F34 -> Wood-Pellets | C159: =D79 -> 262657.9187 | D159: =D80 -> 262657.9187 | E159: =D81 -> 262657.9187
B160: =General_Data!F35 -> Straw | C160: =D67 -> 0 | D160: =D68 -> 0 | E160: =D69 -> 0
A161: Specific Cost (EUR/MW) | B161: =General_Data!F36 -> Other | C161: No Default available | D161: No Default available | E161: No Default available
B162: =General_Data!F59 -> Natural Gas | F162: =D134 -> 136800 | G162: =D135 -> 136800 | H162: =D136 -> 136800 | I162: =D137 -> 136800
B163: =General_Data!F60 -> Fuel Oil | F163: =D96 -> 183633.3333 | G163: =D97 -> 183633.3333 | H163: =D98 -> 183633.3333 | I163: =D99 -> 183633.3333
B164: =General_Data!F61 -> Coal | F164: =D152 -> 0 | G164: =D153 -> 0 | H164: =D154 -> 0 | I164: =D155 -> 0
A165: x
B166: =B158 -> Wood Chips | C166: =C158*P_BM1 -> 0 | D166: =D158*P_BM2 -> 0 | E166: =E158*P_BM3 -> 0
B167: Wood-Pellets | C167: =C159*P_BM1 -> 0 | D167: =D159*P_BM2 -> 0 | E167: =E159*P_BM3 -> 0
B168: Straw | C168: =C160*P_BM1 -> 0 | D168: =D160*P_BM2 -> 0 | E168: =E160*P_BM3 -> 0
A169: Absout Cost (EUR) | B169: Other | C169: No Default available | D169: No Default available | E169: No Default available
B170: Natural Gas | F170: =F162*P_fossil*(1+$D$132) -> 0 | G170: =G162*ref_P_boiler1*(1+$D$132) -> 0 | H170: =H162*ref_P_boiler2*(1+$D$132) -> 0 | I170: =I162*ref_P_boiler3*(1+$D$132) -> 0
B171: Fuel Oil | F171: =F163*P_fossil+J114 ->  | G171: =G163*ref_P_boiler1 -> 0 | H171: =H163*ref_P_boiler2 -> 0 | I171: =I163*ref_P_boiler3 -> 0
B172: Coal | F172: =F164*P_fossil -> 0 | G172: =G164*ref_P_boiler1 -> 0 | H172: =H164*ref_P_boiler2 -> 0 | I172: =I164*ref_P_boiler3 -> 0
C174: BM1 (EUR) | D174: BM2 (EUR) | E174: BM3 (EUR) | F174: P_fossil (EUR) | G174: ref_P_boiler1 (EUR) | H174: ref_P_boiler2 (EUR) | I174: ref_P_boiler3 (EUR)
C175: =Fueltype_BM&" "&P_BM1&"MW" -> Wood-Pellets MW | D175: =Fueltype_BM&" "&P_BM2&"MW" -> Wood-Pellets MW | E175: =Fueltype_BM&" "&P_BM3&"MW" -> Wood-Pellets MW | F175: =Fueltype_fossil&" "&P_fossil&"MW" -> - MW | G175: =ref_fueltype&" "&ref_P_boiler1&"MW" -> Fuel Oil MW | H175: =ref_fueltype&" "&ref_P_boiler2&"MW" -> Fuel Oil MW | I175: =ref_fueltype&" "&ref_P_boiler3&"MW" -> Fuel Oil MW
A176: = Selected Default Absolut Cost (EUR) | C176: =INDEX(C166:C172,MATCH(Fueltype_BM,$B$166:$B$172,0 )) -> 0 | D176: =INDEX(D166:D172,MATCH(Fueltype_BM,$B$166:$B$172,0 )) -> 0 | E176: =INDEX(E166:E172,MATCH(Fueltype_BM,$B$166:$B$172,0 )) -> 0 | F176: =IF(F177="New",INDEX(F166:F172,MATCH(Fueltype_fossil,$B$166:$B$172,0 )),0) -> 0 | G176: =INDEX(G166:G172,MATCH(ref_fueltype,$B$166:$B$172,0 )) -> 0 | H176: =INDEX(H166:H172,MATCH(ref_fueltype,$B$166:$B$172,0 )) -> 0 | I176: =INDEX(I166:I172,MATCH(ref_fueltype,$B$166:$B$172,0 )) -> 0
E177: old/new fossil bolier? | F177: =Technical_Data!$B$42 -> Old
A179: Installations (relativ to P_BM) | B179: =SURVEY!B91 -> Specific Cost: BOILER RELATED INSTALLATIONS | C179: P (MW) | D179: Specific cost (EUR/MW) | E179: Class P_BM | H179: k | I179: d
C180: 0 | D180: =D181+(D182-D181)*(C180-C181)/(C182-C181) -> 79441.81163 | E180: =IF(P_BM<=$C181,1,0) -> 1 | H180: =(D181-D180)/(C181-C180) -> 105581.8837 | I180: =D180 -> 79441.81163
B181: =SURVEY!B92 -> Avg. Cost 100 kW | C181: 0.1 | D181: =SURVEY!E92 -> 90000 | E181: =IF(AND(P_BM<=$C182,P_BM>$C181),1,0) -> 0 | H181: =(D182-D181)/(C182-C181) -> 105581.8837 | I181: =D181 -> 90000
B182: =SURVEY!B93 -> Avg. Cost 250 kW | C182: 0.25 | D182: =SURVEY!E93 -> 105837.2825 | E182: 0 | H182: 105581.8837 | I182: 105837.2825
B183: =SURVEY!B94 -> Avg. Cost 400 kW | C183: 0.4 | D183: =SURVEY!E94 -> 121674.5651 | E183: 0 | H183: 45869.13195 | I183: 121674.5651
B184: =SURVEY!B95 -> Avg. Cost 700 kW | C184: 0.7 | D184: =SURVEY!E95 -> 135435.3047 | E184: 0 | H184: -112574.7471 | I184: 135435.3047
B185: =SURVEY!B96 -> Avg. Cost 1 MW | C185: 1 | D185: =SURVEY!E96 -> 101662.8806 | E185: 0 | H185: -27182.65721 | I185: 101662.8806
B186: =SURVEY!B97 -> Avg. Cost 2.5 MW | C186: 2.5 | D186: =SURVEY!E97 -> 60888.89474 | E186: =IF(AND(P_BM<=$C187,P_BM>$C186),1,0) -> 0 | H186: 8054.598888 | I186: 60888.89474
B187: =SURVEY!B98 -> Avg. Cost 5 MW | C187: 5 | D187: =SURVEY!E98 -> 81025.39196 | E187: 0 | H187: -3615.539311 | I187: 81025.39196
B188: =SURVEY!B99 -> Avg. Cost 10 MW | C188: 10 | D188: =SURVEY!E99 -> 62947.6954 | E188: 0 | H188: -794.7695403 | I188: 62947.6954
B189: =SURVEY!B100 -> Avg. Cost 15 MW | C189: 15 | D189: =SURVEY!E100 -> 58973.8477 | E189: 0 | H189: -794.7695403 | I189: 58973.8477
B190: =SURVEY!B101 -> Avg. Cost 20 MW | C190: 20 | D190: =SURVEY!E101 -> 55000 | E190: =IF(P_BM>$C190,1,0) -> 0 | H190: =H189 -> -794.7695403 | I190: 55000
A192: default: | B192: P_BM | C192: =P_BM -> 0 | D192: =H192*(C192-E192)+I192 -> 79441.81163 | E192: =SUMPRODUCT(E180:E190,C180:C190) -> 0 | H192: =SUMPRODUCT(H180:H190,E180:E190) -> 105581.8837 | I192: =SUMPRODUCT(I180:I190,E180:E190) -> 79441.81163
A193: default absolut cost | D193: =D192*C192 -> 0
A196: Boiler house & Storage | B196: =SURVEY!B104 -> COST FUNCTION BUILDING COST | C196: P_plant_max | D196: Specific cost (EUR/MW) | E196: Class P_peak | H196: k | I196: d
C197: 0 | D197: =D198+(D199-D198)*(C197-C198)/(C199-C198) -> 4050 | E197: =IF(P_plant_max<=$C198,1,0) -> 1 | H197: =(D198-D197)/(C198-C197) -> 89400 | I197: =D197 -> 4050
B198: Boiler house - small (250kW / 360 m³ ) | C198: 0.25 | D198: =SURVEY!E107 -> 26400 | E198: =IF(AND(P_plant_max<=$C199,P_plant_max>$C198),1,0) -> 0 | H198: =(D199-D198)/(C199-C198) -> 89400 | I198: =D198 -> 26400
B199: Boiler house - medium (2.5 MW / 700 m³) | C199: 2.5 | D199: =SURVEY!E108 -> 227550 | E199: =IF(AND(P_plant_max<=$C200,P_plant_max>$C199),1,0) -> 0 | H199: =(D200-D199)/(C200-C199) -> 41660 | I199: =D199 -> 227550
B200: Boiler house - big (10 MW / 1750 m³) | C200: 10 | D200: =SURVEY!E109 -> 540000 | E200: =IF(P_plant_max>$C200,1,0) -> 0 | H200: =(D201-D200)/(C201-C200) -> 54000 | I200: =D200 -> 540000
A202: Specific cost | B202: P_plant_max | C202: =P_plant_max -> 0 | D202: =H202*(C202-E202)+I202 -> 4050 | E202: =SUMPRODUCT(E197:E200,C197:C200) -> 0 | H202: =SUMPRODUCT(H197:H200,E197:E200) -> 89400 | I202: =SUMPRODUCT(I197:I200,E197:E200) -> 4050
A203: default absolut cost | D203: =D202 -> 4050
C205: Storage Size (m³) | D205: Specific Cost (EUR/m³) | E205: Absolut Cost
A206: Fuel Storage | B206: =SURVEY!B112 -> Roofed biomass fuel storage hall, specific construction cost, lower range | C206: =BM_storage_size ->  | D206: =H208*(C202)+I208 -> 70 | E206: =C206*D206 -> 
H207: k | I207: d
C208: 0.1 | D208: =SURVEY!E112 -> 50 | H208: =-(D209-D208)/(C209-C208) -> -1.005025126 | I208: =D209 -> 70
C209: 20 | D209: =SURVEY!E113 -> 70
A211: Fossil reference System

Sheet 4. Receipts
A1: ^FIT
A2: 40 | C2: B4B BioHeat Profitability Assessment Tool - Comparison of the economic efficiency (pre-feasibility level) of mid-scale, solid biomass and fossil fuel fired (district & in-house) heat-only plants
A3: 55
C4: =HYPERLINK("#"&'Manual for Translation'!E323,'Manual for Translation'!F323) -> 4000 | D4: JÄHRLICHE EINZAHGLUNGEN (exkl. USt.) | K4: =HYPERLINK("#'Manual for Translation'!$j$"&ROW('Manual for Translation'!J323)) -> #'Manual for Translation'!$j$323
K5: =HYPERLINK("#'Manual for Translation'!$j$"&ROW('Manual for Translation'!J324)) -> #'Manual for Translation'!$j$324
A6: 70 | D6: Dieser Abschnitt enthält wichtige Variablen in Bezug auf regelmäßige und unregelmäßige Einnahmen / Einkommen, die aus dem Wärmeumsatz generiert werden können. Falls Sie keine Wärme verkaufen, (z.B. Biomassekessel für den Eigenbedarf) geben Sie unten bitte die Opportunitätskosten an (Kosten für die Wärmeerzeugung). | K6: =HYPERLINK("#'Manual for Translation'!$j$"&ROW('Manual for Translation'!J325)) -> #'Manual for Translation'!$j$325
K7: =HYPERLINK("#'Manual for Translation'!$j$"&ROW('Manual for Translation'!J326)) -> #'Manual for Translation'!$j$326
C8: =HYPERLINK("#"&'Manual for Translation'!E327,'Manual for Translation'!F327) -> 4004 | D8: Biomasseheizanlage | K8: =HYPERLINK("#'Manual for Translation'!$j$"&ROW('Manual for Translation'!J327)) -> #'Manual for Translation'!$j$327
D9: Parameter | E9: Einheit | F9: Eingabewert | G9: Referenzwert | K9: =HYPERLINK("#'Manual for Translation'!$j$"&ROW('Manual for Translation'!J328)) -> #'Manual for Translation'!$j$328
F10: =Receipts_Data!D36 -> für 2018 | G10: =Receipts_Data!D37 -> von 2015 | H10: Selected Value | K10: =HYPERLINK("#'Manual for Translation'!$j$"&ROW('Manual for Translation'!J329)) -> #'Manual for Translation'!$j$329
A11: ^HID | K11: =HYPERLINK("#'Manual for Translation'!$j$"&ROW('Manual for Translation'!J330)) -> #'Manual for Translation'!$j$330
C12: =HYPERLINK("#"&'Manual for Translation'!E331,'Manual for Translation'!F331) -> 4008 | D12: Wärmeverkaufsentwicklung | K12: =HYPERLINK("#'Manual for Translation'!$j$"&ROW('Manual for Translation'!J331)) -> #'Manual for Translation'!$j$331
C13: =HYPERLINK("#"&'Manual for Translation'!E332,'Manual for Translation'!F332) -> 4009 | D13: Wärmeverkauf basierend auf Netzausbau im Jahr 1 | E13: % | G13: =Grid_frac_Y1 -> 0 | K13: =HYPERLINK("#'Manual for Translation'!$j$"&ROW('Manual for Translation'!J332)) -> #'Manual for Translation'!$j$332
C14: =HYPERLINK("#"&'Manual for Translation'!E333,'Manual for Translation'!F333) -> 4010 | D14: Wärmeverkauf basierend auf Netzausbau im Jahr 2 | E14: % | G14: =Grid_frac_Y2 -> 1 | K14: =HYPERLINK("#'Manual for Translation'!$j$"&ROW('Manual for Translation'!J333)) -> #'Manual for Translation'!$j$333
C15: =HYPERLINK("#"&'Manual for Translation'!E334,'Manual for Translation'!F334) -> 4011 | D15: Wärmeverkauf basierend auf Netzausbau im Jahr 3 | E15: % | G15: =Grid_frac_Y3 -> 1 | K15: =HYPERLINK("#'Manual for Translation'!$j$"&ROW('Manual for Translation'!J334)) -> #'Manual for Translation'!$j$334
C16: =HYPERLINK("#"&'Manual for Translation'!E335,'Manual for Translation'!F335) -> 4012 | D16: Wärmeverkauf basierend auf Netzausbau nach Jahr 3 | E16: % | F16: 1 | K16: =HYPERLINK("#'Manual for Translation'!$j$"&ROW('Manual for Translation'!J335)) -> #'Manual for Translation'!$j$335
K17: =HYPERLINK("#'Manual for Translation'!$j$"&ROW('Manual for Translation'!J336)) -> #'Manual for Translation'!$j$336
C18: =HYPERLINK("#"&'Manual for Translation'!E337,'Manual for Translation'!F337) -> 4014 | D18: Wärmepreis | K18: =HYPERLINK("#'Manual for Translation'!$j$"&ROW('Manual for Translation'!J337)) -> #'Manual for Translation'!$j$337
C19: =HYPERLINK("#"&'Manual for Translation'!E338,'Manual for Translation'!F338) -> 4015 | D19: Durchschnittlicher Wärmeverkaufspreis (exkl. USt.), im Jahr 1 | E19: =CUR&"/MWh sold" -> EUR/MWh sold | G19: =IF(SURVEY!E158=0,"N/A",SURVEY!E158) -> 80 - 95 | H19: =IF(F19="",G19,F19) -> 80 - 95 | K19: =HYPERLINK("#'Manual for Translation'!$j$"&ROW('Manual for Translation'!J338)) -> #'Manual for Translation'!$j$338
C20: =HYPERLINK("#"&'Manual for Translation'!E339,'Manual for Translation'!F339) -> 4016 | D20: Wärmepreis Anstieg | E20: % p.a. | G20: =IF(SURVEY!E178=0,"N/A",SURVEY!E178) -> 0.02 | H20: =IF(F20="",G20,F20) -> 0.02 | K20: =HYPERLINK("#'Manual for Translation'!$j$"&ROW('Manual for Translation'!J339)) -> #'Manual for Translation'!$j$339
K21: =HYPERLINK("#'Manual for Translation'!$j$"&ROW('Manual for Translation'!J340)) -> #'Manual for Translation'!$j$340
C22: =HYPERLINK("#"&'Manual for Translation'!E341,'Manual for Translation'!F341) -> 4018 | D22: Sonstige Einnahmen | K22: =HYPERLINK("#'Manual for Translation'!$j$"&ROW('Manual for Translation'!J341)) -> #'Manual for Translation'!$j$341
A23: 45.9 | D23: Zusätzliches Feld um eventuelle zusätzliche Einnahmen, z.B. CO2 Zertifikat-Verkäufe, zusätzliche Fördermittel, sonstige Einnahmen | K23: =HYPERLINK("#'Manual for Translation'!$j$"&ROW('Manual for Translation'!J342)) -> #'Manual for Translation'!$j$342
D24: 2017 | E24: =CUR -> EUR | K24: =HYPERLINK("#'Manual for Translation'!$j$"&ROW('Manual for Translation'!J343)) -> #'Manual for Translation'!$j$343
D25: 2018 | E25: EUR | K25: =HYPERLINK("#'Manual for Translation'!$j$"&ROW('Manual for Translation'!J344)) -> #'Manual for Translation'!$j$344
D26: 2019 | E26: EUR | K26: =HYPERLINK("#'Manual for Translation'!$j$"&ROW('Manual for Translation'!J345)) -> #'Manual for Translation'!$j$345
D27: 2020 | E27: EUR | K27: =HYPERLINK("#'Manual for Translation'!$j$"&ROW('Manual for Translation'!J346)) -> #'Manual for Translation'!$j$346
D28: 2021 | E28: EUR | K28: =HYPERLINK("#'Manual for Translation'!$j$"&ROW('Manual for Translation'!J347)) -> #'Manual for Translation'!$j$347
D29: 2022 | E29: EUR | K29: =HYPERLINK("#'Manual for Translation'!$j$"&ROW('Manual for Translation'!J348)) -> #'Manual for Translation'!$j$348
D30: 2023 | E30: EUR | K30: =HYPERLINK("#'Manual for Translation'!$j$"&ROW('Manual for Translation'!J349)) -> #'Manual for Translation'!$j$349
D31: 2024 | E31: EUR | K31: =HYPERLINK("#'Manual for Translation'!$j$"&ROW('Manual for Translation'!J350)) -> #'Manual for Translation'!$j$350
D32: 2025 | E32: EUR | K32: =HYPERLINK("#'Manual for Translation'!$j$"&ROW('Manual for Translation'!J351)) -> #'Manual for Translation'!$j$351
D33: 2026 | E33: EUR | K33: =HYPERLINK("#'Manual for Translation'!$j$"&ROW('Manual for Translation'!J352)) -> #'Manual for Translation'!$j$352
D34: 2027 | E34: EUR | K34: =HYPERLINK("#'Manual for Translation'!$j$"&ROW('Manual for Translation'!J353)) -> #'Manual for Translation'!$j$353
D35: 2028 | E35: EUR | K35: =HYPERLINK("#'Manual for Translation'!$j$"&ROW('Manual for Translation'!J354)) -> #'Manual for Translation'!$j$354
D36: 2029 | E36: EUR | K36: =HYPERLINK("#'Manual for Translation'!$j$"&ROW('Manual for Translation'!J355)) -> #'Manual for Translation'!$j$355
D37: 2030 | E37: EUR | K37: =HYPERLINK("#'Manual for Translation'!$j$"&ROW('Manual for Translation'!J356)) -> #'Manual for Translation'!$j$356
D38: 2031 | E38: EUR | K38: =HYPERLINK("#'Manual for Translation'!$j$"&ROW('Manual for Translation'!J357)) -> #'Manual for Translation'!$j$357
D39: 2032 | E39: EUR | K39: =HYPERLINK("#'Manual for Translation'!$j$"&ROW('Manual for Translation'!J358)) -> #'Manual for Translation'!$j$358
D40: 2033 | E40: EUR | K40: =HYPERLINK("#'Manual for Translation'!$j$"&ROW('Manual for Translation'!J359)) -> #'Manual for Translation'!$j$359
D41: 2034 | E41: EUR | K41: =HYPERLINK("#'Manual for Translation'!$j$"&ROW('Manual for Translation'!J360)) -> #'Manual for Translation'!$j$360
D42: 2035 | E42: EUR | K42: =HYPERLINK("#'Manual for Translation'!$j$"&ROW('Manual for Translation'!J361)) -> #'Manual for Translation'!$j$361
D43: 2036 | E43: EUR | K43: =HYPERLINK("#'Manual for Translation'!$j$"&ROW('Manual for Translation'!J362)) -> #'Manual for Translation'!$j$362
D44: 2037 | E44: EUR | K44: =HYPERLINK("#'Manual for Translation'!$j$"&ROW('Manual for Translation'!J363)) -> #'Manual for Translation'!$j$363
D45: 2038 | E45: EUR | K45: =HYPERLINK("#'Manual for Translation'!$j$"&ROW('Manual for Translation'!J364)) -> #'Manual for Translation'!$j$364
D46: 2039 | E46: EUR | K46: =HYPERLINK("#'Manual for Translation'!$j$"&ROW('Manual for Translation'!J365)) -> #'Manual for Translation'!$j$365
D47: 2040 | E47: EUR | K47: =HYPERLINK("#'Manual for Translation'!$j$"&ROW('Manual for Translation'!J366)) -> #'Manual for Translation'!$j$366
D48: 2041 | E48: EUR | K48: =HYPERLINK("#'Manual for Translation'!$j$"&ROW('Manual for Translation'!J367)) -> #'Manual for Translation'!$j$367
D49: 2042 | E49: EUR | K49: =HYPERLINK("#'Manual for Translation'!$j$"&ROW('Manual for Translation'!J368)) -> #'Manual for Translation'!$j$368
K50: =HYPERLINK("#'Manual for Translation'!$j$"&ROW('Manual for Translation'!J369)) -> #'Manual for Translation'!$j$369
K51: =HYPERLINK("#'Manual for Translation'!$j$"&ROW('Manual for Translation'!J370)) -> #'Manual for Translation'!$j$370
C52: =HYPERLINK("#"&'Manual for Translation'!E371,'Manual for Translation'!F371) -> 4048 | D52: Mit fossilem Brennstoff befeuertes Referenzsystem | K52: =HYPERLINK("#'Manual for Translation'!$j$"&ROW('Manual for Translation'!J371)) -> #'Manual for Translation'!$j$371
D53: Parameter | E53: Einheit | F53: Eingabewert | G53: Referenzwert | K53: =HYPERLINK("#'Manual for Translation'!$j$"&ROW('Manual for Translation'!J372)) -> #'Manual for Translation'!$j$372
F54: =Receipts_Data!D36 -> für 2018 | G54: =Receipts_Data!D37 -> von 2015 | K54: =HYPERLINK("#'Manual for Translation'!$j$"&ROW('Manual for Translation'!J373)) -> #'Manual for Translation'!$j$373
A55: ^HID | K55: =HYPERLINK("#'Manual for Translation'!$j$"&ROW('Manual for Translation'!J374)) -> #'Manual for Translation'!$j$374
C56: =HYPERLINK("#"&'Manual for Translation'!E375,'Manual for Translation'!F375) -> 4052 | D56: Wärmepreis | K56: =HYPERLINK("#'Manual for Translation'!$j$"&ROW('Manual for Translation'!J375)) -> #'Manual for Translation'!$j$375
C57: =HYPERLINK("#"&'Manual for Translation'!E376,'Manual for Translation'!F376) -> 4053 | D57: Durchschnittlicher Wärmeverkaufspreis (exkl. USt.), im Jahr 1 | E57: =CUR&"/MWh sold" -> EUR/MWh sold | G57: =G19 -> 80 - 95 | K57: =HYPERLINK("#'Manual for Translation'!$j$"&ROW('Manual for Translation'!J376)) -> #'Manual for Translation'!$j$376
C58: =HYPERLINK("#"&'Manual for Translation'!E377,'Manual for Translation'!F377) -> 4054 | D58: Wärmepreis Anstieg | E58: % p.a. | G58: =H20 -> 0.02 | K58: =HYPERLINK("#'Manual for Translation'!$j$"&ROW('Manual for Translation'!J377)) -> #'Manual for Translation'!$j$377
K59: =HYPERLINK("#'Manual for Translation'!$j$"&ROW('Manual for Translation'!J378)) -> #'Manual for Translation'!$j$378
C60: =HYPERLINK("#"&'Manual for Translation'!E379,'Manual for Translation'!F379) -> 4056 | D60: Sonstige Einnahmen | K60: =HYPERLINK("#'Manual for Translation'!$j$"&ROW('Manual for Translation'!J379)) -> #'Manual for Translation'!$j$379
A61: 45.9 | D61: Zusätzliches Feld um eventuelle zusätzliche Einnahmen, z.B. CO2 Zertifikat-Verkäufe, zusätzliche Fördermittel, sonstige Einnahmen | K61: =HYPERLINK("#'Manual for Translation'!$j$"&ROW('Manual for Translation'!J380)) -> #'Manual for Translation'!$j$380
D62: 2017 | E62: =CUR -> EUR | K62: =HYPERLINK("#'Manual for Translation'!$j$"&ROW('Manual for Translation'!J381)) -> #'Manual for Translation'!$j$381
D63: 2018 | E63: EUR | K63: =HYPERLINK("#'Manual for Translation'!$j$"&ROW('Manual for Translation'!J382)) -> #'Manual for Translation'!$j$382
D64: 2019 | E64: EUR | K64: =HYPERLINK("#'Manual for Translation'!$j$"&ROW('Manual for Translation'!J383)) -> #'Manual for Translation'!$j$383
D65: 2020 | E65: EUR | K65: =HYPERLINK("#'Manual for Translation'!$j$"&ROW('Manual for Translation'!J384)) -> #'Manual for Translation'!$j$384
D66: 2021 | E66: EUR | K66: =HYPERLINK("#'Manual for Translation'!$j$"&ROW('Manual for Translation'!J385)) -> #'Manual for Translation'!$j$385
D67: 2022 | E67: EUR | K67: =HYPERLINK("#'Manual for Translation'!$j$"&ROW('Manual for Translation'!J386)) -> #'Manual for Translation'!$j$386
D68: 2023 | E68: EUR | K68: =HYPERLINK("#'Manual for Translation'!$j$"&ROW('Manual for Translation'!J387)) -> #'Manual for Translation'!$j$387
D69: 2024 | E69: EUR | K69: =HYPERLINK("#'Manual for Translation'!$j$"&ROW('Manual for Translation'!J388)) -> #'Manual for Translation'!$j$388
D70: 2025 | E70: EUR | K70: =HYPERLINK("#'Manual for Translation'!$j$"&ROW('Manual for Translation'!J389)) -> #'Manual for Translation'!$j$389
D71: 2026 | E71: EUR | K71: =HYPERLINK("#'Manual for Translation'!$j$"&ROW('Manual for Translation'!J390)) -> #'Manual for Translation'!$j$390
D72: 2027 | E72: EUR | K72: =HYPERLINK("#'Manual for Translation'!$j$"&ROW('Manual for Translation'!J391)) -> #'Manual for Translation'!$j$391
D73: 2028 | E73: EUR | K73: =HYPERLINK("#'Manual for Translation'!$j$"&ROW('Manual for Translation'!J392)) -> #'Manual for Translation'!$j$392
D74: 2029 | E74: EUR | K74: =HYPERLINK("#'Manual for Translation'!$j$"&ROW('Manual for Translation'!J393)) -> #'Manual for Translation'!$j$393
D75: 2030 | E75: EUR | K75: =HYPERLINK("#'Manual for Translation'!$j$"&ROW('Manual for Translation'!J394)) -> #'Manual for Translation'!$j$394
D76: 2031 | E76: EUR | K76: =HYPERLINK("#'Manual for Translation'!$j$"&ROW('Manual for Translation'!J395)) -> #'Manual for Translation'!$j$395
D77: 2032 | E77: EUR | K77: =HYPERLINK("#'Manual for Translation'!$j$"&ROW('Manual for Translation'!J396)) -> #'Manual for Translation'!$j$396
D78: 2033 | E78: EUR | K78: =HYPERLINK("#'Manual for Translation'!$j$"&ROW('Manual for Translation'!J397)) -> #'Manual for Translation'!$j$397
D79: 2034 | E79: EUR | K79: =HYPERLINK("#'Manual for Translation'!$j$"&ROW('Manual for Translation'!J398)) -> #'Manual for Translation'!$j$398
D80: 2035 | E80: EUR | K80: =HYPERLINK("#'Manual for Translation'!$j$"&ROW('Manual for Translation'!J399)) -> #'Manual for Translation'!$j$399
D81: 2036 | E81: EUR | K81: =HYPERLINK("#'Manual for Translation'!$j$"&ROW('Manual for Translation'!J400)) -> #'Manual for Translation'!$j$400
D82: 2037 | E82: EUR | K82: =HYPERLINK("#'Manual for Translation'!$j$"&ROW('Manual for Translation'!J401)) -> #'Manual for Translation'!$j$401
D83: 2038 | E83: EUR | K83: =HYPERLINK("#'Manual for Translation'!$j$"&ROW('Manual for Translation'!J402)) -> #'Manual for Translation'!$j$402
D84: 2039 | E84: EUR | K84: =HYPERLINK("#'Manual for Translation'!$j$"&ROW('Manual for Translation'!J403)) -> #'Manual for Translation'!$j$403
D85: 2040 | E85: EUR | K85: =HYPERLINK("#'Manual for Translation'!$j$"&ROW('Manual for Translation'!J404)) -> #'Manual for Translation'!$j$404
D86: 2041 | E86: EUR | K86: =HYPERLINK("#'Manual for Translation'!$j$"&ROW('Manual for Translation'!J405)) -> #'Manual for Translation'!$j$405
D87: 2042 | E87: EUR | K87: =HYPERLINK("#'Manual for Translation'!$j$"&ROW('Manual for Translation'!J406)) -> #'Manual for Translation'!$j$406
K88: =HYPERLINK("#'Manual for Translation'!$j$"&ROW('Manual for Translation'!J407)) -> #'Manual for Translation'!$j$407
A89: 55
A90: ^END

Sheet Receipts_Data (hidden)
B2: Project life time for sensitivity analysis | H2: SEAP | I2: Szenario Maßnahme THG Wirksamkeit | L2: kt/ PJ
B3: 7. Results | H3: Guidelines | I3: Emissionsfaktoren (LCA) | L3: t/TJ | O3: Emission factors | P3: Life cycle assessment
C4: 15 | I4: CO2 | J4: CH4 | K4: N2O | L4: THG | O4: Unit | P4: t CO2-eq/TJ
C5: 16 | H5: Kohle | L5: =393/3.6 -> 109.1666667 | O5: Anthracite | P5: =L5 -> 109.1666667
B6: 6. Economics | C6: 17 | H6: HL Extra Leicht | O6: Heating oil | P6: =L7 -> 84.72222222
B7: lent term | C7: 18 | H7: HL Leicht | L7: =305/3.6 -> 84.72222222 | O7: Natural gas | P7: =L9 -> 65.83333333
C8: 19 | H8: LPG | O8: Sustainable wood | P8: =L11 -> 3.611111111
B9: 4 | C9: 20 | H9: Erdgas | L9: =237/3.6 -> 65.83333333 | O9: Source: JRC, 2009. European Reference
B10: 5 | C10: 21 | H10: Stückholz | O10: Life Cycle Database (ELCD)
B11: 6 | C11: 22 | H11: Holz | L11: =13/3.6 -> 3.611111111
B12: 7 | C12: 23
B13: 8 | C13: 24
B14: 9 | C14: 25
B15: 10
B16: 11 | G16: Surplus investment, year 1-3 (Bioheat vs. fossil RefSystem) | H16: =ic_total-ref_ic_total -> 0 | I16: Euro | J16: =(ic_total/ref_ic_total)*100 ->  | K16: % of fossil RefSystem
B17: 12 | G17: Fuel Cost Savings (year 4) | H17: =DCF_RefSystem!H13-DCF_BM!H12-DCF_BM!H13 ->  | I17: Euro | J17: =(DCF_BM!H12+DCF_BM!H13)/DCF_RefSystem!H13*100 ->  | K17: % of fossil RefSystem
B18: 13 | G18: Annual payment (operating cost) savings (year 4) | H18: =SUM(DCF_RefSystem!H13:H18)-SUM(DCF_BM!H12:H18) ->  | I18: Euro | J18: =SUM(DCF_BM!H12:H18)/SUM(DCF_RefSystem!H13:H18)*100 ->  | K18: % of fossil RefSystem
B19: 14 | G19: Greenhouse gas savings (Bioheat vs. fossil RefSystem) | H19: =(ref_Q_fuel*General_Data!D63-(Q_fuel_BM*L11+Q_fuel_fossil*General_Data!D49))*10^-3 ->  | I19: t CO2-eq/a | J19: =-H19/(ref_Q_fuel*General_Data!D63*10^-3)*100 ->  | K19: % of fossil RefSystem | M19: fossil RefSys | N19: =ref_Q_fuel*General_Data!D63*10^-3 ->  | O19: t CO2-eq/a
B20: 15 | G20: Saving of NCV fuel input (Bioheat vs. fossil RefSystem) | H20: =ref_Q_fuel-Q_fuel ->  | I20: MWh/a | J20: =(Q_fuel/ref_Q_fuel)*100 ->  | K20: % of fossil RefSystem
B21: 16
B22: 17
B23: 18
B24: 19
B25: 20 | H25: UBA | I25: Szenario Maßnahme THG Wirksamkeit | L25: kt/ PJ
B26: 21 | H26: Sbg MP | I26: Emissionsfaktoren (direkte) | L26: t/TJ
B27: 22 | I27: CO2 | J27: CH4 | K27: N2O | L27: THG
B28: 23 | H28: Kohle | I28: 93 | J28: 90 | K28: 2 | L28: 95.51
B29: 24 | H29: HL Extra Leicht | I29: 77 | J29: 2 | K29: 1 | L29: 77.352
B30: 25 | H30: HL Leicht | I30: 78 | J30: 2 | K30: 1 | L30: 78.352
H31: LPG | I31: 64 | J31: 1.5 | K31: 1 | L31: 64.3415
H32: Erdgas | I32: 55.4 | J32: 0.8 | K32: 1 | L32: 55.7268
H33: Stückholz | I33: 0 | J33: 139.9387042 | K33: 3 | L33: 3.868712789
H34: Hackgut | I34: 0 | J34: 19.6255874 | K34: 3 | L34: 1.342137335
A35: For / From Text: | C35: Year: | D35: String for Label:
B36: für | C36: =Year_0+1 -> 2018 | D36: =B36&" "&C36 -> für 2018
B37: von | C37: 2015 | D37: =B37&" "&C37 -> von 2015

Sheet 5. Runningcost
A1: ^FIT
A2: 40 | C2: B4B BioHeat Profitability Assessment Tool - Comparison of the economic efficiency (pre-feasibility level) of mid-scale, solid biomass and fossil fuel fired (district & in-house) heat-only plants
A3: 55
C4: =HYPERLINK("#"&'Manual for Translation'!E408,'Manual for Translation'!F408) -> 5000 | D4: JÄHRLICHE AUSZAHLUNGEN (exkl. USt.) | K4: =HYPERLINK("#'Manual for Translation'!$j$"&ROW('Manual for Translation'!J408)) -> #'Manual for Translation'!$j$408
K5: =HYPERLINK("#'Manual for Translation'!$j$"&ROW('Manual for Translation'!J409)) -> #'Manual for Translation'!$j$409
A6: 55 | D6: Dieses Blatt fasst alle laufenden Kosten und Kostensteigerungen, welche zur dynamischen Cash-Flow-Berechnung benötigt werden, zusammen. Zur Berechnung der Kosten für Brennstoff und Strom, werden die jeweiligen Energiebedarfe aus den technischen Informationen genutzt. | K6: =HYPERLINK("#'Manual for Translation'!$j$"&ROW('Manual for Translation'!J410)) -> #'Manual for Translation'!$j$410
K7: =HYPERLINK("#'Manual for Translation'!$j$"&ROW('Manual for Translation'!J411)) -> #'Manual for Translation'!$j$411
C8: =HYPERLINK("#"&'Manual for Translation'!E412,'Manual for Translation'!F412) -> 5004 | D8: Biomasseheizanlage | K8: =HYPERLINK("#'Manual for Translation'!$j$"&ROW('Manual for Translation'!J412)) -> #'Manual for Translation'!$j$412
D9: Parameter | E9: Einheit | F9: Eingabewert | G9: Referenzwert | K9: =HYPERLINK("#'Manual for Translation'!$j$"&ROW('Manual for Translation'!J413)) -> #'Manual for Translation'!$j$413
F10: =Receipts_Data!D36 -> für 2018 | G10: =Receipts_Data!D37 -> von 2015 | K10: =HYPERLINK("#'Manual for Translation'!$j$"&ROW('Manual for Translation'!J414)) -> #'Manual for Translation'!$j$414
C11: =HYPERLINK("#"&'Manual for Translation'!E415,'Manual for Translation'!F415) -> 5007 | D11: Kosten für Biomassebrennstoffe | K11: =HYPERLINK("#'Manual for Translation'!$j$"&ROW('Manual for Translation'!J415)) -> #'Manual for Translation'!$j$415
C12: =HYPERLINK("#"&'Manual for Translation'!E416,'Manual for Translation'!F416) -> 5008 | D12: Ausgewählte Brennstoffart: | F12: ='1. General'!E22 -> Holzpellets | K12: =HYPERLINK("#'Manual for Translation'!$j$"&ROW('Manual for Translation'!J416)) -> #'Manual for Translation'!$j$416
C13: =HYPERLINK("#"&'Manual for Translation'!E417,'Manual for Translation'!F417) -> 5009 | D13: Biomassebrennstoffpreis | E13: =CUR&"/MWh" -> EUR/MWh | G13: =IF(Runningcost_Data!F17=0,"N/A",Runningcost_Data!F17) -> 35 - 42 | H13: =IF(F13="",G13,F13) -> 35 - 42 | K13: =HYPERLINK("#'Manual for Translation'!$j$"&ROW('Manual for Translation'!J417)) -> #'Manual for Translation'!$j$417
C14: =HYPERLINK("#"&'Manual for Translation'!E418,'Manual for Translation'!F418) -> 5010 | D14: Preisanstieg Biomasse | E14: % p.a. | F14: 0.02 | G14: =IF(Runningcost_Data!D35=0,"N/A",Runningcost_Data!D35) -> 0.02 | H14: =IF(F14="",G14,F14) -> 0.02 | K14: =HYPERLINK("#'Manual for Translation'!$j$"&ROW('Manual for Translation'!J418)) -> #'Manual for Translation'!$j$418
C15: =HYPERLINK("#"&'Manual for Translation'!E419,'Manual for Translation'!F419) -> 5011 | D15: Jährliche Biomassekosten (theoretisch, im 1. Jahr bei 100% Netzausbau) | E15: =CUR&"/a" -> EUR/a | F15: =pr_BM*Q_fuel_BM ->  | K15: =HYPERLINK("#'Manual for Translation'!$j$"&ROW('Manual for Translation'!J419)) -> #'Manual for Translation'!$j$419
K16: =HYPERLINK("#'Manual for Translation'!$j$"&ROW('Manual for Translation'!J420)) -> #'Manual for Translation'!$j$420
C17: =HYPERLINK("#"&'Manual for Translation'!E421,'Manual for Translation'!F421) -> 5013 | D17: Kosten fossiler Brennstoff | K17: =HYPERLINK("#'Manual for Translation'!$j$"&ROW('Manual for Translation'!J421)) -> #'Manual for Translation'!$j$421
A18: 30.6 | C18: =HYPERLINK("#"&'Manual for Translation'!E422,'Manual for Translation'!F422) -> 5014 | D18: Ausgewähltes System | F18: ='2. Technical'!F47 & " / " & General_Data!B49 -> ohne fossil betriebenen Heizkessel / - | K18: =HYPERLINK("#'Manual for Translation'!$j$"&ROW('Manual for Translation'!J422)) -> #'Manual for Translation'!$j$422
C19: =HYPERLINK("#"&'Manual for Translation'!E423,'Manual for Translation'!F423) -> 5015 | D19: Preis für fossile Energieträger | E19: =CUR&"/MWh" -> EUR/MWh | H19: =IF(F19="",G19,F19) -> 0 | K19: =HYPERLINK("#'Manual for Translation'!$j$"&ROW('Manual for Translation'!J423)) -> #'Manual for Translation'!$j$423
C20: =HYPERLINK("#"&'Manual for Translation'!E424,'Manual for Translation'!F424) -> 5016 | D20: Jährlicher Anstieg für fossile Brennstoffe | E20: % p.a. | F20: 0.02 | G20: =IF(Runningcost_Data!D36=0,"N/A",Runningcost_Data!D36) -> N/A | H20: =IF(F20="",G20,F20) -> 0.02 | K20: =HYPERLINK("#'Manual for Translation'!$j$"&ROW('Manual for Translation'!J424)) -> #'Manual for Translation'!$j$424
C21: =HYPERLINK("#"&'Manual for Translation'!E425,'Manual for Translation'!F425) -> 5017 | D21: Jährliche Kosten für fossile Brennstoffe (theoretisch, im Jahr 1 bei 100% Netzausbau) | E21: =CUR&"/a" -> EUR/a | F21: =pr_fossil*Q_fuel_fossil -> 0 | K21: =HYPERLINK("#'Manual for Translation'!$j$"&ROW('Manual for Translation'!J425)) -> #'Manual for Translation'!$j$425
K22: =HYPERLINK("#'Manual for Translation'!$j$"&ROW('Manual for Translation'!J426)) -> #'Manual for Translation'!$j$426
C23: =HYPERLINK("#"&'Manual for Translation'!E427,'Manual for Translation'!F427) -> 5019 | D23: Stromkosten | K23: =HYPERLINK("#'Manual for Translation'!$j$"&ROW('Manual for Translation'!J427)) -> #'Manual for Translation'!$j$427
C24: =HYPERLINK("#"&'Manual for Translation'!E428,'Manual for Translation'!F428) -> 5020 | D24: Bezugspreis Strom | E24: =CUR&"/MWh" -> EUR/MWh | G24: =IF(Runningcost_Data!F20=0,"N/A",Runningcost_Data!F20) -> 45 - 130 | H24: =IF(F24="",G24,F24) -> 45 - 130 | K24: =HYPERLINK("#'Manual for Translation'!$j$"&ROW('Manual for Translation'!J428)) -> #'Manual for Translation'!$j$428
C25: =HYPERLINK("#"&'Manual for Translation'!E429,'Manual for Translation'!F429) -> 5021 | D25: Jährlicher Anstieg der Stromkosten | E25: % p.a. | F25: 0.02 | G25: =IF(Runningcost_Data!D38=0,"N/A",Runningcost_Data!D38) -> 0.02 | H25: =IF(F25="",G25,F25) -> 0.02 | K25: =HYPERLINK("#'Manual for Translation'!$j$"&ROW('Manual for Translation'!J429)) -> #'Manual for Translation'!$j$429
C26: =HYPERLINK("#"&'Manual for Translation'!E430,'Manual for Translation'!F430) -> 5022 | D26: Jährliche Strombezugskosten (theoretisch; im Jahr 1 bei 100% Netzausbau) | E26: =CUR&"/a" -> EUR/a | F26: =(Elec_boiler+Elec_grid)*pr_elec -> 0 | K26: =HYPERLINK("#'Manual for Translation'!$j$"&ROW('Manual for Translation'!J430)) -> #'Manual for Translation'!$j$430
K27: =HYPERLINK("#'Manual for Translation'!$j$"&ROW('Manual for Translation'!J431)) -> #'Manual for Translation'!$j$431
C28: =HYPERLINK("#"&'Manual for Translation'!E432,'Manual for Translation'!F432) -> 5024 | D28: Personalkosten (exkl. R&IH) | K28: =HYPERLINK("#'Manual for Translation'!$j$"&ROW('Manual for Translation'!J432)) -> #'Manual for Translation'!$j$432
C29: =HYPERLINK("#"&'Manual for Translation'!E433,'Manual for Translation'!F433) -> 5025 | D29: Gewichtetes Jahresgehalt des benötigten Personals (im Jahr 1) | E29: =CUR&"/a" -> EUR/a | G29: =Runningcost_Data!D45 -> 43000 | H29: =IF(F29="",G29,F29) -> 43000 | K29: =HYPERLINK("#'Manual for Translation'!$j$"&ROW('Manual for Translation'!J433)) -> #'Manual for Translation'!$j$433
C30: =HYPERLINK("#"&'Manual for Translation'!E434,'Manual for Translation'!F434) -> 5026 | D30: Personal benötigt in Personenjahren | E30: Personenjahre | G30: =Runningcost_Data!D55 -> 0 | H30: =IF(F30="",G30,F30) -> 0 | K30: =HYPERLINK("#'Manual for Translation'!$j$"&ROW('Manual for Translation'!J434)) -> #'Manual for Translation'!$j$434
C31: =HYPERLINK("#"&'Manual for Translation'!E435,'Manual for Translation'!F435) -> 5027 | D31: Personalkosten - jährlicher Anstieg | E31: % p.a. | F31: 0.02 | G31: =IF(Runningcost_Data!D58=0,"N/A",Runningcost_Data!D58) -> 0.02 | H31: =IF(F31="",G31,F31) -> 0.02 | K31: =HYPERLINK("#'Manual for Translation'!$j$"&ROW('Manual for Translation'!J435)) -> #'Manual for Translation'!$j$435
C32: =HYPERLINK("#"&'Manual for Translation'!E436,'Manual for Translation'!F436) -> 5028 | D32: Jährliche Personalkosten (im Jahr 1) | E32: =CUR -> EUR | F32: =F29*F30 -> 0 | K32: =HYPERLINK("#'Manual for Translation'!$j$"&ROW('Manual for Translation'!J436)) -> #'Manual for Translation'!$j$436
K33: =HYPERLINK("#'Manual for Translation'!$j$"&ROW('Manual for Translation'!J437)) -> #'Manual for Translation'!$j$437
C34: =HYPERLINK("#"&'Manual for Translation'!E438,'Manual for Translation'!F438) -> 5030 | D34: Inflationsrate | E34: % p.a. | F34: 0.02 | G34: =Economic_Data!D18 -> 0.02 | H34: =IF(F34="",G34,F34) -> 0.02 | K34: =HYPERLINK("#'Manual for Translation'!$j$"&ROW('Manual for Translation'!J438)) -> #'Manual for Translation'!$j$438
K35: =HYPERLINK("#'Manual for Translation'!$j$"&ROW('Manual for Translation'!J438)) -> #'Manual for Translation'!$j$438
C36: =HYPERLINK("#"&'Manual for Translation'!E440,'Manual for Translation'!F440) -> 5032 | D36: Reparatur- und Instandhaltungskosten (R&IH) gemäß VDI Richtlinie 2067 | K36: =HYPERLINK("#'Manual for Translation'!$j$"&ROW('Manual for Translation'!J440)) -> #'Manual for Translation'!$j$440
C37: =HYPERLINK("#"&'Manual for Translation'!E441,'Manual for Translation'!F441) -> 5033 | D37: Jährliche R&IH-Kosten im Verhältnis zu den gesamten Investition | E37: % | G37: ='Re-Invesment_BM'!F26 ->  | H37: =IF(F37="",G37,F37) ->  | K37: =HYPERLINK("#'Manual for Translation'!$j$"&ROW('Manual for Translation'!J441)) -> #'Manual for Translation'!$j$441
C38: =HYPERLINK("#"&'Manual for Translation'!E442,'Manual for Translation'!F442) -> 5034 | D38: Wartungs- und Instandhaltungskosten (Jahr 1) | E38: =CUR&"/a" -> EUR/a | F38: =RM_frac*'Re-Invesment_BM'!E26 -> 0 | H38: =IF(F38="",G38,F38) -> 0 | K38: =HYPERLINK("#'Manual for Translation'!$j$"&ROW('Manual for Translation'!J442)) -> #'Manual for Translation'!$j$442
C39: =HYPERLINK("#"&'Manual for Translation'!E443,'Manual for Translation'!F443) -> 5035 | D39: Wartungs- und Instandhaltungskosten - jährlicher Anstieg | E39: % p.a. | F39: 0.02 | G39: =F34 -> 0.02 | H39: =IF(F39="",G39,F39) -> 0.02 | K39: =HYPERLINK("#'Manual for Translation'!$j$"&ROW('Manual for Translation'!J443)) -> #'Manual for Translation'!$j$443
K40: =HYPERLINK("#'Manual for Translation'!$j$"&ROW('Manual for Translation'!J444)) -> #'Manual for Translation'!$j$444
C41: =HYPERLINK("#"&'Manual for Translation'!E445,'Manual for Translation'!F445) -> 5037 | D41: Grundstückskosten | K41: =HYPERLINK("#'Manual for Translation'!$j$"&ROW('Manual for Translation'!J445)) -> #'Manual for Translation'!$j$445
C42: =HYPERLINK("#"&'Manual for Translation'!E446,'Manual for Translation'!F446) -> 5038 | D42: Jährliche Grundstückskosten (Pacht/Miete) | E42: =CUR&"/a" -> EUR/a | K42: =HYPERLINK("#'Manual for Translation'!$j$"&ROW('Manual for Translation'!J446)) -> #'Manual for Translation'!$j$446
C43: =HYPERLINK("#"&'Manual for Translation'!E447,'Manual for Translation'!F447) -> 5039 | D43: Jährlicher Anstieg der Grundstückskosten | E43: % p.a. | F43: 0.02 | G43: =F34 -> 0.02 | K43: =HYPERLINK("#'Manual for Translation'!$j$"&ROW('Manual for Translation'!J447)) -> #'Manual for Translation'!$j$447
K44: =HYPERLINK("#'Manual for Translation'!$j$"&ROW('Manual for Translation'!J448)) -> #'Manual for Translation'!$j$448
A45: ^HID | K45: =HYPERLINK("#'Manual for Translation'!$j$"&ROW('Manual for Translation'!J449)) -> #'Manual for Translation'!$j$449
C46: =HYPERLINK("#"&'Manual for Translation'!E450,'Manual for Translation'!F450) -> 5042 | D46: Sonstige jährliche Kosten | K46: =HYPERLINK("#'Manual for Translation'!$j$"&ROW('Manual for Translation'!J450)) -> #'Manual for Translation'!$j$450
C47: =HYPERLINK("#"&'Manual for Translation'!E451,'Manual for Translation'!F451) -> 5043 | D47: Sonstige Kosten pro Jahr (z.B. Versicherungen, Ascheentsorgung, Radladereinsatz (exkl. Fahrer), etc.) als Bestandteil der absoluten Investition | E47: % | G47: =Runningcost_Data!D64 -> 0.0075 | H47: =IF(F47="",G47,F47) -> 0.0075 | K47: =HYPERLINK("#'Manual for Translation'!$j$"&ROW('Manual for Translation'!J451)) -> #'Manual for Translation'!$j$451
C48: =HYPERLINK("#"&'Manual for Translation'!E452,'Manual for Translation'!F452) -> 5044 | D48: Sonstige Kosten pro Jahr (im Jahr 1) | E48: =CUR&"/a" -> EUR/a | F48: =ac_other_frac*ic_total -> 0 | G48: =G47*ic_total -> 0 | H48: =IF(F48="",G48,F48) -> 0 | K48: =HYPERLINK("#'Manual for Translation'!$j$"&ROW('Manual for Translation'!J452)) -> #'Manual for Translation'!$j$452
C49: =HYPERLINK("#"&'Manual for Translation'!E453,'Manual for Translation'!F453) -> 5045 | D49: Sonstige Kosten - jährlicher Anstieg | E49: % p.a. | F49: 0.02 | G49: =G34 -> 0.02 | H49: =IF(F49="",G49,F49) -> 0.02 | K49: =HYPERLINK("#'Manual for Translation'!$j$"&ROW('Manual for Translation'!J453)) -> #'Manual for Translation'!$j$453
K50: =HYPERLINK("#'Manual for Translation'!$j$"&ROW('Manual for Translation'!J454)) -> #'Manual for Translation'!$j$454
K51: =HYPERLINK("#'Manual for Translation'!$j$"&ROW('Manual for Translation'!J455)) -> #'Manual for Translation'!$j$455
C52: =HYPERLINK("#"&'Manual for Translation'!E456,'Manual for Translation'!F456) -> 5048 | D52: Mit fossilem Brennstoff befeuertes Referenzsystem | K52: =HYPERLINK("#'Manual for Translation'!$j$"&ROW('Manual for Translation'!J456)) -> #'Manual for Translation'!$j$456
D53: Parameter | E53: Einheit | F53: Eingabewert | G53: Referenzwert | K53: =HYPERLINK("#'Manual for Translation'!$j$"&ROW('Manual for Translation'!J457)) -> #'Manual for Translation'!$j$457
F54: =Receipts_Data!D36 -> für 2018 | G54: =Receipts_Data!D37 -> von 2015 | K54: =HYPERLINK("#'Manual for Translation'!$j$"&ROW('Manual for Translation'!J458)) -> #'Manual for Translation'!$j$458
K55: =HYPERLINK("#'Manual for Translation'!$j$"&ROW('Manual for Translation'!J460)) -> #'Manual for Translation'!$j$460
A56: 50 | D56: Dieser Abschnitt fasst die Parameter des fossil befeuerten Referenzsystems zusammen. (die meisten Parameter sind vom zuvor eingegebenen Biomassesystem übernommen., z.B. Elektrizitäts-, Personal und Grundstückskosten) | K56: =HYPERLINK("#'Manual for Translation'!$j$"&ROW('Manual for Translation'!J461)) -> #'Manual for Translation'!$j$461
C57: =HYPERLINK("#"&'Manual for Translation'!E461,'Manual for Translation'!F461) -> 5053 | D57: Brennstoffkosten des fossil befeuerten Referenzsystems | K57: =HYPERLINK("#'Manual for Translation'!$j$"&ROW('Manual for Translation'!J462)) -> #'Manual for Translation'!$j$462
C58: =HYPERLINK("#"&'Manual for Translation'!E462,'Manual for Translation'!F462) -> 5054 | D58: Ausgewählte Brennstoffart: | F58: =General_Data!B63 -> Heizöl | K58: =HYPERLINK("#'Manual for Translation'!$j$"&ROW('Manual for Translation'!J462)) -> #'Manual for Translation'!$j$462
C59: =HYPERLINK("#"&'Manual for Translation'!E463,'Manual for Translation'!F463) -> 5055 | D59: Preis für fossile Energieträger | E59: =CUR&"/MWh" -> EUR/MWh | G59: =IF(Runningcost_Data!F19=0,"N/A",Runningcost_Data!F19) -> 40 - 54 | K59: =HYPERLINK("#'Manual for Translation'!$j$"&ROW('Manual for Translation'!J463)) -> #'Manual for Translation'!$j$463
C60: =HYPERLINK("#"&'Manual for Translation'!E464,'Manual for Translation'!F464) -> 5056 | D60: Jährlicher Anstieg für fossile Brennstoffe | E60: % p.a. | F60: 0.02 | G60: =IF(Runningcost_Data!D37=0,"N/A",Runningcost_Data!D37) -> 0.02 | K60: =HYPERLINK("#'Manual for Translation'!$j$"&ROW('Manual for Translation'!J464)) -> #'Manual for Translation'!$j$464
C61: =HYPERLINK("#"&'Manual for Translation'!E465,'Manual for Translation'!F465) -> 5057 | D61: Jährliche Kosten für fossile Brennstoffe (theoretisch, im Jahr 1 bei 100% Netzausbau) | E61: =CUR&"/a" -> EUR/a | F61: =ref_pr_fossil*ref_Q_fuel ->  | K61: =HYPERLINK("#'Manual for Translation'!$j$"&ROW('Manual for Translation'!J465)) -> #'Manual for Translation'!$j$465
K62: =HYPERLINK("#'Manual for Translation'!$j$"&ROW('Manual for Translation'!J466)) -> #'Manual for Translation'!$j$466
C63: =HYPERLINK("#"&'Manual for Translation'!E467,'Manual for Translation'!F467) -> 5059 | D63: Stromkosten | K63: =HYPERLINK("#'Manual for Translation'!$j$"&ROW('Manual for Translation'!J467)) -> #'Manual for Translation'!$j$467
C64: =HYPERLINK("#"&'Manual for Translation'!E468,'Manual for Translation'!F468) -> 5060 | D64: Jährliche Strombezugskosten (theoretisch; im Jahr 1 bei 100% Netzausbau) | E64: =CUR&"/a" -> EUR/a | F64: =(ref_spec_elec*10^-3*Q_generated+Elec_grid)*pr_elec -> 0 | K64: =HYPERLINK("#'Manual for Translation'!$j$"&ROW('Manual for Translation'!J468)) -> #'Manual for Translation'!$j$468
K65: =HYPERLINK("#'Manual for Translation'!$j$"&ROW('Manual for Translation'!J469)) -> #'Manual for Translation'!$j$469
C66: =HYPERLINK("#"&'Manual for Translation'!E470,'Manual for Translation'!F470) -> 5062 | D66: Personalkosten (exkl. R&IH) | K66: =HYPERLINK("#'Manual for Translation'!$j$"&ROW('Manual for Translation'!J470)) -> #'Manual for Translation'!$j$470
C67: =HYPERLINK("#"&'Manual for Translation'!E471,'Manual for Translation'!F471) -> 5063 | D67: Personal benötigt in Personenjahren | E67: =E30 -> Personenjahre | G67: =Runningcost_Data!D56 -> 0 | K67: =HYPERLINK("#'Manual for Translation'!$j$"&ROW('Manual for Translation'!J471)) -> #'Manual for Translation'!$j$471
C68: =HYPERLINK("#"&'Manual for Translation'!E472,'Manual for Translation'!F472) -> 5064 | D68: Jährliche Personalkosten (im Jahr 1) | E68: =CUR -> EUR | F68: =DCF_RefSystem!E16 -> 0 | K68: =HYPERLINK("#'Manual for Translation'!$j$"&ROW('Manual for Translation'!J472)) -> #'Manual for Translation'!$j$472
K69: =HYPERLINK("#'Manual for Translation'!$j$"&ROW('Manual for Translation'!J473)) -> #'Manual for Translation'!$j$473
C70: =HYPERLINK("#"&'Manual for Translation'!E474,'Manual for Translation'!F474) -> 5066 | D70: Reparatur- und Instandhaltungskosten (R&IH) gemäß VDI Richtlinie 2067 | K70: =HYPERLINK("#'Manual for Translation'!$j$"&ROW('Manual for Translation'!J474)) -> #'Manual for Translation'!$j$474
C71: =HYPERLINK("#"&'Manual for Translation'!E475,'Manual for Translation'!F475) -> 5067 | D71: Jährliche R&IH-Kosten im Verhältnis zu den gesamten Investition | E71: % | G71: ='Re-Invesment_Ref'!F26 ->  | K71: =HYPERLINK("#'Manual for Translation'!$j$"&ROW('Manual for Translation'!J475)) -> #'Manual for Translation'!$j$475
C72: =HYPERLINK("#"&'Manual for Translation'!E476,'Manual for Translation'!F476) -> 5068 | D72: Wartungs- und Instandhaltungskosten (Jahr 1) | E72: =CUR&"/a" -> EUR/a | F72: =F71*ref_ic_total -> 0 | G72: =G71*ref_ic_total ->  | K72: =HYPERLINK("#'Manual for Translation'!$j$"&ROW('Manual for Translation'!J476)) -> #'Manual for Translation'!$j$476
C73: =HYPERLINK("#"&'Manual for Translation'!E477,'Manual for Translation'!F477) -> 5069 | D73: Wartungs- und Instandhaltungskosten - jährlicher Anstieg | E73: % p.a. | F73: 0.02 | G73: =r_inflation -> 0.02 | K73: =HYPERLINK("#'Manual for Translation'!$j$"&ROW('Manual for Translation'!J477)) -> #'Manual for Translation'!$j$477
K74: =HYPERLINK("#'Manual for Translation'!$j$"&ROW('Manual for Translation'!J478)) -> #'Manual for Translation'!$j$478
C75: =HYPERLINK("#"&'Manual for Translation'!E479,'Manual for Translation'!F479) -> 5071 | D75: Grundstückskosten | K75: =HYPERLINK("#'Manual for Translation'!$j$"&ROW('Manual for Translation'!J479)) -> #'Manual for Translation'!$j$479
C76: =HYPERLINK("#"&'Manual for Translation'!E480,'Manual for Translation'!F480) -> 5072 | D76: Jährliche Grundstückskosten (Pacht/Miete) | E76: =CUR&"/a" -> EUR/a | G76: =ac_rent*2/3 -> 0 | K76: =HYPERLINK("#'Manual for Translation'!$j$"&ROW('Manual for Translation'!J480)) -> #'Manual for Translation'!$j$480
C77: =HYPERLINK("#"&'Manual for Translation'!E481,'Manual for Translation'!F481) -> 5073 | D77: Jährlicher Anstieg der Grundstückskosten | E77: % p.a. | F77: 0.02 | G77: =r_rent -> 0.02 | K77: =HYPERLINK("#'Manual for Translation'!$j$"&ROW('Manual for Translation'!J481)) -> #'Manual for Translation'!$j$481
K78: =HYPERLINK("#'Manual for Translation'!$j$"&ROW('Manual for Translation'!J482)) -> #'Manual for Translation'!$j$482
C79: =HYPERLINK("#"&'Manual for Translation'!E483,'Manual for Translation'!F483) -> 5075 | D79: Sonstige jährliche Kosten | K79: =HYPERLINK("#'Manual for Translation'!$j$"&ROW('Manual for Translation'!J483)) -> #'Manual for Translation'!$j$483
C80: =HYPERLINK("#"&'Manual for Translation'!E484,'Manual for Translation'!F484) -> 5076 | D80: Sonstige Kosten pro Jahr (z.B. Versicherungen, Bürokosten, etc.) als Bestandteil der absoluten Investition | E80: % | G80: =Runningcost_Data!E64 -> 0.005 | K80: =HYPERLINK("#'Manual for Translation'!$j$"&ROW('Manual for Translation'!J484)) -> #'Manual for Translation'!$j$484
C81: =HYPERLINK("#"&'Manual for Translation'!E485,'Manual for Translation'!F485) -> 5077 | D81: Sonstige Kosten pro Jahr (im Jahr 1) | E81: =CUR&"/a" -> EUR/a | F81: =G81 -> 0 | G81: =F80*ref_ic_total -> 0 | K81: =HYPERLINK("#'Manual for Translation'!$j$"&ROW('Manual for Translation'!J485)) -> #'Manual for Translation'!$j$485
C82: =HYPERLINK("#"&'Manual for Translation'!E486,'Manual for Translation'!F486) -> 5078 | D82: Sonstige Kosten - jährlicher Anstieg | E82: % p.a. | F82: 0.02 | G82: =r_inflation -> 0.02 | K82: =HYPERLINK("#'Manual for Translation'!$j$"&ROW('Manual for Translation'!J486)) -> #'Manual for Translation'!$j$486
A84: 55
A85: ^END

Sheet Runningcost_Data (hidden)
A5: Fuelprices RANGE (small/big consumers) | D5: upper limit (small consumer) | E5: lower limit (large consumer)
B6: =SURVEY!B152 -> Natural Gas | C6: =SURVEY!D152 -> EUR/MWh | D6: =SURVEY!E152 -> 47 | E6: =SURVEY!E161 -> 31
B7: =SURVEY!B153 -> Fuel Oil | C7: =SURVEY!D153 -> EUR/MWh | D7: =SURVEY!E153 -> 54 | E7: =SURVEY!E162 -> 40
B8: =SURVEY!B154 -> Coal | C8: =SURVEY!D154 -> EUR/MWh | D8: =SURVEY!E154 -> 0 | E8: =SURVEY!E163 -> 0
B9: =SURVEY!B155 -> Wood-Pellets | C9: =SURVEY!D155 -> EUR/MWh | D9: =SURVEY!E155 -> 42 | E9: =SURVEY!E164 -> 35
B10: =SURVEY!B156 -> Wood Chips | C10: =SURVEY!D156 -> EUR/MWh | D10: =SURVEY!E156 -> 28 | E10: =SURVEY!E165 -> 18
B11: =SURVEY!B157 -> Straw | C11: =SURVEY!D157 -> EUR/MWh | D11: =SURVEY!E157 -> 0 | E11: =SURVEY!E166 -> 0
B12: =SURVEY!B158 -> District Heat | C12: =SURVEY!D158 -> EUR/MWh | D12: =SURVEY!E158 -> 80 - 95 | E12: =SURVEY!E167 -> 65
B13: =SURVEY!B159 -> Electricity | C13: =SURVEY!D159 -> EUR/MWh | D13: =SURVEY!E159 -> 130 | E13: =SURVEY!E168 -> 45
A14: Fehlercheck: bei - und Other -- referenzwert vernünftig?! | B14: -
B15: other
F16: Range
A17: fueltype BM | B17: =Fueltype_BM -> Wood-Pellets | C17: EUR/MWh | D17: =INDEX($D$6:$D$15,MATCH(B17,$B$6:$B$15,0)) -> 42 | E17: =INDEX($E$6:$E$15,MATCH(B17,$B$6:$B$15,0)) -> 35 | F17: =E17*xrt & " - "& D17*xrt -> 35 - 42
A18: fueltype fossil | B18: =Fueltype_fossil -> - | C18: EUR/MWh | D18: =INDEX($D$6:$D$15,MATCH(B18,$B$6:$B$15,0)) -> 0 | E18: =INDEX($E$6:$E$15,MATCH(B18,$B$6:$B$15,0)) -> 0 | F18: =E18*xrt & " - "& D18*xrt -> 0 - 0
A19: ref fueltype | B19: =ref_fueltype -> Fuel Oil | C19: EUR/MWh | D19: =INDEX($D$6:$D$15,MATCH(B19,$B$6:$B$15,0)) -> 54 | E19: =INDEX($E$6:$E$15,MATCH(B19,$B$6:$B$15,0)) -> 40 | F19: =E19*xrt & " - "& D19*xrt -> 40 - 54
B20: Electricity | C20: EUR/MWh | D20: =INDEX($D$6:$D$15,MATCH(B20,$B$6:$B$15,0)) -> 130 | E20: =INDEX($E$6:$E$15,MATCH(B20,$B$6:$B$15,0)) -> 45 | F20: =E20*xrt & " - "& D20*xrt -> 45 - 130
A23: =SURVEY!B171 -> Fuel price Annual Increase rate
B24: =SURVEY!B172 -> Natural Gas | C24: =SURVEY!D172 -> % p.a. | D24: =SURVEY!E172 -> 0.02
B25: =SURVEY!B173 -> Fuel Oil | C25: =SURVEY!D173 -> % p.a. | D25: =SURVEY!E173 -> 0.02
B26: =SURVEY!B174 -> Coal | C26: =SURVEY!D174 -> % p.a. | D26: =SURVEY!E174 -> 0
B27: =SURVEY!B175 -> Wood-Pellets | C27: =SURVEY!D175 -> % p.a. | D27: =SURVEY!E175 -> 0.02
B28: - | C28: =SURVEY!D176 -> % p.a. | D28: 0
B29: =SURVEY!B176 -> Wood Chips | C29: =SURVEY!D176 -> % p.a. | D29: =SURVEY!E176 -> 0.02
B30: =SURVEY!B177 -> Straw | C30: =SURVEY!D177 -> % p.a. | D30: =SURVEY!E177 -> 0
B31: =SURVEY!B178 -> District Heat | C31: =SURVEY!D178 -> % p.a. | D31: =SURVEY!E178 -> 0.02
B32: =SURVEY!B179 -> Electricity | C32: =SURVEY!D179 -> % p.a. | D32: =SURVEY!E179 -> 0.02
B33: Other | C33: % p.a. | D33: 0
A35: fueltype BM | B35: =Fueltype_BM -> Wood-Pellets | C35: % p.a. | D35: =INDEX($D$24:$D$33,MATCH(B35,$B$24:$B$33,0)) -> 0.02
A36: fueltype fossil | B36: =Fueltype_fossil -> - | C36: % p.a. | D36: =INDEX($D$24:$D$33,MATCH(B36,$B$24:$B$33,0)) -> 0
A37: ref fueltype | B37: =ref_fueltype -> Fuel Oil | C37: % p.a. | D37: =INDEX($D$24:$D$33,MATCH(B37,$B$24:$B$33,0)) -> 0.02
B38: Electricity | C38: % p.a. | D38: =INDEX($D$24:$D$33,MATCH(B38,$B$24:$B$33,0)) -> 0.02
A41: Staff Cost | C41: Unit | D41: Value | E41: Weighting factor | H41: Erstansatz:
B42: =SURVEY!B182 -> Staff cost, Management - 1 person-year | C42: =SURVEY!D182 -> EUR/a | D42: =SURVEY!E182 -> 68000 | E42: 0.1 | H42: 10% managmenet, 60% whitecollar, 30% bluecollar
B43: =SURVEY!B183 -> Staff cost, white collar - 1 person-year | C43: =SURVEY!D183 -> EUR/a | D43: =SURVEY!E183 -> 51000 | E43: =1/3 -> 0.3333333333
B44: =SURVEY!B184 -> Staff cost, blue collar - 1 person-year | C44: =SURVEY!D184 -> EUR/a | D44: =SURVEY!E184 -> 34000 | E44: =1-E43-E42 -> 0.5666666667 | H44: < 1MW: 0,5 person-years
B45: Weighted Staff Cost: | C45: =C44 -> EUR/a | D45: =ROUNDDOWN(D42*E42+D43*E43+D44*E44,-3) -> 43000 | H45: 2MW: 1 person-year
H46: 20MW: 5 person-years
A47: staff ressource requirement | C47: P (MW) | D47: Staff need (person-yrs) | E47: Class | F47: k | G47: d
C48: 0 | D48: =D49+(D50-D49)*(C48-C49)/(C50-C49) -> 0 | E48: =IF(C54<=$C49,1,0) -> 1 | F48: =(D49-D48)/(C49-C48) -> 0.5 | G48: =D48 -> 0
C49: 1 | D49: 0.5 | E49: =IF(AND(C54<=$C50,C54>$C49),1,0) -> 0 | F49: =(D50-D49)/(C50-C49) -> 0.5 | G49: =D49 -> 0.5
C50: 2 | D50: 1 | E50: =IF(AND(C536<=$C51,C54>$C50),1,0) -> 0 | F50: =(D51-D50)/(C51-C50) -> 0.375 | G50: =D50 -> 1
C51: 10 | D51: 4 | E51: =IF(AND(C537<=$C52,C54>$C51),1,0) -> 0 | F51: =(D52-D51)/(C52-C51) -> 0.2 | G51: =D51 -> 4
C52: 20 | D52: 6 | E52: =IF(C54>$C52,1,0) -> 0 | F52: =F51 -> 0.2 | G52: =D52 -> 6
A54: Staff resource Cost - Biomass | B54: ressource requirement for P_plant_max | C54: =P_plant_max -> 0 | D54: =ROUND(F54*(C54-E54)+G54,1) -> 0 | E54: =SUMPRODUCT(E48:E52,C48:C52) -> 0 | F54: =SUMPRODUCT(F48:F52,E48:E52) -> 0.5 | G54: =SUMPRODUCT(G48:G52,E48:E52) -> 0
A55: Staff resource Cost - Biomass | B55: ohne Netz | D55: =IF(ic_grid=0,D54*E55,D54) -> 0 | E55: =1/2 -> 0.5
A56: Staff resource Cost - Fossil REF | D56: =IF(B37="Coal",D55,D55*E56) -> 0 | E56: =0.75 -> 0.75
A58: Staff annual Increase | B58: =SURVEY!B185 -> Staff Cost -- Annual increase | C58: =SURVEY!D185 -> % p.a. | D58: =SURVEY!E185 -> 0.02
A60: Repair and Maintainance | B60: =SURVEY!B136 -> Repair and maintenance Cost of the biomass heat plant | C60: =SURVEY!D136 -> 0 | D60: =SURVEY!E136 -> 0
B61: Repair & Maintainance fraction according to VDI 2067 | C61: % | D61: ='Re-Invesment_BM'!F26 -> 
D63: BM System | E63: Ref-System
A64: Other running cost | B64: =SURVEY!B137 -> Other annual costs (e.g. Insurance, ash disposal, wheel loader operation (excl. driver), etc.) considered as fraction of the total investment | C64: =SURVEY!D137 -> % | D64: =SURVEY!E137 -> 0.0075 | E64: =IF(ref_fueltype="Coal",D64,D64*2/3) -> 0.005

Sheet HT (hidden)
B2: Berechnungs-und andere Änderungen
B4: Blatt
B5: General_data | C5: SK hat EUR statt SKK
C6: In 1018 "Other" im drop-down Menu weggenommen (da keine Dichte abgefragt wird, d.h. z.B. Lager nicht spezifizierbar)
B7: 2. Technical | C7: Bei 2067 im Fall von kein Öl-Reserve/Spitzenlast im Blatt "General" 1019 Div by 0, daher "WENN('1. General'!E23=General_Data!B45;0;"
B8: 3. Investment | C8: RefSystem Boiler house: Reference investment cost for coal as for biomass, for gas and oil 2/3 less
C9: RefSystem Boiler related electric, hydraulic and steelwork installations: 15% less than for biomass system assumed
C10: RefSystem Fuel Storage: For gas +15% of reference value for boiler investment+
C11: RefSystem Fuel Storage: For coal storage facility investment can be defined at “Other initial investments”
C12: Re-investment Zeitreihe um ein Jahr verschoben und dynamisiert (war bisher statisch)
B13: Investmentcost_Data | C13: Invest Lagerhaus mit Pmax multipliziert (einmal zu viel)
C14: Invest boiler house: auf Pmax anstatt Pbiom beziehen, alle werte in Spalte E ohne Formeln vorgefunden - auch korrigert
C15: Ein Volll-h Tag hat 16 statt 24 h (Mösl)
C16: 3 statt 1 Volll-Tage bei Spitzenlastkessel für BioMHW angesetzt
B17: Re-Invesment_BM | C17: Netzkosten von falscher Spalte übernommen (Invest H statt F), nur 1 Boiler statt 3 übernommen
B18: Re-Invesment_Ref | C18: Netzkosten von falscher Spalte übernommen (Invest H statt F), nur 1 Boiler statt 3 übernommen
C19: Beim Berechnen der Brennstoffkosten Qinput des BiomasseNW-Systems verwendet
B20: 4. Receipts | C20: Zeilen Receipts über 25 jahre stimmen um ein Jahr nicht mit Spalten DCF_BM und DCF_RefSystem überein
B21: 5. Runningcost | C21: BM: Weighted annual salary of staff categories required (year 1): Total person years of staff required (for systems without DH 50% less)
B22: 5. Runningcost | C22: RefSys: Annual salary of staff categories required (equal to biomass system): Total person years of staff required (1/3 less than for biomass system)
B23: 6. Economic | C23: RefSys: 6053 Loan rent term: ließ sich nicht variieren
B24: DCF_BM | C24: 4. Receipts Heat Sales Development - wenn 0 dann trotzdem, im Fall des Eigenverbrauchs - lfd. Kosten in den Jahren 0-3
C25: Payback time nicht als summeprodukt sonder max-wert berechnet
B26: DCF_RefSystem | C26: 4. Receipts Heat Sales Development - wenn 0 dann trotzdem, im Fall des Eigenverbrauchs - lfd. Kosten in den Jahren 0-3
C27: Payback time nicht als summeprodukt sonder max-wert berechnet
B28: viele Blätter | C28: automatische Änderung von Währung (& Einheit) ergänzt
A30: STATUS (13.4.16) | B30: To Dos
B32: Blatt
A33: Wert steht bereits in 3079 - verschieben? | B33: 3. Investment | C33: 3092 | D33: Total physical investment year 0-3 einfügen
A34: Nicht ohne erheblichen aufwand möglich | B34: 4. Receipts | C34: 4. Revenues
A35: Nicht ohne erheblichen aufwand möglich | B35: 5. Runningcost | C35: better "5. Regular payments"
A36: Erledigt | C36: 5027, Spalte E "person years" übersetzung fehlt
C37: RefSys: Annual salary of staff categories required (equal to biomass system) - extra als Block anführen
C38: RefSys: Electricity purchase price (equal to biomass system) - extra als Block anführen
C39: RefSys: Annual property cost / rent / lease / (equal to biomass system) - extra als Block anführen
B40: 6. Economic | C40: Zirkelbezug hängt bei | E40: 6032 | F40: WACC pre-tax
C41: zwischen 6009 und 6010 Total initial investment einfügen, 6010 ist intitial investment eligible
C42: Eigenkapitalverzinsung von Fossil Ref anführen (eigener Wert möglich)
A43: Nicht ohne erheblichen aufwand möglich | C43: should be "6. Financing"
A44: Refreshbutton eingerichtet (wirkt nur auf wärmegestehungskosten). | B44: 7. Results | C44: Wärmegestehungskosten ändern sich nicht bei Änderung von Inputdaten (man muss Sensitivtätsanalyse aktivieren)
A45: Erledigt | C45: RefSys: 7036 | D45: Discounted Payback Time sollte bei NPV 0 25 und nicht 0 Jahre sein
A46: Erledigt | C46: Bei 0-Durchgang CF Jahr 25 in Sheet 26 Jahre angezeigt
C47: Bei 7% fuel oil increse erster 0-Durchgang bei 2.5 years im RefSys möglich (Tulbingerkogel)
A48: fehler nicht reproduzierbar - bei erhöhung EK-verzinsung steigt amortistationsdauer (ich ohne verlinkung von results auf receipts sheet) | C48: Bei 3 statt 7.5% Eigenkapitalverzinsung verlängert sich dyn. Amortisation von 8.9 auf 9.2 Jahre - eigentlich Gegenteil erwartet (Tulbingerkogel)
C49: 7006 Spalte J und T Übersetzungen fehlen
C50: 7054 Übersetzungen Legendentexte fehlt
C51: 7067 Übersetzungen Legendentexte fehlt
C52: Mehrinvestitionskosten intitial einfügen abs und rel
C53: Brennstoffkostenersparnis Jahr 4 einfügen abs u rel
C54: Laufende Kosten ersparnis Jahr 4 einfügen abs u rel
C55: CO2e-Reduktion abs u rel
C56: Endenergieverbrauchs-Reduktion abs u rel
C57: Torte mit kalkulatorischen jährlichen Kosten für BM und Ref_System (Kapital und lfd); Jahr 4
C58: Zw 7031 und 7032 fuel prices einfügen
B59: DCF_BM & RefSystem | C59: Wesentliche Daten daraus zugänglich machen
C60: Parameter übersetzen

Sheet 6. Economic
A1: ^FIT
A2: 40 | C2: B4B BioHeat Profitability Assessment Tool - Comparison of the economic efficiency (pre-feasibility level) of mid-scale, solid biomass and fossil fuel fired (district & in-house) heat-only plants
A3: 55
C4: =HYPERLINK("#"&'Manual for Translation'!E487,'Manual for Translation'!F487) -> 6000 | D4: FINANZIELLE INFORMATIONEN | N4: =HYPERLINK("#'Manual for Translation'!$j$"&ROW('Manual for Translation'!M487)) -> #'Manual for Translation'!$j$487
N5: =HYPERLINK("#'Manual for Translation'!$j$"&ROW('Manual for Translation'!M488)) -> #'Manual for Translation'!$j$488
A6: 50 | D6: Das finale Eingabeblatt fasst ökonomische und Finanzierungsfragen zusammen, welche aus Investorensicht relevant sind. | N6: =HYPERLINK("#'Manual for Translation'!$j$"&ROW('Manual for Translation'!M489)) -> #'Manual for Translation'!$j$489
N7: =HYPERLINK("#'Manual for Translation'!$j$"&ROW('Manual for Translation'!M490)) -> #'Manual for Translation'!$j$490
C8: 6005 | D8: Biomasseheizanlage | N8: =HYPERLINK("#'Manual for Translation'!$j$"&ROW('Manual for Translation'!M491)) -> #'Manual for Translation'!$j$491
A9: ^HID | N9: =HYPERLINK("#'Manual for Translation'!$j$"&ROW('Manual for Translation'!M492)) -> #'Manual for Translation'!$j$492
D10: Parameter | E10: Einheit | F10: Eingabewert | G10: Referenzwert | N10: =HYPERLINK("#'Manual for Translation'!$j$"&ROW('Manual for Translation'!M493)) -> #'Manual for Translation'!$j$493
C11: =HYPERLINK("#"&'Manual for Translation'!E494,'Manual for Translation'!F494) -> 6007 | D11: Investitionen Kapitalstruktur | N11: =HYPERLINK("#'Manual for Translation'!$j$"&ROW('Manual for Translation'!M494)) -> #'Manual for Translation'!$j$494
C12: =HYPERLINK("#"&'Manual for Translation'!E495,'Manual for Translation'!F495) -> 6008 | D12: Gesamtinvestitionen (Jahr 0-3) | E12: =CUR -> EUR | F12: =ic_total -> 0 | N12: =HYPERLINK("#'Manual for Translation'!$j$"&ROW('Manual for Translation'!M496)) -> #'Manual for Translation'!$j$496
C13: =HYPERLINK("#"&'Manual for Translation'!E496,'Manual for Translation'!F496) -> 6009 | D13: Förderfähige Investition | E13: =CUR -> EUR | G13: =F13/F12 ->  | N13: =HYPERLINK("#'Manual for Translation'!$j$"&ROW('Manual for Translation'!M497)) -> #'Manual for Translation'!$j$497
C14: =HYPERLINK("#"&'Manual for Translation'!E497,'Manual for Translation'!F497) -> 6010 | D14: Anteil der Investitionsförderung (bezogen auf die förderbare Gesamtinvestition) - sofern Zuschüsse gewährt werden | E14: % | G14: =Economic_Data!D16 -> 0.3 | N14: =HYPERLINK("#'Manual for Translation'!$j$"&ROW('Manual for Translation'!M497)) -> #'Manual for Translation'!$j$497
C15: =HYPERLINK("#"&'Manual for Translation'!E498,'Manual for Translation'!F498) -> 6011 | D15: Investitionszuschuss (nominell) | E15: =CUR -> EUR | F15: =F13*F14 -> 0 | J15: NEO, =ic_total*InvestmetnSubsidy_ratio | N15: =HYPERLINK("#'Manual for Translation'!$j$"&ROW('Manual for Translation'!M498)) -> #'Manual for Translation'!$j$498
C16: =HYPERLINK("#"&'Manual for Translation'!E499,'Manual for Translation'!F499) -> 6012 | D16: Jahr der Auszahlung von Investitionsförderungen | E16: year | J16: NE (Default =f(country) | N16: =HYPERLINK("#'Manual for Translation'!$j$"&ROW('Manual for Translation'!M499)) -> #'Manual for Translation'!$j$499
N17: =HYPERLINK("#'Manual for Translation'!$j$"&ROW('Manual for Translation'!M499)) -> #'Manual for Translation'!$j$499
C18: =HYPERLINK("#"&'Manual for Translation'!E501,'Manual for Translation'!F501) -> 6014 | D18: Eigenkapitalanteil (Eigenkapital bezogen auf die kalkulatorische Gesamtinvestition) | E18: % | G18: =Economic_Data!D15 -> 0.3 | I18: =D20 -> Kalkulatorische Gesamtinvestition (Barwert) | N18: =HYPERLINK("#'Manual for Translation'!$j$"&ROW('Manual for Translation'!M501)) -> #'Manual for Translation'!$j$501
N19: =HYPERLINK("#'Manual for Translation'!$j$"&ROW('Manual for Translation'!M502)) -> #'Manual for Translation'!$j$502
C20: =HYPERLINK("#"&'Manual for Translation'!E503,'Manual for Translation'!F503) -> 6016 | D20: Kalkulatorische Gesamtinvestition (Barwert) | E20: =CUR -> EUR | F20: =SUM(DCF_BM!D38:AC38) -> 0 | K20: =IF(Economic_Data!G7=TRUE,"Please Update!","") -> Please Update! | N20: =HYPERLINK("#'Manual for Translation'!$j$"&ROW('Manual for Translation'!M503)) -> #'Manual for Translation'!$j$503
C21: =HYPERLINK("#"&'Manual for Translation'!E504,'Manual for Translation'!F504) -> 6017 | D21: Investitionszuschuss (Barwert) | E21: =CUR -> EUR | F21: =capital_subsidy*(1+r_loan)^(-Year_SubsidyPayment) -> 0 | N21: =HYPERLINK("#'Manual for Translation'!$j$"&ROW('Manual for Translation'!M500)) -> #'Manual for Translation'!$j$500
C22: =HYPERLINK("#"&'Manual for Translation'!E505,'Manual for Translation'!F505) -> 6018 | D22: Eigenkapital | E22: =CUR -> EUR | G22: =(F20-F21)*F18 -> 0 | J22: NEO | N22: =HYPERLINK("#'Manual for Translation'!$j$"&ROW('Manual for Translation'!M505)) -> #'Manual for Translation'!$j$505
C23: =HYPERLINK("#"&'Manual for Translation'!E506,'Manual for Translation'!F506) -> 6019 | D23: Fremdkapital (langfristig) --> bitte betätigen Sie den Schalter zur Berechnung | E23: =CUR -> EUR | F23: =Economic_Data!E7 -> 51982.24842 | N23: =HYPERLINK("#'Manual for Translation'!$j$"&ROW('Manual for Translation'!M506)) -> #'Manual for Translation'!$j$506
N24: =HYPERLINK("#'Manual for Translation'!$j$"&ROW('Manual for Translation'!M507)) -> #'Manual for Translation'!$j$507
C25: =HYPERLINK("#"&'Manual for Translation'!E508,'Manual for Translation'!F508) -> 6021 | D25: Fremdkapital Bedingungen | N25: =HYPERLINK("#'Manual for Translation'!$j$"&ROW('Manual for Translation'!M508)) -> #'Manual for Translation'!$j$508
C26: =HYPERLINK("#"&'Manual for Translation'!E509,'Manual for Translation'!F509) -> 6022 | D26: Langfristiger Kredit - effektiver Zinssatz (nach Steuern) | E26: % p.a. | G26: =Economic_Data!D19 -> 0.03 | H26: =IF(F26="",G26,F26) -> 0.03 | N26: =HYPERLINK("#'Manual for Translation'!$j$"&ROW('Manual for Translation'!M509)) -> #'Manual for Translation'!$j$509
C27: =HYPERLINK("#"&'Manual for Translation'!E510,'Manual for Translation'!F510) -> 6023 | D27: Langfristiger Kredit - Laufzeit | E27: a | G27: =Economic_Data!D20 -> 15 | H27: =IF(F27="",G27,F27) -> 15 | N27: =HYPERLINK("#'Manual for Translation'!$j$"&ROW('Manual for Translation'!M510)) -> #'Manual for Translation'!$j$510
C28: =HYPERLINK("#"&'Manual for Translation'!E511,'Manual for Translation'!F511) -> 6024 | D28: Langfristiger Kredit - effektiver Zinssatz (Vor Steuern) | E28: % p.a. | F28: =r_loan -> 0 | J28: Calc., RMZ() | N28: =HYPERLINK("#'Manual for Translation'!$j$"&ROW('Manual for Translation'!M511)) -> #'Manual for Translation'!$j$511
C29: =HYPERLINK("#"&'Manual for Translation'!E512,'Manual for Translation'!F512) -> 6025 | D29: Langfristiger Kredit - Annuität (Zinsen und Tilgung) | E29: =CUR&"/a" -> EUR/a | F29: =-PMT(r_loan,F27,F23) ->  | N29: =HYPERLINK("#'Manual for Translation'!$j$"&ROW('Manual for Translation'!M512)) -> #'Manual for Translation'!$j$512
A30: ^HID | C30: =HYPERLINK("#"&'Manual for Translation'!E513,'Manual for Translation'!F513) -> 6026 | E30: % p.a. | F30: 0 | G30: =#REF! ->  | J30: Interest payments for the short-term loan neccesary during the construction period are added to the total investment cost, as these interest payments need to be financed as well | N30: =HYPERLINK("#'Manual for Translation'!$j$"&ROW('Manual for Translation'!M513)) -> #'Manual for Translation'!$j$513
A31: ^HID | C31: =HYPERLINK("#"&'Manual for Translation'!E514,'Manual for Translation'!F514) -> 6027 | E31: Months | F31: 0 | G31: 12 | H31: =IF(F31="",G31,F31) -> 0 | N31: =HYPERLINK("#'Manual for Translation'!$j$"&ROW('Manual for Translation'!M514)) -> #'Manual for Translation'!$j$514
A32: ^HID | C32: =HYPERLINK("#"&'Manual for Translation'!E515,'Manual for Translation'!F515) -> 6028 | E32: =CUR -> EUR | F32: =($F$31/12)*$F$30*((ic_planning+ic_boiler+ic_building+ic_other+(ic_grid*Grid_frac_Y1))*0.5) -> 0 | J32: Short-Term Interest rate ist applied to halve the physical construction cost (assuming a linear flow of capital during the construction periode). Interest payment during the construction period are added to the short term loan as bridge-financing between start of construction and payment of the subsidy. Berücksichtigt netzausbau | N32: =HYPERLINK("#'Manual for Translation'!$j$"&ROW('Manual for Translation'!M515)) -> #'Manual for Translation'!$j$515
N33: =HYPERLINK("#'Manual for Translation'!$j$"&ROW('Manual for Translation'!M516)) -> #'Manual for Translation'!$j$516
C34: =HYPERLINK("#"&'Manual for Translation'!E517,'Manual for Translation'!F517) -> 6030 | D34: Eigenkapital Konditionen | N34: =HYPERLINK("#'Manual for Translation'!$j$"&ROW('Manual for Translation'!M517)) -> #'Manual for Translation'!$j$517
C35: =HYPERLINK("#"&'Manual for Translation'!E518,'Manual for Translation'!F518) -> 6031 | D35: Eigenkapitalverzinsung - nach Steuern | E35: % p.a. | G35: =Economic_Data!D17 -> 5-8% | N35: =HYPERLINK("#'Manual for Translation'!$j$"&ROW('Manual for Translation'!M518)) -> #'Manual for Translation'!$j$518
C36: =HYPERLINK("#"&'Manual for Translation'!E519,'Manual for Translation'!F519) -> 6032 | D36: Steuersatz | E36: % p.a. | G36: =Economic_Data!D21 -> 0.25 | H36: =IF(F36="",G36,F36) -> 0.25 | N36: =HYPERLINK("#'Manual for Translation'!$j$"&ROW('Manual for Translation'!M519)) -> #'Manual for Translation'!$j$519
C37: =HYPERLINK("#"&'Manual for Translation'!E520,'Manual for Translation'!F520) -> 6033 | D37: Eigenkapitalverzinsung - vor Steuer | E37: % p.a. | F37: =F35/(1-TaxRate) -> 0 | H37: =IF(F37="",G35,F37) -> 0 | J37: NEO, f(public/private investor, survey) | N37: =HYPERLINK("#'Manual for Translation'!$j$"&ROW('Manual for Translation'!M520)) -> #'Manual for Translation'!$j$520
A38: ^HID | C38: =HYPERLINK("#"&'Manual for Translation'!E521,'Manual for Translation'!F521) -> 6034 | D38: Gewichteter durchschnittlicher Kapitalkostensatz (WACC) | E38: % p.a. | F38: =Economic_Data!D12 -> 0 | N38: =HYPERLINK("#'Manual for Translation'!$j$"&ROW('Manual for Translation'!M521)) -> #'Manual for Translation'!$j$521
C39: =HYPERLINK("#"&'Manual for Translation'!E522,'Manual for Translation'!F522) -> 6035 | D39: WACC vor Steuern | E39: % p.a. | F39: =Economic_Data!D13 -> 0 | N39: =HYPERLINK("#'Manual for Translation'!$j$"&ROW('Manual for Translation'!M522)) -> #'Manual for Translation'!$j$522
N40: =HYPERLINK("#'Manual for Translation'!$j$"&ROW('Manual for Translation'!M523)) -> #'Manual for Translation'!$j$523
N41: =HYPERLINK("#'Manual for Translation'!$j$"&ROW('Manual for Translation'!M524)) -> #'Manual for Translation'!$j$524
C42: =HYPERLINK("#"&'Manual for Translation'!E525,'Manual for Translation'!F525) -> 6038 | D42: Mit fossilem Brennstoff befeuertes Referenzsystem | N42: =HYPERLINK("#'Manual for Translation'!$j$"&ROW('Manual for Translation'!M525)) -> #'Manual for Translation'!$j$525
D43: Parameter | E43: Einheit | F43: Eingabewert | G43: Referenzwert | N43: =HYPERLINK("#'Manual for Translation'!$j$"&ROW('Manual for Translation'!M526)) -> #'Manual for Translation'!$j$526
A44: 45 | D44: Ökonomische Parameter für das fossile Referenzsystem. Für alle Parameter, welche hier nicht noch einmal separat aufgeführt werden, wird angenommen, dass diese die selben sind wie beim biogenen Wärmeprojekt. | N44: =HYPERLINK("#'Manual for Translation'!$j$"&ROW('Manual for Translation'!M527)) -> #'Manual for Translation'!$j$527
I45: =I18 -> Kalkulatorische Gesamtinvestition (Barwert) | N45: =HYPERLINK("#'Manual for Translation'!$j$"&ROW('Manual for Translation'!M528)) -> #'Manual for Translation'!$j$528
N46: =HYPERLINK("#'Manual for Translation'!$j$"&ROW('Manual for Translation'!M529)) -> #'Manual for Translation'!$j$529
C47: =HYPERLINK("#"&'Manual for Translation'!E530,'Manual for Translation'!F530) -> 6043 | D47: Kapitalstruktur | N47: =HYPERLINK("#'Manual for Translation'!$j$"&ROW('Manual for Translation'!M530)) -> #'Manual for Translation'!$j$530
C48: =HYPERLINK("#"&'Manual for Translation'!E531,'Manual for Translation'!F531) -> 6044 | D48: Kalkulatorische Gesamtinvestition (Barwert) | E48: =CUR -> EUR | F48: =SUM(DCF_RefSystem!D38:AC38) -> 0 | N48: =HYPERLINK("#'Manual for Translation'!$j$"&ROW('Manual for Translation'!M531)) -> #'Manual for Translation'!$j$531
C49: =HYPERLINK("#"&'Manual for Translation'!E532,'Manual for Translation'!F532) -> 6045 | D49: Gesamtinvestitionen (Jahr 0-3) | E49: =CUR -> EUR | F49: =SUM('3. Investment'!F166:F168,'3. Investment'!F171) -> 0 | N49: =HYPERLINK("#'Manual for Translation'!$j$"&ROW('Manual for Translation'!M533)) -> #'Manual for Translation'!$j$533
C50: =HYPERLINK("#"&'Manual for Translation'!E533,'Manual for Translation'!F533) -> 6046 | D50: Eigenkapitalanteil (Eigenkapital bezogen auf die kalkulatorische Gesamtinvestition) | E50: % | G50: =Economic_Data!D15 -> 0.3 | N50: =HYPERLINK("#'Manual for Translation'!$j$"&ROW('Manual for Translation'!M533)) -> #'Manual for Translation'!$j$533
C51: =HYPERLINK("#"&'Manual for Translation'!E534,'Manual for Translation'!F534) -> 6047 | D51: Eigenkapital | E51: =CUR -> EUR | F51: =F50*F48 -> 0 | N51: =HYPERLINK("#'Manual for Translation'!$j$"&ROW('Manual for Translation'!M534)) -> #'Manual for Translation'!$j$534
C52: =HYPERLINK("#"&'Manual for Translation'!E535,'Manual for Translation'!F535) -> 6048 | D52: Fremdkapital (langfristig) | E52: =CUR -> EUR | F52: =SUM(DCF_RefSystem!D38:AC38)-ref_capital_equity -> 0 | N52: =HYPERLINK("#'Manual for Translation'!$j$"&ROW('Manual for Translation'!M535)) -> #'Manual for Translation'!$j$535
N53: =HYPERLINK("#'Manual for Translation'!$j$"&ROW('Manual for Translation'!M536)) -> #'Manual for Translation'!$j$536
C54: =HYPERLINK("#"&'Manual for Translation'!E537,'Manual for Translation'!F537) -> 6050 | D54: Fremdkapital Bedingungen | N54: =HYPERLINK("#'Manual for Translation'!$j$"&ROW('Manual for Translation'!M537)) -> #'Manual for Translation'!$j$537
A55: ^HID | C55: =HYPERLINK("#"&'Manual for Translation'!E538,'Manual for Translation'!F538) -> 6051 | E55: =CUR -> EUR | N55: =HYPERLINK("#'Manual for Translation'!$j$"&ROW('Manual for Translation'!M538)) -> #'Manual for Translation'!$j$538
C56: =HYPERLINK("#"&'Manual for Translation'!E539,'Manual for Translation'!F539) -> 6052 | D56: Langfristiger Kredit - effektiver Zinssatz (nach Steuern) | E56: % p.a. | G56: =Economic_Data!C31 -> 0 | N56: =HYPERLINK("#'Manual for Translation'!$j$"&ROW('Manual for Translation'!M539)) -> #'Manual for Translation'!$j$539
C57: =HYPERLINK("#"&'Manual for Translation'!E540,'Manual for Translation'!F540) -> 6053 | D57: Langfristiger Kredit - effektiver Zinssatz (Vor Steuern) | E57: % p.a. | F57: =ref_r_loan -> 0 | N57: =HYPERLINK("#'Manual for Translation'!$j$"&ROW('Manual for Translation'!M540)) -> #'Manual for Translation'!$j$540
C58: =HYPERLINK("#"&'Manual for Translation'!E541,'Manual for Translation'!F541) -> 6054 | D58: Langfristiger Kredit - Laufzeit | E58: a | G58: =T_loan -> 0 | N58: =HYPERLINK("#'Manual for Translation'!$j$"&ROW('Manual for Translation'!M541)) -> #'Manual for Translation'!$j$541
C59: =HYPERLINK("#"&'Manual for Translation'!E542,'Manual for Translation'!F542) -> 6055 | D59: Langfristiger Kredit - Annuität (Zinsen und Tilgung) | E59: =CUR&"/a" -> EUR/a | F59: =-PMT(F57,F58,F52) ->  | N59: =HYPERLINK("#'Manual for Translation'!$j$"&ROW('Manual for Translation'!M542)) -> #'Manual for Translation'!$j$542
N60: =HYPERLINK("#'Manual for Translation'!$j$"&ROW('Manual for Translation'!M548)) -> #'Manual for Translation'!$j$548
C61: =HYPERLINK("#"&'Manual for Translation'!E544,'Manual for Translation'!F544) -> 6057 | D61: Eigenkapital Konditionen | N61: =HYPERLINK("#'Manual for Translation'!$j$"&ROW('Manual for Translation'!#REF!)) -> 
C62: =HYPERLINK("#"&'Manual for Translation'!E545,'Manual for Translation'!F545) -> 6058 | D62: Eigenkapitalverzinsung - nach Steuern | E62: % p.a. | G62: =IF(F35="",G35,F35) -> 5-8% | N62: =HYPERLINK("#'Manual for Translation'!$j$"&ROW('Manual for Translation'!#REF!)) -> 
C63: =HYPERLINK("#"&'Manual for Translation'!E546,'Manual for Translation'!F546) -> 6059 | D63: Eigenkapitalverzinsung - vor Steuer | E63: % p.a. | F63: =F62/(1-TaxRate) -> 0 | N63: =HYPERLINK("#'Manual for Translation'!$j$"&ROW('Manual for Translation'!M549)) -> #'Manual for Translation'!$j$549
A64: ^HID | C64: =HYPERLINK("#"&'Manual for Translation'!E547,'Manual for Translation'!F547) -> 6060 | D64: Gewichteter durchschnittlicher Kapitalkostensatz (WACC) | E64: % p.a. | F64: =Economic_Data!D27 -> 0 | N64: =HYPERLINK("#'Manual for Translation'!$j$"&ROW('Manual for Translation'!M550)) -> #'Manual for Translation'!$j$550
C65: =HYPERLINK("#"&'Manual for Translation'!E548,'Manual for Translation'!F548) -> 6061 | D65: WACC vor Steuern | E65: % | F65: =Economic_Data!D28 -> 0 | N65: =HYPERLINK("#'Manual for Translation'!$j$"&ROW('Manual for Translation'!M548)) -> #'Manual for Translation'!$j$548
A67: 55
A68: ^END

Sheet Economic_Data (hidden)
B2: =SURVEY!B209 -> FINANCIAL DATA (year 2015, average figures)
B4: Selected Values
B5: Equity Capital - übernomen | C5: =CUR -> EUR | D5: =capital_EQ -> 0
D6: Formel Lösung | E6: Solver Lösung | F6: Delta | G6: Update notwendig?
B7: Loan Capital | C7: =CUR -> EUR | D7: =IFERROR(SUM(DCF_BM!D38:AC38)-capital_EQ-capital_subsidy*(1+r_loan)^(-Year_SubsidyPayment),1) -> 0 | E7: 51982.24842 | F7: =D7-E7 -> -51982.24842 | G7: =IF(ROUND(F7,3)<>0,TRUE,FALSE) -> TRUE
E9: rate (after tax) | F9: rate (before tax)
A10: WACC-calc | B10: Equity Share | C10: % | D10: =(D5)/(D5+E7) -> 0 | E10: ='6. Economic'!F35 -> 0 | F10: =r_EC -> 0
B11: Loan Share | C11: % | D11: =1-D10 -> 1 | E11: =r_loan -> 0 | F11: =E11/(1-TaxRate) -> 0
B12: WACC nach steuern | C12: % | D12: =D10*'6. Economic'!F35+D11*r_loan -> 0
B13: WACC before taxes | C13: % | D13: =D12/(1-TaxRate) -> 0
A15: default values | B15: =SURVEY!B210 -> Min. equity share for financing projects | C15: =SURVEY!D210 -> % | D15: =SURVEY!E210 -> 0.3
B16: =SURVEY!B211 -> Typical Investment Subsidy/Capital Grant share | C16: =SURVEY!D211 -> % | D16: =SURVEY!E211 -> 0.3
B17: =SURVEY!B212 -> Avg. Interest rate on equity (after taxes) | C17: =SURVEY!D212 -> % | D17: =SURVEY!E212 -> 5-8%
B18: =SURVEY!B213 -> Avg. inflation rate | C18: =SURVEY!D213 -> % | D18: =SURVEY!E213 -> 0.02
B19: =SURVEY!B214 -> Avg. Loan interest rate | C19: =SURVEY!D214 -> % | D19: =SURVEY!E214 -> 0.03
B20: =SURVEY!B215 -> Avg. Loan runtime | C20: =SURVEY!D215 -> a | D20: =SURVEY!E215 -> 15
B21: =SURVEY!B216 -> National Tax rate | C21: =SURVEY!D216 -> % | D21: =SURVEY!E216 -> 0.25
A23: Ref-System_
A24: WACC-calc | B24: Sum: Equity capital + Loan Capital | C24: =CUR -> EUR | D24: ='6. Economic'!F48 -> 0
B25: Equity Share | C25: % | D25: ='6. Economic'!F50 -> 0
B26: Loan Share | C26: % | D26: =1-D25 -> 1
B27: WACC | C27: % | D27: =D25*'6. Economic'!F62+D26*ref_r_loan -> 0
B28: WACC before taxes | C28: % | D28: =D27/(1-TaxRate) -> 0
A31: BM-System | B31: Loan rate - after tax | C31: ='6. Economic'!F26 -> 0
B32: loan rate - pre tax | C32: =C31/(1-TaxRate) -> 0
A34: Ref-System | B34: Loan rate - after tax | C34: ='6. Economic'!F56 -> 0
B35: loan rate - pre tax | C35: =C34/(1-TaxRate) -> 0

Sheet DCF_BM (hidden)
A1: Timeframe (yrs) | B1: ='7. Results'!J129 -> 15 | C1: (influence on IRR and Heat Price calculation, not on payback-time!)
A2: Currency: | B2: =CUR -> EUR
A3: Year | D3: =Year_0 -> 2017 | E3: =D3+1 -> 2018 | F3: =E3+1 -> 2019 | G3: 2020 | H3: 2021 | I3: 2022 | J3: 2023 | K3: 2024 | L3: 2025 | M3: 2026 | N3: 2027 | O3: 2028 | P3: 2029 | Q3: 2030 | R3: 2031 | S3: 2032 | T3: 2033 | U3: 2034 | V3: 2035 | W3: 2036 | X3: 2037 | Y3: 2038 | Z3: 2039 | AA3: 2040 | AB3: 2041 | AC3: 2042
A4: Year nb. (0=Construction) | D4: 0 | E4: 1 | F4: 2 | G4: 3 | H4: 4 | I4: 5 | J4: 6 | K4: 7 | L4: 8 | M4: 9 | N4: 10 | O4: 11 | P4: 12 | Q4: 13 | R4: 14 | S4: 15 | T4: 16 | U4: 17 | V4: 18 | W4: 19 | X4: 20 | Y4: 21 | Z4: 22 | AA4: 23 | AB4: 24 | AC4: 25
A6: RECEIPTS (Incoming payments)
B7: 1 | C7: Receipts from heat sales | D7: 0 | E7: =pr_heat*Q_sold*IF(Technical_Data!$B$71=Technical_Data!$B$69,1,Q_sales_frac_Y1)*(1+r_heat)^E4 -> 0 | F7: =pr_heat*Q_sold*IF(Technical_Data!$B$71=Technical_Data!$B$69,1,Q_sales_frac_Y2)*(1+r_heat)^F4 -> 0 | G7: =pr_heat*Q_sold*IF(Technical_Data!$B$71=Technical_Data!$B$69,1,Q_sales_frac_Y3)*(1+r_heat)^G4 -> 0 | H7: =pr_heat*Q_sold*(1+r_heat)^H4 -> 0 | I7: =pr_heat*Q_sold*(1+r_heat)^I4 -> 0 | J7: 0 | K7: 0 | L7: 0 | M7: 0 | N7: 0 | O7: 0 | P7: 0 | Q7: 0 | R7: 0 | S7: 0 | T7: 0 | U7: 0 | V7: 0 | W7: 0 | X7: 0 | Y7: 0 | Z7: 0 | AA7: 0 | AB7: 0 | AC7: 0
B8: 2 | C8: Other Receipts (if any) | D8: ='4. Receipts'!F24 -> 0 | E8: ='4. Receipts'!F25 -> 0 | F8: ='4. Receipts'!F26 -> 0 | G8: ='4. Receipts'!F27 -> 0 | H8: ='4. Receipts'!F28 -> 0 | I8: ='4. Receipts'!F29 -> 0 | J8: ='4. Receipts'!F30 -> 0 | K8: ='4. Receipts'!F31 -> 0 | L8: ='4. Receipts'!F32 -> 0 | M8: ='4. Receipts'!F33 -> 0 | N8: ='4. Receipts'!F34 -> 0 | O8: ='4. Receipts'!F35 -> 0 | P8: ='4. Receipts'!F36 -> 0 | Q8: ='4. Receipts'!F37 -> 0 | R8: ='4. Receipts'!F38 -> 0 | S8: ='4. Receipts'!F39 -> 0 | T8: ='4. Receipts'!F40 -> 0 | U8: ='4. Receipts'!F41 -> 0 | V8: ='4. Receipts'!F42 -> 0 | W8: ='4. Receipts'!F43 -> 0 | X8: ='4. Receipts'!F44 -> 0 | Y8: ='4. Receipts'!F45 -> 0 | Z8: ='4. Receipts'!F46 -> 0 | AA8: ='4. Receipts'!F47 -> 0 | AB8: ='4. Receipts'!F48 -> 0 | AC8: ='4. Receipts'!F49 -> 0
B10: 3=1+2 | C10: RECEIPTS | D10: =SUM(D7:D9) -> 0 | E10: =SUM(E7:E9) -> 0 | F10: 0 | G10: 0 | H10: 0 | I10: 0 | J10: 0 | K10: 0 | L10: 0 | M10: 0 | N10: 0 | O10: 0 | P10: 0 | Q10: 0 | R10: 0 | S10: 0 | T10: 0 | U10: 0 | V10: 0 | W10: 0 | X10: 0 | Y10: 0 | Z10: 0 | AA10: 0 | AB10: 0 | AC10: 0
A11: PAYMENTS (Outgoing)
B12: 4 | C12: Biomass fuel | E12: =Q_fuel_BM*IF(Technical_Data!$B$71=Technical_Data!$B$69,1,Q_sales_frac_Y1)*pr_BM*(1+r_BM)^E4 ->  | F12: =Q_fuel_BM*IF(Technical_Data!$B$71=Technical_Data!$B$69,1,Q_sales_frac_Y2)*pr_BM*(1+r_BM)^F4 ->  | G12: =Q_fuel_BM*IF(Technical_Data!$B$71=Technical_Data!$B$69,1,Q_sales_frac_Y3)*pr_BM*(1+r_BM)^G4 ->  | H12: =Q_fuel_BM*pr_BM*(1+r_BM)^H4 -> 
B13: 5 | C13: Fossil fuel | E13: =Q_fuel_fossil*IF(Technical_Data!$B$71=Technical_Data!$B$69,1,Q_sales_frac_Y1)*pr_fossil*(1+r_fossil)^E4 -> 0 | F13: =Q_fuel_fossil*IF(Technical_Data!$B$71=Technical_Data!$B$69,1,Q_sales_frac_Y2)*pr_fossil*(1+r_fossil)^F4 -> 0 | G13: =Q_fuel_fossil*IF(Technical_Data!$B$71=Technical_Data!$B$69,1,Q_sales_frac_Y3)*pr_fossil*(1+r_fossil)^G4 -> 0 | H13: =Q_fuel_fossil*pr_fossil*(1+r_fossil)^H4 -> 0 | I13: 0 | J13: 0 | K13: 0 | L13: 0 | M13: 0 | N13: 0 | O13: 0 | P13: 0 | Q13: 0 | R13: 0 | S13: 0 | T13: 0 | U13: 0 | V13: 0 | W13: 0 | X13: 0 | Y13: 0 | Z13: 0 | AA13: 0 | AB13: 0 | AC13: 0
B14: 6 | C14: Electricity | E14: =(Elec_boiler+Elec_grid)*IF(Technical_Data!$B$71=Technical_Data!$B$69,1,Q_sales_frac_Y1)*pr_elec*(1+r_elec)^E4 -> 0 | F14: =(Elec_boiler+Elec_grid)*IF(Technical_Data!$B$71=Technical_Data!$B$69,1,Q_sales_frac_Y2)*pr_elec*(1+r_elec)^F4 -> 0 | G14: =(Elec_boiler+Elec_grid)*IF(Technical_Data!$B$71=Technical_Data!$B$69,1,Q_sales_frac_Y3)*pr_elec*(1+r_elec)^G4 -> 0 | H14: =(Elec_boiler+Elec_grid)*pr_elec*(1+r_elec)^H4 -> 0 | I14: 0 | J14: 0 | K14: 0 | L14: 0 | M14: 0 | N14: 0 | O14: 0 | P14: 0 | Q14: 0 | R14: 0 | S14: 0 | T14: 0 | U14: 0 | V14: 0 | W14: 0 | X14: 0 | Y14: 0 | Z14: 0 | AA14: 0 | AB14: 0 | AC14: 0
B15: 7 | C15: Rent for land use | E15: =ac_rent*(1+r_rent)^E4 -> 0 | F15: 0 | G15: 0 | H15: 0 | I15: 0 | J15: 0 | K15: 0 | L15: 0 | M15: 0 | N15: 0 | O15: 0 | P15: 0 | Q15: 0 | R15: 0 | S15: 0 | T15: 0 | U15: 0 | V15: 0 | W15: 0 | X15: 0 | Y15: 0 | Z15: 0 | AA15: 0 | AB15: 0 | AC15: 0
B16: 8 | C16: Staff | E16: =ac_staff*(1+r_staff)^E4 -> 0 | F16: =ac_staff*(1+r_staff)^F4 -> 0 | G16: 0 | H16: 0 | I16: 0 | J16: 0 | K16: 0 | L16: 0 | M16: 0 | N16: 0 | O16: 0 | P16: 0 | Q16: 0 | R16: 0 | S16: 0 | T16: 0 | U16: 0 | V16: 0 | W16: 0 | X16: 0 | Y16: 0 | Z16: 0 | AA16: 0 | AB16: 0 | AC16: 0
B17: 9 | C17: Repair & maintenance | E17: =ac_RM*(1+r_RM)^E4 -> 0 | F17: 0 | G17: 0 | H17: 0 | I17: 0 | J17: 0 | K17: 0 | L17: 0 | M17: 0 | N17: 0 | O17: 0 | P17: 0 | Q17: 0 | R17: 0 | S17: 0 | T17: 0 | U17: 0 | V17: 0 | W17: 0 | X17: 0 | Y17: 0 | Z17: 0 | AA17: 0 | AB17: 0 | AC17: 0
B18: 10 | C18: Other running cost (insurance etc.) | E18: =ac_other*(1+r_other)^E4 -> 0 | F18: 0 | G18: 0 | H18: 0 | I18: 0 | J18: 0 | K18: 0 | L18: 0 | M18: 0 | N18: 0 | O18: 0 | P18: 0 | Q18: 0 | R18: 0 | S18: 0 | T18: 0 | U18: 0 | V18: 0 | W18: 0 | X18: 0 | Y18: 0 | Z18: 0 | AA18: 0 | AB18: 0 | AC18: 0
B19: 12 | C19: Capital expenditures (interest & redemption) | E19: =IF(E4<=T_loan,ac_loan,0) -> 0 | F19: =IF(F4<=T_loan,ac_loan,0) -> 0 | G19: 0 | H19: 0 | I19: 0 | J19: 0 | K19: 0 | L19: 0 | M19: 0 | N19: 0 | O19: 0 | P19: 0 | Q19: 0 | R19: 0 | S19: 0 | T19: 0 | U19: 0 | V19: 0 | W19: 0 | X19: 0 | Y19: 0 | Z19: 0 | AA19: 0 | AB19: 0 | AC19: 0
B20: 13=sum(4 to 12) | C20: PAYMENTS (operating + capital expenditures) | D20: =SUM(D12:D19) -> 0
A21: Flow to Equity ct
C22: Flow to Equity (nominal values) | D22: =D10-D20 -> 0 | E22: =E10-E20 ->  | F22: =F10-F20 ->  | G22: =G10-G20 -> 
C23: cumulated nominal CFtE | D23: =D22 -> 0 | E23: =D23+E22 ->  | F23: =E23+F22 -> 
B24: ="Equity capital rate r_EC = " & r_EC -> Equity capital rate r_EC = 0 | C24: Flow to Equity Ct discounted with kEv (before tax) | D24: =D22*(1+r_EC)^-D4 -> 0 | E24: =E22*(1+r_EC)^-E4 ->  | F24: =F22*(1+r_EC)^-F4 ->  | T24: =T22*(1+r_EC)^-T4 ->  | U24: =U22*(1+r_EC)^-U4 ->  | V24: =V22*(1+r_EC)^-V4 -> 
C25: Flow to Equity Ct cumulated | D25: =D24 -> 0 | E25: =D25+E24 ->  | F25: =E25+F24 -> 
C26: Timeframe | D26: =IF(D4<=$B$1,1,0) -> 1 | E26: 1 | F26: 1 | G26: 1 | H26: 1 | I26: 1 | J26: 1 | K26: 1 | L26: 1 | M26: 1 | N26: 1 | O26: 1 | P26: 1 | Q26: 1 | R26: 1 | S26: 1 | T26: 0 | U26: 0 | V26: 0 | W26: 0 | X26: 0 | Y26: 0 | Z26: 0 | AA26: 0 | AB26: 0 | AC26: 0
C27: Flow to Equity (discounted with r_EC bzw. kEv before tax) in Timeframe | D27: =D24*D26 -> 0 | E27: =E24*E26 -> 
C29: Flow to Equity Ct - Present Value (t=Timeframe) | D29: =SUM(D27:AC27) -> 
C30: Flow to Equity Ct - Present Value Ct (t=25): | D30: =AC25 -> 
C31: informativ (selber wert, andere berechnung | D31: =SUM(D24:AC24) -> 
A32: INVESTMENT COST A0 | C32: informativ (selber wert, andere berechnung - sollte gleich EQ werden) | D32: =NPV(r_EC,E22:AC22) -> 
C33: - Initial Investment cost | D33: =ic_Y0+ic_ConstructionInterestPayments -> 0 | E33: =ic_Y1 -> 0 | F33: =ic_Y2 -> 0 | G33: =ic_Y3 -> 0
C34: - other future investment cost (incl. re-investment cost) | D34: ='3. Investment'!F56 -> 0 | E34: ='3. Investment'!F57 -> 0 | F34: ='3. Investment'!F58 -> 0 | G34: ='3. Investment'!F59 -> 0 | H34: ='3. Investment'!F60 -> 0 | I34: ='3. Investment'!F61 -> 0 | J34: ='3. Investment'!F62 -> 0 | K34: ='3. Investment'!F63 -> 0 | L34: ='3. Investment'!F64 -> 0 | M34: ='3. Investment'!F65 -> 0 | N34: ='3. Investment'!F66 -> 0 | O34: ='3. Investment'!F67 -> 0 | P34: ='3. Investment'!F68 -> 0 | Q34: ='3. Investment'!F69 -> 0 | R34: ='3. Investment'!F70 -> 0 | S34: ='3. Investment'!F71 -> 0 | T34: ='3. Investment'!F72 -> 0 | U34: ='3. Investment'!F73 -> 0 | V34: ='3. Investment'!F74 -> 0 | W34: ='3. Investment'!F75 -> 0 | X34: ='3. Investment'!F76 -> 0 | Y34: ='3. Investment'!F77 -> 0 | Z34: ='3. Investment'!F78 -> 0 | AA34: ='3. Investment'!F79 -> 0 | AB34: ='3. Investment'!F80 -> 0 | AC34: ='3. Investment'!F81 -> 0
C36: SUM Investmentcost | D36: =SUM(D33:D35) -> 0 | E36: =SUM(E33:E35) -> 0 | F36: 0 | G36: 0 | H36: 0 | I36: 0 | J36: 0 | K36: 0 | L36: 0 | M36: 0 | N36: 0 | O36: 0 | P36: 0 | Q36: 0 | R36: 0 | S36: 0 | T36: 0 | U36: 0 | V36: 0 | W36: 0 | X36: 0 | Y36: 0 | Z36: 0 | AA36: 0 | AB36: 0 | AC36: 0
B37: =" Inflation (= " & Inflation_Adaption_Rate&")" -> Inflation (= ) | C37: Investmentcost + Inflation_adaption_rate = A0 Nominal | D37: =D36*(1+Inflation_Adaption_Rate)^D4 -> 0 | E37: 0 | F37: 0 | G37: 0 | H37: 0 | I37: 0 | J37: 0 | K37: 0 | L37: 0 | M37: 0 | N37: 0 | O37: 0 | P37: 0 | Q37: 0 | R37: 0 | S37: 0 | T37: 0 | U37: 0 | V37: 0 | W37: 0 | X37: 0 | Y37: =Y36*(1+Inflation_Adaption_Rate)^Y4 -> 0 | Z37: 0 | AA37: 0 | AB37: 0 | AC37: 0
B38: =" kev (= " & r_EC&")" -> kev (= 0) | C38: Investmentcost A0 discounted with WACC (pre-Tax) | D38: =D37*(1+r_WACC)^-D4 -> 0 | E38: =E37*(1+r_WACC)^-E4 -> 0 | F38: =F37*(1+r_WACC)^-F4 -> 0 | G38: 0 | H38: 0 | I38: 0 | J38: 0 | K38: 0 | L38: 0 | M38: 0 | N38: 0 | O38: 0 | P38: 0 | Q38: 0 | R38: 0 | S38: 0 | T38: 0 | U38: 0 | V38: 0 | W38: 0 | X38: 0 | Y38: 0 | Z38: 0 | AA38: 0 | AB38: 0 | AC38: 0
C39: Investmentcost A0 - cumulated | D39: =D38 -> 0 | E39: =D39+E38 -> 0 | F39: =E39+F38 -> 0 | G39: 0 | H39: 0 | I39: 0 | J39: 0 | K39: 0 | L39: 0 | M39: 0 | N39: 0 | O39: 0 | P39: 0 | Q39: 0 | R39: 0 | S39: 0 | T39: 0 | U39: 0 | V39: 0 | W39: 0 | X39: 0 | Y39: 0 | Z39: 0 | AA39: 0 | AB39: 0 | AC39: 0
C40: Timeframe | D40: =IF(D$4<=$B$1,1,0) -> 1 | E40: 1 | F40: 1 | G40: 1 | H40: 1 | I40: 1 | J40: 1 | K40: 1 | L40: 1 | M40: 1 | N40: 1 | O40: 1 | P40: 1 | Q40: 1 | R40: 1 | S40: 1 | T40: 0 | U40: 0 | V40: 0 | W40: 0 | X40: 0 | Y40: 0 | Z40: 0 | AA40: 0 | AB40: 0 | AC40: 0
C41: Investmentcost A0 discounted with kev (before tax) in Timeframe | D41: =D38*D$40 -> 0 | E41: =E38*E$40 -> 0 | F41: 0 | G41: 0 | H41: 0 | I41: 0 | J41: 0 | K41: 0 | L41: 0 | M41: 0 | N41: 0 | O41: 0 | P41: 0 | Q41: 0 | R41: 0 | S41: 0 | T41: 0 | U41: 0 | V41: 0 | W41: 0 | X41: 0 | Y41: 0 | Z41: 0 | AA41: 0 | AB41: 0 | AC41: 0
C42: Investmentcost A0 - cumulated in Timeframe | D42: =D39*D$40 -> 0 | E42: 0 | F42: 0 | G42: 0 | H42: 0 | I42: 0 | J42: 0 | K42: 0 | L42: 0 | M42: 0 | N42: 0 | O42: 0 | P42: 0 | Q42: 0 | R42: 0 | S42: 0 | T42: 0 | U42: 0 | V42: 0 | W42: 0 | X42: 0 | Y42: 0 | Z42: 0 | AA42: 0 | AB42: 0 | AC42: 0
C44: A0 = Current Value of all Investments until t=timeframe | D44: =SUM(D41:AC41) -> 0
C45: A0 = current value of all Investments until t=25 | D45: =SUM(D38:AC38) -> 0
C46: NBW until t=25 (informativ -- selber wert) | D46: =NPV(r_WACC,E37:AC37)+D37 -> 0
A48: LOAN CAPITAL Y0
C49: Loan | D49: =capital_loan -> 51982.24842
C50: + Invesment Subsidy/capital grant | D50: =IF(D4=Year_SubsidyPayment,capital_subsidy,0) -> 0 | E50: 0 | F50: 0 | G50: =IF(G4=Year_SubsidyPayment,capital_subsidy,0) -> 0 | H50: 0 | I50: 0 | J50: 0 | K50: 0 | L50: 0 | M50: 0 | N50: 0 | O50: 0 | P50: 0 | Q50: 0 | R50: 0 | S50: 0 | T50: 0 | U50: 0 | V50: 0 | W50: 0 | X50: 0 | Y50: 0 | Z50: 0 | AA50: 0 | AB50: 0 | AC50: 0
C51: SUM loan & subsidy (nominal) | D51: =SUM(D49:D50) -> 51982.24842 | E51: =SUM(E49:E50) -> 0 | F51: 0 | G51: =SUM(G49:G50) -> 0 | H51: 0 | I51: 0 | J51: 0 | K51: 0 | L51: 0 | M51: 0 | N51: 0 | O51: 0 | P51: 0 | Q51: 0 | R51: 0 | S51: 0 | T51: 0 | U51: 0 | V51: 0 | W51: 0 | X51: 0 | Y51: 0 | Z51: 0 | AA51: 0 | AB51: 0 | AC51: 0
C52: Y0t - discounted with interest rate for debt (pre-tax) | D52: =D51*(1+r_loan)^-D4 -> 51982.24842 | E52: 0 | F52: =F51*(1+r_loan)^-F4 -> 0 | G52: =G51*(1+r_loan)^-G4 -> 0 | H52: 0 | I52: 0 | J52: 0 | K52: 0 | L52: 0 | M52: 0 | N52: 0 | O52: 0 | P52: 0 | Q52: 0 | R52: 0 | S52: 0 | T52: 0 | U52: 0 | V52: 0 | W52: 0 | X52: 0 | Y52: 0 | Z52: 0 | AA52: 0 | AB52: 0 | AC52: 0
C53: Y0t cumulated | D53: =D52 -> 51982.24842 | E53: =D53+E52 -> 51982.24842 | F53: =E53+F52 -> 51982.24842 | G53: =F53+G52 -> 51982.24842 | H53: 51982.24842 | I53: 51982.24842 | J53: 51982.24842 | K53: 51982.24842 | L53: 51982.24842 | M53: 51982.24842 | N53: 51982.24842 | O53: 51982.24842 | P53: 51982.24842 | Q53: 51982.24842 | R53: 51982.24842 | S53: 51982.24842 | T53: 51982.24842 | U53: 51982.24842 | V53: 51982.24842 | W53: 51982.24842 | X53: 51982.24842 | Y53: 51982.24842 | Z53: 51982.24842 | AA53: 51982.24842 | AB53: 51982.24842 | AC53: 51982.24842
C54: Timeframe | D54: =IF(D$4<=$B$1,1,0) -> 1 | E54: 1 | F54: 1 | G54: =IF(G$4<=$B$1,1,0) -> 1 | H54: 1 | I54: 1 | J54: 1 | K54: 1 | L54: 1 | M54: 1 | N54: 1 | O54: 1 | P54: 1 | Q54: 1 | R54: 1 | S54: 1 | T54: 0 | U54: 0 | V54: 0 | W54: 0 | X54: 0 | Y54: 0 | Z54: 0 | AA54: 0 | AB54: 0 | AC54: 0
C55: Y0t - discounted with nterest rate for debt - in timeframe | D55: =D52*D$40 -> 51982.24842 | E55: =E52*E$40 -> 0 | F55: 0 | G55: =G52*G$40 -> 0 | H55: 0 | I55: 0 | J55: 0 | K55: 0 | L55: 0 | M55: 0 | N55: 0 | O55: 0 | P55: 0 | Q55: 0 | R55: 0 | S55: 0 | T55: 0 | U55: 0 | V55: 0 | W55: 0 | X55: 0 | Y55: 0 | Z55: 0 | AA55: 0 | AB55: 0 | AC55: 0
C56: Y0 = Y0t cumulated - in timeframe | D56: =D53*D$40 -> 51982.24842 | E56: =E53*E$40 -> 51982.24842 | F56: 51982.24842 | G56: =G53*G$40 -> 51982.24842 | H56: 51982.24842 | I56: 51982.24842 | J56: 51982.24842 | K56: 51982.24842 | L56: 51982.24842 | M56: 51982.24842 | N56: 51982.24842 | O56: 51982.24842 | P56: 51982.24842 | Q56: 51982.24842 | R56: 51982.24842 | S56: 51982.24842 | T56: 0 | U56: 0 | V56: 0 | W56: 0 | X56: 0 | Y56: 0 | Z56: 0 | AA56: 0 | AB56: 0 | AC56: 0
D57: =D51-D52 -> 0 | E57: 0 | F57: =F51-F52 -> 0 | G57: =G51-G52 -> 0 | H57: 0 | I57: =I51-I52 -> 0 | J57: 0 | K57: 0 | L57: 0 | M57: 0 | N57: 0 | O57: 0 | P57: 0 | Q57: 0 | R57: 0 | S57: 0 | T57: 0 | U57: 0 | V57: 0 | W57: 0 | X57: 0 | Y57: 0 | Z57: 0 | AA57: 0 | AB57: 0 | AC57: 0
C58: Y0 -- Current Value of loan capital/subsidy t=timeframe | D58: =SUM(D55:AC55) -> 51982.24842
C59: Y0-- Current Value of loan capital/subsidy t=25 | D59: =SUM(D52:AC52) -> 51982.24842
C60: NBW (selber wert andere berechnung) | D60: =NPV(r_loan,E51:AC51)+D51 -> 51982.24842
A61: Net Present Value K0 / dynamic amortisation
A62: assuming equity capital cost r_eq before taxes | C62: K0t - Cumulated Present Value in year t | D62: =-D39+D53+D25 -> 51982.24842 | E62: =-E39+E53+E25 ->  | F62: =-F39+F53+F25 -> 
A63: Unter vernachlässigung des Restbuchwerts | C63: break-even-berechnung | E63: =IF(AND(D62<0,E62>0),D4+ABS(D62)/(E62-D62),0) ->  | F63: =IF(AND(E62<0,F62>0),E4+ABS(E62)/(F62-E62),0) -> 
A64: Flow to equity calculated with r_ec vor steuern (eigenmittelzins)
C66: Net Present Value oder Kapitalwert, diskontiert, K0 (t=timeframe) | D66: =-SUM(D41:AC41)+SUM(D55:AC55)+D29 ->  | E66: =CUR -> EUR | F66: =-D44+D58+D29 -> 
C67: Net Present Value oder Kapitalwert, diskontiert, K0 (t=25) | D67: =-SUM(D38:AC38)+SUM(D52:AC52)+D30 ->  | E67: =CUR -> EUR | F67: =-D45+D59+D30 -> 
C68: Pay-Back Year (at given Equity Capital Rate): | D68: =MAX(D63:AC63) ->  | E68: yr
A72: Heat Generation Cost (t=timeframe)
A73: heatprice at which NPV=NBW=K0=0
A74: Timeframe can be chosen freely | B74: 1 | C74: Receipts from Heat-Sales | D74: 0 | E74: =Q_sold*IF(Technical_Data!$B$71=Technical_Data!$B$69,1,Q_sales_frac_Y1)*C88*(1+r_heat)^E4 -> 0 | F74: =Q_sold*IF(Technical_Data!$B$71=Technical_Data!$B$69,1,Q_sales_frac_Y2)*C88*(1+r_heat)^F4 -> 0 | G74: =Q_sold*IF(Technical_Data!$B$71=Technical_Data!$B$69,1,Q_sales_frac_Y3)*C88*(1+r_heat)^G4 -> 0 | H74: =Q_sold*C88*(1+r_heat)^H4 -> 0 | I74: =Q_sold*C88*(1+r_heat)^I4 -> 0 | J74: =Q_sold*C88*(1+r_heat)^J4 -> 0 | K74: =Q_sold*C88*(1+r_heat)^K4 -> 0 | L74: =Q_sold*C88*(1+r_heat)^L4 -> 0 | M74: =Q_sold*C88*(1+r_heat)^M4 -> 0 | N74: =Q_sold*C88*(1+r_heat)^N4 -> 0 | O74: =Q_sold*C88*(1+r_heat)^O4 -> 0 | P74: =Q_sold*C88*(1+r_heat)^P4 -> 0 | Q74: =Q_sold*C88*(1+r_heat)^Q4 -> 0 | R74: =Q_sold*C88*(1+r_heat)^R4 -> 0 | S74: =Q_sold*C88*(1+r_heat)^S4 -> 0 | T74: =Q_sold*C88*(1+r_heat)^T4 -> 0 | U74: =Q_sold*C88*(1+r_heat)^U4 -> 0 | V74: =Q_sold*C88*(1+r_heat)^V4 -> 0 | W74: =Q_sold*C88*(1+r_heat)^W4 -> 0 | X74: =Q_sold*C88*(1+r_heat)^X4 -> 0 | Y74: =Q_sold*C88*(1+r_heat)^Y4 -> 0 | Z74: =Q_sold*C88*(1+r_heat)^Z4 -> 0 | AA74: =Q_sold*C88*(1+r_heat)^AA4 -> 0 | AB74: =Q_sold*C88*(1+r_heat)^AB4 -> 0 | AC74: =Q_sold*C88*(1+r_heat)^AC4 -> 0
A75: rest-value at end of timeframe is neglected | B75: 2 | C75: Other Receipts (if any) | D75: =D8 -> 0 | E75: 0 | F75: 0 | G75: 0 | H75: 0 | I75: 0 | J75: 0 | K75: 0 | L75: 0 | M75: 0 | N75: 0 | O75: 0 | P75: 0 | Q75: 0 | R75: 0 | S75: 0 | T75: 0 | U75: 0 | V75: 0 | W75: 0 | X75: 0 | Y75: 0 | Z75: 0 | AA75: 0 | AB75: 0 | AC75: 0
A76: Heat price where K0 becomes 0 | B76: 3=1+2 | C76: RECEIPTS from Heat-Sales plus other income - if any (Nominal) | D76: =SUM(D74:D75) -> 0 | E76: =SUM(E74:E75) -> 0 | F76: =SUM(F74:F75) -> 0 | G76: 0 | H76: 0 | I76: 0 | J76: 0 | K76: 0 | L76: 0 | M76: 0 | N76: 0 | O76: 0 | P76: 0 | Q76: 0 | R76: 0 | S76: 0 | T76: 0 | U76: 0 | V76: 0 | W76: 0 | X76: 0 | Y76: 0 | Z76: 0 | AA76: 0 | AB76: 0 | AC76: 0
A77: assuming a certain timeframe | B77: 4 | C77: PAYMENTS (operating + capital expenditures) (Nominal) | D77: =D20 -> 0 | E77: =E20 -> 
B78: 5=3-4, discounted | C78: Ct (=Flow to equity) -- discounted with kev (before tax) | E78: =(E76-E77)*(1+r_EC)^-E4 -> 
B79: 4 | C79: Investmentcost A0 -- discounted with WACC (pre- tax) | D79: =D38 -> 0 | E79: 0 | F79: 0 | G79: 0 | H79: 0 | I79: 0 | J79: 0 | K79: 0 | L79: 0 | M79: 0 | N79: 0 | O79: 0 | P79: 0 | Q79: 0 | R79: 0 | S79: 0 | T79: 0 | U79: 0 | V79: 0 | W79: 0 | X79: 0 | Y79: 0 | Z79: 0 | AA79: 0 | AB79: 0 | AC79: 0
B80: 5 | C80: Loan capital Y0 - discounted with interest rate for debt (pre-tax) | D80: =D52 -> 51982.24842 | E80: 0 | F80: 0 | G80: 0 | H80: 0 | I80: 0 | J80: 0 | K80: 0 | L80: 0 | M80: 0 | N80: 0 | O80: 0 | P80: 0 | Q80: 0 | R80: 0 | S80: 0 | T80: 0 | U80: 0 | V80: 0 | W80: 0 | X80: 0 | Y80: 0 | Z80: 0 | AA80: 0 | AB80: 0 | AC80: 0
B81: 6 = - 4+5+3 | C81: K0t - Present Value | D81: =-D79+D80+D78 -> 51982.24842 | E81: =-E79+E80+E78 ->  | F81: =-F79+F80+F78 ->  | G81: =-G79+G80+G78 -> 
B82: sum(6) | C82: Cumulated Present Value in year t | D82: =D81 -> 51982.24842 | E82: =D82+E81 ->  | F82: =E82+F81 -> 
C83: Timeframe | D83: =IF(D4<=$C$87,1,0) -> 1 | E83: 1 | F83: 1 | G83: 1 | H83: 1 | I83: 1 | J83: 1 | K83: 1 | L83: 1 | M83: 1 | N83: 1 | O83: 1 | P83: 1 | Q83: 1 | R83: 1 | S83: 1 | T83: 0 | U83: 0 | V83: 0 | W83: 0 | X83: 0 | Y83: 0 | Z83: 0 | AA83: 0 | AB83: 0 | AC83: 0
C84: K0t - Present Value in Timeframe | D84: =SUMPRODUCT(D81,D83) -> 51982.24842 | E84: =SUMPRODUCT(E81,E83) ->  | F84: =SUMPRODUCT(F81,F83) ->  | Q84: =SUMPRODUCT(Q81,Q83) -> 
D85: =D82*D83 -> 51982.24842 | E85: =E82*E83 -> 
B86: RESULT:
B87: assumed periode length (yrs) | C87: =B1 -> 15
B88: assumed heatprice @ t=0 (CUR/MWh): | C88: 49.61870773
B89: NPV0 (t=timeframe, =K0, should become 0!) | C89: =SUM(D84:AC84) -> 
A92: Heat Generation Cost (t=25)
B94: =B74 -> 1 | C94: Receipts from Heat-Sales | D94: 0 | E94: =Q_sold*IF(Technical_Data!$B$71=Technical_Data!$B$69,1,Q_sales_frac_Y1)*C108*(1+r_heat)^E4 -> 0 | F94: =Q_sold*IF(Technical_Data!$B$71=Technical_Data!$B$69,1,Q_sales_frac_Y2)*C108*(1+r_heat)^F4 -> 0 | G94: =Q_sold*IF(Technical_Data!$B$71=Technical_Data!$B$69,1,Q_sales_frac_Y3)*C108*(1+r_heat)^G4 -> 0 | H94: =Q_sold*C108*(1+r_heat)^H4 -> 0 | I94: =Q_sold*C108*(1+r_heat)^I4 -> 0 | J94: =Q_sold*C108*(1+r_heat)^J4 -> 0 | K94: =Q_sold*C108*(1+r_heat)^K4 -> 0 | L94: =Q_sold*C108*(1+r_heat)^L4 -> 0 | M94: =Q_sold*C108*(1+r_heat)^M4 -> 0 | N94: =Q_sold*C108*(1+r_heat)^N4 -> 0 | O94: =Q_sold*C108*(1+r_heat)^O4 -> 0 | P94: =Q_sold*C108*(1+r_heat)^P4 -> 0 | Q94: =Q_sold*C108*(1+r_heat)^Q4 -> 0 | R94: =Q_sold*C108*(1+r_heat)^R4 -> 0 | S94: =Q_sold*C108*(1+r_heat)^S4 -> 0 | T94: =Q_sold*C108*(1+r_heat)^T4 -> 0 | U94: =Q_sold*C108*(1+r_heat)^U4 -> 0 | V94: =Q_sold*C108*(1+r_heat)^V4 -> 0 | W94: =Q_sold*C108*(1+r_heat)^W4 -> 0 | X94: =Q_sold*C108*(1+r_heat)^X4 -> 0 | Y94: =Q_sold*C108*(1+r_heat)^Y4 -> 0 | Z94: =Q_sold*C108*(1+r_heat)^Z4 -> 0 | AA94: =Q_sold*C108*(1+r_heat)^AA4 -> 0 | AB94: =Q_sold*C108*(1+r_heat)^AB4 -> 0 | AC94: =Q_sold*C108*(1+r_heat)^AC4 -> 0
B95: 2 | C95: Other Receipts (if any) | D95: =D75 -> 0 | E95: 0 | F95: 0 | G95: 0 | H95: 0 | I95: 0 | J95: 0 | K95: 0 | L95: 0 | M95: 0 | N95: 0 | O95: 0 | P95: 0 | Q95: 0 | R95: 0 | S95: 0 | T95: 0 | U95: 0 | V95: 0 | W95: 0 | X95: 0 | Y95: 0 | Z95: 0 | AA95: 0 | AB95: 0 | AC95: 0
B96: 3=1+2 | C96: RECEIPTS from Heat-Sales plus other income - if any (Nominal) | D96: =SUM(D94:D95) -> 0 | E96: =SUM(E94:E95) -> 0 | F96: =SUM(F94:F95) -> 0 | G96: =SUM(G94:G95) -> 0 | H96: 0 | I96: 0 | J96: 0 | K96: 0 | L96: 0 | M96: 0 | N96: 0 | O96: 0 | P96: 0 | Q96: 0 | R96: 0 | S96: 0 | T96: 0 | U96: 0 | V96: 0 | W96: 0 | X96: 0 | Y96: 0 | Z96: 0 | AA96: 0 | AB96: 0 | AC96: 0
B97: 4 | C97: PAYMENTS (operating + capital expenditures) (Nominal) | D97: =D20 -> 0 | E97: =E20 -> 
B98: 5=3-4, discounted | C98: Ct (=Flow to equity) -- discounted with kev (before tax) | E98: =(E96-E97)*(1+r_EC)^-E4 -> 
B99: 4 | C99: Investmentcost A0 -- discounted with WACC (pre- tax) | D99: =D38 -> 0 | E99: =E38 -> 0 | F99: 0 | G99: 0 | H99: 0 | I99: 0 | J99: 0 | K99: 0 | L99: 0 | M99: 0 | N99: 0 | O99: 0 | P99: 0 | Q99: 0 | R99: 0 | S99: 0 | T99: 0 | U99: 0 | V99: 0 | W99: 0 | X99: 0 | Y99: 0 | Z99: 0 | AA99: 0 | AB99: 0 | AC99: 0
B100: 5 | C100: Loan capital Y0 - discounted with interest rate for debt (pre-tax) | D100: =D52 -> 51982.24842 | E100: =E52 -> 0 | F100: 0 | G100: 0 | H100: 0 | I100: 0 | J100: 0 | K100: 0 | L100: 0 | M100: 0 | N100: 0 | O100: 0 | P100: 0 | Q100: 0 | R100: 0 | S100: 0 | T100: 0 | U100: 0 | V100: 0 | W100: 0 | X100: 0 | Y100: 0 | Z100: 0 | AA100: 0 | AB100: 0 | AC100: 0
B101: 6 = - 4+5+3 | C101: K0t - Present Value | D101: =-D99+D100+D98 -> 51982.24842 | E101: =-E99+E100+E98 ->  | F101: =-F99+F100+F98 ->  | G101: =-G99+G100+G98 -> 
B102: sum(6) | C102: Cumulated Present Value in year t | D102: =D101 -> 51982.24842 | E102: =D102+E101 -> 
B106: =B86 -> RESULT:
B107: =B87 -> assumed periode length (yrs) | C107: 25
B108: =B88 -> assumed heatprice @ t=0 (CUR/MWh): | C108: 49.61870773
B109: =B89 -> NPV0 (t=timeframe, =K0, should become 0!) | C109: =SUM(D101:AC101) -> 
A114: IRR - Internal Rate of Return
A115: IRR before taxes | B115: 1 | C115: Receipts (Nominal) | D115: =D10 -> 0 | E115: =E10 -> 0 | F115: 0 | G115: 0 | H115: 0 | I115: 0 | J115: 0 | K115: 0 | L115: 0 | M115: 0 | N115: 0 | O115: 0 | P115: 0 | Q115: 0 | R115: 0 | S115: 0 | T115: 0 | U115: 0 | V115: 0 | W115: 0 | X115: 0 | Y115: 0 | Z115: 0 | AA115: 0 | AB115: 0 | AC115: 0
A116: discount rate where K0 becomes 0 | B116: 2 | C116: Payments (excl. capital-cost!) (Nominal) | D116: =SUM(D12:D18) -> 0 | E116: =SUM(E12:E18) -> 
A117: subisdies verkleinern meine invest-summe | B117: 3 | C117: Investmentcost A0 (=total investment minus subsidies if any) (nominal) | D117: =D37-D50 -> 0 | E117: =E37-E50 -> 0 | F117: =F37-F50 -> 0 | G117: 0 | H117: 0 | I117: 0 | J117: 0 | K117: 0 | L117: 0 | M117: 0 | N117: 0 | O117: 0 | P117: 0 | Q117: 0 | R117: 0 | S117: 0 | T117: 0 | U117: 0 | V117: 0 | W117: 0 | X117: 0 | Y117: 0 | Z117: 0 | AA117: 0 | AB117: 0 | AC117: 0
A118: Assuming that we have only eqity capital | B118: 4=+1-2-3 | C118: Receipts minus payments and investmetncost (nominal) | D118: =-D117-D116+D115 -> 0 | E118: =-E117-E116+E115 ->  | F118: =-F117-F116+F115 ->  | G118: =-G117-G116+G115 -> 
C119: Timeframe | D119: =IF(D4<=$C$125,1,0) -> 1 | E119: 1 | F119: 1 | G119: 1 | H119: 1 | I119: 1 | J119: 1 | K119: 1 | L119: 1 | M119: 1 | N119: 1 | O119: 1 | P119: 1 | Q119: 1 | R119: 1 | S119: 1 | T119: 0 | U119: 0 | V119: 0 | W119: 0 | X119: 0 | Y119: 0 | Z119: 0 | AA119: 0 | AB119: 0 | AC119: 0
B120: 4 in timeframe | C120: Receipts minus payments and investmetncost in Timeframe (nominal) | D120: =D118*D119 -> 0 | E120: =E118*E119 ->  | Q120: =Q118*Q119 -> 
C121: K0t in timeframe, disconted with IRR | D121: =D120*(1+$C$124)^-D4 ->  | Q121: =Q120*(1+$C$124)^-Q4 ->  | Z121: =Z120*(1+$C$124)^-Z4 ->  | AA121: =AA120*(1+$C$124)^-AA4 -> 
A122: Anzahl Vorzeichenwechsel | C122: K0t cumulated | D122: =D121 ->  | E122: =D122+E121 ->  | F122: =E122+F121 ->  | X122: =W122+X121 -> 
B123: K0 in timeframe, Present Value - must become 0 | C123: =SUM(D121:AC121) -> 
B124: IRR | C124: =IRR(D120:AC120) ->  | D124: =IF(AND(D120<0,E120>0),1,0) -> 
B125: assumed periode length (yrs) | C125: =B1 -> 15
A126: =SUM(D126:AC126) ->  | B126: IRR (T=25) | C126: =IRR(D118:AC118) ->  | D126: =IF(AND(D118<0,E118>0),1,0) ->  | R126: =IF(AND(R118<0,S118>0),1,0) -> 
C128: Difference receipts minus payments (discounted with IRR) | D128: =(D115-D116)*(1+$C$135)^-D4 ->  | E128: =(E115-E116)*(1+$C$135)^-E4 -> 
C129: Investmentcost A0 (total investment minus subsidies if any) (discounted with IRR) | D129: =D117*(1+$C$135)^-D4 -> 
C130: Present Value K0t | D130: =-D129+D128 -> 
B131: Manual Calculations | C131: cumulated PV of K0t | D131: =D130 ->  | E131: =D131+E130 ->  | F131: =E131+F130 -> 
C133: PV K0t in Timeframe | D133: =SUMPRODUCT(D130,D119) -> 
C134: Cumulated PV in Timeframe | D134: =D133 ->  | E134: =D134+E133 -> 
B135: verwendeter diskont-zinssatz (IRR) | C135: =C124 -> 
B137: MIRR: | C137: =MIRR(D120:AC120,r_loan,r_WACC) -> 
B138: r_loan | C138: =r_loan -> 0
B139: r_WACC | C139: =r_WACC -> 0 | D139: =IF(D120<0,D120*(1+r_loan)^-D4,D120*(1+r_WACC)^D4) -> 0
D141: =SUMIF(D139:AC139,"<0") -> 0
D142: =SUMIF(D139:AC139,">0") -> 0
D144: =(D142/-D141)^(1/20)-1 -> 

Sheet DCF_RefSystem (hidden)
A1: Timeframe (yrs) | B1: ='7. Results'!J129 -> 15 | C1: (influence on IRR and Heat Price calculation) | D1: Different value for reference system! | F1: Same value as Biomass System | H1: TO DO
A2: Currency: | B2: =CUR -> EUR | F2: same formula as for biomass
A3: Year | D3: =Year_0 -> 2017 | E3: =D3+1 -> 2018 | F3: =E3+1 -> 2019 | G3: 2020 | H3: 2021 | I3: 2022 | J3: 2023 | K3: 2024 | L3: 2025 | M3: 2026 | N3: 2027 | O3: 2028 | P3: 2029 | Q3: 2030 | R3: 2031 | S3: 2032 | T3: 2033 | U3: 2034 | V3: 2035 | W3: 2036 | X3: 2037 | Y3: 2038 | Z3: 2039 | AA3: 2040 | AB3: 2041 | AC3: 2042
A4: Year nb. (0=Construction) | D4: 0 | E4: 1 | F4: 2 | G4: 3 | H4: 4 | I4: 5 | J4: 6 | K4: 7 | L4: 8 | M4: 9 | N4: 10 | O4: 11 | P4: 12 | Q4: 13 | R4: 14 | S4: 15 | T4: 16 | U4: 17 | V4: 18 | W4: 19 | X4: 20 | Y4: 21 | Z4: 22 | AA4: 23 | AB4: 24 | AC4: 25
A6: RECEIPTS
B7: 1 | C7: Receipts from heat sales | D7: 0 | E7: =ref_pr_heat*Q_sold*IF(Technical_Data!$B$71=Technical_Data!$B$69,1,Q_sales_frac_Y1)*(1+ref_r_heat)^E4 -> 0 | F7: =ref_pr_heat*Q_sold*IF(Technical_Data!$B$71=Technical_Data!$B$69,1,Q_sales_frac_Y2)*(1+ref_r_heat)^F4 -> 0 | G7: =ref_pr_heat*Q_sold*IF(Technical_Data!$B$71=Technical_Data!$B$69,1,Q_sales_frac_Y3)*(1+ref_r_heat)^G4 -> 0 | H7: =ref_pr_heat*Q_sold*(1+ref_r_heat)^H4 -> 0 | I7: 0 | J7: 0 | K7: 0 | L7: 0 | M7: 0 | N7: 0 | O7: 0 | P7: 0 | Q7: 0 | R7: 0 | S7: 0 | T7: 0 | U7: 0 | V7: 0 | W7: 0 | X7: 0 | Y7: 0 | Z7: 0 | AA7: 0 | AB7: 0 | AC7: 0
B8: 2 | C8: Other Receipts (if any) | D8: ='4. Receipts'!F62 -> 0 | E8: ='4. Receipts'!F63 -> 0 | F8: ='4. Receipts'!F64 -> 0 | G8: ='4. Receipts'!F65 -> 0 | H8: ='4. Receipts'!F66 -> 0 | I8: ='4. Receipts'!F67 -> 0 | J8: ='4. Receipts'!F68 -> 0 | K8: ='4. Receipts'!F69 -> 0 | L8: ='4. Receipts'!F70 -> 0 | M8: ='4. Receipts'!F71 -> 0 | N8: ='4. Receipts'!F72 -> 0 | O8: ='4. Receipts'!F73 -> 0 | P8: ='4. Receipts'!F74 -> 0 | Q8: ='4. Receipts'!F75 -> 0 | R8: ='4. Receipts'!F76 -> 0 | S8: ='4. Receipts'!F77 -> 0 | T8: ='4. Receipts'!F78 -> 0 | U8: ='4. Receipts'!F79 -> 0 | V8: ='4. Receipts'!F80 -> 0 | W8: ='4. Receipts'!F81 -> 0 | X8: ='4. Receipts'!F82 -> 0 | Y8: ='4. Receipts'!F83 -> 0 | Z8: ='4. Receipts'!F84 -> 0 | AA8: ='4. Receipts'!F85 -> 0 | AB8: ='4. Receipts'!F86 -> 0 | AC8: ='4. Receipts'!F87 -> 0
B10: 3=1+2 | C10: RECEIPTS | D10: =SUM(D7:D9) -> 0 | E10: 0 | F10: 0 | G10: 0 | H10: 0 | I10: 0 | J10: 0 | K10: 0 | L10: 0 | M10: 0 | N10: 0 | O10: 0 | P10: 0 | Q10: 0 | R10: 0 | S10: 0 | T10: 0 | U10: 0 | V10: 0 | W10: 0 | X10: 0 | Y10: 0 | Z10: 0 | AA10: 0 | AB10: 0 | AC10: 0
A11: PAYMENTS
B12: 4 | C12: Biomass fuel
B13: 5 | C13: Fossil fuel | E13: =ref_Q_fuel*IF(Technical_Data!$B$71=Technical_Data!$B$69,1,Q_sales_frac_Y1)*ref_pr_fossil*(1+ref_r_fossil)^E4 ->  | F13: =ref_Q_fuel*IF(Technical_Data!$B$71=Technical_Data!$B$69,1,Q_sales_frac_Y2)*ref_pr_fossil*(1+ref_r_fossil)^F4 ->  | G13: =ref_Q_fuel*IF(Technical_Data!$B$71=Technical_Data!$B$69,1,Q_sales_frac_Y3)*ref_pr_fossil*(1+ref_r_fossil)^G4 ->  | H13: =ref_Q_fuel*ref_pr_fossil*(1+ref_r_fossil)^H4 -> 
B14: 6 | C14: Electricity | E14: =(ref_Elec_boiler+Elec_grid)*IF(Technical_Data!$B$71=Technical_Data!$B$69,1,Q_sales_frac_Y1)*pr_elec*(1+r_elec)^E4 -> 0 | F14: =(ref_Elec_boiler+Elec_grid)*IF(Technical_Data!$B$71=Technical_Data!$B$69,1,Q_sales_frac_Y2)*pr_elec*(1+r_elec)^F4 -> 0 | G14: =(ref_Elec_boiler+Elec_grid)*IF(Technical_Data!$B$71=Technical_Data!$B$69,1,Q_sales_frac_Y3)*pr_elec*(1+r_elec)^G4 -> 0 | H14: =(ref_Elec_boiler+Elec_grid)*pr_elec*(1+r_elec)^H4 -> 0 | I14: 0 | J14: 0 | K14: 0 | L14: 0 | M14: 0 | N14: 0 | O14: 0 | P14: 0 | Q14: 0 | R14: 0 | S14: 0 | T14: 0 | U14: 0 | V14: 0 | W14: 0 | X14: 0 | Y14: 0 | Z14: 0 | AA14: 0 | AB14: 0 | AC14: 0
B15: 7 | C15: Rent for land use | E15: ='5. Runningcost'!$F76*(1+'5. Runningcost'!$F77)^E4 -> 0 | F15: ='5. Runningcost'!$F76*(1+'5. Runningcost'!$F77)^F4 -> 0 | G15: ='5. Runningcost'!$F76*(1+'5. Runningcost'!$F77)^G4 -> 0 | H15: ='5. Runningcost'!$F76*(1+'5. Runningcost'!$F77)^H4 -> 0 | I15: ='5. Runningcost'!$F76*(1+'5. Runningcost'!$F77)^I4 -> 0 | J15: ='5. Runningcost'!$F76*(1+'5. Runningcost'!$F77)^J4 -> 0 | K15: ='5. Runningcost'!$F76*(1+'5. Runningcost'!$F77)^K4 -> 0 | L15: ='5. Runningcost'!$F76*(1+'5. Runningcost'!$F77)^L4 -> 0 | M15: ='5. Runningcost'!$F76*(1+'5. Runningcost'!$F77)^M4 -> 0 | N15: ='5. Runningcost'!$F76*(1+'5. Runningcost'!$F77)^N4 -> 0 | O15: ='5. Runningcost'!$F76*(1+'5. Runningcost'!$F77)^O4 -> 0 | P15: ='5. Runningcost'!$F76*(1+'5. Runningcost'!$F77)^P4 -> 0 | Q15: ='5. Runningcost'!$F76*(1+'5. Runningcost'!$F77)^Q4 -> 0 | R15: ='5. Runningcost'!$F76*(1+'5. Runningcost'!$F77)^R4 -> 0 | S15: ='5. Runningcost'!$F76*(1+'5. Runningcost'!$F77)^S4 -> 0 | T15: ='5. Runningcost'!$F76*(1+'5. Runningcost'!$F77)^T4 -> 0 | U15: ='5. Runningcost'!$F76*(1+'5. Runningcost'!$F77)^U4 -> 0 | V15: ='5. Runningcost'!$F76*(1+'5. Runningcost'!$F77)^V4 -> 0 | W15: ='5. Runningcost'!$F76*(1+'5. Runningcost'!$F77)^W4 -> 0 | X15: ='5. Runningcost'!$F76*(1+'5. Runningcost'!$F77)^X4 -> 0 | Y15: ='5. Runningcost'!$F76*(1+'5. Runningcost'!$F77)^Y4 -> 0 | Z15: ='5. Runningcost'!$F76*(1+'5. Runningcost'!$F77)^Z4 -> 0 | AA15: ='5. Runningcost'!$F76*(1+'5. Runningcost'!$F77)^AA4 -> 0 | AB15: ='5. Runningcost'!$F76*(1+'5. Runningcost'!$F77)^AB4 -> 0 | AC15: ='5. Runningcost'!$F76*(1+'5. Runningcost'!$F77)^AC4 -> 0
B16: 8 | C16: Staff | E16: ='5. Runningcost'!$F$29*'5. Runningcost'!$F$67*(1+r_staff)^E4 -> 0 | F16: ='5. Runningcost'!$F$29*'5. Runningcost'!$F$67*(1+r_staff)^F4 -> 0 | G16: ='5. Runningcost'!$F$29*'5. Runningcost'!$F$67*(1+r_staff)^G4 -> 0 | H16: ='5. Runningcost'!$F$29*'5. Runningcost'!$F$67*(1+r_staff)^H4 -> 0 | I16: ='5. Runningcost'!$F$29*'5. Runningcost'!$F$67*(1+r_staff)^I4 -> 0 | J16: ='5. Runningcost'!$F$29*'5. Runningcost'!$F$67*(1+r_staff)^J4 -> 0 | K16: ='5. Runningcost'!$F$29*'5. Runningcost'!$F$67*(1+r_staff)^K4 -> 0 | L16: ='5. Runningcost'!$F$29*'5. Runningcost'!$F$67*(1+r_staff)^L4 -> 0 | M16: ='5. Runningcost'!$F$29*'5. Runningcost'!$F$67*(1+r_staff)^M4 -> 0 | N16: ='5. Runningcost'!$F$29*'5. Runningcost'!$F$67*(1+r_staff)^N4 -> 0 | O16: ='5. Runningcost'!$F$29*'5. Runningcost'!$F$67*(1+r_staff)^O4 -> 0 | P16: ='5. Runningcost'!$F$29*'5. Runningcost'!$F$67*(1+r_staff)^P4 -> 0 | Q16: ='5. Runningcost'!$F$29*'5. Runningcost'!$F$67*(1+r_staff)^Q4 -> 0 | R16: ='5. Runningcost'!$F$29*'5. Runningcost'!$F$67*(1+r_staff)^R4 -> 0 | S16: ='5. Runningcost'!$F$29*'5. Runningcost'!$F$67*(1+r_staff)^S4 -> 0 | T16: ='5. Runningcost'!$F$29*'5. Runningcost'!$F$67*(1+r_staff)^T4 -> 0 | U16: ='5. Runningcost'!$F$29*'5. Runningcost'!$F$67*(1+r_staff)^U4 -> 0 | V16: ='5. Runningcost'!$F$29*'5. Runningcost'!$F$67*(1+r_staff)^V4 -> 0 | W16: ='5. Runningcost'!$F$29*'5. Runningcost'!$F$67*(1+r_staff)^W4 -> 0 | X16: ='5. Runningcost'!$F$29*'5. Runningcost'!$F$67*(1+r_staff)^X4 -> 0 | Y16: ='5. Runningcost'!$F$29*'5. Runningcost'!$F$67*(1+r_staff)^Y4 -> 0 | Z16: ='5. Runningcost'!$F$29*'5. Runningcost'!$F$67*(1+r_staff)^Z4 -> 0 | AA16: ='5. Runningcost'!$F$29*'5. Runningcost'!$F$67*(1+r_staff)^AA4 -> 0 | AB16: ='5. Runningcost'!$F$29*'5. Runningcost'!$F$67*(1+r_staff)^AB4 -> 0 | AC16: ='5. Runningcost'!$F$29*'5. Runningcost'!$F$67*(1+r_staff)^AC4 -> 0
B17: 9 | C17: Repair & maintenance | E17: =ref_ac_RM*(1+ref_r_RM)^E4 -> 0 | F17: =ref_ac_RM*(1+ref_r_RM)^F4 -> 0 | G17: 0 | H17: 0 | I17: 0 | J17: 0 | K17: 0 | L17: 0 | M17: 0 | N17: 0 | O17: 0 | P17: 0 | Q17: 0 | R17: 0 | S17: 0 | T17: 0 | U17: 0 | V17: 0 | W17: 0 | X17: 0 | Y17: 0 | Z17: 0 | AA17: 0 | AB17: 0 | AC17: 0
B18: 10 | C18: Other running cost (insurance etc.) | E18: =ref_ac_other*(1+ref_r_other)^E4 -> 0 | F18: 0 | G18: 0 | H18: 0 | I18: 0 | J18: 0 | K18: 0 | L18: 0 | M18: 0 | N18: 0 | O18: 0 | P18: 0 | Q18: 0 | R18: 0 | S18: 0 | T18: 0 | U18: 0 | V18: 0 | W18: 0 | X18: 0 | Y18: 0 | Z18: 0 | AA18: 0 | AB18: 0 | AC18: 0
B19: 12 | C19: Capital expenditures (interest & redemption) | D19: 0 | E19: =IF(E4<=ref_T_loan,ref_ac_loan,0) -> 0 | F19: 0 | G19: 0 | H19: 0 | I19: 0 | J19: 0 | K19: 0 | L19: 0 | M19: 0 | N19: 0 | O19: 0 | P19: 0 | Q19: 0 | R19: 0 | S19: 0 | T19: 0 | U19: 0 | V19: 0 | W19: 0 | X19: 0 | Y19: 0 | Z19: 0 | AA19: 0 | AB19: 0 | AC19: 0
B20: 13=sum(4 to 12) | C20: PAYMENTS (operating + capital expenditures) | D20: =SUM(D12:D19) -> 0 | E20: =SUM(E12:E19) -> 
A21: Flow to Equity ct
C22: Flow to Equity (nominal values) | D22: =D10-D20 -> 0 | E22: =E10-E20 -> 
C23: cumulated nominal CFtE | D23: =D22 -> 0 | E23: =D23+E22 ->  | F23: =E23+F22 -> 
B24: ="Equity capital rate ref_r_EC = " & ref_r_EC -> Equity capital rate ref_r_EC = 0 | C24: Flow to Equity Ct discounted with kEv (before tax) | D24: =D22*(1+ref_r_EC)^-D4 -> 0
C25: Flow to Equity Ct cumulated | D25: =D24 -> 0 | E25: =D25+E24 -> 
C26: Timeframe | D26: =IF(D4<=$B$1,1,0) -> 1 | E26: 1 | F26: 1 | G26: 1 | H26: 1 | I26: 1 | J26: 1 | K26: 1 | L26: 1 | M26: 1 | N26: 1 | O26: 1 | P26: 1 | Q26: 1 | R26: 1 | S26: 1 | T26: 0 | U26: 0 | V26: 0 | W26: 0 | X26: 0 | Y26: 0 | Z26: 0 | AA26: 0 | AB26: 0 | AC26: 0
C27: Flow to Equity (discounted with ref_r_EC bzw. kEv before tax) in Timeframe | D27: =D24*D26 -> 0 | E27: =E24*E26 -> 
C29: Flow to Equity Ct - Present Value (t=Timeframe) | D29: =SUM(D27:AC27) -> 
C30: Flow to Equity Ct - Present Value Ct (t=25): | D30: =AC25 -> 
C31: informativ (selber wert, andere berechnung | D31: =SUM(D24:AC24) -> 
A32: INVESTMENT COST A0 | C32: informativ (selber wert, andere berechnung | D32: =NPV(ref_r_EC,E22:AC22) -> 
C33: - Initial Investment cost | D33: =ref_ic_Y0+ref_ic_ConstructionInterestPayments -> 0 | E33: =ref_ic_Y1 -> 0 | F33: =ref_IC_y2 -> 0 | G33: =ic_Y3 -> 0
C34: - other future investment cost (incl. re-investment cost) | D34: ='3. Investment'!F130 -> 0 | E34: ='3. Investment'!F131 -> 0 | F34: ='3. Investment'!F132 -> 0 | G34: ='3. Investment'!F133 -> 0 | H34: ='3. Investment'!F134 -> 0 | I34: ='3. Investment'!F135 -> 0 | J34: ='3. Investment'!F136 -> 0 | K34: ='3. Investment'!F137 -> 0 | L34: ='3. Investment'!F138 -> 0 | M34: ='3. Investment'!F139 -> 0 | N34: ='3. Investment'!F140 -> 0 | O34: ='3. Investment'!F141 -> 0 | P34: ='3. Investment'!F142 -> 0 | Q34: ='3. Investment'!F143 -> 0 | R34: ='3. Investment'!F144 -> 0 | S34: ='3. Investment'!F145 -> 0 | T34: ='3. Investment'!F146 -> 0 | U34: ='3. Investment'!F147 -> 0 | V34: ='3. Investment'!F148 -> 0 | W34: ='3. Investment'!F149 -> 0 | X34: ='3. Investment'!F150 -> 0 | Y34: ='3. Investment'!F151 -> 0 | Z34: ='3. Investment'!F152 -> 0 | AA34: ='3. Investment'!F153 -> 0 | AB34: ='3. Investment'!F154 -> 0 | AC34: ='3. Investment'!F155 -> 0
C36: SUM Investmentcost | D36: =SUM(D33:D35) -> 0 | E36: =SUM(E33:E35) -> 0 | F36: 0 | G36: 0 | H36: 0 | I36: 0 | J36: 0 | K36: 0 | L36: 0 | M36: 0 | N36: 0 | O36: 0 | P36: 0 | Q36: 0 | R36: 0 | S36: 0 | T36: 0 | U36: 0 | V36: 0 | W36: 0 | X36: 0 | Y36: 0 | Z36: 0 | AA36: 0 | AB36: 0 | AC36: 0
B37: =" Inflation (= " & Inflation_Adaption_Rate&")" -> Inflation (= ) | C37: Investmentcost + Inflation_adaption_rate = A0 Nominal | D37: =D36*(1+Inflation_Adaption_Rate)^D4 -> 0 | E37: 0 | F37: 0 | G37: 0 | H37: 0 | I37: 0 | J37: 0 | K37: 0 | L37: 0 | M37: 0 | N37: 0 | O37: 0 | P37: 0 | Q37: 0 | R37: 0 | S37: 0 | T37: 0 | U37: 0 | V37: 0 | W37: 0 | X37: 0 | Y37: 0 | Z37: 0 | AA37: 0 | AB37: 0 | AC37: 0
C38: Investmentcost A0 discounted with WACC (before tax) | D38: =D37*(1+ref_r_WACC)^-D4 -> 0 | E38: =E37*(1+ref_r_WACC)^-E4 -> 0 | F38: =F37*(1+ref_r_WACC)^-F4 -> 0 | G38: 0 | H38: 0 | I38: 0 | J38: 0 | K38: 0 | L38: 0 | M38: 0 | N38: 0 | O38: 0 | P38: 0 | Q38: 0 | R38: 0 | S38: 0 | T38: 0 | U38: 0 | V38: 0 | W38: 0 | X38: 0 | Y38: 0 | Z38: 0 | AA38: 0 | AB38: 0 | AC38: 0
C39: Investmentcost A0 - cumulated | D39: =D38 -> 0 | E39: =D39+E38 -> 0 | F39: =E39+F38 -> 0 | G39: 0 | H39: 0 | I39: 0 | J39: 0 | K39: 0 | L39: 0 | M39: 0 | N39: 0 | O39: 0 | P39: 0 | Q39: 0 | R39: 0 | S39: 0 | T39: 0 | U39: 0 | V39: 0 | W39: 0 | X39: 0 | Y39: 0 | Z39: 0 | AA39: 0 | AB39: 0 | AC39: 0
C40: Timeframe | D40: =IF(D$4<=$B$1,1,0) -> 1 | E40: 1 | F40: 1 | G40: 1 | H40: 1 | I40: 1 | J40: 1 | K40: 1 | L40: 1 | M40: 1 | N40: 1 | O40: 1 | P40: 1 | Q40: 1 | R40: 1 | S40: 1 | T40: 0 | U40: 0 | V40: 0 | W40: 0 | X40: 0 | Y40: 0 | Z40: 0 | AA40: 0 | AB40: 0 | AC40: 0
C41: Investmentcost A0 discounted with kev (before tax) in Timeframe | D41: =D38*D$40 -> 0 | E41: =E38*E$40 -> 0 | F41: 0 | G41: 0 | H41: 0 | I41: 0 | J41: 0 | K41: 0 | L41: 0 | M41: 0 | N41: 0 | O41: 0 | P41: 0 | Q41: 0 | R41: 0 | S41: 0 | T41: 0 | U41: 0 | V41: 0 | W41: 0 | X41: 0 | Y41: 0 | Z41: 0 | AA41: 0 | AB41: 0 | AC41: 0
C42: Investmentcost A0 - cumulated in Timeframe | D42: =D39*D$40 -> 0 | E42: 0 | F42: 0 | G42: 0 | H42: 0 | I42: 0 | J42: 0 | K42: 0 | L42: 0 | M42: 0 | N42: 0 | O42: 0 | P42: 0 | Q42: 0 | R42: 0 | S42: 0 | T42: 0 | U42: 0 | V42: 0 | W42: 0 | X42: 0 | Y42: 0 | Z42: 0 | AA42: 0 | AB42: 0 | AC42: 0
C44: A0 = Current Value of all Investments until t=timeframe | D44: =SUM(D41:AC41) -> 0
C45: A0 = current value of all Investments until t=25 | D45: =SUM(D38:AC38) -> 0
C46: NBW until t=25 (informativ -- selber wert) | D46: =NPV(ref_r_WACC,E37:AC37)+D37 -> 0
C47: Loan capital reduction because of grid investment timing | E47: =E36-E38 -> 0 | F47: =F36-F38 -> 0 | G47: =G36-G38 -> 0
A48: LOAN CAPITAL Y0
C49: Loan | D49: =ref_capital_loan -> 0
C50: subsidy (=0 for fossil reference system)
C51: SUM loan & subsidy (nominal) | D51: =SUM(D49:D50) -> 0 | E51: =SUM(E49:E50) -> 0 | F51: 0 | G51: 0 | H51: 0 | I51: 0 | J51: 0 | K51: 0 | L51: 0 | M51: 0 | N51: 0 | O51: 0 | P51: 0 | Q51: 0 | R51: 0 | S51: 0 | T51: 0 | U51: 0 | V51: 0 | W51: 0 | X51: 0 | Y51: 0 | Z51: 0 | AA51: 0 | AB51: 0 | AC51: 0
C52: Y0t - discounted with interest rate for debt (pre-tax) | D52: =D51*(1+ref_r_loan)^-D4 -> 0 | E52: 0 | F52: 0 | G52: 0 | H52: 0 | I52: 0 | J52: 0 | K52: 0 | L52: 0 | M52: 0 | N52: 0 | O52: 0 | P52: 0 | Q52: 0 | R52: 0 | S52: 0 | T52: 0 | U52: 0 | V52: 0 | W52: 0 | X52: 0 | Y52: 0 | Z52: 0 | AA52: 0 | AB52: 0 | AC52: 0
C53: Y0t cumulated | D53: =D52 -> 0 | E53: =D53+E52 -> 0 | F53: =E53+F52 -> 0 | G53: 0 | H53: 0 | I53: 0 | J53: 0 | K53: 0 | L53: 0 | M53: 0 | N53: 0 | O53: 0 | P53: 0 | Q53: 0 | R53: 0 | S53: 0 | T53: 0 | U53: 0 | V53: 0 | W53: 0 | X53: 0 | Y53: 0 | Z53: 0 | AA53: 0 | AB53: 0 | AC53: 0
C54: Timeframe | D54: =IF(D$4<=$B$1,1,0) -> 1 | E54: 1 | F54: 1 | G54: 1 | H54: 1 | I54: 1 | J54: 1 | K54: 1 | L54: 1 | M54: 1 | N54: 1 | O54: 1 | P54: 1 | Q54: 1 | R54: 1 | S54: 1 | T54: 0 | U54: 0 | V54: 0 | W54: 0 | X54: 0 | Y54: 0 | Z54: 0 | AA54: 0 | AB54: 0 | AC54: 0
C55: Y0t - discounted with interest rate for debt - in timeframe | D55: =D52*D$40 -> 0 | E55: =E52*E$40 -> 0 | F55: 0 | G55: 0 | H55: 0 | I55: 0 | J55: 0 | K55: 0 | L55: 0 | M55: 0 | N55: 0 | O55: 0 | P55: 0 | Q55: 0 | R55: 0 | S55: 0 | T55: 0 | U55: 0 | V55: 0 | W55: 0 | X55: 0 | Y55: 0 | Z55: 0 | AA55: 0 | AB55: 0 | AC55: 0
C56: Y0 = Y0t cumulated - in timeframe | D56: =D53*D$40 -> 0 | E56: 0 | F56: 0 | G56: 0 | H56: 0 | I56: 0 | J56: 0 | K56: 0 | L56: 0 | M56: 0 | N56: 0 | O56: 0 | P56: 0 | Q56: 0 | R56: 0 | S56: 0 | T56: 0 | U56: 0 | V56: 0 | W56: 0 | X56: 0 | Y56: 0 | Z56: 0 | AA56: 0 | AB56: 0 | AC56: 0
C58: Y0 -- Current Value of all Investments until t=timeframe | D58: =SUM(D55:AC55) -> 0
C59: Y0-- Current Value of all Investments untilt=25 | D59: =SUM(D52:AC52) -> 0
C60: NBW (selber wert andere berechnung) | D60: =NPV(ref_r_loan,E51:AC51)+D51 -> 0
A61: Net Present Value K0 / dynamic amortisation
A62: assuming equity capital cost r_eq | C62: K0t - Cumulated Present Value in year t | D62: =-D39+D53+D25 -> 0 | E62: =-E39+E53+E25 -> 
A63: Unter vernachlässigung des Restbuchwerts | C63: break-even-berechnung | E63: =IF(AND(D62<0,E62>0),D4+ABS(D62)/(E62-D62),0) ->  | F63: =IF(AND(E62<0,F62>0),E4+ABS(E62)/(F62-E62),0) ->  | AC63: =IF(AND(AB62<0,AC62>0),AB4+ABS(AB62)/(AC62-AB62),0) -> 
A64: Flow to equity calculated with ref_r_EC (eigenmittelzins)
C66: Net Present Value oder Kapitalwert, diskontiert, K0 (t=timeframe) | D66: =-SUM(D41:AC41)+SUM(D55:AC55)+D29 ->  | E66: =CUR -> EUR
C67: Net Present Value oder Kapitalwert, diskontiert, K0 (t=25) | D67: =-SUM(D38:AC38)+SUM(D52:AC52)+D30 ->  | E67: =CUR -> EUR
C68: Pay-Back Year (at given Equity Capital Rate): | D68: =MAX(D63:AC63) ->  | E68: yr
A72: Heat Generation Cost
A73: heatprice at which NPV=NBW=K0=0
A74: Timeframe can be chosen freely | B74: 1 | C74: Receipts from Heat-Sales | D74: 0 | E74: =Q_sold*IF(Technical_Data!$B$71=Technical_Data!$B$69,1,Q_sales_frac_Y1)*$C$88*(1+ref_r_heat)^E4 -> 0 | F74: =Q_sold*IF(Technical_Data!$B$71=Technical_Data!$B$69,1,Q_sales_frac_Y2)*$C$88*(1+ref_r_heat)^F4 -> 0 | G74: =Q_sold*IF(Technical_Data!$B$71=Technical_Data!$B$69,1,Q_sales_frac_Y3)*$C$88*(1+ref_r_heat)^G4 -> 0 | H74: =Q_sold*$C$88*(1+ref_r_heat)^H4 -> 0 | I74: 0 | J74: 0 | K74: 0 | L74: 0 | M74: 0 | N74: 0 | O74: 0 | P74: 0 | Q74: 0 | R74: 0 | S74: 0 | T74: 0 | U74: 0 | V74: 0 | W74: 0 | X74: 0 | Y74: 0 | Z74: 0 | AA74: 0 | AB74: 0 | AC74: 0
A75: rest-value at end of timeframe is neglected | B75: 2 | C75: Other Receipts (if any) | D75: =D8 -> 0 | E75: =E8 -> 0 | F75: 0 | G75: 0 | H75: 0 | I75: 0 | J75: 0 | K75: 0 | L75: 0 | M75: 0 | N75: 0 | O75: 0 | P75: 0 | Q75: 0 | R75: 0 | S75: 0 | T75: 0 | U75: 0 | V75: 0 | W75: 0 | X75: 0 | Y75: 0 | Z75: 0 | AA75: 0 | AB75: 0 | AC75: 0
A76: Heat price where K0 becomes 0 | B76: 3=1+2 | C76: RECEIPTS from Heat-Sales plus other income - if any (Nominal) | D76: =SUM(D74:D75) -> 0 | E76: =SUM(E74:E75) -> 0 | F76: =SUM(F74:F75) -> 0 | G76: 0 | H76: 0 | I76: 0 | J76: 0 | K76: 0 | L76: 0 | M76: 0 | N76: 0 | O76: 0 | P76: 0 | Q76: 0 | R76: 0 | S76: 0 | T76: 0 | U76: 0 | V76: 0 | W76: 0 | X76: 0 | Y76: 0 | Z76: 0 | AA76: 0 | AB76: 0 | AC76: 0
A77: assuming a certain timeframe | B77: 4 | C77: PAYMENTS (operating + capital expenditures) (Nominal) | D77: =D20 -> 0 | E77: =E20 ->  | AC77: =AC20 -> 
B78: 5=3-4, discounted | C78: Ct (=Flow to equity) -- discounted with kev before tax | E78: =(E76-E77)*(1+ref_r_EC)^-E4 -> 
B79: 4 | C79: Investmentcost A0 -- discounted with WACC before tax | D79: =D38 -> 0 | E79: 0 | F79: 0 | G79: 0 | H79: 0 | I79: 0 | J79: 0 | K79: 0 | L79: 0 | M79: 0 | N79: 0 | O79: 0 | P79: 0 | Q79: 0 | R79: 0 | S79: 0 | T79: 0 | U79: 0 | V79: 0 | W79: 0 | X79: 0 | Y79: 0 | Z79: 0 | AA79: 0 | AB79: 0 | AC79: 0
B80: 5 | C80: Loan capital Y0 - discounted with interest rate for debt | D80: =D52 -> 0 | E80: 0 | F80: 0 | G80: 0 | H80: 0 | I80: 0 | J80: 0 | K80: 0 | L80: 0 | M80: 0 | N80: 0 | O80: 0 | P80: 0 | Q80: 0 | R80: 0 | S80: 0 | T80: 0 | U80: 0 | V80: 0 | W80: 0 | X80: 0 | Y80: 0 | Z80: 0 | AA80: 0 | AB80: 0 | AC80: 0
B81: 6 = - 4+5+3 | C81: K0t - Present Value | D81: =-D79+D80+D78 -> 0 | E81: =-E79+E80+E78 ->  | F81: =-F79+F80+F78 ->  | G81: =-G79+G80+G78 ->  | Z81: =-Z79+Z80+Z78 ->  | AC81: =-AC79+AC80+AC78 -> 
B82: sum(6) | C82: Cumulated Present Value in year t | D82: =D81 -> 0 | E82: =D82+E81 ->  | F82: =E82+F81 -> 
